Workbook

Sheet APT Adjusted Factors (hidden)
E3: 1 | F3: 2 | G3: 3 | H3: 4 | I3: 5 | J3: 6 | K3: 7 | L3: 8 | M3: 9 | N3: 10 | O3: 11 | P3: 12 | Q3: 13 | R3: 14 | S3: 15 | T3: 16 | U3: 17 | V3: 18 | W3: 19 | X3: 20 | Y3: 21 | Z3: 22 | AA3: 23 | AB3: 24 | AC3: 25 | AD3: 26 | AE3: 27 | AF3: 28 | AG3: 29 | AH3: 30 | AI3: 31 | AJ3: 32 | AK3: 33 | AL3: 34 | AM3: 35 | AN3: 36 | AO3: 37 | AP3: 38 | AQ3: 39 | AR3: 40 | AS3: 41 | AT3: 42 | AU3: 43 | AV3: 44 | AW3: 45 | AX3: 46 | AY3: 47 | AZ3: 48 | BA3: 49 | BB3: 50 | BC3: 51 | BD3: 52 | BE3: 53 | BF3: 54 | BG3: 55 | BH3: 56 | BI3: 57 | BJ3: 58 | BK3: 59 | BL3: 60 | BM3: 61 | BN3: 62 | BO3: 63 | BP3: 64 | BQ3: 65 | BR3: 66 | BS3: 67 | BT3: 68 | BU3: 69
A4: Schools Block Data match # | B4: I & A match # | C4: Pri_FSM6_updated | D4: Sec_FSM6_updated | E4: LA Short | F4: LAESTAB | G4: School Name | H4: Phase | I4: Academy Type | J4: London Fringe | K4: Number of Primary year groups for middle schools | L4: Number of Secondary year groups for middle schools | M4: Number of Primary year groups for all schools | N4: Number of Secondary year groups for all schools | O4: Number of KS3 year groups for all schools | P4: Number of KS4 year groups for all schools | Q4: NOR | R4: NOR Primary | S4: NOR Reception | T4: NOR Y1-6 for calculation of the eligible pupils for the primary prior attainment factor ONLY | U4: NOR Secondary | V4: NOR KS3 | W4: NOR KS4 | X4: NOR Y7 for calculation of the eligible pupils for the secondary prior attainment factor ONLY | Y4: NOR Y8 for calculation of the eligible pupils for the secondary prior attainment factor ONLY | Z4: NOR Y9 for calculation of the eligible pupils for the secondary prior attainment factor ONLY | AA4: NOR Y10 for calculation of the eligible pupils for the secondary prior attainment factor ONLY | AB4: NOR Y11 for calculation of the eligible pupils for the secondary prior attainment factor ONLY | AC4: Reception Difference | AD4: 22-23 Base NOR | AE4: Average Year Group Size | AF4: Primary FSM Units | AG4: Primary FSM6 Units | AH4: Secondary FSM Units | AI4: Secondary FSM6 Units | AJ4: IDACI Primary Units Band G | AK4: IDACI Primary Units Band F | AL4: IDACI Primary Units Band E | AM4: IDACI Primary Units Band D | AN4: IDACI Primary Units Band C | AO4: IDACI Primary Units Band B | AP4: IDACI Primary Units Band A | AQ4: IDACI Secondary Units Band G | AR4: IDACI Secondary Units Band F | AS4: IDACI Secondary Units Band E | AT4: IDACI Secondary Units Band D | AU4: IDACI Secondary Units Band C | AV4: IDACI Secondary Units Band B | AW4: IDACI Secondary Units Band A | AX4: EAL 1 Primary Units | AY4: EAL 2 Primary Units | AZ4: EAL 3 Primary Units | BA4: EAL 1 Secondary Units | BB4: EAL 2 Secondary Units | BC4: EAL 3 Secondary Units | BD4: LAC Units | BE4: Low Prior Attainment under new EYFSP Proportion | BF4: Low prior attainment total Primary Units | BG4: Low Prior Attainment Secondary Units - Y7 | BH4: Low Prior Attainment Secondary Units - Y8 | BI4: Low Prior Attainment Secondary Units - Y9 | BJ4: Low Prior Attainment Secondary Units - Y10 | BK4: Low Prior Attainment Secondary Units - Y11 | BL4: Low prior attainment total Secondary Units | BM4: Mobility Primary Units | BN4: Mobility Secondary Units | BO4: Primary sparsity av. Distance to 2nd school (miles) | BP4: Secondary sparsity av. Distance to 2nd school (miles) | BQ4: Sparsity NOR taper | BR4: Sparsity distance taper | BS4: Sparsity flag | BT4: Proportion of total NOR in Primary phase | BU4: Proportion of total NOR in Secondary phase
E5: All | Q5: =SUM(Q6:Q94) -> 39943.66667 | R5: =SUM(R6:R94) -> 23318.5 | S5: 3065.083333 | T5: 20253.41667 | U5: 16625.16667 | V5: 10289.83333 | W5: 6335.333333 | X5: 3466.833333 | Y5: 3448.666667 | Z5: 3374.333333 | AA5: 3258.083333 | AB5: 3077.25 | AC5: 0 | AD5: 39943.66667 | AE5: =AVERAGE(AE6:AE94) -> 83.82490637 | AF5: 7347.084247 | AG5: 7788.169664 | AH5: 4226.238941 | AI5: 5537.493874 | AJ5: 9633.13634 | AK5: 2795.599965 | AL5: 2903.072096 | AM5: 2035.00188 | AN5: 2403.142902 | AO5: 2052.453526 | AP5: 1496.093291 | AQ5: 7392.915651 | AR5: 1870.897503 | AS5: 1944.796012 | AT5: 1333.424534 | AU5: 1618.570606 | AV5: 1445.022907 | AW5: 1019.539454 | AX5: 1540.396351 | AY5: 2818.397404 | AZ5: 4025.588947 | BA5: 191.9806007 | BB5: 303.060097 | BC5: 497.2782069 | BD5: 158.4599188 | BE5: 6038.407944 | BF5: 6934.677981 | BG5: 1344.81595 | BH5: 1323.685459 | BI5: 1301.637722 | BJ5: 1270.863772 | BK5: 1295.885178 | BL5: 4122.104173 | BM5: 297.8012863 | BN5: 119.2930457 | BT5: 73.26454183 | BU5: 15.73545817 | BW5: URN | BX5: LAESTAB | BY5: School Name | BZ5: Phase | CA5: Academy Type | CB5: London Fringe | CC5: Number of Primary year groups for middle schools | CD5: Number of Secondary year groups for middle schools | CE5: Number of Primary year groups for all schools | CF5: Number of Secondary year groups for all schools | CG5: Number of KS3 year groups for all schools | CH5: Number of KS4 year groups for all schools | CI5: NOR | CJ5: NOR Primary | CK5: NOR Reception | CL5: NOR Y1-6 for calculation of the eligible pupils for the primary prior attainment factor ONLY | CM5: NOR Secondary | CN5: NOR KS3 | CO5: NOR KS4 | CP5: NOR Y7 for calculation of the eligible pupils for the secondary prior attainment factor ONLY | CQ5: NOR Y8 for calculation of the eligible pupils for the secondary prior attainment factor ONLY | CR5: NOR Y9 for calculation of the eligible pupils for the secondary prior attainment factor ONLY | CS5: NOR Y10 for calculation of the eligible pupils for the secondary prior attainment factor ONLY | CT5: NOR Y11 for calculation of the eligible pupils for the secondary prior attainment factor ONLY | CU5: Reception Difference | CV5: {cy} Base NOR | CW5: Average Year Group Size | CX5: Primary FSM Units | CY5: Primary FSM6 Units | CZ5: Secondary FSM Units | DA5: Secondary FSM6 Units | DB5: IDACI Primary Units Band G | DC5: IDACI Primary Units Band F | DD5: IDACI Primary Units Band E | DE5: IDACI Primary Units Band D | DF5: IDACI Primary Units Band C | DG5: IDACI Primary Units Band B | DH5: IDACI Primary Units Band A | DI5: IDACI Secondary Units Band G | DJ5: IDACI Secondary Units Band F | DK5: IDACI Secondary Units Band E | DL5: IDACI Secondary Units Band D | DM5: IDACI Secondary Units Band C | DN5: IDACI Secondary Units Band B | DO5: IDACI Secondary Units Band A | DP5: EAL 1 Primary Units | DQ5: EAL 2 Primary Units | DR5: EAL 3 Primary Units | DS5: EAL 1 Secondary Units | DT5: EAL 2 Secondary Units | DU5: EAL 3 Secondary Units | DV5: LAC Units | DW5: Low Prior Attainment under new EYFSP Proportion | DX5: Low prior attainment total Primary Units | DY5: Low Prior Attainment Secondary Units - Y7 | DZ5: Low Prior Attainment Secondary Units - Y8 | EA5: Low Prior Attainment Secondary Units - Y9 | EB5: Low Prior Attainment Secondary Units - Y10 | EC5: Low Prior Attainment Secondary Units - Y11 | ED5: Low prior attainment total Secondary Units | EE5: Mobility Primary Units | EF5: Mobility Secondary Units | EG5: Primary sparsity av. Distance to 2nd school (miles) | EH5: Secondary sparsity av. Distance to 2nd school (miles) | EI5: Sparsity NOR taper | EJ5: Sparsity distance taper | EK5: Sparsity flag | EL5: Proportion of total NOR in Primary phase | EM5: Proportion of total NOR in Secondary phase
A6: 5 | C6: 0.4528301887 | D6: 0 | E6: 2001 | F6: 8312001 | G6: Roe Farm Primary School | H6: Primary | I6: 0 | J6: 1 | K6: 0 | L6: 0 | M6: 7 | N6: 0 | O6: 0 | P6: 0 | Q6: 371 | R6: 371 | S6: 36 | T6: 335 | U6: 0 | V6: 0 | W6: 0 | X6: 0 | Y6: 0 | Z6: 0 | AA6: 0 | AB6: 0 | AC6: 0 | AD6: 371 | AE6: 53 | AF6: 153 | AG6: 168 | AH6: 0 | AI6: 0 | AJ6: 51 | AK6: 67 | AL6: 37 | AM6: 28 | AN6: 1 | AO6: 91 | AP6: 96 | AQ6: 0 | AR6: 0 | AS6: 0 | AT6: 0 | AU6: 0 | AV6: 0 | AW6: 0 | AX6: 4.429850746 | AY6: 6.644776119 | AZ6: 11.07462687 | BA6: 0 | BB6: 0 | BC6: 0 | BD6: 1.883248731 | BE6: 108.2930514 | BF6: 119.9305136 | BG6: 0 | BH6: 0 | BI6: 0 | BJ6: 0 | BK6: 0 | BL6: 0 | BM6: 7.74 | BN6: 0 | BO6: 0.49 | BP6: 0 | BQ6: 0 | BR6: 0 | BS6: 0 | BT6: 1 | BU6: 0 | BW6: 131401 | BX6: 8312001 | BY6: Roe Farm Primary School | BZ6: Primary | CA6: 0 | CB6: 1 | CC6: 0 | CD6: 0 | CE6: 7 | CF6: 0 | CG6: 0 | CH6: 0 | CI6: 371 | CJ6: 371 | CK6: 36 | CL6: 335 | CM6: 0 | CN6: 0 | CO6: 0 | CP6: 0 | CQ6: 0 | CR6: 0 | CS6: 0 | CT6: 0 | CU6: 0 | CV6: 371 | CW6: 53 | CX6: 153 | CY6: 168 | CZ6: 0 | DA6: 0 | DB6: 51 | DC6: 67 | DD6: 37 | DE6: 28 | DF6: 1 | DG6: 91 | DH6: 96 | DI6: 0 | DJ6: 0 | DK6: 0 | DL6: 0 | DM6: 0 | DN6: 0 | DO6: 0 | DP6: 4.429850746 | DQ6: 6.644776119 | DR6: 11.07462687 | DS6: 0 | DT6: 0 | DU6: 0 | DV6: 1.883248731 | DW6: 108.2930514 | DX6: 119.9305136 | DY6: 0 | DZ6: 0 | EA6: 0 | EB6: 0 | EC6: 0 | ED6: 0 | EE6: 7.74 | EF6: 0 | EG6: 0.49 | EH6: 0 | EI6: 0 | EJ6: 0 | EK6: 0 | EL6: 1 | EM6: 0
A7: 6 | C7: 0.06132075472 | D7: 0 | E7: 2003 | F7: 8312003 | G7: Parkview Primary School | H7: Primary | I7: 0 | J7: 1 | K7: 0 | L7: 0 | M7: 7 | N7: 0 | O7: 0 | P7: 0 | Q7: 212 | R7: 212 | S7: 30 | T7: 182 | U7: 0 | V7: 0 | W7: 0 | X7: 0 | Y7: 0 | Z7: 0 | AA7: 0 | AB7: 0 | AC7: 0 | AD7: 212 | AE7: 30.28571429 | AF7: 12 | AG7: 13 | AH7: 0 | AI7: 0 | AJ7: 200 | AK7: 7 | AL7: 1 | AM7: 2 | AN7: 1 | AO7: 0 | AP7: 1 | AQ7: 0 | AR7: 0 | AS7: 0 | AT7: 0 | AU7: 0 | AV7: 0 | AW7: 0 | AX7: 1.164835165 | AY7: 2.32967033 | AZ7: 3.494505495 | BA7: 0 | BB7: 0 | BC7: 0 | BD7: 0 | BE7: 30.5027933 | BF7: 35.53072626 | BG7: 0 | BH7: 0 | BI7: 0 | BJ7: 0 | BK7: 0 | BL7: 0 | BM7: 0 | BN7: 0 | BO7: 1.23 | BP7: 0 | BQ7: 0 | BR7: 0 | BS7: 0 | BT7: 1 | BU7: 0 | BW7: 131799 | BX7: 8312003 | BY7: Parkview Primary School | BZ7: Primary | CA7: 0 | CB7: 1 | CC7: 0 | CD7: 0 | CE7: 7 | CF7: 0 | CG7: 0 | CH7: 0 | CI7: 212 | CJ7: 212 | CK7: 30 | CL7: 182 | CM7: 0 | CN7: 0 | CO7: 0 | CP7: 0 | CQ7: 0 | CR7: 0 | CS7: 0 | CT7: 0 | CU7: 0 | CV7: 212 | CW7: 30.28571429 | CX7: 12 | CY7: 13 | CZ7: 0 | DA7: 0 | DB7: 200 | DC7: 7 | DD7: 1 | DE7: 2 | DF7: 1 | DG7: 0 | DH7: 1 | DI7: 0 | DJ7: 0 | DK7: 0 | DL7: 0 | DM7: 0 | DN7: 0 | DO7: 0 | DP7: 1.164835165 | DQ7: 2.32967033 | DR7: 3.494505495 | DS7: 0 | DT7: 0 | DU7: 0 | DV7: 0 | DW7: 30.5027933 | DX7: 35.53072626 | DY7: 0 | DZ7: 0 | EA7: 0 | EB7: 0 | EC7: 0 | ED7: 0 | EE7: 0 | EF7: 0 | EG7: 1.23 | EH7: 0 | EI7: 0 | EJ7: 0 | EK7: 0 | EL7: 1 | EM7: 0
A8: 7 | C8: 0.39 | D8: 0 | E8: 2005 | F8: 8312005 | G8: Ashgate Primary School | H8: Primary | I8: 0 | J8: 1 | K8: 0 | L8: 0 | M8: 7 | N8: 0 | O8: 0 | P8: 0 | Q8: 300 | R8: 300 | S8: 47 | T8: 253 | U8: 0 | V8: 0 | W8: 0 | X8: 0 | Y8: 0 | Z8: 0 | AA8: 0 | AB8: 0 | AC8: 0 | AD8: 300 | AE8: 42.85714286 | AF8: 112 | AG8: 117 | AH8: 0 | AI8: 0 | AJ8: 20 | AK8: 63 | AL8: 97 | AM8: 3 | AN8: 31 | AO8: 48 | AP8: 38 | AQ8: 0 | AR8: 0 | AS8: 0 | AT8: 0 | AU8: 0 | AV8: 0 | AW8: 0 | AX8: 18.97233202 | AY8: 33.20158103 | AZ8: 41.50197628 | BA8: 0 | BB8: 0 | BC8: 0 | BD8: 0 | BE8: 68.70258621 | BF8: 81.46551724 | BG8: 0 | BH8: 0 | BI8: 0 | BJ8: 0 | BK8: 0 | BL8: 0 | BM8: 13 | BN8: 0 | BO8: 0.758 | BP8: 0 | BQ8: 0 | BR8: 0 | BS8: 0 | BT8: 1 | BU8: 0 | BW8: 131685 | BX8: 8312005 | BY8: Ashgate Primary School | BZ8: Primary | CA8: 0 | CB8: 1 | CC8: 0 | CD8: 0 | CE8: 7 | CF8: 0 | CG8: 0 | CH8: 0 | CI8: 300 | CJ8: 300 | CK8: 47 | CL8: 253 | CM8: 0 | CN8: 0 | CO8: 0 | CP8: 0 | CQ8: 0 | CR8: 0 | CS8: 0 | CT8: 0 | CU8: 0 | CV8: 300 | CW8: 42.85714286 | CX8: 112 | CY8: 117 | CZ8: 0 | DA8: 0 | DB8: 20 | DC8: 63 | DD8: 97 | DE8: 3 | DF8: 31 | DG8: 48 | DH8: 38 | DI8: 0 | DJ8: 0 | DK8: 0 | DL8: 0 | DM8: 0 | DN8: 0 | DO8: 0 | DP8: 18.97233202 | DQ8: 33.20158103 | DR8: 41.50197628 | DS8: 0 | DT8: 0 | DU8: 0 | DV8: 0 | DW8: 68.70258621 | DX8: 81.46551724 | DY8: 0 | DZ8: 0 | EA8: 0 | EB8: 0 | EC8: 0 | ED8: 0 | EE8: 13 | EF8: 0 | EG8: 0.758 | EH8: 0 | EI8: 0 | EJ8: 0 | EK8: 0 | EL8: 1 | EM8: 0
A9: 8 | C9: 0.5392156863 | D9: 0 | E9: 2405 | F9: 8312405 | G9: Becket Primary School | H9: Primary | I9: 0 | J9: 1 | K9: 0 | L9: 0 | M9: 7 | N9: 0 | O9: 0 | P9: 0 | Q9: 204 | R9: 204 | S9: 30 | T9: 174 | U9: 0 | V9: 0 | W9: 0 | X9: 0 | Y9: 0 | Z9: 0 | AA9: 0 | AB9: 0 | AC9: 0 | AD9: 204 | AE9: 29.14285714 | AF9: 98 | AG9: 110 | AH9: 0 | AI9: 0 | AJ9: 5 | AK9: 5 | AL9: 84 | AM9: 18 | AN9: 32 | AO9: 59 | AP9: 1 | AQ9: 0 | AR9: 0 | AS9: 0 | AT9: 0 | AU9: 0 | AV9: 0 | AW9: 0 | AX9: 28.13793103 | AY9: 51.5862069 | AZ9: 64.48275862 | BA9: 0 | BB9: 0 | BC9: 0 | BD9: 2.029850746 | BE9: 59.11538462 | BF9: 69.30769231 | BG9: 0 | BH9: 0 | BI9: 0 | BJ9: 0 | BK9: 0 | BL9: 0 | BM9: 2.76 | BN9: 0 | BO9: 0.602 | BP9: 0 | BQ9: 0 | BR9: 0 | BS9: 0 | BT9: 1 | BU9: 0 | BW9: 112717 | BX9: 8312405 | BY9: Becket Primary School | BZ9: Primary | CA9: 0 | CB9: 1 | CC9: 0 | CD9: 0 | CE9: 7 | CF9: 0 | CG9: 0 | CH9: 0 | CI9: 204 | CJ9: 204 | CK9: 30 | CL9: 174 | CM9: 0 | CN9: 0 | CO9: 0 | CP9: 0 | CQ9: 0 | CR9: 0 | CS9: 0 | CT9: 0 | CU9: 0 | CV9: 204 | CW9: 29.14285714 | CX9: 98 | CY9: 110 | CZ9: 0 | DA9: 0 | DB9: 5 | DC9: 5 | DD9: 84 | DE9: 18 | DF9: 32 | DG9: 59 | DH9: 1 | DI9: 0 | DJ9: 0 | DK9: 0 | DL9: 0 | DM9: 0 | DN9: 0 | DO9: 0 | DP9: 28.13793103 | DQ9: 51.5862069 | DR9: 64.48275862 | DS9: 0 | DT9: 0 | DU9: 0 | DV9: 2.029850746 | DW9: 59.11538462 | DX9: 69.30769231 | DY9: 0 | DZ9: 0 | EA9: 0 | EB9: 0 | EC9: 0 | ED9: 0 | EE9: 2.76 | EF9: 0 | EG9: 0.602 | EH9: 0 | EI9: 0 | EJ9: 0 | EK9: 0 | EL9: 1 | EM9: 0
A10: 9 | C10: 0.417721519 | D10: 0 | E10: 2409 | F10: 8312409 | G10: Dale Community Primary School | H10: Primary | I10: 0 | J10: 1 | K10: 0 | L10: 0 | M10: 7 | N10: 0 | O10: 0 | P10: 0 | Q10: 553 | R10: 553 | S10: 75 | T10: 478 | U10: 0 | V10: 0 | W10: 0 | X10: 0 | Y10: 0 | Z10: 0 | AA10: 0 | AB10: 0 | AC10: 0 | AD10: 553 | AE10: 79 | AF10: 211 | AG10: 231 | AH10: 0 | AI10: 0 | AJ10: 153 | AK10: 7 | AL10: 183 | AM10: 124 | AN10: 77 | AO10: 8 | AP10: 1 | AQ10: 0 | AR10: 0 | AS10: 0 | AT10: 0 | AU10: 0 | AV10: 0 | AW10: 0 | AX10: 93.70920502 | AY10: 142.2991632 | AZ10: 217.4979079 | BA10: 0 | BB10: 0 | BC10: 0 | BD10: 0 | BE10: 190.5314685 | BF10: 220.4265734 | BG10: 0 | BH10: 0 | BI10: 0 | BJ10: 0 | BK10: 0 | BL10: 0 | BM10: 0 | BN10: 0 | BO10: 0.493 | BP10: 0 | BQ10: 0 | BR10: 0 | BS10: 0 | BT10: 1 | BU10: 0 | BW10: 112720 | BX10: 8312409 | BY10: Dale Community Primary School | BZ10: Primary | CA10: 0 | CB10: 1 | CC10: 0 | CD10: 0 | CE10: 7 | CF10: 0 | CG10: 0 | CH10: 0 | CI10: 553 | CJ10: 553 | CK10: 75 | CL10: 478 | CM10: 0 | CN10: 0 | CO10: 0 | CP10: 0 | CQ10: 0 | CR10: 0 | CS10: 0 | CT10: 0 | CU10: 0 | CV10: 553 | CW10: 79 | CX10: 211 | CY10: 231 | CZ10: 0 | DA10: 0 | DB10: 153 | DC10: 7 | DD10: 183 | DE10: 124 | DF10: 77 | DG10: 8 | DH10: 1 | DI10: 0 | DJ10: 0 | DK10: 0 | DL10: 0 | DM10: 0 | DN10: 0 | DO10: 0 | DP10: 93.70920502 | DQ10: 142.2991632 | DR10: 217.4979079 | DS10: 0 | DT10: 0 | DU10: 0 | DV10: 0 | DW10: 190.5314685 | DX10: 220.4265734 | DY10: 0 | DZ10: 0 | EA10: 0 | EB10: 0 | EC10: 0 | ED10: 0 | EE10: 0 | EF10: 0 | EG10: 0.493 | EH10: 0 | EI10: 0 | EJ10: 0 | EK10: 0 | EL10: 1 | EM10: 0
A11: 10 | C11: 0.5977859779 | D11: 0 | E11: 2424 | F11: 8312424 | G11: Pear Tree Infant School | H11: Primary | I11: 0 | J11: 1 | K11: 0 | L11: 0 | M11: 3 | N11: 0 | O11: 0 | P11: 0 | Q11: 271 | R11: 271 | S11: 91 | T11: 180 | U11: 0 | V11: 0 | W11: 0 | X11: 0 | Y11: 0 | Z11: 0 | AA11: 0 | AB11: 0 | AC11: 0 | AD11: 271 | AE11: 90.33333333 | AF11: 161 | AG11: 162 | AH11: 0 | AI11: 0 | AJ11: 1 | AK11: 28 | AL11: 21 | AM11: 102 | AN11: 109 | AO11: 3 | AP11: 7 | AQ11: 0 | AR11: 0 | AS11: 0 | AT11: 0 | AU11: 0 | AV11: 0 | AW11: 0 | AX11: 112.9166667 | AY11: 209.2722222 | AZ11: 209.2722222 | BA11: 0 | BB11: 0 | BC11: 0 | BD11: 1.062745098 | BE11: 50.30104712 | BF11: 75.73102094 | BG11: 0 | BH11: 0 | BI11: 0 | BJ11: 0 | BK11: 0 | BL11: 0 | BM11: 1.74 | BN11: 0 | BO11: 0.454 | BP11: 0 | BQ11: 0 | BR11: 0 | BS11: 0 | BT11: 1 | BU11: 0 | BW11: 112728 | BX11: 8312424 | BY11: Pear Tree Infant School | BZ11: Primary | CA11: 0 | CB11: 1 | CC11: 0 | CD11: 0 | CE11: 3 | CF11: 0 | CG11: 0 | CH11: 0 | CI11: 271 | CJ11: 271 | CK11: 91 | CL11: 180 | CM11: 0 | CN11: 0 | CO11: 0 | CP11: 0 | CQ11: 0 | CR11: 0 | CS11: 0 | CT11: 0 | CU11: 0 | CV11: 271 | CW11: 90.33333333 | CX11: 161 | CY11: 162 | CZ11: 0 | DA11: 0 | DB11: 1 | DC11: 28 | DD11: 21 | DE11: 102 | DF11: 109 | DG11: 3 | DH11: 7 | DI11: 0 | DJ11: 0 | DK11: 0 | DL11: 0 | DM11: 0 | DN11: 0 | DO11: 0 | DP11: 112.9166667 | DQ11: 209.2722222 | DR11: 209.2722222 | DS11: 0 | DT11: 0 | DU11: 0 | DV11: 1.062745098 | DW11: 50.30104712 | DX11: 75.73102094 | DY11: 0 | DZ11: 0 | EA11: 0 | EB11: 0 | EC11: 0 | ED11: 0 | EE11: 1.74 | EF11: 0 | EG11: 0.454 | EH11: 0 | EI11: 0 | EJ11: 0 | EK11: 0 | EL11: 1 | EM11: 0
A12: 11 | C12: 0.3623188406 | D12: 0 | E12: 2429 | F12: 8312429 | G12: Rosehill Infant and Nursery School | H12: Primary | I12: 0 | J12: 1 | K12: 0 | L12: 0 | M12: 3 | N12: 0 | O12: 0 | P12: 0 | Q12: 138 | R12: 138 | S12: 43 | T12: 95 | U12: 0 | V12: 0 | W12: 0 | X12: 0 | Y12: 0 | Z12: 0 | AA12: 0 | AB12: 0 | AC12: 0 | AD12: 138 | AE12: 46 | AF12: 50 | AG12: 50 | AH12: 0 | AI12: 0 | AJ12: 0 | AK12: 35 | AL12: 10 | AM12: 55 | AN12: 20 | AO12: 5 | AP12: 13 | AQ12: 0 | AR12: 0 | AS12: 0 | AT12: 0 | AU12: 0 | AV12: 0 | AW12: 0 | AX12: 58.10526316 | AY12: 106.0421053 | AZ12: 106.0421053 | BA12: 0 | BB12: 0 | BC12: 0 | BD12: 0 | BE12: 26.54777487 | BF12: 38.56413613 | BG12: 0 | BH12: 0 | BI12: 0 | BJ12: 0 | BK12: 0 | BL12: 0 | BM12: 0 | BN12: 0 | BO12: 0.451 | BP12: 0 | BQ12: 0 | BR12: 0 | BS12: 0 | BT12: 1 | BU12: 0 | BW12: 112733 | BX12: 8312429 | BY12: Rosehill Infant and Nursery School | BZ12: Primary | CA12: 0 | CB12: 1 | CC12: 0 | CD12: 0 | CE12: 3 | CF12: 0 | CG12: 0 | CH12: 0 | CI12: 138 | CJ12: 138 | CK12: 43 | CL12: 95 | CM12: 0 | CN12: 0 | CO12: 0 | CP12: 0 | CQ12: 0 | CR12: 0 | CS12: 0 | CT12: 0 | CU12: 0 | CV12: 138 | CW12: 46 | CX12: 50 | CY12: 50 | CZ12: 0 | DA12: 0 | DB12: 0 | DC12: 35 | DD12: 10 | DE12: 55 | DF12: 20 | DG12: 5 | DH12: 13 | DI12: 0 | DJ12: 0 | DK12: 0 | DL12: 0 | DM12: 0 | DN12: 0 | DO12: 0 | DP12: 58.10526316 | DQ12: 106.0421053 | DR12: 106.0421053 | DS12: 0 | DT12: 0 | DU12: 0 | DV12: 0 | DW12: 26.54777487 | DX12: 38.56413613 | DY12: 0 | DZ12: 0 | EA12: 0 | EB12: 0 | EC12: 0 | ED12: 0 | EE12: 0 | EF12: 0 | EG12: 0.451 | EH12: 0 | EI12: 0 | EJ12: 0 | EK12: 0 | EL12: 1 | EM12: 0
A13: 12 | C13: 0.2110311751 | D13: 0 | E13: 2436 | F13: 8312436 | G13: Markeaton Primary School | H13: Primary | I13: 0 | J13: 1 | K13: 0 | L13: 0 | M13: 7 | N13: 0 | O13: 0 | P13: 0 | Q13: 417 | R13: 417 | S13: 60 | T13: 357 | U13: 0 | V13: 0 | W13: 0 | X13: 0 | Y13: 0 | Z13: 0 | AA13: 0 | AB13: 0 | AC13: 0 | AD13: 417 | AE13: 59.57142857 | AF13: 78 | AG13: 88 | AH13: 0 | AI13: 0 | AJ13: 259 | AK13: 61 | AL13: 66 | AM13: 1 | AN13: 7 | AO13: 4 | AP13: 19 | AQ13: 0 | AR13: 0 | AS13: 0 | AT13: 0 | AU13: 0 | AV13: 0 | AW13: 0 | AX13: 8.176470588 | AY13: 17.5210084 | AZ13: 24.52941176 | BA13: 0 | BB13: 0 | BC13: 0 | BD13: 6.014423077 | BE13: 82.06896552 | BF13: 95.86206897 | BG13: 0 | BH13: 0 | BI13: 0 | BJ13: 0 | BK13: 0 | BL13: 0 | BM13: 0 | BN13: 0 | BO13: 0.757 | BP13: 0 | BQ13: 0 | BR13: 0 | BS13: 0 | BT13: 1 | BU13: 0 | BW13: 112739 | BX13: 8312436 | BY13: Markeaton Primary School | BZ13: Primary | CA13: 0 | CB13: 1 | CC13: 0 | CD13: 0 | CE13: 7 | CF13: 0 | CG13: 0 | CH13: 0 | CI13: 417 | CJ13: 417 | CK13: 60 | CL13: 357 | CM13: 0 | CN13: 0 | CO13: 0 | CP13: 0 | CQ13: 0 | CR13: 0 | CS13: 0 | CT13: 0 | CU13: 0 | CV13: 417 | CW13: 59.57142857 | CX13: 78 | CY13: 88 | CZ13: 0 | DA13: 0 | DB13: 259 | DC13: 61 | DD13: 66 | DE13: 1 | DF13: 7 | DG13: 4 | DH13: 19 | DI13: 0 | DJ13: 0 | DK13: 0 | DL13: 0 | DM13: 0 | DN13: 0 | DO13: 0 | DP13: 8.176470588 | DQ13: 17.5210084 | DR13: 24.52941176 | DS13: 0 | DT13: 0 | DU13: 0 | DV13: 6.014423077 | DW13: 82.06896552 | DX13: 95.86206897 | DY13: 0 | DZ13: 0 | EA13: 0 | EB13: 0 | EC13: 0 | ED13: 0 | EE13: 0 | EF13: 0 | EG13: 0.757 | EH13: 0 | EI13: 0 | EJ13: 0 | EK13: 0 | EL13: 1 | EM13: 0
A14: 13 | C14: 0.1320754717 | D14: 0 | E14: 2439 | F14: 8312439 | G14: Portway Infant School | H14: Primary | I14: 0 | J14: 1 | K14: 0 | L14: 0 | M14: 3 | N14: 0 | O14: 0 | P14: 0 | Q14: 212 | R14: 212 | S14: 53 | T14: 159 | U14: 0 | V14: 0 | W14: 0 | X14: 0 | Y14: 0 | Z14: 0 | AA14: 0 | AB14: 0 | AC14: 0 | AD14: 212 | AE14: 70.66666667 | AF14: 27 | AG14: 28 | AH14: 0 | AI14: 0 | AJ14: 174 | AK14: 23 | AL14: 5 | AM14: 4 | AN14: 3 | AO14: 1 | AP14: 2 | AQ14: 0 | AR14: 0 | AS14: 0 | AT14: 0 | AU14: 0 | AV14: 0 | AW14: 0 | AX14: 5.367088608 | AY14: 8.050632911 | AZ14: 8.050632911 | BA14: 0 | BB14: 0 | BC14: 0 | BD14: 0.9380530973 | BE14: 44.43259162 | BF14: 59.2434555 | BG14: 0 | BH14: 0 | BI14: 0 | BJ14: 0 | BK14: 0 | BL14: 0 | BM14: 0 | BN14: 0 | BO14: 1.058 | BP14: 0 | BQ14: 0 | BR14: 0 | BS14: 0 | BT14: 1 | BU14: 0 | BW14: 112740 | BX14: 8312439 | BY14: Portway Infant School | BZ14: Primary | CA14: 0 | CB14: 1 | CC14: 0 | CD14: 0 | CE14: 3 | CF14: 0 | CG14: 0 | CH14: 0 | CI14: 212 | CJ14: 212 | CK14: 53 | CL14: 159 | CM14: 0 | CN14: 0 | CO14: 0 | CP14: 0 | CQ14: 0 | CR14: 0 | CS14: 0 | CT14: 0 | CU14: 0 | CV14: 212 | CW14: 70.66666667 | CX14: 27 | CY14: 28 | CZ14: 0 | DA14: 0 | DB14: 174 | DC14: 23 | DD14: 5 | DE14: 4 | DF14: 3 | DG14: 1 | DH14: 2 | DI14: 0 | DJ14: 0 | DK14: 0 | DL14: 0 | DM14: 0 | DN14: 0 | DO14: 0 | DP14: 5.367088608 | DQ14: 8.050632911 | DR14: 8.050632911 | DS14: 0 | DT14: 0 | DU14: 0 | DV14: 0.9380530973 | DW14: 44.43259162 | DX14: 59.2434555 | DY14: 0 | DZ14: 0 | EA14: 0 | EB14: 0 | EC14: 0 | ED14: 0 | EE14: 0 | EF14: 0 | EG14: 1.058 | EH14: 0 | EI14: 0 | EJ14: 0 | EK14: 0 | EL14: 1 | EM14: 0
A15: 14 | C15: 0.2958333333 | D15: 0 | E15: 2443 | F15: 8312443 | G15: Alvaston Infant and Nursery School | H15: Primary | I15: 0 | J15: 1 | K15: 0 | L15: 0 | M15: 3 | N15: 0 | O15: 0 | P15: 0 | Q15: 240 | R15: 240 | S15: 77 | T15: 163 | U15: 0 | V15: 0 | W15: 0 | X15: 0 | Y15: 0 | Z15: 0 | AA15: 0 | AB15: 0 | AC15: 0 | AD15: 240 | AE15: 80 | AF15: 69 | AG15: 71 | AH15: 0 | AI15: 0 | AJ15: 86 | AK15: 33 | AL15: 40 | AM15: 2 | AN15: 37 | AO15: 16 | AP15: 26 | AQ15: 0 | AR15: 0 | AS15: 0 | AT15: 0 | AU15: 0 | AV15: 0 | AW15: 0 | AX15: 11.85185185 | AY15: 26.66666667 | AZ15: 26.66666667 | BA15: 0 | BB15: 0 | BC15: 0 | BD15: 0 | BE15: 45.55039267 | BF15: 67.06806283 | BG15: 0 | BH15: 0 | BI15: 0 | BJ15: 0 | BK15: 0 | BL15: 0 | BM15: 0 | BN15: 0 | BO15: 0.802 | BP15: 0 | BQ15: 0 | BR15: 0 | BS15: 0 | BT15: 1 | BU15: 0 | BW15: 112744 | BX15: 8312443 | BY15: Alvaston Infant and Nursery School | BZ15: Primary | CA15: 0 | CB15: 1 | CC15: 0 | CD15: 0 | CE15: 3 | CF15: 0 | CG15: 0 | CH15: 0 | CI15: 240 | CJ15: 240 | CK15: 77 | CL15: 163 | CM15: 0 | CN15: 0 | CO15: 0 | CP15: 0 | CQ15: 0 | CR15: 0 | CS15: 0 | CT15: 0 | CU15: 0 | CV15: 240 | CW15: 80 | CX15: 69 | CY15: 71 | CZ15: 0 | DA15: 0 | DB15: 86 | DC15: 33 | DD15: 40 | DE15: 2 | DF15: 37 | DG15: 16 | DH15: 26 | DI15: 0 | DJ15: 0 | DK15: 0 | DL15: 0 | DM15: 0 | DN15: 0 | DO15: 0 | DP15: 11.85185185 | DQ15: 26.66666667 | DR15: 26.66666667 | DS15: 0 | DT15: 0 | DU15: 0 | DV15: 0 | DW15: 45.55039267 | DX15: 67.06806283 | DY15: 0 | DZ15: 0 | EA15: 0 | EB15: 0 | EC15: 0 | ED15: 0 | EE15: 0 | EF15: 0 | EG15: 0.802 | EH15: 0 | EI15: 0 | EJ15: 0 | EK15: 0 | EL15: 1 | EM15: 0
A16: 15 | C16: 0.3333333333 | D16: 0 | E16: 2444 | F16: 8312444 | G16: Shelton Infant School | H16: Primary | I16: 0 | J16: 1 | K16: 0 | L16: 0 | M16: 3 | N16: 0 | O16: 0 | P16: 0 | Q16: 192 | R16: 192 | S16: 59 | T16: 133 | U16: 0 | V16: 0 | W16: 0 | X16: 0 | Y16: 0 | Z16: 0 | AA16: 0 | AB16: 0 | AC16: 0 | AD16: 192 | AE16: 64 | AF16: 64 | AG16: 64 | AH16: 0 | AI16: 0 | AJ16: 43 | AK16: 61 | AL16: 11 | AM16: 0 | AN16: 28 | AO16: 35 | AP16: 14 | AQ16: 0 | AR16: 0 | AS16: 0 | AT16: 0 | AU16: 0 | AV16: 0 | AW16: 0 | AX16: 20.21052632 | AY16: 30.31578947 | AZ16: 30.31578947 | BA16: 0 | BB16: 0 | BC16: 0 | BD16: 0.9411764706 | BE16: 37.16688482 | BF16: 53.65445026 | BG16: 0 | BH16: 0 | BI16: 0 | BJ16: 0 | BK16: 0 | BL16: 0 | BM16: 0 | BN16: 0 | BO16: 0.929 | BP16: 0 | BQ16: 0 | BR16: 0 | BS16: 0 | BT16: 1 | BU16: 0 | BW16: 112745 | BX16: 8312444 | BY16: Shelton Infant School | BZ16: Primary | CA16: 0 | CB16: 1 | CC16: 0 | CD16: 0 | CE16: 3 | CF16: 0 | CG16: 0 | CH16: 0 | CI16: 192 | CJ16: 192 | CK16: 59 | CL16: 133 | CM16: 0 | CN16: 0 | CO16: 0 | CP16: 0 | CQ16: 0 | CR16: 0 | CS16: 0 | CT16: 0 | CU16: 0 | CV16: 192 | CW16: 64 | CX16: 64 | CY16: 64 | CZ16: 0 | DA16: 0 | DB16: 43 | DC16: 61 | DD16: 11 | DE16: 0 | DF16: 28 | DG16: 35 | DH16: 14 | DI16: 0 | DJ16: 0 | DK16: 0 | DL16: 0 | DM16: 0 | DN16: 0 | DO16: 0 | DP16: 20.21052632 | DQ16: 30.31578947 | DR16: 30.31578947 | DS16: 0 | DT16: 0 | DU16: 0 | DV16: 0.9411764706 | DW16: 37.16688482 | DX16: 53.65445026 | DY16: 0 | DZ16: 0 | EA16: 0 | EB16: 0 | EC16: 0 | ED16: 0 | EE16: 0 | EF16: 0 | EG16: 0.929 | EH16: 0 | EI16: 0 | EJ16: 0 | EK16: 0 | EL16: 1 | EM16: 0
A17: 16 | C17: 0.3045454545 | D17: 0 | E17: 2449 | F17: 8312449 | G17: Cavendish Close Infant School | H17: Primary | I17: 0 | J17: 1 | K17: 0 | L17: 0 | M17: 3 | N17: 0 | O17: 0 | P17: 0 | Q17: 220 | R17: 220 | S17: 62 | T17: 158 | U17: 0 | V17: 0 | W17: 0 | X17: 0 | Y17: 0 | Z17: 0 | AA17: 0 | AB17: 0 | AC17: 0 | AD17: 220 | AE17: 73.33333333 | AF17: 66 | AG17: 67 | AH17: 0 | AI17: 0 | AJ17: 117 | AK17: 53 | AL17: 31 | AM17: 5 | AN17: 2 | AO17: 9 | AP17: 3 | AQ17: 0 | AR17: 0 | AS17: 0 | AT17: 0 | AU17: 0 | AV17: 0 | AW17: 0 | AX17: 4.17721519 | AY17: 9.746835443 | AZ17: 9.746835443 | BA17: 0 | BB17: 0 | BC17: 0 | BD17: 0.9205020921 | BE17: 44.15314136 | BF17: 61.47905759 | BG17: 0 | BH17: 0 | BI17: 0 | BJ17: 0 | BK17: 0 | BL17: 0 | BM17: 0 | BN17: 0 | BO17: 0.686 | BP17: 0 | BQ17: 0 | BR17: 0 | BS17: 0 | BT17: 1 | BU17: 0 | BW17: 112749 | BX17: 8312449 | BY17: Cavendish Close Infant School | BZ17: Primary | CA17: 0 | CB17: 1 | CC17: 0 | CD17: 0 | CE17: 3 | CF17: 0 | CG17: 0 | CH17: 0 | CI17: 220 | CJ17: 220 | CK17: 62 | CL17: 158 | CM17: 0 | CN17: 0 | CO17: 0 | CP17: 0 | CQ17: 0 | CR17: 0 | CS17: 0 | CT17: 0 | CU17: 0 | CV17: 220 | CW17: 73.33333333 | CX17: 66 | CY17: 67 | CZ17: 0 | DA17: 0 | DB17: 117 | DC17: 53 | DD17: 31 | DE17: 5 | DF17: 2 | DG17: 9 | DH17: 3 | DI17: 0 | DJ17: 0 | DK17: 0 | DL17: 0 | DM17: 0 | DN17: 0 | DO17: 0 | DP17: 4.17721519 | DQ17: 9.746835443 | DR17: 9.746835443 | DS17: 0 | DT17: 0 | DU17: 0 | DV17: 0.9205020921 | DW17: 44.15314136 | DX17: 61.47905759 | DY17: 0 | DZ17: 0 | EA17: 0 | EB17: 0 | EC17: 0 | ED17: 0 | EE17: 0 | EF17: 0 | EG17: 0.686 | EH17: 0 | EI17: 0 | EJ17: 0 | EK17: 0 | EL17: 1 | EM17: 0
A18: 17 | C18: 0.4362416107 | D18: 0 | E18: 2452 | F18: 8312452 | G18: Meadow Farm Community Primary School | H18: Primary | I18: 0 | J18: 1 | K18: 0 | L18: 0 | M18: 7 | N18: 0 | O18: 0 | P18: 0 | Q18: 149 | R18: 149 | S18: 25 | T18: 124 | U18: 0 | V18: 0 | W18: 0 | X18: 0 | Y18: 0 | Z18: 0 | AA18: 0 | AB18: 0 | AC18: 0 | AD18: 149 | AE18: 21.28571429 | AF18: 64 | AG18: 65 | AH18: 0 | AI18: 0 | AJ18: 77 | AK18: 6 | AL18: 6 | AM18: 1 | AN18: 49 | AO18: 3 | AP18: 7 | AQ18: 0 | AR18: 0 | AS18: 0 | AT18: 0 | AU18: 0 | AV18: 0 | AW18: 0 | AX18: 7.209677419 | AY18: 8.411290323 | AZ18: 10.81451613 | BA18: 0 | BB18: 0 | BC18: 0 | BD18: 1.071942446 | BE18: 44 | BF18: 52.87096774 | BG18: 0 | BH18: 0 | BI18: 0 | BJ18: 0 | BK18: 0 | BL18: 0 | BM18: 10.06 | BN18: 0 | BO18: 0.638 | BP18: 0 | BQ18: 0.01068090788 | BR18: 0 | BS18: 0 | BT18: 1 | BU18: 0 | BW18: 112752 | BX18: 8312452 | BY18: Meadow Farm Community Primary School | BZ18: Primary | CA18: 0 | CB18: 1 | CC18: 0 | CD18: 0 | CE18: 7 | CF18: 0 | CG18: 0 | CH18: 0 | CI18: 149 | CJ18: 149 | CK18: 25 | CL18: 124 | CM18: 0 | CN18: 0 | CO18: 0 | CP18: 0 | CQ18: 0 | CR18: 0 | CS18: 0 | CT18: 0 | CU18: 0 | CV18: 149 | CW18: 21.28571429 | CX18: 64 | CY18: 65 | CZ18: 0 | DA18: 0 | DB18: 77 | DC18: 6 | DD18: 6 | DE18: 1 | DF18: 49 | DG18: 3 | DH18: 7 | DI18: 0 | DJ18: 0 | DK18: 0 | DL18: 0 | DM18: 0 | DN18: 0 | DO18: 0 | DP18: 7.209677419 | DQ18: 8.411290323 | DR18: 10.81451613 | DS18: 0 | DT18: 0 | DU18: 0 | DV18: 1.071942446 | DW18: 44 | DX18: 52.87096774 | DY18: 0 | DZ18: 0 | EA18: 0 | EB18: 0 | EC18: 0 | ED18: 0 | EE18: 10.06 | EF18: 0 | EG18: 0.638 | EH18: 0 | EI18: 0.01068090788 | EJ18: 0 | EK18: 0 | EL18: 1 | EM18: 0
A19: 18 | C19: 0.275 | D19: 0 | E19: 2457 | F19: 8312457 | G19: Gayton Junior School | H19: Primary | I19: 0 | J19: 1 | K19: 0 | L19: 0 | M19: 4 | N19: 0 | O19: 0 | P19: 0 | Q19: 360 | R19: 360 | S19: 0 | T19: 360 | U19: 0 | V19: 0 | W19: 0 | X19: 0 | Y19: 0 | Z19: 0 | AA19: 0 | AB19: 0 | AC19: 0 | AD19: 360 | AE19: 90 | AF19: 87 | AG19: 99 | AH19: 0 | AI19: 0 | AJ19: 265 | AK19: 1 | AL19: 63 | AM19: 9 | AN19: 1 | AO19: 21 | AP19: 0 | AQ19: 0 | AR19: 0 | AS19: 0 | AT19: 0 | AU19: 0 | AV19: 0 | AW19: 0 | AX19: 1 | AY19: 1 | AZ19: 37 | BA19: 0 | BB19: 0 | BC19: 0 | BD19: 1.016949153 | BE19: 101.7836812 | BF19: 101.7836812 | BG19: 0 | BH19: 0 | BI19: 0 | BJ19: 0 | BK19: 0 | BL19: 0 | BM19: 0 | BN19: 0 | BO19: 0.743 | BP19: 0 | BQ19: 0 | BR19: 0 | BS19: 0 | BT19: 1 | BU19: 0 | BW19: 112756 | BX19: 8312457 | BY19: Gayton Junior School | BZ19: Primary | CA19: 0 | CB19: 1 | CC19: 0 | CD19: 0 | CE19: 4 | CF19: 0 | CG19: 0 | CH19: 0 | CI19: 360 | CJ19: 360 | CK19: 0 | CL19: 360 | CM19: 0 | CN19: 0 | CO19: 0 | CP19: 0 | CQ19: 0 | CR19: 0 | CS19: 0 | CT19: 0 | CU19: 0 | CV19: 360 | CW19: 90 | CX19: 87 | CY19: 99 | CZ19: 0 | DA19: 0 | DB19: 265 | DC19: 1 | DD19: 63 | DE19: 9 | DF19: 1 | DG19: 21 | DH19: 0 | DI19: 0 | DJ19: 0 | DK19: 0 | DL19: 0 | DM19: 0 | DN19: 0 | DO19: 0 | DP19: 1 | DQ19: 1 | DR19: 37 | DS19: 0 | DT19: 0 | DU19: 0 | DV19: 1.016949153 | DW19: 101.7836812 | DX19: 101.7836812 | DY19: 0 | DZ19: 0 | EA19: 0 | EB19: 0 | EC19: 0 | ED19: 0 | EE19: 0 | EF19: 0 | EG19: 0.743 | EH19: 0 | EI19: 0 | EJ19: 0 | EK19: 0 | EL19: 1 | EM19: 0
A20: 19 | C20: 0.2 | D20: 0 | E20: 2458 | F20: 8312458 | G20: Ridgeway Infant School | H20: Primary | I20: 0 | J20: 1 | K20: 0 | L20: 0 | M20: 3 | N20: 0 | O20: 0 | P20: 0 | Q20: 270 | R20: 270 | S20: 90 | T20: 180 | U20: 0 | V20: 0 | W20: 0 | X20: 0 | Y20: 0 | Z20: 0 | AA20: 0 | AB20: 0 | AC20: 0 | AD20: 270 | AE20: 90 | AF20: 47 | AG20: 54 | AH20: 0 | AI20: 0 | AJ20: 196 | AK20: 1 | AL20: 46 | AM20: 10 | AN20: 1 | AO20: 16 | AP20: 0 | AQ20: 0 | AR20: 0 | AS20: 0 | AT20: 0 | AU20: 0 | AV20: 0 | AW20: 0 | AX20: 16.5 | AY20: 70.5 | AZ20: 70.5 | BA20: 0 | BB20: 0 | BC20: 0 | BD20: 0 | BE20: 50.30104712 | BF20: 75.45157068 | BG20: 0 | BH20: 0 | BI20: 0 | BJ20: 0 | BK20: 0 | BL20: 0 | BM20: 0 | BN20: 0 | BO20: 0.666 | BP20: 0 | BQ20: 0 | BR20: 0 | BS20: 0 | BT20: 1 | BU20: 0 | BW20: 112757 | BX20: 8312458 | BY20: Ridgeway Infant School | BZ20: Primary | CA20: 0 | CB20: 1 | CC20: 0 | CD20: 0 | CE20: 3 | CF20: 0 | CG20: 0 | CH20: 0 | CI20: 270 | CJ20: 270 | CK20: 90 | CL20: 180 | CM20: 0 | CN20: 0 | CO20: 0 | CP20: 0 | CQ20: 0 | CR20: 0 | CS20: 0 | CT20: 0 | CU20: 0 | CV20: 270 | CW20: 90 | CX20: 47 | CY20: 54 | CZ20: 0 | DA20: 0 | DB20: 196 | DC20: 1 | DD20: 46 | DE20: 10 | DF20: 1 | DG20: 16 | DH20: 0 | DI20: 0 | DJ20: 0 | DK20: 0 | DL20: 0 | DM20: 0 | DN20: 0 | DO20: 0 | DP20: 16.5 | DQ20: 70.5 | DR20: 70.5 | DS20: 0 | DT20: 0 | DU20: 0 | DV20: 0 | DW20: 50.30104712 | DX20: 75.45157068 | DY20: 0 | DZ20: 0 | EA20: 0 | EB20: 0 | EC20: 0 | ED20: 0 | EE20: 0 | EF20: 0 | EG20: 0.666 | EH20: 0 | EI20: 0 | EJ20: 0 | EK20: 0 | EL20: 1 | EM20: 0
A21: 20 | C21: 0.07874015748 | D21: 0 | E21: 2459 | F21: 8312459 | G21: Wren Park Primary School | H21: Primary | I21: 0 | J21: 1 | K21: 0 | L21: 0 | M21: 7 | N21: 0 | O21: 0 | P21: 0 | Q21: 381 | R21: 381 | S21: 54 | T21: 327 | U21: 0 | V21: 0 | W21: 0 | X21: 0 | Y21: 0 | Z21: 0 | AA21: 0 | AB21: 0 | AC21: 0 | AD21: 381 | AE21: 54.42857143 | AF21: 28 | AG21: 30 | AH21: 0 | AI21: 0 | AJ21: 365.8005319 | AK21: 3.039893617 | AL21: 8.106382979 | AM21: 3.039893617 | AN21: 0 | AO21: 1.013297872 | AP21: 0 | AQ21: 0 | AR21: 0 | AS21: 0 | AT21: 0 | AU21: 0 | AV21: 0 | AW21: 0 | AX21: 27.96330275 | AY21: 46.60550459 | AZ21: 68.74311927 | BA21: 0 | BB21: 0 | BC21: 0 | BD21: 1 | BE21: 62.334375 | BF21: 72.628125 | BG21: 0 | BH21: 0 | BI21: 0 | BJ21: 0 | BK21: 0 | BL21: 0 | BM21: 0 | BN21: 0 | BO21: 0.886 | BP21: 0 | BQ21: 0 | BR21: 0 | BS21: 0 | BT21: 1 | BU21: 0 | BW21: 112758 | BX21: 8312459 | BY21: Wren Park Primary School | BZ21: Primary | CA21: 0 | CB21: 1 | CC21: 0 | CD21: 0 | CE21: 7 | CF21: 0 | CG21: 0 | CH21: 0 | CI21: 381 | CJ21: 381 | CK21: 54 | CL21: 327 | CM21: 0 | CN21: 0 | CO21: 0 | CP21: 0 | CQ21: 0 | CR21: 0 | CS21: 0 | CT21: 0 | CU21: 0 | CV21: 381 | CW21: 54.42857143 | CX21: 28 | CY21: 30 | CZ21: 0 | DA21: 0 | DB21: 365.8005319 | DC21: 3.039893617 | DD21: 8.106382979 | DE21: 3.039893617 | DF21: 0 | DG21: 1.013297872 | DH21: 0 | DI21: 0 | DJ21: 0 | DK21: 0 | DL21: 0 | DM21: 0 | DN21: 0 | DO21: 0 | DP21: 27.96330275 | DQ21: 46.60550459 | DR21: 68.74311927 | DS21: 0 | DT21: 0 | DU21: 0 | DV21: 1 | DW21: 62.334375 | DX21: 72.628125 | DY21: 0 | DZ21: 0 | EA21: 0 | EB21: 0 | EC21: 0 | ED21: 0 | EE21: 0 | EF21: 0 | EG21: 0.886 | EH21: 0 | EI21: 0 | EJ21: 0 | EK21: 0 | EL21: 1 | EM21: 0
A22: 21 | C22: 0.2567567568 | D22: 0 | E22: 2462 | F22: 8312462 | G22: Ravensdale Infant and Nursery School | H22: Primary | I22: 0 | J22: 1 | K22: 0 | L22: 0 | M22: 3 | N22: 0 | O22: 0 | P22: 0 | Q22: 222 | R22: 222 | S22: 66 | T22: 156 | U22: 0 | V22: 0 | W22: 0 | X22: 0 | Y22: 0 | Z22: 0 | AA22: 0 | AB22: 0 | AC22: 0 | AD22: 222 | AE22: 74 | AF22: 57 | AG22: 57 | AH22: 0 | AI22: 0 | AJ22: 161 | AK22: 31 | AL22: 13 | AM22: 9 | AN22: 4 | AO22: 2 | AP22: 2 | AQ22: 0 | AR22: 0 | AS22: 0 | AT22: 0 | AU22: 0 | AV22: 0 | AW22: 0 | AX22: 19.92307692 | AY22: 29.88461538 | AZ22: 29.88461538 | BA22: 0 | BB22: 0 | BC22: 0 | BD22: 0 | BE22: 43.59424084 | BF22: 62.03795812 | BG22: 0 | BH22: 0 | BI22: 0 | BJ22: 0 | BK22: 0 | BL22: 0 | BM22: 0 | BN22: 0 | BO22: 0.859 | BP22: 0 | BQ22: 0 | BR22: 0 | BS22: 0 | BT22: 1 | BU22: 0 | BW22: 112759 | BX22: 8312462 | BY22: Ravensdale Infant and Nursery School | BZ22: Primary | CA22: 0 | CB22: 1 | CC22: 0 | CD22: 0 | CE22: 3 | CF22: 0 | CG22: 0 | CH22: 0 | CI22: 222 | CJ22: 222 | CK22: 66 | CL22: 156 | CM22: 0 | CN22: 0 | CO22: 0 | CP22: 0 | CQ22: 0 | CR22: 0 | CS22: 0 | CT22: 0 | CU22: 0 | CV22: 222 | CW22: 74 | CX22: 57 | CY22: 57 | CZ22: 0 | DA22: 0 | DB22: 161 | DC22: 31 | DD22: 13 | DE22: 9 | DF22: 4 | DG22: 2 | DH22: 2 | DI22: 0 | DJ22: 0 | DK22: 0 | DL22: 0 | DM22: 0 | DN22: 0 | DO22: 0 | DP22: 19.92307692 | DQ22: 29.88461538 | DR22: 29.88461538 | DS22: 0 | DT22: 0 | DU22: 0 | DV22: 0 | DW22: 43.59424084 | DX22: 62.03795812 | DY22: 0 | DZ22: 0 | EA22: 0 | EB22: 0 | EC22: 0 | ED22: 0 | EE22: 0 | EF22: 0 | EG22: 0.859 | EH22: 0 | EI22: 0 | EJ22: 0 | EK22: 0 | EL22: 1 | EM22: 0
A23: 22 | C23: 0.05275779376 | D23: 0 | E23: 2469 | F23: 8312469 | G23: Silverhill Primary School | H23: Primary | I23: 0 | J23: 1 | K23: 0 | L23: 0 | M23: 7 | N23: 0 | O23: 0 | P23: 0 | Q23: 417 | R23: 417 | S23: 60 | T23: 357 | U23: 0 | V23: 0 | W23: 0 | X23: 0 | Y23: 0 | Z23: 0 | AA23: 0 | AB23: 0 | AC23: 0 | AD23: 417 | AE23: 59.57142857 | AF23: 19 | AG23: 22 | AH23: 0 | AI23: 0 | AJ23: 388 | AK23: 17 | AL23: 6 | AM23: 1 | AN23: 5 | AO23: 0 | AP23: 0 | AQ23: 0 | AR23: 0 | AS23: 0 | AT23: 0 | AU23: 0 | AV23: 0 | AW23: 0 | AX23: 4.685393258 | AY23: 8.199438202 | AZ23: 14.05617978 | BA23: 0 | BB23: 0 | BC23: 0 | BD23: 0 | BE23: 65 | BF23: 75.92436975 | BG23: 0 | BH23: 0 | BI23: 0 | BJ23: 0 | BK23: 0 | BL23: 0 | BM23: 0 | BN23: 0 | BO23: 0.895 | BP23: 0 | BQ23: 0 | BR23: 0 | BS23: 0 | BT23: 1 | BU23: 0 | BW23: 112765 | BX23: 8312469 | BY23: Silverhill Primary School | BZ23: Primary | CA23: 0 | CB23: 1 | CC23: 0 | CD23: 0 | CE23: 7 | CF23: 0 | CG23: 0 | CH23: 0 | CI23: 417 | CJ23: 417 | CK23: 60 | CL23: 357 | CM23: 0 | CN23: 0 | CO23: 0 | CP23: 0 | CQ23: 0 | CR23: 0 | CS23: 0 | CT23: 0 | CU23: 0 | CV23: 417 | CW23: 59.57142857 | CX23: 19 | CY23: 22 | CZ23: 0 | DA23: 0 | DB23: 388 | DC23: 17 | DD23: 6 | DE23: 1 | DF23: 5 | DG23: 0 | DH23: 0 | DI23: 0 | DJ23: 0 | DK23: 0 | DL23: 0 | DM23: 0 | DN23: 0 | DO23: 0 | DP23: 4.685393258 | DQ23: 8.199438202 | DR23: 14.05617978 | DS23: 0 | DT23: 0 | DU23: 0 | DV23: 0 | DW23: 65 | DX23: 75.92436975 | DY23: 0 | DZ23: 0 | EA23: 0 | EB23: 0 | EC23: 0 | ED23: 0 | EE23: 0 | EF23: 0 | EG23: 0.895 | EH23: 0 | EI23: 0 | EJ23: 0 | EK23: 0 | EL23: 1 | EM23: 0
A24: 23 | C24: 0.3730769231 | D24: 0 | E24: 2473 | F24: 8312473 | G24: Oakwood Infant and Nursery School | H24: Primary | I24: 0 | J24: 1 | K24: 0 | L24: 0 | M24: 3 | N24: 0 | O24: 0 | P24: 0 | Q24: 260 | R24: 260 | S24: 80 | T24: 180 | U24: 0 | V24: 0 | W24: 0 | X24: 0 | Y24: 0 | Z24: 0 | AA24: 0 | AB24: 0 | AC24: 0 | AD24: 260 | AE24: 86.66666667 | AF24: 95 | AG24: 97 | AH24: 0 | AI24: 0 | AJ24: 121 | AK24: 6 | AL24: 61 | AM24: 0 | AN24: 14 | AO24: 14 | AP24: 44 | AQ24: 0 | AR24: 0 | AS24: 0 | AT24: 0 | AU24: 0 | AV24: 0 | AW24: 0 | AX24: 11.62011173 | AY24: 26.1452514 | AZ24: 26.1452514 | BA24: 0 | BB24: 0 | BC24: 0 | BD24: 0.9665427509 | BE24: 50.30104712 | BF24: 72.65706806 | BG24: 0 | BH24: 0 | BI24: 0 | BJ24: 0 | BK24: 0 | BL24: 0 | BM24: 0 | BN24: 0 | BO24: 0.751 | BP24: 0 | BQ24: 0 | BR24: 0 | BS24: 0 | BT24: 1 | BU24: 0 | BW24: 112767 | BX24: 8312473 | BY24: Oakwood Infant and Nursery School | BZ24: Primary | CA24: 0 | CB24: 1 | CC24: 0 | CD24: 0 | CE24: 3 | CF24: 0 | CG24: 0 | CH24: 0 | CI24: 260 | CJ24: 260 | CK24: 80 | CL24: 180 | CM24: 0 | CN24: 0 | CO24: 0 | CP24: 0 | CQ24: 0 | CR24: 0 | CS24: 0 | CT24: 0 | CU24: 0 | CV24: 260 | CW24: 86.66666667 | CX24: 95 | CY24: 97 | CZ24: 0 | DA24: 0 | DB24: 121 | DC24: 6 | DD24: 61 | DE24: 0 | DF24: 14 | DG24: 14 | DH24: 44 | DI24: 0 | DJ24: 0 | DK24: 0 | DL24: 0 | DM24: 0 | DN24: 0 | DO24: 0 | DP24: 11.62011173 | DQ24: 26.1452514 | DR24: 26.1452514 | DS24: 0 | DT24: 0 | DU24: 0 | DV24: 0.9665427509 | DW24: 50.30104712 | DX24: 72.65706806 | DY24: 0 | DZ24: 0 | EA24: 0 | EB24: 0 | EC24: 0 | ED24: 0 | EE24: 0 | EF24: 0 | EG24: 0.751 | EH24: 0 | EI24: 0 | EJ24: 0 | EK24: 0 | EL24: 1 | EM24: 0
A25: 24 | C25: 0.3657718121 | D25: 0 | E25: 2505 | F25: 8312505 | G25: Redwood Primary School | H25: Primary | I25: 0 | J25: 1 | K25: 0 | L25: 0 | M25: 7 | N25: 0 | O25: 0 | P25: 0 | Q25: 596 | R25: 596 | S25: 76 | T25: 520 | U25: 0 | V25: 0 | W25: 0 | X25: 0 | Y25: 0 | Z25: 0 | AA25: 0 | AB25: 0 | AC25: 0 | AD25: 596 | AE25: 85.14285714 | AF25: 215 | AG25: 218 | AH25: 0 | AI25: 0 | AJ25: 214 | AK25: 4 | AL25: 85 | AM25: 11 | AN25: 85 | AO25: 191 | AP25: 6 | AQ25: 0 | AR25: 0 | AS25: 0 | AT25: 0 | AU25: 0 | AV25: 0 | AW25: 0 | AX25: 52.72307692 | AY25: 102.0076923 | AZ25: 137.5384615 | BA25: 0 | BB25: 0 | BC25: 0 | BD25: 0.9851239669 | BE25: 206.7764706 | BF25: 236.9976471 | BG25: 0 | BH25: 0 | BI25: 0 | BJ25: 0 | BK25: 0 | BL25: 0 | BM25: 6.24 | BN25: 0 | BO25: 0.508 | BP25: 0 | BQ25: 0 | BR25: 0 | BS25: 0 | BT25: 1 | BU25: 0 | BW25: 112770 | BX25: 8312505 | BY25: Redwood Primary School | BZ25: Primary | CA25: 0 | CB25: 1 | CC25: 0 | CD25: 0 | CE25: 7 | CF25: 0 | CG25: 0 | CH25: 0 | CI25: 596 | CJ25: 596 | CK25: 76 | CL25: 520 | CM25: 0 | CN25: 0 | CO25: 0 | CP25: 0 | CQ25: 0 | CR25: 0 | CS25: 0 | CT25: 0 | CU25: 0 | CV25: 596 | CW25: 85.14285714 | CX25: 215 | CY25: 218 | CZ25: 0 | DA25: 0 | DB25: 214 | DC25: 4 | DD25: 85 | DE25: 11 | DF25: 85 | DG25: 191 | DH25: 6 | DI25: 0 | DJ25: 0 | DK25: 0 | DL25: 0 | DM25: 0 | DN25: 0 | DO25: 0 | DP25: 52.72307692 | DQ25: 102.0076923 | DR25: 137.5384615 | DS25: 0 | DT25: 0 | DU25: 0 | DV25: 0.9851239669 | DW25: 206.7764706 | DX25: 236.9976471 | DY25: 0 | DZ25: 0 | EA25: 0 | EB25: 0 | EC25: 0 | ED25: 0 | EE25: 6.24 | EF25: 0 | EG25: 0.508 | EH25: 0 | EI25: 0 | EJ25: 0 | EK25: 0 | EL25: 1 | EM25: 0
A26: 25 | C26: 0.1304347826 | D26: 0 | E26: 2627 | F26: 8312627 | G26: Mickleover Primary School | H26: Primary | I26: 0 | J26: 1 | K26: 0 | L26: 0 | M26: 7 | N26: 0 | O26: 0 | P26: 0 | Q26: 414 | R26: 414 | S26: 53 | T26: 361 | U26: 0 | V26: 0 | W26: 0 | X26: 0 | Y26: 0 | Z26: 0 | AA26: 0 | AB26: 0 | AC26: 0 | AD26: 414 | AE26: 59.14285714 | AF26: 50 | AG26: 54 | AH26: 0 | AI26: 0 | AJ26: 381 | AK26: 16 | AL26: 9 | AM26: 3 | AN26: 3 | AO26: 2 | AP26: 0 | AQ26: 0 | AR26: 0 | AS26: 0 | AT26: 0 | AU26: 0 | AV26: 0 | AW26: 0 | AX26: 16.05540166 | AY26: 29.81717452 | AZ26: 38.99168975 | BA26: 0 | BB26: 0 | BC26: 0 | BD26: 0.981042654 | BE26: 83.92997199 | BF26: 96.25210084 | BG26: 0 | BH26: 0 | BI26: 0 | BJ26: 0 | BK26: 0 | BL26: 0 | BM26: 0 | BN26: 0 | BO26: 0.594 | BP26: 0 | BQ26: 0 | BR26: 0 | BS26: 0 | BT26: 1 | BU26: 0 | BW26: 112790 | BX26: 8312627 | BY26: Mickleover Primary School | BZ26: Primary | CA26: 0 | CB26: 1 | CC26: 0 | CD26: 0 | CE26: 7 | CF26: 0 | CG26: 0 | CH26: 0 | CI26: 414 | CJ26: 414 | CK26: 53 | CL26: 361 | CM26: 0 | CN26: 0 | CO26: 0 | CP26: 0 | CQ26: 0 | CR26: 0 | CS26: 0 | CT26: 0 | CU26: 0 | CV26: 414 | CW26: 59.14285714 | CX26: 50 | CY26: 54 | CZ26: 0 | DA26: 0 | DB26: 381 | DC26: 16 | DD26: 9 | DE26: 3 | DF26: 3 | DG26: 2 | DH26: 0 | DI26: 0 | DJ26: 0 | DK26: 0 | DL26: 0 | DM26: 0 | DN26: 0 | DO26: 0 | DP26: 16.05540166 | DQ26: 29.81717452 | DR26: 38.99168975 | DS26: 0 | DT26: 0 | DU26: 0 | DV26: 0.981042654 | DW26: 83.92997199 | DX26: 96.25210084 | DY26: 0 | DZ26: 0 | EA26: 0 | EB26: 0 | EC26: 0 | ED26: 0 | EE26: 0 | EF26: 0 | EG26: 0.594 | EH26: 0 | EI26: 0 | EJ26: 0 | EK26: 0 | EL26: 1 | EM26: 0
A27: 26 | C27: 0.3924050633 | D27: 0 | E27: 3526 | F27: 8313526 | G27: St James' Church of England Aided Infant School | H27: Primary | I27: 0 | J27: 1 | K27: 0 | L27: 0 | M27: 3 | N27: 0 | O27: 0 | P27: 0 | Q27: 79 | R27: 79 | S27: 24 | T27: 55 | U27: 0 | V27: 0 | W27: 0 | X27: 0 | Y27: 0 | Z27: 0 | AA27: 0 | AB27: 0 | AC27: 0 | AD27: 79 | AE27: 26.33333333 | AF27: 31 | AG27: 31 | AH27: 0 | AI27: 0 | AJ27: 2 | AK27: 7 | AL27: 19 | AM27: 11 | AN27: 26 | AO27: 2 | AP27: 12 | AQ27: 0 | AR27: 0 | AS27: 0 | AT27: 0 | AU27: 0 | AV27: 0 | AW27: 0 | AX27: 40.96296296 | AY27: 59.98148148 | AZ27: 59.98148148 | BA27: 0 | BB27: 0 | BC27: 0 | BD27: 2.078947368 | BE27: 15.3697644 | BF27: 22.07657068 | BG27: 0 | BH27: 0 | BI27: 0 | BJ27: 0 | BK27: 0 | BL27: 0 | BM27: 8.26 | BN27: 0 | BO27: 0.485 | BP27: 0 | BQ27: 0 | BR27: 0 | BS27: 0 | BT27: 1 | BU27: 0 | BW27: 112915 | BX27: 8313526 | BY27: St James' Church of England Aided Infant School | BZ27: Primary | CA27: 0 | CB27: 1 | CC27: 0 | CD27: 0 | CE27: 3 | CF27: 0 | CG27: 0 | CH27: 0 | CI27: 79 | CJ27: 79 | CK27: 24 | CL27: 55 | CM27: 0 | CN27: 0 | CO27: 0 | CP27: 0 | CQ27: 0 | CR27: 0 | CS27: 0 | CT27: 0 | CU27: 0 | CV27: 79 | CW27: 26.33333333 | CX27: 31 | CY27: 31 | CZ27: 0 | DA27: 0 | DB27: 2 | DC27: 7 | DD27: 19 | DE27: 11 | DF27: 26 | DG27: 2 | DH27: 12 | DI27: 0 | DJ27: 0 | DK27: 0 | DL27: 0 | DM27: 0 | DN27: 0 | DO27: 0 | DP27: 40.96296296 | DQ27: 59.98148148 | DR27: 59.98148148 | DS27: 0 | DT27: 0 | DU27: 0 | DV27: 2.078947368 | DW27: 15.3697644 | DX27: 22.07657068 | DY27: 0 | DZ27: 0 | EA27: 0 | EB27: 0 | EC27: 0 | ED27: 0 | EE27: 8.26 | EF27: 0 | EG27: 0.485 | EH27: 0 | EI27: 0 | EJ27: 0 | EK27: 0 | EL27: 1 | EM27: 0
A28: 27 | C28: 0.3870967742 | D28: 0 | E28: 5209 | F28: 8315209 | G28: Shelton Junior School | H28: Primary | I28: 0 | J28: 1 | K28: 0 | L28: 0 | M28: 4 | N28: 0 | O28: 0 | P28: 0 | Q28: 279 | R28: 279 | S28: 0 | T28: 279 | U28: 0 | V28: 0 | W28: 0 | X28: 0 | Y28: 0 | Z28: 0 | AA28: 0 | AB28: 0 | AC28: 0 | AD28: 279 | AE28: 69.75 | AF28: 95 | AG28: 108 | AH28: 0 | AI28: 0 | AJ28: 78 | AK28: 93 | AL28: 16 | AM28: 0 | AN28: 26 | AO28: 44 | AP28: 22 | AQ28: 0 | AR28: 0 | AS28: 0 | AT28: 0 | AU28: 0 | AV28: 0 | AW28: 0 | AX28: 3 | AY28: 5 | AZ28: 23 | BA28: 0 | BB28: 0 | BC28: 0 | BD28: 1 | BE28: 78.37886598 | BF28: 78.37886598 | BG28: 0 | BH28: 0 | BI28: 0 | BJ28: 0 | BK28: 0 | BL28: 0 | BM28: 0 | BN28: 0 | BO28: 0.85 | BP28: 0 | BQ28: 0 | BR28: 0 | BS28: 0 | BT28: 1 | BU28: 0 | BW28: 112983 | BX28: 8315209 | BY28: Shelton Junior School | BZ28: Primary | CA28: 0 | CB28: 1 | CC28: 0 | CD28: 0 | CE28: 4 | CF28: 0 | CG28: 0 | CH28: 0 | CI28: 279 | CJ28: 279 | CK28: 0 | CL28: 279 | CM28: 0 | CN28: 0 | CO28: 0 | CP28: 0 | CQ28: 0 | CR28: 0 | CS28: 0 | CT28: 0 | CU28: 0 | CV28: 279 | CW28: 69.75 | CX28: 95 | CY28: 108 | CZ28: 0 | DA28: 0 | DB28: 78 | DC28: 93 | DD28: 16 | DE28: 0 | DF28: 26 | DG28: 44 | DH28: 22 | DI28: 0 | DJ28: 0 | DK28: 0 | DL28: 0 | DM28: 0 | DN28: 0 | DO28: 0 | DP28: 3 | DQ28: 5 | DR28: 23 | DS28: 0 | DT28: 0 | DU28: 0 | DV28: 1 | DW28: 78.37886598 | DX28: 78.37886598 | DY28: 0 | DZ28: 0 | EA28: 0 | EB28: 0 | EC28: 0 | ED28: 0 | EE28: 0 | EF28: 0 | EG28: 0.85 | EH28: 0 | EI28: 0 | EJ28: 0 | EK28: 0 | EL28: 1 | EM28: 0
A29: 28 | C29: 0 | D29: 0.1521145975 | E29: 4182 | F29: 8314182 | G29: Littleover Community School | H29: Secondary | I29: 0 | J29: 1 | K29: 0 | L29: 0 | M29: 0 | N29: 5 | O29: 3 | P29: 2 | Q29: 1466 | R29: 0 | S29: 0 | T29: 0 | U29: 1466 | V29: 880 | W29: 586 | X29: 292 | Y29: 295 | Z29: 293 | AA29: 295 | AB29: 291 | AC29: 0 | AD29: 1466 | AE29: 293.2 | AF29: 0 | AG29: 0 | AH29: 155 | AI29: 223 | AJ29: 0 | AK29: 0 | AL29: 0 | AM29: 0 | AN29: 0 | AO29: 0 | AP29: 0 | AQ29: 1222.83413 | AR29: 157.1071672 | AS29: 56.03822526 | AT29: 22.01501706 | AU29: 5.003412969 | AV29: 1.000682594 | AW29: 2.001365188 | AX29: 0 | AY29: 0 | AZ29: 0 | BA29: 4.008202324 | BB29: 9.018455229 | BC29: 14.02870813 | BD29: 6 | BE29: 0 | BF29: 0 | BG29: 86.06315789 | BH29: 86.94736842 | BI29: 86.35789474 | BJ29: 81.77192982 | BK29: 96.65724382 | BL29: 275.4632065 | BM29: 0 | BN29: 0 | BO29: 0 | BP29: 2.04 | BQ29: 0 | BR29: 0 | BS29: 0 | BT29: 0 | BU29: 1 | BW29: 112956 | BX29: 8314182 | BY29: Littleover Community School | BZ29: Secondary | CA29: 0 | CB29: 1 | CC29: 0 | CD29: 0 | CE29: 0 | CF29: 5 | CG29: 3 | CH29: 2 | CI29: 1466 | CJ29: 0 | CK29: 0 | CL29: 0 | CM29: 1466 | CN29: 880 | CO29: 586 | CP29: 292 | CQ29: 295 | CR29: 293 | CS29: 295 | CT29: 291 | CU29: 0 | CV29: 1466 | CW29: 293.2 | CX29: 0 | CY29: 0 | CZ29: 155 | DA29: 223 | DB29: 0 | DC29: 0 | DD29: 0 | DE29: 0 | DF29: 0 | DG29: 0 | DH29: 0 | DI29: 1222.83413 | DJ29: 157.1071672 | DK29: 56.03822526 | DL29: 22.01501706 | DM29: 5.003412969 | DN29: 1.000682594 | DO29: 2.001365188 | DP29: 0 | DQ29: 0 | DR29: 0 | DS29: 4.008202324 | DT29: 9.018455229 | DU29: 14.02870813 | DV29: 6 | DW29: 0 | DX29: 0 | DY29: 86.06315789 | DZ29: 86.94736842 | EA29: 86.35789474 | EB29: 81.77192982 | EC29: 96.65724382 | ED29: 275.4632065 | EE29: 0 | EF29: 0 | EG29: 0 | EH29: 2.04 | EI29: 0 | EJ29: 0 | EK29: 0 | EL29: 0 | EM29: 1
A30: 29 | B30: 11 | C30: 0 | D30: 0.356741573 | E30: 5406 | F30: 8315406 | G30: Murray Park Community School | H30: Secondary | I30: 0 | J30: 1 | K30: 0 | L30: 0 | M30: 0 | N30: 5 | O30: 3 | P30: 2 | Q30: 1083.166667 | R30: 0 | S30: 0 | T30: 0 | U30: 1083.166667 | V30: 659.75 | W30: 423.4166667 | X30: 227.9166667 | Y30: 219.1666667 | Z30: 212.6666667 | AA30: 214.1666667 | AB30: 209.25 | AC30: 0 | AD30: 1083.166667 | AE30: 216.6333333 | AF30: 0 | AG30: 0 | AH30: 278.9052747 | AI30: 386.4105805 | AJ30: 0 | AK30: 0 | AL30: 0 | AM30: 0 | AN30: 0 | AO30: 0 | AP30: 0 | AQ30: 450.7272727 | AR30: 272.0606061 | AS30: 106.5909091 | AT30: 72.07575758 | AU30: 110.6515152 | AV30: 34.51515152 | AW30: 36.54545455 | AX30: 0 | AY30: 0 | AZ30: 0 | BA30: 10.2572601 | BB30: 14.36016414 | BC30: 29.74605429 | BD30: 5.325303179 | BE30: 0 | BF30: 0 | BG30: 107.254902 | BH30: 103.1372549 | BI30: 100.0784314 | BJ30: 103.2393162 | BK30: 104.065508 | BL30: 326.3882773 | BM30: 0 | BN30: 2.961466916 | BO30: 0 | BP30: 2.417 | BQ30: 0 | BR30: 0.02833333333 | BS30: 0 | BT30: 0 | BU30: 1 | BW30: 112991 | BX30: 8315406 | BY30: Murray Park Community School | BZ30: Secondary | CA30: 0 | CB30: 1 | CC30: 0 | CD30: 0 | CE30: 0 | CF30: 5 | CG30: 3 | CH30: 2 | CI30: 1083.166667 | CJ30: 0 | CK30: 0 | CL30: 0 | CM30: 1083.166667 | CN30: 659.75 | CO30: 423.4166667 | CP30: 227.9166667 | CQ30: 219.1666667 | CR30: 212.6666667 | CS30: 214.1666667 | CT30: 209.25 | CU30: 0 | CV30: 1083.166667 | CW30: 216.6333333 | CX30: 0 | CY30: 0 | CZ30: 278.9052747 | DA30: 386.4105805 | DB30: 0 | DC30: 0 | DD30: 0 | DE30: 0 | DF30: 0 | DG30: 0 | DH30: 0 | DI30: 450.7272727 | DJ30: 272.0606061 | DK30: 106.5909091 | DL30: 72.07575758 | DM30: 110.6515152 | DN30: 34.51515152 | DO30: 36.54545455 | DP30: 0 | DQ30: 0 | DR30: 0 | DS30: 10.2572601 | DT30: 14.36016414 | DU30: 29.74605429 | DV30: 5.325303179 | DW30: 0 | DX30: 0 | DY30: 107.254902 | DZ30: 103.1372549 | EA30: 100.0784314 | EB30: 103.2393162 | EC30: 104.065508 | ED30: 326.3882773 | EE30: 0 | EF30: 2.961466916 | EG30: 0 | EH30: 2.417 | EI30: 0 | EJ30: 0.02833333333 | EK30: 0 | EL30: 0 | EM30: 1
A31: 30 | C31: 0.3253012048 | D31: 0.5449620802 | E31: 4177 | F31: 8314177 | G31: The Bemrose School | H31: All-through | I31: 0 | J31: 1 | K31: 0 | L31: 0 | M31: 7 | N31: 5 | O31: 3 | P31: 2 | Q31: 1255 | R31: 332 | S31: 42 | T31: 290 | U31: 923 | V31: 594 | W31: 329 | X31: 219 | Y31: 196 | Z31: 179 | AA31: 174 | AB31: 155 | AC31: 0 | AD31: 1255 | AE31: 104.5833333 | AF31: 93 | AG31: 108 | AH31: 409 | AI31: 503 | AJ31: 61 | AK31: 18 | AL31: 106 | AM31: 64 | AN31: 39 | AO31: 32 | AP31: 12 | AQ31: 63 | AR31: 102 | AS31: 154 | AT31: 312 | AU31: 204 | AV31: 48 | AW31: 40 | AX31: 21.82698962 | AY31: 47.10034602 | AZ31: 73.52249135 | BA31: 65.78399123 | BB31: 99.18201754 | BC31: 155.8574561 | BD31: 6.49137931 | BE31: 96.2890625 | BF31: 110.234375 | BG31: 153 | BH31: 136.9315068 | BI31: 125.0547945 | BJ31: 113.3023256 | BK31: 109.0254237 | BL31: 403.1068918 | BM31: 14.08 | BN31: 73.75991323 | BO31: 0 | BP31: 1.445 | BQ31: 0 | BR31: 0 | BS31: 0 | BT31: 0.2645418327 | BU31: 0.7354581673 | BW31: 112951 | BX31: 8314177 | BY31: The Bemrose School | BZ31: All-through | CA31: 0 | CB31: 1 | CC31: 0 | CD31: 0 | CE31: 7 | CF31: 5 | CG31: 3 | CH31: 2 | CI31: 1255 | CJ31: 332 | CK31: 42 | CL31: 290 | CM31: 923 | CN31: 594 | CO31: 329 | CP31: 219 | CQ31: 196 | CR31: 179 | CS31: 174 | CT31: 155 | CU31: 0 | CV31: 1255 | CW31: 104.5833333 | CX31: 93 | CY31: 108 | CZ31: 409 | DA31: 503 | DB31: 61 | DC31: 18 | DD31: 106 | DE31: 64 | DF31: 39 | DG31: 32 | DH31: 12 | DI31: 63 | DJ31: 102 | DK31: 154 | DL31: 312 | DM31: 204 | DN31: 48 | DO31: 40 | DP31: 21.82698962 | DQ31: 47.10034602 | DR31: 73.52249135 | DS31: 65.78399123 | DT31: 99.18201754 | DU31: 155.8574561 | DV31: 6.49137931 | DW31: 96.2890625 | DX31: 110.234375 | DY31: 153 | DZ31: 136.9315068 | EA31: 125.0547945 | EB31: 113.3023256 | EC31: 109.0254237 | ED31: 403.1068918 | EE31: 14.08 | EF31: 73.75991323 | EG31: 0 | EH31: 1.445 | EI31: 0 | EJ31: 0 | EK31: 0 | EL31: 0.2645418327 | EM31: 0.7354581673
A32: 31 | C32: 0.06896551724 | D32: 0 | E32: 2002 | F32: 8312002 | G32: Griffe Field Primary School | H32: Primary | I32: Recoupment Academy | J32: 1 | K32: 0 | L32: 0 | M32: 7 | N32: 0 | O32: 0 | P32: 0 | Q32: 435 | R32: 435 | S32: 60 | T32: 375 | U32: 0 | V32: 0 | W32: 0 | X32: 0 | Y32: 0 | Z32: 0 | AA32: 0 | AB32: 0 | AC32: 0 | AD32: 435 | AE32: 62.14285714 | AF32: 28 | AG32: 30 | AH32: 0 | AI32: 0 | AJ32: 335.5427252 | AK32: 83.38337182 | AL32: 3.013856813 | AM32: 7.032332564 | AN32: 3.013856813 | AO32: 3.013856813 | AP32: 0 | AQ32: 0 | AR32: 0 | AS32: 0 | AT32: 0 | AU32: 0 | AV32: 0 | AW32: 0 | AX32: 10.44 | AY32: 18.56 | AZ32: 37.12 | BA32: 0 | BB32: 0 | BC32: 0 | BD32: 0.9908883827 | BE32: 69.32773109 | BF32: 80.42016807 | BG32: 0 | BH32: 0 | BI32: 0 | BJ32: 0 | BK32: 0 | BL32: 0 | BM32: 0 | BN32: 0 | BO32: 1.555 | BP32: 0 | BQ32: 0 | BR32: 0 | BS32: 0 | BT32: 1 | BU32: 0 | BW32: 146579 | BX32: 8312002 | BY32: Griffe Field Primary School | BZ32: Primary | CA32: Recoupment Academy | CB32: 1 | CC32: 0 | CD32: 0 | CE32: 7 | CF32: 0 | CG32: 0 | CH32: 0 | CI32: 435 | CJ32: 435 | CK32: 60 | CL32: 375 | CM32: 0 | CN32: 0 | CO32: 0 | CP32: 0 | CQ32: 0 | CR32: 0 | CS32: 0 | CT32: 0 | CU32: 0 | CV32: 435 | CW32: 62.14285714 | CX32: 28 | CY32: 30 | CZ32: 0 | DA32: 0 | DB32: 335.5427252 | DC32: 83.38337182 | DD32: 3.013856813 | DE32: 7.032332564 | DF32: 3.013856813 | DG32: 3.013856813 | DH32: 0 | DI32: 0 | DJ32: 0 | DK32: 0 | DL32: 0 | DM32: 0 | DN32: 0 | DO32: 0 | DP32: 10.44 | DQ32: 18.56 | DR32: 37.12 | DS32: 0 | DT32: 0 | DU32: 0 | DV32: 0.9908883827 | DW32: 69.32773109 | DX32: 80.42016807 | DY32: 0 | DZ32: 0 | EA32: 0 | EB32: 0 | EC32: 0 | ED32: 0 | EE32: 0 | EF32: 0 | EG32: 1.555 | EH32: 0 | EI32: 0 | EJ32: 0 | EK32: 0 | EL32: 1 | EM32: 0
A33: 32 | C33: 0.5451263538 | D33: 0 | E33: 2004 | F33: 8312004 | G33: Beaufort Community Primary School | H33: Primary | I33: Recoupment Academy | J33: 1 | K33: 0 | L33: 0 | M33: 7 | N33: 0 | O33: 0 | P33: 0 | Q33: 277 | R33: 277 | S33: 34 | T33: 243 | U33: 0 | V33: 0 | W33: 0 | X33: 0 | Y33: 0 | Z33: 0 | AA33: 0 | AB33: 0 | AC33: 0 | AD33: 277 | AE33: 39.57142857 | AF33: 146 | AG33: 151 | AH33: 0 | AI33: 0 | AJ33: 26 | AK33: 52 | AL33: 16 | AM33: 29 | AN33: 7 | AO33: 17 | AP33: 130 | AQ33: 0 | AR33: 0 | AS33: 0 | AT33: 0 | AU33: 0 | AV33: 0 | AW33: 0 | AX33: 10.25925926 | AY33: 15.95884774 | AZ33: 19.37860082 | BA33: 0 | BB33: 0 | BC33: 0 | BD33: 1.943859649 | BE33: 69.11009174 | BF33: 78.77981651 | BG33: 0 | BH33: 0 | BI33: 0 | BJ33: 0 | BK33: 0 | BL33: 0 | BM33: 2.38 | BN33: 0 | BO33: 0.529 | BP33: 0 | BQ33: 0 | BR33: 0 | BS33: 0 | BT33: 1 | BU33: 0 | BW33: 146877 | BX33: 8312004 | BY33: Beaufort Community Primary School | BZ33: Primary | CA33: Recoupment Academy | CB33: 1 | CC33: 0 | CD33: 0 | CE33: 7 | CF33: 0 | CG33: 0 | CH33: 0 | CI33: 277 | CJ33: 277 | CK33: 34 | CL33: 243 | CM33: 0 | CN33: 0 | CO33: 0 | CP33: 0 | CQ33: 0 | CR33: 0 | CS33: 0 | CT33: 0 | CU33: 0 | CV33: 277 | CW33: 39.57142857 | CX33: 146 | CY33: 151 | CZ33: 0 | DA33: 0 | DB33: 26 | DC33: 52 | DD33: 16 | DE33: 29 | DF33: 7 | DG33: 17 | DH33: 130 | DI33: 0 | DJ33: 0 | DK33: 0 | DL33: 0 | DM33: 0 | DN33: 0 | DO33: 0 | DP33: 10.25925926 | DQ33: 15.95884774 | DR33: 19.37860082 | DS33: 0 | DT33: 0 | DU33: 0 | DV33: 1.943859649 | DW33: 69.11009174 | DX33: 78.77981651 | DY33: 0 | DZ33: 0 | EA33: 0 | EB33: 0 | EC33: 0 | ED33: 0 | EE33: 2.38 | EF33: 0 | EG33: 0.529 | EH33: 0 | EI33: 0 | EJ33: 0 | EK33: 0 | EL33: 1 | EM33: 0
A34: 33 | C34: 0.03225806452 | D34: 0 | E34: 2006 | F34: 8312006 | G34: Homefields Primary School | H34: Primary | I34: Recoupment Academy | J34: 1 | K34: 0 | L34: 0 | M34: 7 | N34: 0 | O34: 0 | P34: 0 | Q34: 310 | R34: 310 | S34: 43 | T34: 267 | U34: 0 | V34: 0 | W34: 0 | X34: 0 | Y34: 0 | Z34: 0 | AA34: 0 | AB34: 0 | AC34: 0 | AD34: 310 | AE34: 44.28571429 | AF34: 9 | AG34: 10 | AH34: 0 | AI34: 0 | AJ34: 300 | AK34: 5 | AL34: 2 | AM34: 0 | AN34: 1 | AO34: 2 | AP34: 0 | AQ34: 0 | AR34: 0 | AS34: 0 | AT34: 0 | AU34: 0 | AV34: 0 | AW34: 0 | AX34: 7.153846154 | AY34: 15.5 | AZ34: 26.23076923 | BA34: 0 | BB34: 0 | BC34: 0 | BD34: 0 | BE34: 46.52272727 | BF34: 54.01515152 | BG34: 0 | BH34: 0 | BI34: 0 | BJ34: 0 | BK34: 0 | BL34: 0 | BM34: 0 | BN34: 0 | BO34: 0.813 | BP34: 0 | BQ34: 0 | BR34: 0 | BS34: 0 | BT34: 1 | BU34: 0 | BW34: 146477 | BX34: 8312006 | BY34: Homefields Primary School | BZ34: Primary | CA34: Recoupment Academy | CB34: 1 | CC34: 0 | CD34: 0 | CE34: 7 | CF34: 0 | CG34: 0 | CH34: 0 | CI34: 310 | CJ34: 310 | CK34: 43 | CL34: 267 | CM34: 0 | CN34: 0 | CO34: 0 | CP34: 0 | CQ34: 0 | CR34: 0 | CS34: 0 | CT34: 0 | CU34: 0 | CV34: 310 | CW34: 44.28571429 | CX34: 9 | CY34: 10 | CZ34: 0 | DA34: 0 | DB34: 300 | DC34: 5 | DD34: 2 | DE34: 0 | DF34: 1 | DG34: 2 | DH34: 0 | DI34: 0 | DJ34: 0 | DK34: 0 | DL34: 0 | DM34: 0 | DN34: 0 | DO34: 0 | DP34: 7.153846154 | DQ34: 15.5 | DR34: 26.23076923 | DS34: 0 | DT34: 0 | DU34: 0 | DV34: 0 | DW34: 46.52272727 | DX34: 54.01515152 | DY34: 0 | DZ34: 0 | EA34: 0 | EB34: 0 | EC34: 0 | ED34: 0 | EE34: 0 | EF34: 0 | EG34: 0.813 | EH34: 0 | EI34: 0 | EJ34: 0 | EK34: 0 | EL34: 1 | EM34: 0
A35: 34 | C35: 0.387755102 | D35: 0 | E35: 2007 | F35: 8312007 | G35: Wyndham Spencer Academy | H35: Primary | I35: Recoupment Academy | J35: 1 | K35: 0 | L35: 0 | M35: 7 | N35: 0 | O35: 0 | P35: 0 | Q35: 441 | R35: 441 | S35: 60 | T35: 381 | U35: 0 | V35: 0 | W35: 0 | X35: 0 | Y35: 0 | Z35: 0 | AA35: 0 | AB35: 0 | AC35: 0 | AD35: 441 | AE35: 63 | AF35: 169 | AG35: 171 | AH35: 0 | AI35: 0 | AJ35: 77 | AK35: 30 | AL35: 53 | AM35: 2 | AN35: 76 | AO35: 176 | AP35: 27 | AQ35: 0 | AR35: 0 | AS35: 0 | AT35: 0 | AU35: 0 | AV35: 0 | AW35: 0 | AX35: 21.99212598 | AY35: 40.51181102 | AZ35: 61.34645669 | BA35: 0 | BB35: 0 | BC35: 0 | BD35: 1.023201856 | BE35: 93.70540541 | BF35: 108.4621622 | BG35: 0 | BH35: 0 | BI35: 0 | BJ35: 0 | BK35: 0 | BL35: 0 | BM35: 0.54 | BN35: 0 | BO35: 0.608 | BP35: 0 | BQ35: 0 | BR35: 0 | BS35: 0 | BT35: 1 | BU35: 0 | BW35: 138443 | BX35: 8312007 | BY35: Wyndham Spencer Academy | BZ35: Primary | CA35: Recoupment Academy | CB35: 1 | CC35: 0 | CD35: 0 | CE35: 7 | CF35: 0 | CG35: 0 | CH35: 0 | CI35: 441 | CJ35: 441 | CK35: 60 | CL35: 381 | CM35: 0 | CN35: 0 | CO35: 0 | CP35: 0 | CQ35: 0 | CR35: 0 | CS35: 0 | CT35: 0 | CU35: 0 | CV35: 441 | CW35: 63 | CX35: 169 | CY35: 171 | CZ35: 0 | DA35: 0 | DB35: 77 | DC35: 30 | DD35: 53 | DE35: 2 | DF35: 76 | DG35: 176 | DH35: 27 | DI35: 0 | DJ35: 0 | DK35: 0 | DL35: 0 | DM35: 0 | DN35: 0 | DO35: 0 | DP35: 21.99212598 | DQ35: 40.51181102 | DR35: 61.34645669 | DS35: 0 | DT35: 0 | DU35: 0 | DV35: 1.023201856 | DW35: 93.70540541 | DX35: 108.4621622 | DY35: 0 | DZ35: 0 | EA35: 0 | EB35: 0 | EC35: 0 | ED35: 0 | EE35: 0.54 | EF35: 0 | EG35: 0.608 | EH35: 0 | EI35: 0 | EJ35: 0 | EK35: 0 | EL35: 1 | EM35: 0
A36: 35 | C36: 0.2167487685 | D36: 0 | E36: 2008 | F36: 8312008 | G36: St John Fisher Catholic Voluntary Academy | H36: Primary | I36: Recoupment Academy | J36: 1 | K36: 0 | L36: 0 | M36: 7 | N36: 0 | O36: 0 | P36: 0 | Q36: 203 | R36: 203 | S36: 20 | T36: 183 | U36: 0 | V36: 0 | W36: 0 | X36: 0 | Y36: 0 | Z36: 0 | AA36: 0 | AB36: 0 | AC36: 0 | AD36: 203 | AE36: 29 | AF36: 38 | AG36: 44 | AH36: 0 | AI36: 0 | AJ36: 56 | AK36: 36 | AL36: 33 | AM36: 0 | AN36: 41 | AO36: 27 | AP36: 10 | AQ36: 0 | AR36: 0 | AS36: 0 | AT36: 0 | AU36: 0 | AV36: 0 | AW36: 0 | AX36: 6.655737705 | AY36: 13.31147541 | AZ36: 17.74863388 | BA36: 0 | BB36: 0 | BC36: 0 | BD36: 2.730941704 | BE36: 47.36470588 | BF36: 52.54117647 | BG36: 0 | BH36: 0 | BI36: 0 | BJ36: 0 | BK36: 0 | BL36: 0 | BM36: 0 | BN36: 0 | BO36: 0.468 | BP36: 0 | BQ36: 0 | BR36: 0 | BS36: 0 | BT36: 1 | BU36: 0 | BW36: 138514 | BX36: 8312008 | BY36: St John Fisher Catholic Voluntary Academy | BZ36: Primary | CA36: Recoupment Academy | CB36: 1 | CC36: 0 | CD36: 0 | CE36: 7 | CF36: 0 | CG36: 0 | CH36: 0 | CI36: 203 | CJ36: 203 | CK36: 20 | CL36: 183 | CM36: 0 | CN36: 0 | CO36: 0 | CP36: 0 | CQ36: 0 | CR36: 0 | CS36: 0 | CT36: 0 | CU36: 0 | CV36: 203 | CW36: 29 | CX36: 38 | CY36: 44 | CZ36: 0 | DA36: 0 | DB36: 56 | DC36: 36 | DD36: 33 | DE36: 0 | DF36: 41 | DG36: 27 | DH36: 10 | DI36: 0 | DJ36: 0 | DK36: 0 | DL36: 0 | DM36: 0 | DN36: 0 | DO36: 0 | DP36: 6.655737705 | DQ36: 13.31147541 | DR36: 17.74863388 | DS36: 0 | DT36: 0 | DU36: 0 | DV36: 2.730941704 | DW36: 47.36470588 | DX36: 52.54117647 | DY36: 0 | DZ36: 0 | EA36: 0 | EB36: 0 | EC36: 0 | ED36: 0 | EE36: 0 | EF36: 0 | EG36: 0.468 | EH36: 0 | EI36: 0 | EJ36: 0 | EK36: 0 | EL36: 1 | EM36: 0
A37: 36 | C37: 0.476635514 | D37: 0 | E37: 2009 | F37: 8312009 | G37: Landau Forte Academy Moorhead | H37: Primary | I37: Recoupment Academy | J37: 1 | K37: 0 | L37: 0 | M37: 7 | N37: 0 | O37: 0 | P37: 0 | Q37: 214 | R37: 214 | S37: 24 | T37: 190 | U37: 0 | V37: 0 | W37: 0 | X37: 0 | Y37: 0 | Z37: 0 | AA37: 0 | AB37: 0 | AC37: 0 | AD37: 214 | AE37: 30.57142857 | AF37: 89 | AG37: 102 | AH37: 0 | AI37: 0 | AJ37: 31.29245283 | AK37: 1.009433962 | AL37: 13.12264151 | AM37: 0 | AN37: 67.63207547 | AO37: 69.6509434 | AP37: 31.29245283 | AQ37: 0 | AR37: 0 | AS37: 0 | AT37: 0 | AU37: 0 | AV37: 0 | AW37: 0 | AX37: 14.64210526 | AY37: 30.41052632 | AZ37: 45.05263158 | BA37: 0 | BB37: 0 | BC37: 0 | BD37: 0 | BE37: 83.6 | BF37: 94.16 | BG37: 0 | BH37: 0 | BI37: 0 | BJ37: 0 | BK37: 0 | BL37: 0 | BM37: 3.16 | BN37: 0 | BO37: 0.521 | BP37: 0 | BQ37: 0 | BR37: 0 | BS37: 0 | BT37: 1 | BU37: 0 | BW37: 138790 | BX37: 8312009 | BY37: Landau Forte Academy Moorhead | BZ37: Primary | CA37: Recoupment Academy | CB37: 1 | CC37: 0 | CD37: 0 | CE37: 7 | CF37: 0 | CG37: 0 | CH37: 0 | CI37: 214 | CJ37: 214 | CK37: 24 | CL37: 190 | CM37: 0 | CN37: 0 | CO37: 0 | CP37: 0 | CQ37: 0 | CR37: 0 | CS37: 0 | CT37: 0 | CU37: 0 | CV37: 214 | CW37: 30.57142857 | CX37: 89 | CY37: 102 | CZ37: 0 | DA37: 0 | DB37: 31.29245283 | DC37: 1.009433962 | DD37: 13.12264151 | DE37: 0 | DF37: 67.63207547 | DG37: 69.6509434 | DH37: 31.29245283 | DI37: 0 | DJ37: 0 | DK37: 0 | DL37: 0 | DM37: 0 | DN37: 0 | DO37: 0 | DP37: 14.64210526 | DQ37: 30.41052632 | DR37: 45.05263158 | DS37: 0 | DT37: 0 | DU37: 0 | DV37: 0 | DW37: 83.6 | DX37: 94.16 | DY37: 0 | DZ37: 0 | EA37: 0 | EB37: 0 | EC37: 0 | ED37: 0 | EE37: 3.16 | EF37: 0 | EG37: 0.521 | EH37: 0 | EI37: 0 | EJ37: 0 | EK37: 0 | EL37: 1 | EM37: 0
A38: 37 | C38: 0.5603864734 | D38: 0 | E38: 2010 | F38: 8312010 | G38: Grampian Primary Academy | H38: Primary | I38: Recoupment Academy | J38: 1 | K38: 0 | L38: 0 | M38: 7 | N38: 0 | O38: 0 | P38: 0 | Q38: 207 | R38: 207 | S38: 30 | T38: 177 | U38: 0 | V38: 0 | W38: 0 | X38: 0 | Y38: 0 | Z38: 0 | AA38: 0 | AB38: 0 | AC38: 0 | AD38: 207 | AE38: 29.57142857 | AF38: 107 | AG38: 116 | AH38: 0 | AI38: 0 | AJ38: 41 | AK38: 2 | AL38: 16 | AM38: 4 | AN38: 85 | AO38: 56 | AP38: 3 | AQ38: 0 | AR38: 0 | AS38: 0 | AT38: 0 | AU38: 0 | AV38: 0 | AW38: 0 | AX38: 2.338983051 | AY38: 12.86440678 | AZ38: 24.55932203 | BA38: 0 | BB38: 0 | BC38: 0 | BD38: 3 | BE38: 41.1627907 | BF38: 48.13953488 | BG38: 0 | BH38: 0 | BI38: 0 | BJ38: 0 | BK38: 0 | BL38: 0 | BM38: 2.58 | BN38: 0 | BO38: 0.708 | BP38: 0 | BQ38: 0 | BR38: 0 | BS38: 0 | BT38: 1 | BU38: 0 | BW38: 138992 | BX38: 8312010 | BY38: Grampian Primary Academy | BZ38: Primary | CA38: Recoupment Academy | CB38: 1 | CC38: 0 | CD38: 0 | CE38: 7 | CF38: 0 | CG38: 0 | CH38: 0 | CI38: 207 | CJ38: 207 | CK38: 30 | CL38: 177 | CM38: 0 | CN38: 0 | CO38: 0 | CP38: 0 | CQ38: 0 | CR38: 0 | CS38: 0 | CT38: 0 | CU38: 0 | CV38: 207 | CW38: 29.57142857 | CX38: 107 | CY38: 116 | CZ38: 0 | DA38: 0 | DB38: 41 | DC38: 2 | DD38: 16 | DE38: 4 | DF38: 85 | DG38: 56 | DH38: 3 | DI38: 0 | DJ38: 0 | DK38: 0 | DL38: 0 | DM38: 0 | DN38: 0 | DO38: 0 | DP38: 2.338983051 | DQ38: 12.86440678 | DR38: 24.55932203 | DS38: 0 | DT38: 0 | DU38: 0 | DV38: 3 | DW38: 41.1627907 | DX38: 48.13953488 | DY38: 0 | DZ38: 0 | EA38: 0 | EB38: 0 | EC38: 0 | ED38: 0 | EE38: 2.58 | EF38: 0 | EG38: 0.708 | EH38: 0 | EI38: 0 | EJ38: 0 | EK38: 0 | EL38: 1 | EM38: 0
A39: 38 | C39: 0.323943662 | D39: 0 | E39: 2011 | F39: 8312011 | G39: Bishop Lonsdale Church of England Primary School and Nursery | H39: Primary | I39: Recoupment Academy | J39: 1 | K39: 0 | L39: 0 | M39: 7 | N39: 0 | O39: 0 | P39: 0 | Q39: 213 | R39: 213 | S39: 28 | T39: 185 | U39: 0 | V39: 0 | W39: 0 | X39: 0 | Y39: 0 | Z39: 0 | AA39: 0 | AB39: 0 | AC39: 0 | AD39: 213 | AE39: 30.42857143 | AF39: 66 | AG39: 69 | AH39: 0 | AI39: 0 | AJ39: 32 | AK39: 4 | AL39: 113 | AM39: 33 | AN39: 15 | AO39: 15 | AP39: 1 | AQ39: 0 | AR39: 0 | AS39: 0 | AT39: 0 | AU39: 0 | AV39: 0 | AW39: 0 | AX39: 11.51351351 | AY39: 18.42162162 | AZ39: 29.93513514 | BA39: 0 | BB39: 0 | BC39: 0 | BD39: 1.049261084 | BE39: 43.39506173 | BF39: 49.96296296 | BG39: 0 | BH39: 0 | BI39: 0 | BJ39: 0 | BK39: 0 | BL39: 0 | BM39: 0.22 | BN39: 0 | BO39: 0.455 | BP39: 0 | BQ39: 0 | BR39: 0 | BS39: 0 | BT39: 1 | BU39: 0 | BW39: 140842 | BX39: 8312011 | BY39: Bishop Lonsdale Church of England Primary School and Nursery | BZ39: Primary | CA39: Recoupment Academy | CB39: 1 | CC39: 0 | CD39: 0 | CE39: 7 | CF39: 0 | CG39: 0 | CH39: 0 | CI39: 213 | CJ39: 213 | CK39: 28 | CL39: 185 | CM39: 0 | CN39: 0 | CO39: 0 | CP39: 0 | CQ39: 0 | CR39: 0 | CS39: 0 | CT39: 0 | CU39: 0 | CV39: 213 | CW39: 30.42857143 | CX39: 66 | CY39: 69 | CZ39: 0 | DA39: 0 | DB39: 32 | DC39: 4 | DD39: 113 | DE39: 33 | DF39: 15 | DG39: 15 | DH39: 1 | DI39: 0 | DJ39: 0 | DK39: 0 | DL39: 0 | DM39: 0 | DN39: 0 | DO39: 0 | DP39: 11.51351351 | DQ39: 18.42162162 | DR39: 29.93513514 | DS39: 0 | DT39: 0 | DU39: 0 | DV39: 1.049261084 | DW39: 43.39506173 | DX39: 49.96296296 | DY39: 0 | DZ39: 0 | EA39: 0 | EB39: 0 | EC39: 0 | ED39: 0 | EE39: 0.22 | EF39: 0 | EG39: 0.455 | EH39: 0 | EI39: 0 | EJ39: 0 | EK39: 0 | EL39: 1 | EM39: 0
A40: 39 | C40: 0.556547619 | D40: 0 | E40: 2012 | F40: 8312012 | G40: Allenton Primary School | H40: Primary | I40: Recoupment Academy | J40: 1 | K40: 0 | L40: 0 | M40: 7 | N40: 0 | O40: 0 | P40: 0 | Q40: 336 | R40: 336 | S40: 32 | T40: 304 | U40: 0 | V40: 0 | W40: 0 | X40: 0 | Y40: 0 | Z40: 0 | AA40: 0 | AB40: 0 | AC40: 0 | AD40: 336 | AE40: 48 | AF40: 176 | AG40: 187 | AH40: 0 | AI40: 0 | AJ40: 8.023880597 | AK40: 11.03283582 | AL40: 3.008955224 | AM40: 5.014925373 | AN40: 56.16716418 | AO40: 202.6029851 | AP40: 50.14925373 | AQ40: 0 | AR40: 0 | AS40: 0 | AT40: 0 | AU40: 0 | AV40: 0 | AW40: 0 | AX40: 23.21052632 | AY40: 44.21052632 | AZ40: 67.42105263 | BA40: 0 | BB40: 0 | BC40: 0 | BD40: 2.807799443 | BE40: 103.4226804 | BF40: 114.3092784 | BG40: 0 | BH40: 0 | BI40: 0 | BJ40: 0 | BK40: 0 | BL40: 0 | BM40: 0 | BN40: 0 | BO40: 0.527 | BP40: 0 | BQ40: 0 | BR40: 0 | BS40: 0 | BT40: 1 | BU40: 0 | BW40: 141324 | BX40: 8312012 | BY40: Allenton Primary School | BZ40: Primary | CA40: Recoupment Academy | CB40: 1 | CC40: 0 | CD40: 0 | CE40: 7 | CF40: 0 | CG40: 0 | CH40: 0 | CI40: 336 | CJ40: 336 | CK40: 32 | CL40: 304 | CM40: 0 | CN40: 0 | CO40: 0 | CP40: 0 | CQ40: 0 | CR40: 0 | CS40: 0 | CT40: 0 | CU40: 0 | CV40: 336 | CW40: 48 | CX40: 176 | CY40: 187 | CZ40: 0 | DA40: 0 | DB40: 8.023880597 | DC40: 11.03283582 | DD40: 3.008955224 | DE40: 5.014925373 | DF40: 56.16716418 | DG40: 202.6029851 | DH40: 50.14925373 | DI40: 0 | DJ40: 0 | DK40: 0 | DL40: 0 | DM40: 0 | DN40: 0 | DO40: 0 | DP40: 23.21052632 | DQ40: 44.21052632 | DR40: 67.42105263 | DS40: 0 | DT40: 0 | DU40: 0 | DV40: 2.807799443 | DW40: 103.4226804 | DX40: 114.3092784 | DY40: 0 | DZ40: 0 | EA40: 0 | EB40: 0 | EC40: 0 | ED40: 0 | EE40: 0 | EF40: 0 | EG40: 0.527 | EH40: 0 | EI40: 0 | EJ40: 0 | EK40: 0 | EL40: 1 | EM40: 0
A41: 40 | C41: 0.5906593407 | D41: 0 | E41: 2013 | F41: 8312013 | G41: Firs Primary School | H41: Primary | I41: Recoupment Academy | J41: 1 | K41: 0 | L41: 0 | M41: 7 | N41: 0 | O41: 0 | P41: 0 | Q41: 364 | R41: 364 | S41: 40 | T41: 324 | U41: 0 | V41: 0 | W41: 0 | X41: 0 | Y41: 0 | Z41: 0 | AA41: 0 | AB41: 0 | AC41: 0 | AD41: 364 | AE41: 52 | AF41: 211 | AG41: 215 | AH41: 0 | AI41: 0 | AJ41: 17 | AK41: 15 | AL41: 109 | AM41: 90 | AN41: 83 | AO41: 33 | AP41: 17 | AQ41: 0 | AR41: 0 | AS41: 0 | AT41: 0 | AU41: 0 | AV41: 0 | AW41: 0 | AX41: 92.12345679 | AY41: 134.8148148 | AZ41: 186.4938272 | BA41: 0 | BB41: 0 | BC41: 0 | BD41: 4.136363636 | BE41: 181.6363636 | BF41: 204.0606061 | BG41: 0 | BH41: 0 | BI41: 0 | BJ41: 0 | BK41: 0 | BL41: 0 | BM41: 68.65723757 | BN41: 0 | BO41: 0.411 | BP41: 0 | BQ41: 0 | BR41: 0 | BS41: 0 | BT41: 1 | BU41: 0 | BW41: 142041 | BX41: 8312013 | BY41: Firs Primary School | BZ41: Primary | CA41: Recoupment Academy | CB41: 1 | CC41: 0 | CD41: 0 | CE41: 7 | CF41: 0 | CG41: 0 | CH41: 0 | CI41: 364 | CJ41: 364 | CK41: 40 | CL41: 324 | CM41: 0 | CN41: 0 | CO41: 0 | CP41: 0 | CQ41: 0 | CR41: 0 | CS41: 0 | CT41: 0 | CU41: 0 | CV41: 364 | CW41: 52 | CX41: 211 | CY41: 215 | CZ41: 0 | DA41: 0 | DB41: 17 | DC41: 15 | DD41: 109 | DE41: 90 | DF41: 83 | DG41: 33 | DH41: 17 | DI41: 0 | DJ41: 0 | DK41: 0 | DL41: 0 | DM41: 0 | DN41: 0 | DO41: 0 | DP41: 92.12345679 | DQ41: 134.8148148 | DR41: 186.4938272 | DS41: 0 | DT41: 0 | DU41: 0 | DV41: 4.136363636 | DW41: 181.6363636 | DX41: 204.0606061 | DY41: 0 | DZ41: 0 | EA41: 0 | EB41: 0 | EC41: 0 | ED41: 0 | EE41: 68.65723757 | EF41: 0 | EG41: 0.411 | EH41: 0 | EI41: 0 | EJ41: 0 | EK41: 0 | EL41: 1 | EM41: 0
A42: 41 | C42: 0.2245989305 | D42: 0 | E42: 2014 | F42: 8312014 | G42: Akaal Primary School | H42: Primary | I42: Recoupment Academy | J42: 1 | K42: 0 | L42: 0 | M42: 7 | N42: 0 | O42: 0 | P42: 0 | Q42: 187 | R42: 187 | S42: 20 | T42: 167 | U42: 0 | V42: 0 | W42: 0 | X42: 0 | Y42: 0 | Z42: 0 | AA42: 0 | AB42: 0 | AC42: 0 | AD42: 187 | AE42: 26.71428571 | AF42: 40 | AG42: 42 | AH42: 0 | AI42: 0 | AJ42: 74 | AK42: 6 | AL42: 27 | AM42: 33 | AN42: 15 | AO42: 32 | AP42: 0 | AQ42: 0 | AR42: 0 | AS42: 0 | AT42: 0 | AU42: 0 | AV42: 0 | AW42: 0 | AX42: 25.75449102 | AY42: 43.67065868 | AZ42: 81.74251497 | BA42: 0 | BB42: 0 | BC42: 0 | BD42: 2.2 | BE42: 54.93421053 | BF42: 61.51315789 | BG42: 0 | BH42: 0 | BI42: 0 | BJ42: 0 | BK42: 0 | BL42: 0 | BM42: 10.78 | BN42: 0 | BO42: 0.677 | BP42: 0 | BQ42: 0 | BR42: 0 | BS42: 0 | BT42: 1 | BU42: 0 | BW42: 142109 | BX42: 8312014 | BY42: Akaal Primary School | BZ42: Primary | CA42: Recoupment Academy | CB42: 1 | CC42: 0 | CD42: 0 | CE42: 7 | CF42: 0 | CG42: 0 | CH42: 0 | CI42: 187 | CJ42: 187 | CK42: 20 | CL42: 167 | CM42: 0 | CN42: 0 | CO42: 0 | CP42: 0 | CQ42: 0 | CR42: 0 | CS42: 0 | CT42: 0 | CU42: 0 | CV42: 187 | CW42: 26.71428571 | CX42: 40 | CY42: 42 | CZ42: 0 | DA42: 0 | DB42: 74 | DC42: 6 | DD42: 27 | DE42: 33 | DF42: 15 | DG42: 32 | DH42: 0 | DI42: 0 | DJ42: 0 | DK42: 0 | DL42: 0 | DM42: 0 | DN42: 0 | DO42: 0 | DP42: 25.75449102 | DQ42: 43.67065868 | DR42: 81.74251497 | DS42: 0 | DT42: 0 | DU42: 0 | DV42: 2.2 | DW42: 54.93421053 | DX42: 61.51315789 | DY42: 0 | DZ42: 0 | EA42: 0 | EB42: 0 | EC42: 0 | ED42: 0 | EE42: 10.78 | EF42: 0 | EG42: 0.677 | EH42: 0 | EI42: 0 | EJ42: 0 | EK42: 0 | EL42: 1 | EM42: 0
A43: 42 | C43: 0.6509433962 | D43: 0 | E43: 2016 | F43: 8312016 | G43: Derwent Primary School | H43: Primary | I43: Recoupment Academy | J43: 1 | K43: 0 | L43: 0 | M43: 7 | N43: 0 | O43: 0 | P43: 0 | Q43: 212 | R43: 212 | S43: 28 | T43: 184 | U43: 0 | V43: 0 | W43: 0 | X43: 0 | Y43: 0 | Z43: 0 | AA43: 0 | AB43: 0 | AC43: 0 | AD43: 212 | AE43: 30.28571429 | AF43: 138 | AG43: 138 | AH43: 0 | AI43: 0 | AJ43: 6.086124402 | AK43: 11.15789474 | AL43: 43.61722488 | AM43: 2.028708134 | AN43: 1.014354067 | AO43: 6.086124402 | AP43: 142.0095694 | AQ43: 0 | AR43: 0 | AS43: 0 | AT43: 0 | AU43: 0 | AV43: 0 | AW43: 0 | AX43: 10.36956522 | AY43: 19.58695652 | AZ43: 25.34782609 | BA43: 0 | BB43: 0 | BC43: 0 | BD43: 0 | BE43: 49.98843931 | BF43: 57.59537572 | BG43: 0 | BH43: 0 | BI43: 0 | BJ43: 0 | BK43: 0 | BL43: 0 | BM43: 12.28 | BN43: 0 | BO43: 0.575 | BP43: 0 | BQ43: 0 | BR43: 0 | BS43: 0 | BT43: 1 | BU43: 0 | BW43: 144343 | BX43: 8312016 | BY43: Derwent Primary School | BZ43: Primary | CA43: Recoupment Academy | CB43: 1 | CC43: 0 | CD43: 0 | CE43: 7 | CF43: 0 | CG43: 0 | CH43: 0 | CI43: 212 | CJ43: 212 | CK43: 28 | CL43: 184 | CM43: 0 | CN43: 0 | CO43: 0 | CP43: 0 | CQ43: 0 | CR43: 0 | CS43: 0 | CT43: 0 | CU43: 0 | CV43: 212 | CW43: 30.28571429 | CX43: 138 | CY43: 138 | CZ43: 0 | DA43: 0 | DB43: 6.086124402 | DC43: 11.15789474 | DD43: 43.61722488 | DE43: 2.028708134 | DF43: 1.014354067 | DG43: 6.086124402 | DH43: 142.0095694 | DI43: 0 | DJ43: 0 | DK43: 0 | DL43: 0 | DM43: 0 | DN43: 0 | DO43: 0 | DP43: 10.36956522 | DQ43: 19.58695652 | DR43: 25.34782609 | DS43: 0 | DT43: 0 | DU43: 0 | DV43: 0 | DW43: 49.98843931 | DX43: 57.59537572 | DY43: 0 | DZ43: 0 | EA43: 0 | EB43: 0 | EC43: 0 | ED43: 0 | EE43: 12.28 | EF43: 0 | EG43: 0.575 | EH43: 0 | EI43: 0 | EJ43: 0 | EK43: 0 | EL43: 1 | EM43: 0
A44: 43 | C44: 0.6837606838 | D44: 0 | E44: 2017 | F44: 8312017 | G44: Pear Tree Community Junior School | H44: Primary | I44: Recoupment Academy | J44: 1 | K44: 0 | L44: 0 | M44: 4 | N44: 0 | O44: 0 | P44: 0 | Q44: 351 | R44: 351 | S44: 0 | T44: 351 | U44: 0 | V44: 0 | W44: 0 | X44: 0 | Y44: 0 | Z44: 0 | AA44: 0 | AB44: 0 | AC44: 0 | AD44: 351 | AE44: 87.75 | AF44: 227 | AG44: 240 | AH44: 0 | AI44: 0 | AJ44: 6 | AK44: 44 | AL44: 20 | AM44: 125 | AN44: 142 | AO44: 5 | AP44: 9 | AQ44: 0 | AR44: 0 | AS44: 0 | AT44: 0 | AU44: 0 | AV44: 0 | AW44: 0 | AX44: 20 | AY44: 38 | AZ44: 114 | BA44: 0 | BB44: 0 | BC44: 0 | BD44: 1 | BE44: 147.5217391 | BF44: 147.5217391 | BG44: 0 | BH44: 0 | BI44: 0 | BJ44: 0 | BK44: 0 | BL44: 0 | BM44: 13.13484241 | BN44: 0 | BO44: 0.46 | BP44: 0 | BQ44: 0 | BR44: 0 | BS44: 0 | BT44: 1 | BU44: 0 | BW44: 144466 | BX44: 8312017 | BY44: Pear Tree Community Junior School | BZ44: Primary | CA44: Recoupment Academy | CB44: 1 | CC44: 0 | CD44: 0 | CE44: 4 | CF44: 0 | CG44: 0 | CH44: 0 | CI44: 351 | CJ44: 351 | CK44: 0 | CL44: 351 | CM44: 0 | CN44: 0 | CO44: 0 | CP44: 0 | CQ44: 0 | CR44: 0 | CS44: 0 | CT44: 0 | CU44: 0 | CV44: 351 | CW44: 87.75 | CX44: 227 | CY44: 240 | CZ44: 0 | DA44: 0 | DB44: 6 | DC44: 44 | DD44: 20 | DE44: 125 | DF44: 142 | DG44: 5 | DH44: 9 | DI44: 0 | DJ44: 0 | DK44: 0 | DL44: 0 | DM44: 0 | DN44: 0 | DO44: 0 | DP44: 20 | DQ44: 38 | DR44: 114 | DS44: 0 | DT44: 0 | DU44: 0 | DV44: 1 | DW44: 147.5217391 | DX44: 147.5217391 | DY44: 0 | DZ44: 0 | EA44: 0 | EB44: 0 | EC44: 0 | ED44: 0 | EE44: 13.13484241 | EF44: 0 | EG44: 0.46 | EH44: 0 | EI44: 0 | EJ44: 0 | EK44: 0 | EL44: 1 | EM44: 0
A45: 44 | C45: 0.4804469274 | D45: 0 | E45: 2018 | F45: 8312018 | G45: Breadsall Hill Top Primary School | H45: Primary | I45: Recoupment Academy | J45: 1 | K45: 0 | L45: 0 | M45: 7 | N45: 0 | O45: 0 | P45: 0 | Q45: 358 | R45: 358 | S45: 52 | T45: 306 | U45: 0 | V45: 0 | W45: 0 | X45: 0 | Y45: 0 | Z45: 0 | AA45: 0 | AB45: 0 | AC45: 0 | AD45: 358 | AE45: 51.14285714 | AF45: 168 | AG45: 172 | AH45: 0 | AI45: 0 | AJ45: 72.20168067 | AK45: 134.3753501 | AL45: 62.17366947 | AM45: 36.10084034 | AN45: 7.019607843 | AO45: 14.03921569 | AP45: 32.08963585 | AQ45: 0 | AR45: 0 | AS45: 0 | AT45: 0 | AU45: 0 | AV45: 0 | AW45: 0 | AX45: 5.849673203 | AY45: 9.359477124 | AZ45: 16.37908497 | BA45: 0 | BB45: 0 | BC45: 0 | BD45: 0.9649595687 | BE45: 110.5894737 | BF45: 129.3824561 | BG45: 0 | BH45: 0 | BI45: 0 | BJ45: 0 | BK45: 0 | BL45: 0 | BM45: 2.52 | BN45: 0 | BO45: 0.683 | BP45: 0 | BQ45: 0 | BR45: 0 | BS45: 0 | BT45: 1 | BU45: 0 | BW45: 144624 | BX45: 8312018 | BY45: Breadsall Hill Top Primary School | BZ45: Primary | CA45: Recoupment Academy | CB45: 1 | CC45: 0 | CD45: 0 | CE45: 7 | CF45: 0 | CG45: 0 | CH45: 0 | CI45: 358 | CJ45: 358 | CK45: 52 | CL45: 306 | CM45: 0 | CN45: 0 | CO45: 0 | CP45: 0 | CQ45: 0 | CR45: 0 | CS45: 0 | CT45: 0 | CU45: 0 | CV45: 358 | CW45: 51.14285714 | CX45: 168 | CY45: 172 | CZ45: 0 | DA45: 0 | DB45: 72.20168067 | DC45: 134.3753501 | DD45: 62.17366947 | DE45: 36.10084034 | DF45: 7.019607843 | DG45: 14.03921569 | DH45: 32.08963585 | DI45: 0 | DJ45: 0 | DK45: 0 | DL45: 0 | DM45: 0 | DN45: 0 | DO45: 0 | DP45: 5.849673203 | DQ45: 9.359477124 | DR45: 16.37908497 | DS45: 0 | DT45: 0 | DU45: 0 | DV45: 0.9649595687 | DW45: 110.5894737 | DX45: 129.3824561 | DY45: 0 | DZ45: 0 | EA45: 0 | EB45: 0 | EC45: 0 | ED45: 0 | EE45: 2.52 | EF45: 0 | EG45: 0.683 | EH45: 0 | EI45: 0 | EJ45: 0 | EK45: 0 | EL45: 1 | EM45: 0
A46: 45 | C46: 0.4064516129 | D46: 0 | E46: 2019 | F46: 8312019 | G46: Cavendish Close Junior Academy | H46: Primary | I46: Recoupment Academy | J46: 1 | K46: 0 | L46: 0 | M46: 4 | N46: 0 | O46: 0 | P46: 0 | Q46: 310 | R46: 310 | S46: 0 | T46: 310 | U46: 0 | V46: 0 | W46: 0 | X46: 0 | Y46: 0 | Z46: 0 | AA46: 0 | AB46: 0 | AC46: 0 | AD46: 310 | AE46: 77.5 | AF46: 111 | AG46: 126 | AH46: 0 | AI46: 0 | AJ46: 177 | AK46: 66 | AL46: 36 | AM46: 10 | AN46: 5 | AO46: 9 | AP46: 7 | AQ46: 0 | AR46: 0 | AS46: 0 | AT46: 0 | AU46: 0 | AV46: 0 | AW46: 0 | AX46: 0 | AY46: 1 | AZ46: 6 | BA46: 0 | BB46: 0 | BC46: 0 | BD46: 0.9904153355 | BE46: 105.8536585 | BF46: 105.8536585 | BG46: 0 | BH46: 0 | BI46: 0 | BJ46: 0 | BK46: 0 | BL46: 0 | BM46: 0 | BN46: 0 | BO46: 0.734 | BP46: 0 | BQ46: 0 | BR46: 0 | BS46: 0 | BT46: 1 | BU46: 0 | BW46: 144822 | BX46: 8312019 | BY46: Cavendish Close Junior Academy | BZ46: Primary | CA46: Recoupment Academy | CB46: 1 | CC46: 0 | CD46: 0 | CE46: 4 | CF46: 0 | CG46: 0 | CH46: 0 | CI46: 310 | CJ46: 310 | CK46: 0 | CL46: 310 | CM46: 0 | CN46: 0 | CO46: 0 | CP46: 0 | CQ46: 0 | CR46: 0 | CS46: 0 | CT46: 0 | CU46: 0 | CV46: 310 | CW46: 77.5 | CX46: 111 | CY46: 126 | CZ46: 0 | DA46: 0 | DB46: 177 | DC46: 66 | DD46: 36 | DE46: 10 | DF46: 5 | DG46: 9 | DH46: 7 | DI46: 0 | DJ46: 0 | DK46: 0 | DL46: 0 | DM46: 0 | DN46: 0 | DO46: 0 | DP46: 0 | DQ46: 1 | DR46: 6 | DS46: 0 | DT46: 0 | DU46: 0 | DV46: 0.9904153355 | DW46: 105.8536585 | DX46: 105.8536585 | DY46: 0 | DZ46: 0 | EA46: 0 | EB46: 0 | EC46: 0 | ED46: 0 | EE46: 0 | EF46: 0 | EG46: 0.734 | EH46: 0 | EI46: 0 | EJ46: 0 | EK46: 0 | EL46: 1 | EM46: 0
A47: 46 | C47: 0.4649859944 | D47: 0 | E47: 2020 | F47: 8312020 | G47: Reigate Park Primary Academy | H47: Primary | I47: Recoupment Academy | J47: 1 | K47: 0 | L47: 0 | M47: 7 | N47: 0 | O47: 0 | P47: 0 | Q47: 357 | R47: 357 | S47: 44 | T47: 313 | U47: 0 | V47: 0 | W47: 0 | X47: 0 | Y47: 0 | Z47: 0 | AA47: 0 | AB47: 0 | AC47: 0 | AD47: 357 | AE47: 51 | AF47: 155 | AG47: 166 | AH47: 0 | AI47: 0 | AJ47: 36.30508475 | AK47: 233.9661017 | AL47: 5.042372881 | AM47: 2.016949153 | AN47: 58.49152542 | AO47: 4.033898305 | AP47: 17.1440678 | AQ47: 0 | AR47: 0 | AS47: 0 | AT47: 0 | AU47: 0 | AV47: 0 | AW47: 0 | AX47: 4.562300319 | AY47: 12.54632588 | AZ47: 23.95207668 | BA47: 0 | BB47: 0 | BC47: 0 | BD47: 1.961538462 | BE47: 125.633218 | BF47: 143.2941176 | BG47: 0 | BH47: 0 | BI47: 0 | BJ47: 0 | BK47: 0 | BL47: 0 | BM47: 2.58 | BN47: 0 | BO47: 0.78 | BP47: 0 | BQ47: 0 | BR47: 0 | BS47: 0 | BT47: 1 | BU47: 0 | BW47: 145855 | BX47: 8312020 | BY47: Reigate Park Primary Academy | BZ47: Primary | CA47: Recoupment Academy | CB47: 1 | CC47: 0 | CD47: 0 | CE47: 7 | CF47: 0 | CG47: 0 | CH47: 0 | CI47: 357 | CJ47: 357 | CK47: 44 | CL47: 313 | CM47: 0 | CN47: 0 | CO47: 0 | CP47: 0 | CQ47: 0 | CR47: 0 | CS47: 0 | CT47: 0 | CU47: 0 | CV47: 357 | CW47: 51 | CX47: 155 | CY47: 166 | CZ47: 0 | DA47: 0 | DB47: 36.30508475 | DC47: 233.9661017 | DD47: 5.042372881 | DE47: 2.016949153 | DF47: 58.49152542 | DG47: 4.033898305 | DH47: 17.1440678 | DI47: 0 | DJ47: 0 | DK47: 0 | DL47: 0 | DM47: 0 | DN47: 0 | DO47: 0 | DP47: 4.562300319 | DQ47: 12.54632588 | DR47: 23.95207668 | DS47: 0 | DT47: 0 | DU47: 0 | DV47: 1.961538462 | DW47: 125.633218 | DX47: 143.2941176 | DY47: 0 | DZ47: 0 | EA47: 0 | EB47: 0 | EC47: 0 | ED47: 0 | EE47: 2.58 | EF47: 0 | EG47: 0.78 | EH47: 0 | EI47: 0 | EJ47: 0 | EK47: 0 | EL47: 1 | EM47: 0
A48: 47 | C48: 0.5684410646 | D48: 0 | E48: 2021 | F48: 8312021 | G48: Ashwood Spencer Academy | H48: Primary | I48: Recoupment Academy | J48: 1 | K48: 0 | L48: 0 | M48: 7 | N48: 0 | O48: 0 | P48: 0 | Q48: 526 | R48: 526 | S48: 67 | T48: 459 | U48: 0 | V48: 0 | W48: 0 | X48: 0 | Y48: 0 | Z48: 0 | AA48: 0 | AB48: 0 | AC48: 0 | AD48: 526 | AE48: 75.14285714 | AF48: 293 | AG48: 299 | AH48: 0 | AI48: 0 | AJ48: 15 | AK48: 10 | AL48: 12 | AM48: 15 | AN48: 22 | AO48: 145 | AP48: 307 | AQ48: 0 | AR48: 0 | AS48: 0 | AT48: 0 | AU48: 0 | AV48: 0 | AW48: 0 | AX48: 34.37908497 | AY48: 75.63398693 | AZ48: 111.1590414 | BA48: 0 | BB48: 0 | BC48: 0 | BD48: 4.952919021 | BE48: 183.375 | BF48: 210.1421569 | BG48: 0 | BH48: 0 | BI48: 0 | BJ48: 0 | BK48: 0 | BL48: 0 | BM48: 23.5447619 | BN48: 0 | BO48: 0.769 | BP48: 0 | BQ48: 0 | BR48: 0 | BS48: 0 | BT48: 1 | BU48: 0 | BW48: 146079 | BX48: 8312021 | BY48: Ashwood Spencer Academy | BZ48: Primary | CA48: Recoupment Academy | CB48: 1 | CC48: 0 | CD48: 0 | CE48: 7 | CF48: 0 | CG48: 0 | CH48: 0 | CI48: 526 | CJ48: 526 | CK48: 67 | CL48: 459 | CM48: 0 | CN48: 0 | CO48: 0 | CP48: 0 | CQ48: 0 | CR48: 0 | CS48: 0 | CT48: 0 | CU48: 0 | CV48: 526 | CW48: 75.14285714 | CX48: 293 | CY48: 299 | CZ48: 0 | DA48: 0 | DB48: 15 | DC48: 10 | DD48: 12 | DE48: 15 | DF48: 22 | DG48: 145 | DH48: 307 | DI48: 0 | DJ48: 0 | DK48: 0 | DL48: 0 | DM48: 0 | DN48: 0 | DO48: 0 | DP48: 34.37908497 | DQ48: 75.63398693 | DR48: 111.1590414 | DS48: 0 | DT48: 0 | DU48: 0 | DV48: 4.952919021 | DW48: 183.375 | DX48: 210.1421569 | DY48: 0 | DZ48: 0 | EA48: 0 | EB48: 0 | EC48: 0 | ED48: 0 | EE48: 23.5447619 | EF48: 0 | EG48: 0.769 | EH48: 0 | EI48: 0 | EJ48: 0 | EK48: 0 | EL48: 1 | EM48: 0
A49: 48 | C49: 0.4551724138 | D49: 0 | E49: 2022 | F49: 8312022 | G49: Lakeside Primary Academy | H49: Primary | I49: Recoupment Academy | J49: 1 | K49: 0 | L49: 0 | M49: 7 | N49: 0 | O49: 0 | P49: 0 | Q49: 580 | R49: 580 | S49: 74 | T49: 506 | U49: 0 | V49: 0 | W49: 0 | X49: 0 | Y49: 0 | Z49: 0 | AA49: 0 | AB49: 0 | AC49: 0 | AD49: 580 | AE49: 82.85714286 | AF49: 243 | AG49: 264 | AH49: 0 | AI49: 0 | AJ49: 116.2003454 | AK49: 131.2262522 | AL49: 118.2037997 | AM49: 4.006908463 | AN49: 86.14853195 | AO49: 86.14853195 | AP49: 38.0656304 | AQ49: 0 | AR49: 0 | AS49: 0 | AT49: 0 | AU49: 0 | AV49: 0 | AW49: 0 | AX49: 27.50988142 | AY49: 45.84980237 | AZ49: 68.77470356 | BA49: 0 | BB49: 0 | BC49: 0 | BD49: 0 | BE49: 191.7815846 | BF49: 219.8286938 | BG49: 0 | BH49: 0 | BI49: 0 | BJ49: 0 | BK49: 0 | BL49: 0 | BM49: 17.2 | BN49: 0 | BO49: 0.763 | BP49: 0 | BQ49: 0 | BR49: 0 | BS49: 0 | BT49: 1 | BU49: 0 | BW49: 146080 | BX49: 8312022 | BY49: Lakeside Primary Academy | BZ49: Primary | CA49: Recoupment Academy | CB49: 1 | CC49: 0 | CD49: 0 | CE49: 7 | CF49: 0 | CG49: 0 | CH49: 0 | CI49: 580 | CJ49: 580 | CK49: 74 | CL49: 506 | CM49: 0 | CN49: 0 | CO49: 0 | CP49: 0 | CQ49: 0 | CR49: 0 | CS49: 0 | CT49: 0 | CU49: 0 | CV49: 580 | CW49: 82.85714286 | CX49: 243 | CY49: 264 | CZ49: 0 | DA49: 0 | DB49: 116.2003454 | DC49: 131.2262522 | DD49: 118.2037997 | DE49: 4.006908463 | DF49: 86.14853195 | DG49: 86.14853195 | DH49: 38.0656304 | DI49: 0 | DJ49: 0 | DK49: 0 | DL49: 0 | DM49: 0 | DN49: 0 | DO49: 0 | DP49: 27.50988142 | DQ49: 45.84980237 | DR49: 68.77470356 | DS49: 0 | DT49: 0 | DU49: 0 | DV49: 0 | DW49: 191.7815846 | DX49: 219.8286938 | DY49: 0 | DZ49: 0 | EA49: 0 | EB49: 0 | EC49: 0 | ED49: 0 | EE49: 17.2 | EF49: 0 | EG49: 0.763 | EH49: 0 | EI49: 0 | EJ49: 0 | EK49: 0 | EL49: 1 | EM49: 0
A50: 49 | C50: 0.6421052632 | D50: 0 | E50: 2023 | F50: 8312023 | G50: Cottons Farm Primary Academy | H50: Primary | I50: Recoupment Academy | J50: 1 | K50: 0 | L50: 0 | M50: 7 | N50: 0 | O50: 0 | P50: 0 | Q50: 95 | R50: 95 | S50: 15 | T50: 80 | U50: 0 | V50: 0 | W50: 0 | X50: 0 | Y50: 0 | Z50: 0 | AA50: 0 | AB50: 0 | AC50: 0 | AD50: 95 | AE50: 13.57142857 | AF50: 59 | AG50: 61 | AH50: 0 | AI50: 0 | AJ50: 15 | AK50: 2 | AL50: 3 | AM50: 2 | AN50: 1 | AO50: 72 | AP50: 0 | AQ50: 0 | AR50: 0 | AS50: 0 | AT50: 0 | AU50: 0 | AV50: 0 | AW50: 0 | AX50: 10.6875 | AY50: 21.375 | AZ50: 29.6875 | BA50: 0 | BB50: 0 | BC50: 0 | BD50: 1.93877551 | BE50: 33.33333333 | BF50: 39.58333333 | BG50: 0 | BH50: 0 | BI50: 0 | BJ50: 0 | BK50: 0 | BL50: 0 | BM50: 10.3 | BN50: 0 | BO50: 0.68 | BP50: 0 | BQ50: 0.7316421896 | BR50: 0 | BS50: 0 | BT50: 1 | BU50: 0 | BW50: 145982 | BX50: 8312023 | BY50: Cottons Farm Primary Academy | BZ50: Primary | CA50: Recoupment Academy | CB50: 1 | CC50: 0 | CD50: 0 | CE50: 7 | CF50: 0 | CG50: 0 | CH50: 0 | CI50: 95 | CJ50: 95 | CK50: 15 | CL50: 80 | CM50: 0 | CN50: 0 | CO50: 0 | CP50: 0 | CQ50: 0 | CR50: 0 | CS50: 0 | CT50: 0 | CU50: 0 | CV50: 95 | CW50: 13.57142857 | CX50: 59 | CY50: 61 | CZ50: 0 | DA50: 0 | DB50: 15 | DC50: 2 | DD50: 3 | DE50: 2 | DF50: 1 | DG50: 72 | DH50: 0 | DI50: 0 | DJ50: 0 | DK50: 0 | DL50: 0 | DM50: 0 | DN50: 0 | DO50: 0 | DP50: 10.6875 | DQ50: 21.375 | DR50: 29.6875 | DS50: 0 | DT50: 0 | DU50: 0 | DV50: 1.93877551 | DW50: 33.33333333 | DX50: 39.58333333 | DY50: 0 | DZ50: 0 | EA50: 0 | EB50: 0 | EC50: 0 | ED50: 0 | EE50: 10.3 | EF50: 0 | EG50: 0.68 | EH50: 0 | EI50: 0.7316421896 | EJ50: 0 | EK50: 0 | EL50: 1 | EM50: 0
A51: 50 | B51: 10 | C51: 0.3024691358 | D51: 0 | E51: 2024 | F51: 8312024 | G51: Hackwood Primary Academy | H51: Primary | I51: Recoupment Academy | J51: 1 | K51: 0 | L51: 0 | M51: 7 | N51: 0 | O51: 0 | P51: 0 | Q51: 195.4166667 | R51: 195.4166667 | S51: 30 | T51: 165.4166667 | U51: 0 | V51: 0 | W51: 0 | X51: 0 | Y51: 0 | Z51: 0 | AA51: 0 | AB51: 0 | AC51: 0 | AD51: 195.4166667 | AE51: 27.91666667 | AF51: 53.07613169 | AG51: 59.10751029 | AH51: 0 | AI51: 0 | AJ51: 160.4346708 | AK51: 27.74434156 | AL51: 6.031378601 | AM51: 0 | AN51: 0 | AO51: 1.20627572 | AP51: 0 | AQ51: 0 | AR51: 0 | AS51: 0 | AT51: 0 | AU51: 0 | AV51: 0 | AW51: 0 | AX51: 8.882575758 | AY51: 14.80429293 | AZ51: 17.76515152 | BA51: 0 | BB51: 0 | BC51: 0 | BD51: 0 | BE51: 22.63596491 | BF51: 26.74122807 | BG51: 0 | BH51: 0 | BI51: 0 | BJ51: 0 | BK51: 0 | BL51: 0 | BM51: 20.84444444 | BN51: 0 | BO51: 1.153 | BP51: 0 | BQ51: 0 | BR51: 0 | BS51: 0 | BT51: 1 | BU51: 0 | BW51: 147307 | BX51: 8312024 | BY51: Hackwood Primary Academy | BZ51: Primary | CA51: Recoupment Academy | CB51: 1 | CC51: 0 | CD51: 0 | CE51: 7 | CF51: 0 | CG51: 0 | CH51: 0 | CI51: 195.4166667 | CJ51: 195.4166667 | CK51: 30 | CL51: 165.4166667 | CM51: 0 | CN51: 0 | CO51: 0 | CP51: 0 | CQ51: 0 | CR51: 0 | CS51: 0 | CT51: 0 | CU51: 0 | CV51: 195.4166667 | CW51: 27.91666667 | CX51: 53.07613169 | CY51: 59.10751029 | CZ51: 0 | DA51: 0 | DB51: 160.4346708 | DC51: 27.74434156 | DD51: 6.031378601 | DE51: 0 | DF51: 0 | DG51: 1.20627572 | DH51: 0 | DI51: 0 | DJ51: 0 | DK51: 0 | DL51: 0 | DM51: 0 | DN51: 0 | DO51: 0 | DP51: 8.882575758 | DQ51: 14.80429293 | DR51: 17.76515152 | DS51: 0 | DT51: 0 | DU51: 0 | DV51: 0 | DW51: 22.63596491 | DX51: 26.74122807 | DY51: 0 | DZ51: 0 | EA51: 0 | EB51: 0 | EC51: 0 | ED51: 0 | EE51: 20.84444444 | EF51: 0 | EG51: 1.153 | EH51: 0 | EI51: 0 | EJ51: 0 | EK51: 0 | EL51: 1 | EM51: 0
A52: 51 | C52: 0.2660098522 | D52: 0 | E52: 2025 | F52: 8312025 | G52: St Peter's Church of England Aided Junior School | H52: Primary | I52: Recoupment Academy | J52: 1 | K52: 0 | L52: 0 | M52: 4 | N52: 0 | O52: 0 | P52: 0 | Q52: 203 | R52: 203 | S52: 0 | T52: 203 | U52: 0 | V52: 0 | W52: 0 | X52: 0 | Y52: 0 | Z52: 0 | AA52: 0 | AB52: 0 | AC52: 0 | AD52: 203 | AE52: 50.75 | AF52: 47 | AG52: 54 | AH52: 0 | AI52: 0 | AJ52: 165 | AK52: 10 | AL52: 15 | AM52: 7 | AN52: 3 | AO52: 2 | AP52: 1 | AQ52: 0 | AR52: 0 | AS52: 0 | AT52: 0 | AU52: 0 | AV52: 0 | AW52: 0 | AX52: 2 | AY52: 5 | AZ52: 7 | BA52: 0 | BB52: 0 | BC52: 0 | BD52: 0 | BE52: 67.14615385 | BF52: 67.14615385 | BG52: 0 | BH52: 0 | BI52: 0 | BJ52: 0 | BK52: 0 | BL52: 0 | BM52: 1.82 | BN52: 0 | BO52: 0.824 | BP52: 0 | BQ52: 0 | BR52: 0 | BS52: 0 | BT52: 1 | BU52: 0 | BW52: 147725 | BX52: 8312025 | BY52: St Peter's Church of England Aided Junior School | BZ52: Primary | CA52: Recoupment Academy | CB52: 1 | CC52: 0 | CD52: 0 | CE52: 4 | CF52: 0 | CG52: 0 | CH52: 0 | CI52: 203 | CJ52: 203 | CK52: 0 | CL52: 203 | CM52: 0 | CN52: 0 | CO52: 0 | CP52: 0 | CQ52: 0 | CR52: 0 | CS52: 0 | CT52: 0 | CU52: 0 | CV52: 203 | CW52: 50.75 | CX52: 47 | CY52: 54 | CZ52: 0 | DA52: 0 | DB52: 165 | DC52: 10 | DD52: 15 | DE52: 7 | DF52: 3 | DG52: 2 | DH52: 1 | DI52: 0 | DJ52: 0 | DK52: 0 | DL52: 0 | DM52: 0 | DN52: 0 | DO52: 0 | DP52: 2 | DQ52: 5 | DR52: 7 | DS52: 0 | DT52: 0 | DU52: 0 | DV52: 0 | DW52: 67.14615385 | DX52: 67.14615385 | DY52: 0 | DZ52: 0 | EA52: 0 | EB52: 0 | EC52: 0 | ED52: 0 | EE52: 1.82 | EF52: 0 | EG52: 0.824 | EH52: 0 | EI52: 0 | EJ52: 0 | EK52: 0 | EL52: 1 | EM52: 0
A53: 52 | B53: 6 | C53: 0.4038004751 | D53: 0 | E53: 2026 | F53: 8312026 | G53: Brackensdale Spencer Academy | H53: Primary | I53: Recoupment Academy | J53: 1 | K53: 0 | L53: 0 | M53: 7 | N53: 0 | O53: 0 | P53: 0 | Q53: 428.5833333 | R53: 428.5833333 | S53: 67.08333333 | T53: 361.5 | U53: 0 | V53: 0 | W53: 0 | X53: 0 | Y53: 0 | Z53: 0 | AA53: 0 | AB53: 0 | AC53: 0 | AD53: 428.5833333 | AE53: 61.22619048 | AF53: 170.0081156 | AG53: 173.0621536 | AH53: 0 | AI53: 0 | AJ53: 34.61243072 | AK53: 255.5211797 | AL53: 26.46832937 | AM53: 2.036025337 | AN53: 57.00870942 | AO53: 2.036025337 | AP53: 50.90063341 | AQ53: 0 | AR53: 0 | AS53: 0 | AT53: 0 | AU53: 0 | AV53: 0 | AW53: 0 | AX53: 9.419413919 | AY53: 18.83882784 | AZ53: 27.08081502 | BA53: 0 | BB53: 0 | BC53: 0 | BD53: 0 | BE53: 167.3439898 | BF53: 198.3979113 | BG53: 0 | BH53: 0 | BI53: 0 | BJ53: 0 | BK53: 0 | BL53: 0 | BM53: 0 | BN53: 0 | BO53: 0.795 | BP53: 0 | BQ53: 0 | BR53: 0 | BS53: 0 | BT53: 1 | BU53: 0 | BW53: 148384 | BX53: 8312026 | BY53: Brackensdale Spencer Academy | BZ53: Primary | CA53: Recoupment Academy | CB53: 1 | CC53: 0 | CD53: 0 | CE53: 7 | CF53: 0 | CG53: 0 | CH53: 0 | CI53: 428.5833333 | CJ53: 428.5833333 | CK53: 67.08333333 | CL53: 361.5 | CM53: 0 | CN53: 0 | CO53: 0 | CP53: 0 | CQ53: 0 | CR53: 0 | CS53: 0 | CT53: 0 | CU53: 0 | CV53: 428.5833333 | CW53: 61.22619048 | CX53: 170.0081156 | CY53: 173.0621536 | CZ53: 0 | DA53: 0 | DB53: 34.61243072 | DC53: 255.5211797 | DD53: 26.46832937 | DE53: 2.036025337 | DF53: 57.00870942 | DG53: 2.036025337 | DH53: 50.90063341 | DI53: 0 | DJ53: 0 | DK53: 0 | DL53: 0 | DM53: 0 | DN53: 0 | DO53: 0 | DP53: 9.419413919 | DQ53: 18.83882784 | DR53: 27.08081502 | DS53: 0 | DT53: 0 | DU53: 0 | DV53: 0 | DW53: 167.3439898 | DX53: 198.3979113 | DY53: 0 | DZ53: 0 | EA53: 0 | EB53: 0 | EC53: 0 | ED53: 0 | EE53: 0 | EF53: 0 | EG53: 0.795 | EH53: 0 | EI53: 0 | EJ53: 0 | EK53: 0 | EL53: 1 | EM53: 0
A54: 53 | B54: 7 | C54: 0.6666666667 | D54: 0 | E54: 2027 | F54: 8312027 | G54: Castleward Spencer Academy | H54: Primary | I54: Recoupment Academy | J54: 1 | K54: 0 | L54: 0 | M54: 2 | N54: 0 | O54: 0 | P54: 0 | Q54: 37.5 | R54: 37.5 | S54: 20 | T54: 17.5 | U54: 0 | V54: 0 | W54: 0 | X54: 0 | Y54: 0 | Z54: 0 | AA54: 0 | AB54: 0 | AC54: 0 | AD54: 37.5 | AE54: 18.75 | AF54: 25 | AG54: 25 | AH54: 0 | AI54: 0 | AJ54: 0 | AK54: 6.25 | AL54: 25 | AM54: 0 | AN54: 6.25 | AO54: 0 | AP54: 0 | AQ54: 0 | AR54: 0 | AS54: 0 | AT54: 0 | AU54: 0 | AV54: 0 | AW54: 0 | AX54: 0 | AY54: 0 | AZ54: 0 | BA54: 0 | BB54: 0 | BC54: 0 | BD54: 0 | BE54: 0 | BF54: 0 | BG54: 0 | BH54: 0 | BI54: 0 | BJ54: 0 | BK54: 0 | BL54: 0 | BM54: 0 | BN54: 0 | BO54: 0.602 | BP54: 0 | BQ54: 0.2476635514 | BR54: 0 | BS54: 0 | BT54: 1 | BU54: 0 | BW54: 148585 | BX54: 8312027 | BY54: Castleward Spencer Academy | BZ54: Primary | CA54: Recoupment Academy | CB54: 1 | CC54: 0 | CD54: 0 | CE54: 2 | CF54: 0 | CG54: 0 | CH54: 0 | CI54: 37.5 | CJ54: 37.5 | CK54: 20 | CL54: 17.5 | CM54: 0 | CN54: 0 | CO54: 0 | CP54: 0 | CQ54: 0 | CR54: 0 | CS54: 0 | CT54: 0 | CU54: 0 | CV54: 37.5 | CW54: 18.75 | CX54: 25 | CY54: 25 | CZ54: 0 | DA54: 0 | DB54: 0 | DC54: 6.25 | DD54: 25 | DE54: 0 | DF54: 6.25 | DG54: 0 | DH54: 0 | DI54: 0 | DJ54: 0 | DK54: 0 | DL54: 0 | DM54: 0 | DN54: 0 | DO54: 0 | DP54: 0 | DQ54: 0 | DR54: 0 | DS54: 0 | DT54: 0 | DU54: 0 | DV54: 0 | DW54: 0 | DX54: 0 | DY54: 0 | DZ54: 0 | EA54: 0 | EB54: 0 | EC54: 0 | ED54: 0 | EE54: 0 | EF54: 0 | EG54: 0.602 | EH54: 0 | EI54: 0.2476635514 | EJ54: 0 | EK54: 0 | EL54: 1 | EM54: 0
A55: 54 | C55: 0.1415929204 | D55: 0 | E55: 2440 | F55: 8312440 | G55: Portway Junior School | H55: Primary | I55: Recoupment Academy | J55: 1 | K55: 0 | L55: 0 | M55: 4 | N55: 0 | O55: 0 | P55: 0 | Q55: 339 | R55: 339 | S55: 0 | T55: 339 | U55: 0 | V55: 0 | W55: 0 | X55: 0 | Y55: 0 | Z55: 0 | AA55: 0 | AB55: 0 | AC55: 0 | AD55: 339 | AE55: 84.75 | AF55: 44 | AG55: 48 | AH55: 0 | AI55: 0 | AJ55: 292 | AK55: 23 | AL55: 6 | AM55: 5 | AN55: 11 | AO55: 2 | AP55: 0 | AQ55: 0 | AR55: 0 | AS55: 0 | AT55: 0 | AU55: 0 | AV55: 0 | AW55: 0 | AX55: 0 | AY55: 0 | AZ55: 1.011940299 | BA55: 0 | BB55: 0 | BC55: 0 | BD55: 0 | BE55: 60.25053533 | BF55: 60.25053533 | BG55: 0 | BH55: 0 | BI55: 0 | BJ55: 0 | BK55: 0 | BL55: 0 | BM55: 0 | BN55: 0 | BO55: 1.004 | BP55: 0 | BQ55: 0 | BR55: 0 | BS55: 0 | BT55: 1 | BU55: 0 | BW55: 146879 | BX55: 8312440 | BY55: Portway Junior School | BZ55: Primary | CA55: Recoupment Academy | CB55: 1 | CC55: 0 | CD55: 0 | CE55: 4 | CF55: 0 | CG55: 0 | CH55: 0 | CI55: 339 | CJ55: 339 | CK55: 0 | CL55: 339 | CM55: 0 | CN55: 0 | CO55: 0 | CP55: 0 | CQ55: 0 | CR55: 0 | CS55: 0 | CT55: 0 | CU55: 0 | CV55: 339 | CW55: 84.75 | CX55: 44 | CY55: 48 | CZ55: 0 | DA55: 0 | DB55: 292 | DC55: 23 | DD55: 6 | DE55: 5 | DF55: 11 | DG55: 2 | DH55: 0 | DI55: 0 | DJ55: 0 | DK55: 0 | DL55: 0 | DM55: 0 | DN55: 0 | DO55: 0 | DP55: 0 | DQ55: 0 | DR55: 1.011940299 | DS55: 0 | DT55: 0 | DU55: 0 | DV55: 0 | DW55: 60.25053533 | DX55: 60.25053533 | DY55: 0 | DZ55: 0 | EA55: 0 | EB55: 0 | EC55: 0 | ED55: 0 | EE55: 0 | EF55: 0 | EG55: 1.004 | EH55: 0 | EI55: 0 | EJ55: 0 | EK55: 0 | EL55: 1 | EM55: 0
A56: 55 | C56: 0.3922155689 | D56: 0 | E56: 2442 | F56: 8312442 | G56: Alvaston Junior Academy | H56: Primary | I56: Recoupment Academy | J56: 1 | K56: 0 | L56: 0 | M56: 4 | N56: 0 | O56: 0 | P56: 0 | Q56: 334 | R56: 334 | S56: 0 | T56: 334 | U56: 0 | V56: 0 | W56: 0 | X56: 0 | Y56: 0 | Z56: 0 | AA56: 0 | AB56: 0 | AC56: 0 | AD56: 334 | AE56: 83.5 | AF56: 107 | AG56: 131 | AH56: 0 | AI56: 0 | AJ56: 115.6927711 | AK56: 55.3313253 | AL56: 71.42771084 | AM56: 2.012048193 | AN56: 40.24096386 | AO56: 24.14457831 | AP56: 25.15060241 | AQ56: 0 | AR56: 0 | AS56: 0 | AT56: 0 | AU56: 0 | AV56: 0 | AW56: 0 | AX56: 0 | AY56: 3 | AZ56: 15 | BA56: 0 | BB56: 0 | BC56: 0 | BD56: 0 | BE56: 74.38427948 | BF56: 74.38427948 | BG56: 0 | BH56: 0 | BI56: 0 | BJ56: 0 | BK56: 0 | BL56: 0 | BM56: 0 | BN56: 0 | BO56: 1.028 | BP56: 0 | BQ56: 0 | BR56: 0 | BS56: 0 | BT56: 1 | BU56: 0 | BW56: 145759 | BX56: 8312442 | BY56: Alvaston Junior Academy | BZ56: Primary | CA56: Recoupment Academy | CB56: 1 | CC56: 0 | CD56: 0 | CE56: 4 | CF56: 0 | CG56: 0 | CH56: 0 | CI56: 334 | CJ56: 334 | CK56: 0 | CL56: 334 | CM56: 0 | CN56: 0 | CO56: 0 | CP56: 0 | CQ56: 0 | CR56: 0 | CS56: 0 | CT56: 0 | CU56: 0 | CV56: 334 | CW56: 83.5 | CX56: 107 | CY56: 131 | CZ56: 0 | DA56: 0 | DB56: 115.6927711 | DC56: 55.3313253 | DD56: 71.42771084 | DE56: 2.012048193 | DF56: 40.24096386 | DG56: 24.14457831 | DH56: 25.15060241 | DI56: 0 | DJ56: 0 | DK56: 0 | DL56: 0 | DM56: 0 | DN56: 0 | DO56: 0 | DP56: 0 | DQ56: 3 | DR56: 15 | DS56: 0 | DT56: 0 | DU56: 0 | DV56: 0 | DW56: 74.38427948 | DX56: 74.38427948 | DY56: 0 | DZ56: 0 | EA56: 0 | EB56: 0 | EC56: 0 | ED56: 0 | EE56: 0 | EF56: 0 | EG56: 1.028 | EH56: 0 | EI56: 0 | EJ56: 0 | EK56: 0 | EL56: 1 | EM56: 0
A57: 56 | C57: 0.3235800344 | D57: 0 | E57: 2451 | F57: 8312451 | G57: Cherry Tree Hill Primary School | H57: Primary | I57: Recoupment Academy | J57: 1 | K57: 0 | L57: 0 | M57: 7 | N57: 0 | O57: 0 | P57: 0 | Q57: 581 | R57: 581 | S57: 79 | T57: 502 | U57: 0 | V57: 0 | W57: 0 | X57: 0 | Y57: 0 | Z57: 0 | AA57: 0 | AB57: 0 | AC57: 0 | AD57: 581 | AE57: 83 | AF57: 182 | AG57: 188 | AH57: 0 | AI57: 0 | AJ57: 275.4741379 | AK57: 34.05862069 | AL57: 143.2465517 | AM57: 53.09137931 | AN57: 48.08275862 | AO57: 8.013793103 | AP57: 19.03275862 | AQ57: 0 | AR57: 0 | AS57: 0 | AT57: 0 | AU57: 0 | AV57: 0 | AW57: 0 | AX57: 6.944223108 | AY57: 12.7310757 | AZ57: 19.6752988 | BA57: 0 | BB57: 0 | BC57: 0 | BD57: 0.9965694683 | BE57: 103.412 | BF57: 119.686 | BG57: 0 | BH57: 0 | BI57: 0 | BJ57: 0 | BK57: 0 | BL57: 0 | BM57: 0 | BN57: 0 | BO57: 0.563 | BP57: 0 | BQ57: 0 | BR57: 0 | BS57: 0 | BT57: 1 | BU57: 0 | BW57: 146921 | BX57: 8312451 | BY57: Cherry Tree Hill Primary School | BZ57: Primary | CA57: Recoupment Academy | CB57: 1 | CC57: 0 | CD57: 0 | CE57: 7 | CF57: 0 | CG57: 0 | CH57: 0 | CI57: 581 | CJ57: 581 | CK57: 79 | CL57: 502 | CM57: 0 | CN57: 0 | CO57: 0 | CP57: 0 | CQ57: 0 | CR57: 0 | CS57: 0 | CT57: 0 | CU57: 0 | CV57: 581 | CW57: 83 | CX57: 182 | CY57: 188 | CZ57: 0 | DA57: 0 | DB57: 275.4741379 | DC57: 34.05862069 | DD57: 143.2465517 | DE57: 53.09137931 | DF57: 48.08275862 | DG57: 8.013793103 | DH57: 19.03275862 | DI57: 0 | DJ57: 0 | DK57: 0 | DL57: 0 | DM57: 0 | DN57: 0 | DO57: 0 | DP57: 6.944223108 | DQ57: 12.7310757 | DR57: 19.6752988 | DS57: 0 | DT57: 0 | DU57: 0 | DV57: 0.9965694683 | DW57: 103.412 | DX57: 119.686 | DY57: 0 | DZ57: 0 | EA57: 0 | EB57: 0 | EC57: 0 | ED57: 0 | EE57: 0 | EF57: 0 | EG57: 0.563 | EH57: 0 | EI57: 0 | EJ57: 0 | EK57: 0 | EL57: 1 | EM57: 0
A58: 57 | C58: 0.2540716612 | D58: 0 | E58: 2455 | F58: 8312455 | G58: Chellaston Infant School | H58: Primary | I58: Recoupment Academy | J58: 1 | K58: 0 | L58: 0 | M58: 3 | N58: 0 | O58: 0 | P58: 0 | Q58: 307 | R58: 307 | S58: 86 | T58: 221 | U58: 0 | V58: 0 | W58: 0 | X58: 0 | Y58: 0 | Z58: 0 | AA58: 0 | AB58: 0 | AC58: 0 | AD58: 307 | AE58: 102.3333333 | AF58: 78 | AG58: 78 | AH58: 0 | AI58: 0 | AJ58: 240 | AK58: 52 | AL58: 0 | AM58: 1 | AN58: 3 | AO58: 6 | AP58: 5 | AQ58: 0 | AR58: 0 | AS58: 0 | AT58: 0 | AU58: 0 | AV58: 0 | AW58: 0 | AX58: 9.7239819 | AY58: 25.00452489 | AZ58: 25.00452489 | BA58: 0 | BB58: 0 | BC58: 0 | BD58: 0.9246987952 | BE58: 61.75850785 | BF58: 85.79123037 | BG58: 0 | BH58: 0 | BI58: 0 | BJ58: 0 | BK58: 0 | BL58: 0 | BM58: 0 | BN58: 0 | BO58: 1.139 | BP58: 0 | BQ58: 0 | BR58: 0 | BS58: 0 | BT58: 1 | BU58: 0 | BW58: 146507 | BX58: 8312455 | BY58: Chellaston Infant School | BZ58: Primary | CA58: Recoupment Academy | CB58: 1 | CC58: 0 | CD58: 0 | CE58: 3 | CF58: 0 | CG58: 0 | CH58: 0 | CI58: 307 | CJ58: 307 | CK58: 86 | CL58: 221 | CM58: 0 | CN58: 0 | CO58: 0 | CP58: 0 | CQ58: 0 | CR58: 0 | CS58: 0 | CT58: 0 | CU58: 0 | CV58: 307 | CW58: 102.3333333 | CX58: 78 | CY58: 78 | CZ58: 0 | DA58: 0 | DB58: 240 | DC58: 52 | DD58: 0 | DE58: 1 | DF58: 3 | DG58: 6 | DH58: 5 | DI58: 0 | DJ58: 0 | DK58: 0 | DL58: 0 | DM58: 0 | DN58: 0 | DO58: 0 | DP58: 9.7239819 | DQ58: 25.00452489 | DR58: 25.00452489 | DS58: 0 | DT58: 0 | DU58: 0 | DV58: 0.9246987952 | DW58: 61.75850785 | DX58: 85.79123037 | DY58: 0 | DZ58: 0 | EA58: 0 | EB58: 0 | EC58: 0 | ED58: 0 | EE58: 0 | EF58: 0 | EG58: 1.139 | EH58: 0 | EI58: 0 | EJ58: 0 | EK58: 0 | EL58: 1 | EM58: 0
A59: 58 | C59: 0.178343949 | D59: 0 | E59: 2456 | F59: 8312456 | G59: Carlyle Infant and Nursery Academy | H59: Primary | I59: Recoupment Academy | J59: 1 | K59: 0 | L59: 0 | M59: 3 | N59: 0 | O59: 0 | P59: 0 | Q59: 157 | R59: 157 | S59: 40 | T59: 117 | U59: 0 | V59: 0 | W59: 0 | X59: 0 | Y59: 0 | Z59: 0 | AA59: 0 | AB59: 0 | AC59: 0 | AD59: 157 | AE59: 52.33333333 | AF59: 27 | AG59: 28 | AH59: 0 | AI59: 0 | AJ59: 127 | AK59: 6 | AL59: 10 | AM59: 8 | AN59: 4 | AO59: 0 | AP59: 2 | AQ59: 0 | AR59: 0 | AS59: 0 | AT59: 0 | AU59: 0 | AV59: 0 | AW59: 0 | AX59: 32.20512821 | AY59: 44.28205128 | AZ59: 44.28205128 | BA59: 0 | BB59: 0 | BC59: 0 | BD59: 0 | BE59: 32.69568063 | BF59: 43.8736911 | BG59: 0 | BH59: 0 | BI59: 0 | BJ59: 0 | BK59: 0 | BL59: 0 | BM59: 0 | BN59: 0 | BO59: 0.925 | BP59: 0 | BQ59: 0 | BR59: 0 | BS59: 0 | BT59: 1 | BU59: 0 | BW59: 147125 | BX59: 8312456 | BY59: Carlyle Infant and Nursery Academy | BZ59: Primary | CA59: Recoupment Academy | CB59: 1 | CC59: 0 | CD59: 0 | CE59: 3 | CF59: 0 | CG59: 0 | CH59: 0 | CI59: 157 | CJ59: 157 | CK59: 40 | CL59: 117 | CM59: 0 | CN59: 0 | CO59: 0 | CP59: 0 | CQ59: 0 | CR59: 0 | CS59: 0 | CT59: 0 | CU59: 0 | CV59: 157 | CW59: 52.33333333 | CX59: 27 | CY59: 28 | CZ59: 0 | DA59: 0 | DB59: 127 | DC59: 6 | DD59: 10 | DE59: 8 | DF59: 4 | DG59: 0 | DH59: 2 | DI59: 0 | DJ59: 0 | DK59: 0 | DL59: 0 | DM59: 0 | DN59: 0 | DO59: 0 | DP59: 32.20512821 | DQ59: 44.28205128 | DR59: 44.28205128 | DS59: 0 | DT59: 0 | DU59: 0 | DV59: 0 | DW59: 32.69568063 | DX59: 43.8736911 | DY59: 0 | DZ59: 0 | EA59: 0 | EB59: 0 | EC59: 0 | ED59: 0 | EE59: 0 | EF59: 0 | EG59: 0.925 | EH59: 0 | EI59: 0 | EJ59: 0 | EK59: 0 | EL59: 1 | EM59: 0
A60: 59 | C60: 0.28125 | D60: 0 | E60: 2463 | F60: 8312463 | G60: Ravensdale Junior School | H60: Primary | I60: Recoupment Academy | J60: 1 | K60: 0 | L60: 0 | M60: 4 | N60: 0 | O60: 0 | P60: 0 | Q60: 352 | R60: 352 | S60: 0 | T60: 352 | U60: 0 | V60: 0 | W60: 0 | X60: 0 | Y60: 0 | Z60: 0 | AA60: 0 | AB60: 0 | AC60: 0 | AD60: 352 | AE60: 88 | AF60: 89 | AG60: 99 | AH60: 0 | AI60: 0 | AJ60: 250.4228571 | AK60: 40.22857143 | AL60: 28.16 | AM60: 14.08 | AN60: 10.05714286 | AO60: 2.011428571 | AP60: 7.04 | AQ60: 0 | AR60: 0 | AS60: 0 | AT60: 0 | AU60: 0 | AV60: 0 | AW60: 0 | AX60: 3 | AY60: 6 | AZ60: 19 | BA60: 0 | BB60: 0 | BC60: 0 | BD60: 0.9915492958 | BE60: 96.448 | BF60: 96.448 | BG60: 0 | BH60: 0 | BI60: 0 | BJ60: 0 | BK60: 0 | BL60: 0 | BM60: 0 | BN60: 0 | BO60: 0.867 | BP60: 0 | BQ60: 0 | BR60: 0 | BS60: 0 | BT60: 1 | BU60: 0 | BW60: 147399 | BX60: 8312463 | BY60: Ravensdale Junior School | BZ60: Primary | CA60: Recoupment Academy | CB60: 1 | CC60: 0 | CD60: 0 | CE60: 4 | CF60: 0 | CG60: 0 | CH60: 0 | CI60: 352 | CJ60: 352 | CK60: 0 | CL60: 352 | CM60: 0 | CN60: 0 | CO60: 0 | CP60: 0 | CQ60: 0 | CR60: 0 | CS60: 0 | CT60: 0 | CU60: 0 | CV60: 352 | CW60: 88 | CX60: 89 | CY60: 99 | CZ60: 0 | DA60: 0 | DB60: 250.4228571 | DC60: 40.22857143 | DD60: 28.16 | DE60: 14.08 | DF60: 10.05714286 | DG60: 2.011428571 | DH60: 7.04 | DI60: 0 | DJ60: 0 | DK60: 0 | DL60: 0 | DM60: 0 | DN60: 0 | DO60: 0 | DP60: 3 | DQ60: 6 | DR60: 19 | DS60: 0 | DT60: 0 | DU60: 0 | DV60: 0.9915492958 | DW60: 96.448 | DX60: 96.448 | DY60: 0 | DZ60: 0 | EA60: 0 | EB60: 0 | EC60: 0 | ED60: 0 | EE60: 0 | EF60: 0 | EG60: 0.867 | EH60: 0 | EI60: 0 | EJ60: 0 | EK60: 0 | EL60: 1 | EM60: 0
A61: 60 | C61: 0.3088235294 | D61: 0 | E61: 2464 | F61: 8312464 | G61: Asterdale Primary School | H61: Primary | I61: Recoupment Academy | J61: 1 | K61: 0 | L61: 0 | M61: 7 | N61: 0 | O61: 0 | P61: 0 | Q61: 204 | R61: 204 | S61: 29 | T61: 175 | U61: 0 | V61: 0 | W61: 0 | X61: 0 | Y61: 0 | Z61: 0 | AA61: 0 | AB61: 0 | AC61: 0 | AD61: 204 | AE61: 29.14285714 | AF61: 61 | AG61: 63 | AH61: 0 | AI61: 0 | AJ61: 44.43564356 | AK61: 44.43564356 | AL61: 69.68316832 | AM61: 0 | AN61: 44.43564356 | AO61: 0 | AP61: 1.00990099 | AQ61: 0 | AR61: 0 | AS61: 0 | AT61: 0 | AU61: 0 | AV61: 0 | AW61: 0 | AX61: 2.331428571 | AY61: 3.497142857 | AZ61: 5.828571429 | BA61: 0 | BB61: 0 | BC61: 0 | BD61: 1.004926108 | BE61: 46.73295455 | BF61: 54.47727273 | BG61: 0 | BH61: 0 | BI61: 0 | BJ61: 0 | BK61: 0 | BL61: 0 | BM61: 0 | BN61: 0 | BO61: 0.919 | BP61: 0 | BQ61: 0 | BR61: 0 | BS61: 0 | BT61: 1 | BU61: 0 | BW61: 146855 | BX61: 8312464 | BY61: Asterdale Primary School | BZ61: Primary | CA61: Recoupment Academy | CB61: 1 | CC61: 0 | CD61: 0 | CE61: 7 | CF61: 0 | CG61: 0 | CH61: 0 | CI61: 204 | CJ61: 204 | CK61: 29 | CL61: 175 | CM61: 0 | CN61: 0 | CO61: 0 | CP61: 0 | CQ61: 0 | CR61: 0 | CS61: 0 | CT61: 0 | CU61: 0 | CV61: 204 | CW61: 29.14285714 | CX61: 61 | CY61: 63 | CZ61: 0 | DA61: 0 | DB61: 44.43564356 | DC61: 44.43564356 | DD61: 69.68316832 | DE61: 0 | DF61: 44.43564356 | DG61: 0 | DH61: 1.00990099 | DI61: 0 | DJ61: 0 | DK61: 0 | DL61: 0 | DM61: 0 | DN61: 0 | DO61: 0 | DP61: 2.331428571 | DQ61: 3.497142857 | DR61: 5.828571429 | DS61: 0 | DT61: 0 | DU61: 0 | DV61: 1.004926108 | DW61: 46.73295455 | DX61: 54.47727273 | DY61: 0 | DZ61: 0 | EA61: 0 | EB61: 0 | EC61: 0 | ED61: 0 | EE61: 0 | EF61: 0 | EG61: 0.919 | EH61: 0 | EI61: 0 | EJ61: 0 | EK61: 0 | EL61: 1 | EM61: 0
A62: 61 | C62: 0.2711370262 | D62: 0 | E62: 2466 | F62: 8312466 | G62: Springfield Primary School | H62: Primary | I62: Recoupment Academy | J62: 1 | K62: 0 | L62: 0 | M62: 7 | N62: 0 | O62: 0 | P62: 0 | Q62: 343 | R62: 343 | S62: 47 | T62: 296 | U62: 0 | V62: 0 | W62: 0 | X62: 0 | Y62: 0 | Z62: 0 | AA62: 0 | AB62: 0 | AC62: 0 | AD62: 343 | AE62: 49 | AF62: 87 | AG62: 93 | AH62: 0 | AI62: 0 | AJ62: 169 | AK62: 78 | AL62: 36 | AM62: 6 | AN62: 39 | AO62: 3 | AP62: 12 | AQ62: 0 | AR62: 0 | AS62: 0 | AT62: 0 | AU62: 0 | AV62: 0 | AW62: 0 | AX62: 6.952702703 | AY62: 9.27027027 | AZ62: 10.42905405 | BA62: 0 | BB62: 0 | BC62: 0 | BD62: 4.170212766 | BE62: 104.8333333 | BF62: 121.4791667 | BG62: 0 | BH62: 0 | BI62: 0 | BJ62: 0 | BK62: 0 | BL62: 0 | BM62: 0 | BN62: 0 | BO62: 0.162 | BP62: 0 | BQ62: 0 | BR62: 0 | BS62: 0 | BT62: 1 | BU62: 0 | BW62: 146839 | BX62: 8312466 | BY62: Springfield Primary School | BZ62: Primary | CA62: Recoupment Academy | CB62: 1 | CC62: 0 | CD62: 0 | CE62: 7 | CF62: 0 | CG62: 0 | CH62: 0 | CI62: 343 | CJ62: 343 | CK62: 47 | CL62: 296 | CM62: 0 | CN62: 0 | CO62: 0 | CP62: 0 | CQ62: 0 | CR62: 0 | CS62: 0 | CT62: 0 | CU62: 0 | CV62: 343 | CW62: 49 | CX62: 87 | CY62: 93 | CZ62: 0 | DA62: 0 | DB62: 169 | DC62: 78 | DD62: 36 | DE62: 6 | DF62: 39 | DG62: 3 | DH62: 12 | DI62: 0 | DJ62: 0 | DK62: 0 | DL62: 0 | DM62: 0 | DN62: 0 | DO62: 0 | DP62: 6.952702703 | DQ62: 9.27027027 | DR62: 10.42905405 | DS62: 0 | DT62: 0 | DU62: 0 | DV62: 4.170212766 | DW62: 104.8333333 | DX62: 121.4791667 | DY62: 0 | DZ62: 0 | EA62: 0 | EB62: 0 | EC62: 0 | ED62: 0 | EE62: 0 | EF62: 0 | EG62: 0.162 | EH62: 0 | EI62: 0 | EJ62: 0 | EK62: 0 | EL62: 1 | EM62: 0
A63: 62 | C63: 0.3728222997 | D63: 0 | E63: 2467 | F63: 8312467 | G63: Chaddesden Park Primary School | H63: Primary | I63: Recoupment Academy | J63: 1 | K63: 0 | L63: 0 | M63: 7 | N63: 0 | O63: 0 | P63: 0 | Q63: 287 | R63: 287 | S63: 35 | T63: 252 | U63: 0 | V63: 0 | W63: 0 | X63: 0 | Y63: 0 | Z63: 0 | AA63: 0 | AB63: 0 | AC63: 0 | AD63: 287 | AE63: 41 | AF63: 102 | AG63: 107 | AH63: 0 | AI63: 0 | AJ63: 110 | AK63: 23 | AL63: 52 | AM63: 83 | AN63: 6 | AO63: 8 | AP63: 5 | AQ63: 0 | AR63: 0 | AS63: 0 | AT63: 0 | AU63: 0 | AV63: 0 | AW63: 0 | AX63: 1.138888889 | AY63: 5.694444444 | AZ63: 6.833333333 | BA63: 0 | BB63: 0 | BC63: 0 | BD63: 1.888157895 | BE63: 65.953125 | BF63: 75.11328125 | BG63: 0 | BH63: 0 | BI63: 0 | BJ63: 0 | BK63: 0 | BL63: 0 | BM63: 0 | BN63: 0 | BO63: 0.563 | BP63: 0 | BQ63: 0 | BR63: 0 | BS63: 0 | BT63: 1 | BU63: 0 | BW63: 145592 | BX63: 8312467 | BY63: Chaddesden Park Primary School | BZ63: Primary | CA63: Recoupment Academy | CB63: 1 | CC63: 0 | CD63: 0 | CE63: 7 | CF63: 0 | CG63: 0 | CH63: 0 | CI63: 287 | CJ63: 287 | CK63: 35 | CL63: 252 | CM63: 0 | CN63: 0 | CO63: 0 | CP63: 0 | CQ63: 0 | CR63: 0 | CS63: 0 | CT63: 0 | CU63: 0 | CV63: 287 | CW63: 41 | CX63: 102 | CY63: 107 | CZ63: 0 | DA63: 0 | DB63: 110 | DC63: 23 | DD63: 52 | DE63: 83 | DF63: 6 | DG63: 8 | DH63: 5 | DI63: 0 | DJ63: 0 | DK63: 0 | DL63: 0 | DM63: 0 | DN63: 0 | DO63: 0 | DP63: 1.138888889 | DQ63: 5.694444444 | DR63: 6.833333333 | DS63: 0 | DT63: 0 | DU63: 0 | DV63: 1.888157895 | DW63: 65.953125 | DX63: 75.11328125 | DY63: 0 | DZ63: 0 | EA63: 0 | EB63: 0 | EC63: 0 | ED63: 0 | EE63: 0 | EF63: 0 | EG63: 0.563 | EH63: 0 | EI63: 0 | EJ63: 0 | EK63: 0 | EL63: 1 | EM63: 0
A64: 63 | C64: 0.4770114943 | D64: 0 | E64: 2471 | F64: 8312471 | G64: Oakwood Junior School | H64: Primary | I64: Recoupment Academy | J64: 1 | K64: 0 | L64: 0 | M64: 4 | N64: 0 | O64: 0 | P64: 0 | Q64: 348 | R64: 348 | S64: 0 | T64: 348 | U64: 0 | V64: 0 | W64: 0 | X64: 0 | Y64: 0 | Z64: 0 | AA64: 0 | AB64: 0 | AC64: 0 | AD64: 348 | AE64: 87 | AF64: 153 | AG64: 166 | AH64: 0 | AI64: 0 | AJ64: 148 | AK64: 12 | AL64: 76 | AM64: 0 | AN64: 22 | AO64: 34 | AP64: 56 | AQ64: 0 | AR64: 0 | AS64: 0 | AT64: 0 | AU64: 0 | AV64: 0 | AW64: 0 | AX64: 0 | AY64: 2.005763689 | AZ64: 11.03170029 | BA64: 0 | BB64: 0 | BC64: 0 | BD64: 0 | BE64: 108.6640316 | BF64: 108.6640316 | BG64: 0 | BH64: 0 | BI64: 0 | BJ64: 0 | BK64: 0 | BL64: 0 | BM64: 0 | BN64: 0 | BO64: 0.795 | BP64: 0 | BQ64: 0 | BR64: 0 | BS64: 0 | BT64: 1 | BU64: 0 | BW64: 146938 | BX64: 8312471 | BY64: Oakwood Junior School | BZ64: Primary | CA64: Recoupment Academy | CB64: 1 | CC64: 0 | CD64: 0 | CE64: 4 | CF64: 0 | CG64: 0 | CH64: 0 | CI64: 348 | CJ64: 348 | CK64: 0 | CL64: 348 | CM64: 0 | CN64: 0 | CO64: 0 | CP64: 0 | CQ64: 0 | CR64: 0 | CS64: 0 | CT64: 0 | CU64: 0 | CV64: 348 | CW64: 87 | CX64: 153 | CY64: 166 | CZ64: 0 | DA64: 0 | DB64: 148 | DC64: 12 | DD64: 76 | DE64: 0 | DF64: 22 | DG64: 34 | DH64: 56 | DI64: 0 | DJ64: 0 | DK64: 0 | DL64: 0 | DM64: 0 | DN64: 0 | DO64: 0 | DP64: 0 | DQ64: 2.005763689 | DR64: 11.03170029 | DS64: 0 | DT64: 0 | DU64: 0 | DV64: 0 | DW64: 108.6640316 | DX64: 108.6640316 | DY64: 0 | DZ64: 0 | EA64: 0 | EB64: 0 | EC64: 0 | ED64: 0 | EE64: 0 | EF64: 0 | EG64: 0.795 | EH64: 0 | EI64: 0 | EJ64: 0 | EK64: 0 | EL64: 1 | EM64: 0
A65: 64 | C65: 0.4478527607 | D65: 0 | E65: 2509 | F65: 8312509 | G65: Ash Croft Primary Academy | H65: Primary | I65: Recoupment Academy | J65: 1 | K65: 0 | L65: 0 | M65: 7 | N65: 0 | O65: 0 | P65: 0 | Q65: 163 | R65: 163 | S65: 15 | T65: 148 | U65: 0 | V65: 0 | W65: 0 | X65: 0 | Y65: 0 | Z65: 0 | AA65: 0 | AB65: 0 | AC65: 0 | AD65: 163 | AE65: 23.28571429 | AF65: 72 | AG65: 73 | AH65: 0 | AI65: 0 | AJ65: 85 | AK65: 0 | AL65: 25 | AM65: 4 | AN65: 26 | AO65: 23 | AP65: 0 | AQ65: 0 | AR65: 0 | AS65: 0 | AT65: 0 | AU65: 0 | AV65: 0 | AW65: 0 | AX65: 23.12837838 | AY65: 29.73648649 | AZ65: 38.5472973 | BA65: 0 | BB65: 0 | BC65: 0 | BD65: 0 | BE65: 48.92561983 | BF65: 53.88429752 | BG65: 0 | BH65: 0 | BI65: 0 | BJ65: 0 | BK65: 0 | BL65: 0 | BM65: 18.22 | BN65: 0 | BO65: 0.787 | BP65: 0 | BQ65: 0 | BR65: 0 | BS65: 0 | BT65: 1 | BU65: 0 | BW65: 145806 | BX65: 8312509 | BY65: Ash Croft Primary Academy | BZ65: Primary | CA65: Recoupment Academy | CB65: 1 | CC65: 0 | CD65: 0 | CE65: 7 | CF65: 0 | CG65: 0 | CH65: 0 | CI65: 163 | CJ65: 163 | CK65: 15 | CL65: 148 | CM65: 0 | CN65: 0 | CO65: 0 | CP65: 0 | CQ65: 0 | CR65: 0 | CS65: 0 | CT65: 0 | CU65: 0 | CV65: 163 | CW65: 23.28571429 | CX65: 72 | CY65: 73 | CZ65: 0 | DA65: 0 | DB65: 85 | DC65: 0 | DD65: 25 | DE65: 4 | DF65: 26 | DG65: 23 | DH65: 0 | DI65: 0 | DJ65: 0 | DK65: 0 | DL65: 0 | DM65: 0 | DN65: 0 | DO65: 0 | DP65: 23.12837838 | DQ65: 29.73648649 | DR65: 38.5472973 | DS65: 0 | DT65: 0 | DU65: 0 | DV65: 0 | DW65: 48.92561983 | DX65: 53.88429752 | DY65: 0 | DZ65: 0 | EA65: 0 | EB65: 0 | EC65: 0 | ED65: 0 | EE65: 18.22 | EF65: 0 | EG65: 0.787 | EH65: 0 | EI65: 0 | EJ65: 0 | EK65: 0 | EL65: 1 | EM65: 0
A66: 65 | C66: 0.1168224299 | D66: 0 | E66: 2512 | F66: 8312512 | G66: Brookfield Primary School | H66: Primary | I66: Recoupment Academy | J66: 1 | K66: 0 | L66: 0 | M66: 7 | N66: 0 | O66: 0 | P66: 0 | Q66: 214 | R66: 214 | S66: 30 | T66: 184 | U66: 0 | V66: 0 | W66: 0 | X66: 0 | Y66: 0 | Z66: 0 | AA66: 0 | AB66: 0 | AC66: 0 | AD66: 214 | AE66: 30.57142857 | AF66: 24 | AG66: 25 | AH66: 0 | AI66: 0 | AJ66: 154.4433962 | AK66: 57.53773585 | AL66: 2.018867925 | AM66: 0 | AN66: 0 | AO66: 0 | AP66: 0 | AQ66: 0 | AR66: 0 | AS66: 0 | AT66: 0 | AU66: 0 | AV66: 0 | AW66: 0 | AX66: 12.79347826 | AY66: 19.77173913 | AZ66: 27.91304348 | BA66: 0 | BB66: 0 | BC66: 0 | BD66: 0 | BE66: 47.86127168 | BF66: 55.66473988 | BG66: 0 | BH66: 0 | BI66: 0 | BJ66: 0 | BK66: 0 | BL66: 0 | BM66: 0 | BN66: 0 | BO66: 1.023 | BP66: 0 | BQ66: 0 | BR66: 0 | BS66: 0 | BT66: 1 | BU66: 0 | BW66: 147119 | BX66: 8312512 | BY66: Brookfield Primary School | BZ66: Primary | CA66: Recoupment Academy | CB66: 1 | CC66: 0 | CD66: 0 | CE66: 7 | CF66: 0 | CG66: 0 | CH66: 0 | CI66: 214 | CJ66: 214 | CK66: 30 | CL66: 184 | CM66: 0 | CN66: 0 | CO66: 0 | CP66: 0 | CQ66: 0 | CR66: 0 | CS66: 0 | CT66: 0 | CU66: 0 | CV66: 214 | CW66: 30.57142857 | CX66: 24 | CY66: 25 | CZ66: 0 | DA66: 0 | DB66: 154.4433962 | DC66: 57.53773585 | DD66: 2.018867925 | DE66: 0 | DF66: 0 | DG66: 0 | DH66: 0 | DI66: 0 | DJ66: 0 | DK66: 0 | DL66: 0 | DM66: 0 | DN66: 0 | DO66: 0 | DP66: 12.79347826 | DQ66: 19.77173913 | DR66: 27.91304348 | DS66: 0 | DT66: 0 | DU66: 0 | DV66: 0 | DW66: 47.86127168 | DX66: 55.66473988 | DY66: 0 | DZ66: 0 | EA66: 0 | EB66: 0 | EC66: 0 | ED66: 0 | EE66: 0 | EF66: 0 | EG66: 1.023 | EH66: 0 | EI66: 0 | EJ66: 0 | EK66: 0 | EL66: 1 | EM66: 0
A67: 66 | C67: 0.07511737089 | D67: 0 | E67: 2522 | F67: 8312522 | G67: Lawn Primary School | H67: Primary | I67: Recoupment Academy | J67: 1 | K67: 0 | L67: 0 | M67: 7 | N67: 0 | O67: 0 | P67: 0 | Q67: 426 | R67: 426 | S67: 60 | T67: 366 | U67: 0 | V67: 0 | W67: 0 | X67: 0 | Y67: 0 | Z67: 0 | AA67: 0 | AB67: 0 | AC67: 0 | AD67: 426 | AE67: 60.85714286 | AF67: 27 | AG67: 32 | AH67: 0 | AI67: 0 | AJ67: 366 | AK67: 33 | AL67: 9 | AM67: 3 | AN67: 10 | AO67: 1 | AP67: 4 | AQ67: 0 | AR67: 0 | AS67: 0 | AT67: 0 | AU67: 0 | AV67: 0 | AW67: 0 | AX67: 4.655737705 | AY67: 11.63934426 | AZ67: 18.62295082 | BA67: 0 | BB67: 0 | BC67: 0 | BD67: 0.9861111111 | BE67: 83.36666667 | BF67: 97.03333333 | BG67: 0 | BH67: 0 | BI67: 0 | BJ67: 0 | BK67: 0 | BL67: 0 | BM67: 0 | BN67: 0 | BO67: 0.923 | BP67: 0 | BQ67: 0 | BR67: 0 | BS67: 0 | BT67: 1 | BU67: 0 | BW67: 147624 | BX67: 8312522 | BY67: Lawn Primary School | BZ67: Primary | CA67: Recoupment Academy | CB67: 1 | CC67: 0 | CD67: 0 | CE67: 7 | CF67: 0 | CG67: 0 | CH67: 0 | CI67: 426 | CJ67: 426 | CK67: 60 | CL67: 366 | CM67: 0 | CN67: 0 | CO67: 0 | CP67: 0 | CQ67: 0 | CR67: 0 | CS67: 0 | CT67: 0 | CU67: 0 | CV67: 426 | CW67: 60.85714286 | CX67: 27 | CY67: 32 | CZ67: 0 | DA67: 0 | DB67: 366 | DC67: 33 | DD67: 9 | DE67: 3 | DF67: 10 | DG67: 1 | DH67: 4 | DI67: 0 | DJ67: 0 | DK67: 0 | DL67: 0 | DM67: 0 | DN67: 0 | DO67: 0 | DP67: 4.655737705 | DQ67: 11.63934426 | DR67: 18.62295082 | DS67: 0 | DT67: 0 | DU67: 0 | DV67: 0.9861111111 | DW67: 83.36666667 | DX67: 97.03333333 | DY67: 0 | DZ67: 0 | EA67: 0 | EB67: 0 | EC67: 0 | ED67: 0 | EE67: 0 | EF67: 0 | EG67: 0.923 | EH67: 0 | EI67: 0 | EJ67: 0 | EK67: 0 | EL67: 1 | EM67: 0
A68: 67 | C68: 0.3980952381 | D68: 0 | E68: 2629 | F68: 8312629 | G68: Arboretum Primary School | H68: Primary | I68: Recoupment Academy | J68: 1 | K68: 0 | L68: 0 | M68: 7 | N68: 0 | O68: 0 | P68: 0 | Q68: 525 | R68: 525 | S68: 75 | T68: 450 | U68: 0 | V68: 0 | W68: 0 | X68: 0 | Y68: 0 | Z68: 0 | AA68: 0 | AB68: 0 | AC68: 0 | AD68: 525 | AE68: 75 | AF68: 201 | AG68: 209 | AH68: 0 | AI68: 0 | AJ68: 22 | AK68: 58 | AL68: 23 | AM68: 238 | AN68: 170 | AO68: 10 | AP68: 4 | AQ68: 0 | AR68: 0 | AS68: 0 | AT68: 0 | AU68: 0 | AV68: 0 | AW68: 0 | AX68: 73.5 | AY68: 152.8333333 | AZ68: 224 | BA68: 0 | BB68: 0 | BC68: 0 | BD68: 0 | BE68: 170.1492537 | BF68: 198.5074627 | BG68: 0 | BH68: 0 | BI68: 0 | BJ68: 0 | BK68: 0 | BL68: 0 | BM68: 0 | BN68: 0 | BO68: 0.383 | BP68: 0 | BQ68: 0 | BR68: 0 | BS68: 0 | BT68: 1 | BU68: 0 | BW68: 146715 | BX68: 8312629 | BY68: Arboretum Primary School | BZ68: Primary | CA68: Recoupment Academy | CB68: 1 | CC68: 0 | CD68: 0 | CE68: 7 | CF68: 0 | CG68: 0 | CH68: 0 | CI68: 525 | CJ68: 525 | CK68: 75 | CL68: 450 | CM68: 0 | CN68: 0 | CO68: 0 | CP68: 0 | CQ68: 0 | CR68: 0 | CS68: 0 | CT68: 0 | CU68: 0 | CV68: 525 | CW68: 75 | CX68: 201 | CY68: 209 | CZ68: 0 | DA68: 0 | DB68: 22 | DC68: 58 | DD68: 23 | DE68: 238 | DF68: 170 | DG68: 10 | DH68: 4 | DI68: 0 | DJ68: 0 | DK68: 0 | DL68: 0 | DM68: 0 | DN68: 0 | DO68: 0 | DP68: 73.5 | DQ68: 152.8333333 | DR68: 224 | DS68: 0 | DT68: 0 | DU68: 0 | DV68: 0 | DW68: 170.1492537 | DX68: 198.5074627 | DY68: 0 | DZ68: 0 | EA68: 0 | EB68: 0 | EC68: 0 | ED68: 0 | EE68: 0 | EF68: 0 | EG68: 0.383 | EH68: 0 | EI68: 0 | EJ68: 0 | EK68: 0 | EL68: 1 | EM68: 0
A69: 68 | C69: 0.4693877551 | D69: 0 | E69: 3158 | F69: 8313158 | G69: Derby St Chad's CofE Nursery and Infant School | H69: Primary | I69: Recoupment Academy | J69: 1 | K69: 0 | L69: 0 | M69: 3 | N69: 0 | O69: 0 | P69: 0 | Q69: 98 | R69: 98 | S69: 24 | T69: 74 | U69: 0 | V69: 0 | W69: 0 | X69: 0 | Y69: 0 | Z69: 0 | AA69: 0 | AB69: 0 | AC69: 0 | AD69: 98 | AE69: 32.66666667 | AF69: 46 | AG69: 46 | AH69: 0 | AI69: 0 | AJ69: 6 | AK69: 0 | AL69: 16 | AM69: 52 | AN69: 23 | AO69: 1 | AP69: 0 | AQ69: 0 | AR69: 0 | AS69: 0 | AT69: 0 | AU69: 0 | AV69: 0 | AW69: 0 | AX69: 60.91891892 | AY69: 92.7027027 | AZ69: 92.7027027 | BA69: 0 | BB69: 0 | BC69: 0 | BD69: 0 | BE69: 20.67931937 | BF69: 27.38612565 | BG69: 0 | BH69: 0 | BI69: 0 | BJ69: 0 | BK69: 0 | BL69: 0 | BM69: 0 | BN69: 0 | BO69: 0.253 | BP69: 0 | BQ69: 0 | BR69: 0 | BS69: 0 | BT69: 1 | BU69: 0 | BW69: 146575 | BX69: 8313158 | BY69: Derby St Chad's CofE Nursery and Infant School | BZ69: Primary | CA69: Recoupment Academy | CB69: 1 | CC69: 0 | CD69: 0 | CE69: 3 | CF69: 0 | CG69: 0 | CH69: 0 | CI69: 98 | CJ69: 98 | CK69: 24 | CL69: 74 | CM69: 0 | CN69: 0 | CO69: 0 | CP69: 0 | CQ69: 0 | CR69: 0 | CS69: 0 | CT69: 0 | CU69: 0 | CV69: 98 | CW69: 32.66666667 | CX69: 46 | CY69: 46 | CZ69: 0 | DA69: 0 | DB69: 6 | DC69: 0 | DD69: 16 | DE69: 52 | DF69: 23 | DG69: 1 | DH69: 0 | DI69: 0 | DJ69: 0 | DK69: 0 | DL69: 0 | DM69: 0 | DN69: 0 | DO69: 0 | DP69: 60.91891892 | DQ69: 92.7027027 | DR69: 92.7027027 | DS69: 0 | DT69: 0 | DU69: 0 | DV69: 0 | DW69: 20.67931937 | DX69: 27.38612565 | DY69: 0 | DZ69: 0 | EA69: 0 | EB69: 0 | EC69: 0 | ED69: 0 | EE69: 0 | EF69: 0 | EG69: 0.253 | EH69: 0 | EI69: 0 | EJ69: 0 | EK69: 0 | EL69: 1 | EM69: 0
A70: 69 | C70: 0.286163522 | D70: 0 | E70: 3528 | F70: 8313528 | G70: St Mary's Catholic Voluntary Academy | H70: Primary | I70: Recoupment Academy | J70: 1 | K70: 0 | L70: 0 | M70: 7 | N70: 0 | O70: 0 | P70: 0 | Q70: 318 | R70: 318 | S70: 52 | T70: 266 | U70: 0 | V70: 0 | W70: 0 | X70: 0 | Y70: 0 | Z70: 0 | AA70: 0 | AB70: 0 | AC70: 0 | AD70: 318 | AE70: 45.42857143 | AF70: 84 | AG70: 91 | AH70: 0 | AI70: 0 | AJ70: 120 | AK70: 81 | AL70: 40 | AM70: 18 | AN70: 21 | AO70: 13 | AP70: 25 | AQ70: 0 | AR70: 0 | AS70: 0 | AT70: 0 | AU70: 0 | AV70: 0 | AW70: 0 | AX70: 16.86363636 | AY70: 38.54545455 | AZ70: 56.61363636 | BA70: 0 | BB70: 0 | BC70: 0 | BD70: 2.064935065 | BE70: 91.80530973 | BF70: 109.7522124 | BG70: 0 | BH70: 0 | BI70: 0 | BJ70: 0 | BK70: 0 | BL70: 0 | BM70: 5.92 | BN70: 0 | BO70: 0.753 | BP70: 0 | BQ70: 0 | BR70: 0 | BS70: 0 | BT70: 1 | BU70: 0 | BW70: 146140 | BX70: 8313528 | BY70: St Mary's Catholic Voluntary Academy | BZ70: Primary | CA70: Recoupment Academy | CB70: 1 | CC70: 0 | CD70: 0 | CE70: 7 | CF70: 0 | CG70: 0 | CH70: 0 | CI70: 318 | CJ70: 318 | CK70: 52 | CL70: 266 | CM70: 0 | CN70: 0 | CO70: 0 | CP70: 0 | CQ70: 0 | CR70: 0 | CS70: 0 | CT70: 0 | CU70: 0 | CV70: 318 | CW70: 45.42857143 | CX70: 84 | CY70: 91 | CZ70: 0 | DA70: 0 | DB70: 120 | DC70: 81 | DD70: 40 | DE70: 18 | DF70: 21 | DG70: 13 | DH70: 25 | DI70: 0 | DJ70: 0 | DK70: 0 | DL70: 0 | DM70: 0 | DN70: 0 | DO70: 0 | DP70: 16.86363636 | DQ70: 38.54545455 | DR70: 56.61363636 | DS70: 0 | DT70: 0 | DU70: 0 | DV70: 2.064935065 | DW70: 91.80530973 | DX70: 109.7522124 | DY70: 0 | DZ70: 0 | EA70: 0 | EB70: 0 | EC70: 0 | ED70: 0 | EE70: 5.92 | EF70: 0 | EG70: 0.753 | EH70: 0 | EI70: 0 | EJ70: 0 | EK70: 0 | EL70: 1 | EM70: 0
A71: 70 | C71: 0.05035971223 | D71: 0 | E71: 3530 | F71: 8313530 | G71: Walter Evans Church of England Aided Primary School | H71: Primary | I71: Recoupment Academy | J71: 1 | K71: 0 | L71: 0 | M71: 7 | N71: 0 | O71: 0 | P71: 0 | Q71: 417 | R71: 417 | S71: 60 | T71: 357 | U71: 0 | V71: 0 | W71: 0 | X71: 0 | Y71: 0 | Z71: 0 | AA71: 0 | AB71: 0 | AC71: 0 | AD71: 417 | AE71: 59.57142857 | AF71: 18 | AG71: 21 | AH71: 0 | AI71: 0 | AJ71: 391.9399038 | AK71: 9.021634615 | AL71: 6.014423077 | AM71: 2.004807692 | AN71: 5.012019231 | AO71: 1.002403846 | AP71: 2.004807692 | AQ71: 0 | AR71: 0 | AS71: 0 | AT71: 0 | AU71: 0 | AV71: 0 | AW71: 0 | AX71: 3.504201681 | AY71: 3.504201681 | AZ71: 4.672268908 | BA71: 0 | BB71: 0 | BC71: 0 | BD71: 1.012135922 | BE71: 47.95522388 | BF71: 56.01492537 | BG71: 0 | BH71: 0 | BI71: 0 | BJ71: 0 | BK71: 0 | BL71: 0 | BM71: 0 | BN71: 0 | BO71: 1.07 | BP71: 0 | BQ71: 0 | BR71: 0 | BS71: 0 | BT71: 1 | BU71: 0 | BW71: 142752 | BX71: 8313530 | BY71: Walter Evans Church of England Aided Primary School | BZ71: Primary | CA71: Recoupment Academy | CB71: 1 | CC71: 0 | CD71: 0 | CE71: 7 | CF71: 0 | CG71: 0 | CH71: 0 | CI71: 417 | CJ71: 417 | CK71: 60 | CL71: 357 | CM71: 0 | CN71: 0 | CO71: 0 | CP71: 0 | CQ71: 0 | CR71: 0 | CS71: 0 | CT71: 0 | CU71: 0 | CV71: 417 | CW71: 59.57142857 | CX71: 18 | CY71: 21 | CZ71: 0 | DA71: 0 | DB71: 391.9399038 | DC71: 9.021634615 | DD71: 6.014423077 | DE71: 2.004807692 | DF71: 5.012019231 | DG71: 1.002403846 | DH71: 2.004807692 | DI71: 0 | DJ71: 0 | DK71: 0 | DL71: 0 | DM71: 0 | DN71: 0 | DO71: 0 | DP71: 3.504201681 | DQ71: 3.504201681 | DR71: 4.672268908 | DS71: 0 | DT71: 0 | DU71: 0 | DV71: 1.012135922 | DW71: 47.95522388 | DX71: 56.01492537 | DY71: 0 | DZ71: 0 | EA71: 0 | EB71: 0 | EC71: 0 | ED71: 0 | EE71: 0 | EF71: 0 | EG71: 1.07 | EH71: 0 | EI71: 0 | EJ71: 0 | EK71: 0 | EL71: 1 | EM71: 0
A72: 71 | C72: 0.2307692308 | D72: 0 | E72: 3531 | F72: 8313531 | G72: St George's Catholic Voluntary Academy | H72: Primary | I72: Recoupment Academy | J72: 1 | K72: 0 | L72: 0 | M72: 7 | N72: 0 | O72: 0 | P72: 0 | Q72: 338 | R72: 338 | S72: 45 | T72: 293 | U72: 0 | V72: 0 | W72: 0 | X72: 0 | Y72: 0 | Z72: 0 | AA72: 0 | AB72: 0 | AC72: 0 | AD72: 338 | AE72: 48.28571429 | AF72: 77 | AG72: 78 | AH72: 0 | AI72: 0 | AJ72: 188.5578635 | AK72: 1.002967359 | AL72: 53.15727003 | AM72: 13.03857567 | AN72: 22.0652819 | AO72: 53.15727003 | AP72: 7.020771513 | AQ72: 0 | AR72: 0 | AS72: 0 | AT72: 0 | AU72: 0 | AV72: 0 | AW72: 0 | AX72: 23.15068493 | AY72: 53.24657534 | AZ72: 87.97260274 | BA72: 0 | BB72: 0 | BC72: 0 | BD72: 0.9768786127 | BE72: 70.93684211 | BF72: 81.83157895 | BG72: 0 | BH72: 0 | BI72: 0 | BJ72: 0 | BK72: 0 | BL72: 0 | BM72: 0 | BN72: 0 | BO72: 0.666 | BP72: 0 | BQ72: 0 | BR72: 0 | BS72: 0 | BT72: 1 | BU72: 0 | BW72: 138666 | BX72: 8313531 | BY72: St George's Catholic Voluntary Academy | BZ72: Primary | CA72: Recoupment Academy | CB72: 1 | CC72: 0 | CD72: 0 | CE72: 7 | CF72: 0 | CG72: 0 | CH72: 0 | CI72: 338 | CJ72: 338 | CK72: 45 | CL72: 293 | CM72: 0 | CN72: 0 | CO72: 0 | CP72: 0 | CQ72: 0 | CR72: 0 | CS72: 0 | CT72: 0 | CU72: 0 | CV72: 338 | CW72: 48.28571429 | CX72: 77 | CY72: 78 | CZ72: 0 | DA72: 0 | DB72: 188.5578635 | DC72: 1.002967359 | DD72: 53.15727003 | DE72: 13.03857567 | DF72: 22.0652819 | DG72: 53.15727003 | DH72: 7.020771513 | DI72: 0 | DJ72: 0 | DK72: 0 | DL72: 0 | DM72: 0 | DN72: 0 | DO72: 0 | DP72: 23.15068493 | DQ72: 53.24657534 | DR72: 87.97260274 | DS72: 0 | DT72: 0 | DU72: 0 | DV72: 0.9768786127 | DW72: 70.93684211 | DX72: 81.83157895 | DY72: 0 | DZ72: 0 | EA72: 0 | EB72: 0 | EC72: 0 | ED72: 0 | EE72: 0 | EF72: 0 | EG72: 0.666 | EH72: 0 | EI72: 0 | EJ72: 0 | EK72: 0 | EL72: 1 | EM72: 0
A73: 72 | C73: 0.1378205128 | D73: 0 | E73: 3532 | F73: 8313532 | G73: St Werburgh's CofE Primary School | H73: Primary | I73: Recoupment Academy | J73: 1 | K73: 0 | L73: 0 | M73: 7 | N73: 0 | O73: 0 | P73: 0 | Q73: 312 | R73: 312 | S73: 45 | T73: 267 | U73: 0 | V73: 0 | W73: 0 | X73: 0 | Y73: 0 | Z73: 0 | AA73: 0 | AB73: 0 | AC73: 0 | AD73: 312 | AE73: 44.57142857 | AF73: 40 | AG73: 43 | AH73: 0 | AI73: 0 | AJ73: 214 | AK73: 55 | AL73: 17 | AM73: 6 | AN73: 15 | AO73: 4 | AP73: 1 | AQ73: 0 | AR73: 0 | AS73: 0 | AT73: 0 | AU73: 0 | AV73: 0 | AW73: 0 | AX73: 3.505617978 | AY73: 3.505617978 | AZ73: 7.011235955 | BA73: 0 | BB73: 0 | BC73: 0 | BD73: 0 | BE73: 59.56153846 | BF73: 69.6 | BG73: 0 | BH73: 0 | BI73: 0 | BJ73: 0 | BK73: 0 | BL73: 0 | BM73: 0 | BN73: 0 | BO73: 0.669 | BP73: 0 | BQ73: 0 | BR73: 0 | BS73: 0 | BT73: 1 | BU73: 0 | BW73: 147490 | BX73: 8313532 | BY73: St Werburgh's CofE Primary School | BZ73: Primary | CA73: Recoupment Academy | CB73: 1 | CC73: 0 | CD73: 0 | CE73: 7 | CF73: 0 | CG73: 0 | CH73: 0 | CI73: 312 | CJ73: 312 | CK73: 45 | CL73: 267 | CM73: 0 | CN73: 0 | CO73: 0 | CP73: 0 | CQ73: 0 | CR73: 0 | CS73: 0 | CT73: 0 | CU73: 0 | CV73: 312 | CW73: 44.57142857 | CX73: 40 | CY73: 43 | CZ73: 0 | DA73: 0 | DB73: 214 | DC73: 55 | DD73: 17 | DE73: 6 | DF73: 15 | DG73: 4 | DH73: 1 | DI73: 0 | DJ73: 0 | DK73: 0 | DL73: 0 | DM73: 0 | DN73: 0 | DO73: 0 | DP73: 3.505617978 | DQ73: 3.505617978 | DR73: 7.011235955 | DS73: 0 | DT73: 0 | DU73: 0 | DV73: 0 | DW73: 59.56153846 | DX73: 69.6 | DY73: 0 | DZ73: 0 | EA73: 0 | EB73: 0 | EC73: 0 | ED73: 0 | EE73: 0 | EF73: 0 | EG73: 0.669 | EH73: 0 | EI73: 0 | EJ73: 0 | EK73: 0 | EL73: 1 | EM73: 0
A74: 73 | C74: 0.5053380783 | D74: 0 | E74: 3535 | F74: 8313535 | G74: St James' Church of England Aided Junior School | H74: Primary | I74: Recoupment Academy | J74: 1 | K74: 0 | L74: 0 | M74: 4 | N74: 0 | O74: 0 | P74: 0 | Q74: 281 | R74: 281 | S74: 0 | T74: 281 | U74: 0 | V74: 0 | W74: 0 | X74: 0 | Y74: 0 | Z74: 0 | AA74: 0 | AB74: 0 | AC74: 0 | AD74: 281 | AE74: 70.25 | AF74: 134 | AG74: 142 | AH74: 0 | AI74: 0 | AJ74: 10 | AK74: 46 | AL74: 30 | AM74: 105 | AN74: 50 | AO74: 7 | AP74: 33 | AQ74: 0 | AR74: 0 | AS74: 0 | AT74: 0 | AU74: 0 | AV74: 0 | AW74: 0 | AX74: 14.10035842 | AY74: 25.17921147 | AZ74: 88.63082437 | BA74: 0 | BB74: 0 | BC74: 0 | BD74: 2.93728223 | BE74: 109.0086207 | BF74: 109.0086207 | BG74: 0 | BH74: 0 | BI74: 0 | BJ74: 0 | BK74: 0 | BL74: 0 | BM74: 0 | BN74: 0 | BO74: 0.504 | BP74: 0 | BQ74: 0 | BR74: 0 | BS74: 0 | BT74: 1 | BU74: 0 | BW74: 148368 | BX74: 8313535 | BY74: St James' Church of England Aided Junior School | BZ74: Primary | CA74: Recoupment Academy | CB74: 1 | CC74: 0 | CD74: 0 | CE74: 4 | CF74: 0 | CG74: 0 | CH74: 0 | CI74: 281 | CJ74: 281 | CK74: 0 | CL74: 281 | CM74: 0 | CN74: 0 | CO74: 0 | CP74: 0 | CQ74: 0 | CR74: 0 | CS74: 0 | CT74: 0 | CU74: 0 | CV74: 281 | CW74: 70.25 | CX74: 134 | CY74: 142 | CZ74: 0 | DA74: 0 | DB74: 10 | DC74: 46 | DD74: 30 | DE74: 105 | DF74: 50 | DG74: 7 | DH74: 33 | DI74: 0 | DJ74: 0 | DK74: 0 | DL74: 0 | DM74: 0 | DN74: 0 | DO74: 0 | DP74: 14.10035842 | DQ74: 25.17921147 | DR74: 88.63082437 | DS74: 0 | DT74: 0 | DU74: 0 | DV74: 2.93728223 | DW74: 109.0086207 | DX74: 109.0086207 | DY74: 0 | DZ74: 0 | EA74: 0 | EB74: 0 | EC74: 0 | ED74: 0 | EE74: 0 | EF74: 0 | EG74: 0.504 | EH74: 0 | EI74: 0 | EJ74: 0 | EK74: 0 | EL74: 1 | EM74: 0
A75: 74 | C75: 0.2245989305 | D75: 0 | E75: 3542 | F75: 8313542 | G75: St Joseph's Catholic Voluntary Academy | H75: Primary | I75: Recoupment Academy | J75: 1 | K75: 0 | L75: 0 | M75: 7 | N75: 0 | O75: 0 | P75: 0 | Q75: 374 | R75: 374 | S75: 48 | T75: 326 | U75: 0 | V75: 0 | W75: 0 | X75: 0 | Y75: 0 | Z75: 0 | AA75: 0 | AB75: 0 | AC75: 0 | AD75: 374 | AE75: 53.42857143 | AF75: 78 | AG75: 84 | AH75: 0 | AI75: 0 | AJ75: 86.230563 | AK75: 30.08042895 | AL75: 99.26541555 | AM75: 51.13672922 | AN75: 47.12600536 | AO75: 36.09651475 | AP75: 24.06434316 | AQ75: 0 | AR75: 0 | AS75: 0 | AT75: 0 | AU75: 0 | AV75: 0 | AW75: 0 | AX75: 49.33128834 | AY75: 91.7791411 | AZ75: 139.9631902 | BA75: 0 | BB75: 0 | BC75: 0 | BD75: 0.9894179894 | BE75: 71.3125 | BF75: 81.8125 | BG75: 0 | BH75: 0 | BI75: 0 | BJ75: 0 | BK75: 0 | BL75: 0 | BM75: 0 | BN75: 0 | BO75: 0.391 | BP75: 0 | BQ75: 0 | BR75: 0 | BS75: 0 | BT75: 1 | BU75: 0 | BW75: 146104 | BX75: 8313542 | BY75: St Joseph's Catholic Voluntary Academy | BZ75: Primary | CA75: Recoupment Academy | CB75: 1 | CC75: 0 | CD75: 0 | CE75: 7 | CF75: 0 | CG75: 0 | CH75: 0 | CI75: 374 | CJ75: 374 | CK75: 48 | CL75: 326 | CM75: 0 | CN75: 0 | CO75: 0 | CP75: 0 | CQ75: 0 | CR75: 0 | CS75: 0 | CT75: 0 | CU75: 0 | CV75: 374 | CW75: 53.42857143 | CX75: 78 | CY75: 84 | CZ75: 0 | DA75: 0 | DB75: 86.230563 | DC75: 30.08042895 | DD75: 99.26541555 | DE75: 51.13672922 | DF75: 47.12600536 | DG75: 36.09651475 | DH75: 24.06434316 | DI75: 0 | DJ75: 0 | DK75: 0 | DL75: 0 | DM75: 0 | DN75: 0 | DO75: 0 | DP75: 49.33128834 | DQ75: 91.7791411 | DR75: 139.9631902 | DS75: 0 | DT75: 0 | DU75: 0 | DV75: 0.9894179894 | DW75: 71.3125 | DX75: 81.8125 | DY75: 0 | DZ75: 0 | EA75: 0 | EB75: 0 | EC75: 0 | ED75: 0 | EE75: 0 | EF75: 0 | EG75: 0.391 | EH75: 0 | EI75: 0 | EJ75: 0 | EK75: 0 | EL75: 1 | EM75: 0
A76: 75 | C76: 0.1485148515 | D76: 0 | E76: 3543 | F76: 8313543 | G76: St Alban's Catholic Voluntary Academy | H76: Primary | I76: Recoupment Academy | J76: 1 | K76: 0 | L76: 0 | M76: 7 | N76: 0 | O76: 0 | P76: 0 | Q76: 303 | R76: 303 | S76: 40 | T76: 263 | U76: 0 | V76: 0 | W76: 0 | X76: 0 | Y76: 0 | Z76: 0 | AA76: 0 | AB76: 0 | AC76: 0 | AD76: 303 | AE76: 43.28571429 | AF76: 42 | AG76: 45 | AH76: 0 | AI76: 0 | AJ76: 149 | AK76: 59 | AL76: 22 | AM76: 17 | AN76: 8 | AO76: 24 | AP76: 24 | AQ76: 0 | AR76: 0 | AS76: 0 | AT76: 0 | AU76: 0 | AV76: 0 | AW76: 0 | AX76: 9.216730038 | AY76: 21.88973384 | AZ76: 34.56273764 | BA76: 0 | BB76: 0 | BC76: 0 | BD76: 1.013377926 | BE76: 62.95752896 | BF76: 72.53281853 | BG76: 0 | BH76: 0 | BI76: 0 | BJ76: 0 | BK76: 0 | BL76: 0 | BM76: 0 | BN76: 0 | BO76: 0.762 | BP76: 0 | BQ76: 0 | BR76: 0 | BS76: 0 | BT76: 1 | BU76: 0 | BW76: 146253 | BX76: 8313543 | BY76: St Alban's Catholic Voluntary Academy | BZ76: Primary | CA76: Recoupment Academy | CB76: 1 | CC76: 0 | CD76: 0 | CE76: 7 | CF76: 0 | CG76: 0 | CH76: 0 | CI76: 303 | CJ76: 303 | CK76: 40 | CL76: 263 | CM76: 0 | CN76: 0 | CO76: 0 | CP76: 0 | CQ76: 0 | CR76: 0 | CS76: 0 | CT76: 0 | CU76: 0 | CV76: 303 | CW76: 43.28571429 | CX76: 42 | CY76: 45 | CZ76: 0 | DA76: 0 | DB76: 149 | DC76: 59 | DD76: 22 | DE76: 17 | DF76: 8 | DG76: 24 | DH76: 24 | DI76: 0 | DJ76: 0 | DK76: 0 | DL76: 0 | DM76: 0 | DN76: 0 | DO76: 0 | DP76: 9.216730038 | DQ76: 21.88973384 | DR76: 34.56273764 | DS76: 0 | DT76: 0 | DU76: 0 | DV76: 1.013377926 | DW76: 62.95752896 | DX76: 72.53281853 | DY76: 0 | DZ76: 0 | EA76: 0 | EB76: 0 | EC76: 0 | ED76: 0 | EE76: 0 | EF76: 0 | EG76: 0.762 | EH76: 0 | EI76: 0 | EJ76: 0 | EK76: 0 | EL76: 1 | EM76: 0
A77: 76 | C77: 0.4703703704 | D77: 0 | E77: 3544 | F77: 8313544 | G77: Hardwick Primary School | H77: Primary | I77: Recoupment Academy | J77: 1 | K77: 0 | L77: 0 | M77: 7 | N77: 0 | O77: 0 | P77: 0 | Q77: 540 | R77: 540 | S77: 60 | T77: 480 | U77: 0 | V77: 0 | W77: 0 | X77: 0 | Y77: 0 | Z77: 0 | AA77: 0 | AB77: 0 | AC77: 0 | AD77: 540 | AE77: 77.14285714 | AF77: 244 | AG77: 254 | AH77: 0 | AI77: 0 | AJ77: 20 | AK77: 15 | AL77: 47 | AM77: 252 | AN77: 205 | AO77: 1 | AP77: 0 | AQ77: 0 | AR77: 0 | AS77: 0 | AT77: 0 | AU77: 0 | AV77: 0 | AW77: 0 | AX77: 86.625 | AY77: 149.625 | AZ77: 258.75 | BA77: 0 | BB77: 0 | BC77: 0 | BD77: 0 | BE77: 210.4697987 | BF77: 236.7785235 | BG77: 0 | BH77: 0 | BI77: 0 | BJ77: 0 | BK77: 0 | BL77: 0 | BM77: 2.6 | BN77: 0 | BO77: 0.354 | BP77: 0 | BQ77: 0 | BR77: 0 | BS77: 0 | BT77: 1 | BU77: 0 | BW77: 143875 | BX77: 8313544 | BY77: Hardwick Primary School | BZ77: Primary | CA77: Recoupment Academy | CB77: 1 | CC77: 0 | CD77: 0 | CE77: 7 | CF77: 0 | CG77: 0 | CH77: 0 | CI77: 540 | CJ77: 540 | CK77: 60 | CL77: 480 | CM77: 0 | CN77: 0 | CO77: 0 | CP77: 0 | CQ77: 0 | CR77: 0 | CS77: 0 | CT77: 0 | CU77: 0 | CV77: 540 | CW77: 77.14285714 | CX77: 244 | CY77: 254 | CZ77: 0 | DA77: 0 | DB77: 20 | DC77: 15 | DD77: 47 | DE77: 252 | DF77: 205 | DG77: 1 | DH77: 0 | DI77: 0 | DJ77: 0 | DK77: 0 | DL77: 0 | DM77: 0 | DN77: 0 | DO77: 0 | DP77: 86.625 | DQ77: 149.625 | DR77: 258.75 | DS77: 0 | DT77: 0 | DU77: 0 | DV77: 0 | DW77: 210.4697987 | DX77: 236.7785235 | DY77: 0 | DZ77: 0 | EA77: 0 | EB77: 0 | EC77: 0 | ED77: 0 | EE77: 2.6 | EF77: 0 | EG77: 0.354 | EH77: 0 | EI77: 0 | EJ77: 0 | EK77: 0 | EL77: 1 | EM77: 0
A78: 77 | C78: 0.4674267101 | D78: 0 | E78: 3546 | F78: 8313546 | G78: Village Primary Academy | H78: Primary | I78: Recoupment Academy | J78: 1 | K78: 0 | L78: 0 | M78: 7 | N78: 0 | O78: 0 | P78: 0 | Q78: 614 | R78: 614 | S78: 88 | T78: 526 | U78: 0 | V78: 0 | W78: 0 | X78: 0 | Y78: 0 | Z78: 0 | AA78: 0 | AB78: 0 | AC78: 0 | AD78: 614 | AE78: 87.71428571 | AF78: 276 | AG78: 287 | AH78: 0 | AI78: 0 | AJ78: 120 | AK78: 5 | AL78: 150 | AM78: 155 | AN78: 16 | AO78: 156 | AP78: 12 | AQ78: 0 | AR78: 0 | AS78: 0 | AT78: 0 | AU78: 0 | AV78: 0 | AW78: 0 | AX78: 82.878327 | AY78: 154.0836502 | AZ78: 213.6159696 | BA78: 0 | BB78: 0 | BC78: 0 | BD78: 0.9824 | BE78: 183.7172557 | BF78: 214.4532225 | BG78: 0 | BH78: 0 | BI78: 0 | BJ78: 0 | BK78: 0 | BL78: 0 | BM78: 0 | BN78: 0 | BO78: 0.528 | BP78: 0 | BQ78: 0 | BR78: 0 | BS78: 0 | BT78: 1 | BU78: 0 | BW78: 145760 | BX78: 8313546 | BY78: Village Primary Academy | BZ78: Primary | CA78: Recoupment Academy | CB78: 1 | CC78: 0 | CD78: 0 | CE78: 7 | CF78: 0 | CG78: 0 | CH78: 0 | CI78: 614 | CJ78: 614 | CK78: 88 | CL78: 526 | CM78: 0 | CN78: 0 | CO78: 0 | CP78: 0 | CQ78: 0 | CR78: 0 | CS78: 0 | CT78: 0 | CU78: 0 | CV78: 614 | CW78: 87.71428571 | CX78: 276 | CY78: 287 | CZ78: 0 | DA78: 0 | DB78: 120 | DC78: 5 | DD78: 150 | DE78: 155 | DF78: 16 | DG78: 156 | DH78: 12 | DI78: 0 | DJ78: 0 | DK78: 0 | DL78: 0 | DM78: 0 | DN78: 0 | DO78: 0 | DP78: 82.878327 | DQ78: 154.0836502 | DR78: 213.6159696 | DS78: 0 | DT78: 0 | DU78: 0 | DV78: 0.9824 | DW78: 183.7172557 | DX78: 214.4532225 | DY78: 0 | DZ78: 0 | EA78: 0 | EB78: 0 | EC78: 0 | ED78: 0 | EE78: 0 | EF78: 0 | EG78: 0.528 | EH78: 0 | EI78: 0 | EJ78: 0 | EK78: 0 | EL78: 1 | EM78: 0
A79: 78 | C79: 0.3187660668 | D79: 0 | E79: 4000 | F79: 8314000 | G79: Zaytouna Primary School | H79: Primary | I79: Recoupment Academy | J79: 1 | K79: 0 | L79: 0 | M79: 7 | N79: 0 | O79: 0 | P79: 0 | Q79: 389 | R79: 389 | S79: 54 | T79: 335 | U79: 0 | V79: 0 | W79: 0 | X79: 0 | Y79: 0 | Z79: 0 | AA79: 0 | AB79: 0 | AC79: 0 | AD79: 389 | AE79: 55.57142857 | AF79: 121 | AG79: 124 | AH79: 0 | AI79: 0 | AJ79: 85.43927649 | AK79: 38.19638243 | AL79: 60.31007752 | AM79: 70.36175711 | AN79: 73.37726098 | AO79: 38.19638243 | AP79: 23.11886305 | AQ79: 0 | AR79: 0 | AS79: 0 | AT79: 0 | AU79: 0 | AV79: 0 | AW79: 0 | AX79: 60.38208955 | AY79: 123.0865672 | AZ79: 167.2119403 | BA79: 0 | BB79: 0 | BC79: 0 | BD79: 0 | BE79: 99.68858131 | BF79: 115.7577855 | BG79: 0 | BH79: 0 | BI79: 0 | BJ79: 0 | BK79: 0 | BL79: 0 | BM79: 12.66 | BN79: 0 | BO79: 0.538 | BP79: 0 | BQ79: 0 | BR79: 0 | BS79: 0 | BT79: 1 | BU79: 0 | BW79: 138776 | BX79: 8314000 | BY79: Zaytouna Primary School | BZ79: Primary | CA79: Recoupment Academy | CB79: 1 | CC79: 0 | CD79: 0 | CE79: 7 | CF79: 0 | CG79: 0 | CH79: 0 | CI79: 389 | CJ79: 389 | CK79: 54 | CL79: 335 | CM79: 0 | CN79: 0 | CO79: 0 | CP79: 0 | CQ79: 0 | CR79: 0 | CS79: 0 | CT79: 0 | CU79: 0 | CV79: 389 | CW79: 55.57142857 | CX79: 121 | CY79: 124 | CZ79: 0 | DA79: 0 | DB79: 85.43927649 | DC79: 38.19638243 | DD79: 60.31007752 | DE79: 70.36175711 | DF79: 73.37726098 | DG79: 38.19638243 | DH79: 23.11886305 | DI79: 0 | DJ79: 0 | DK79: 0 | DL79: 0 | DM79: 0 | DN79: 0 | DO79: 0 | DP79: 60.38208955 | DQ79: 123.0865672 | DR79: 167.2119403 | DS79: 0 | DT79: 0 | DU79: 0 | DV79: 0 | DW79: 99.68858131 | DX79: 115.7577855 | DY79: 0 | DZ79: 0 | EA79: 0 | EB79: 0 | EC79: 0 | ED79: 0 | EE79: 12.66 | EF79: 0 | EG79: 0.538 | EH79: 0 | EI79: 0 | EJ79: 0 | EK79: 0 | EL79: 1 | EM79: 0
A80: 79 | C80: 0.2082018927 | D80: 0 | E80: 5201 | F80: 8315201 | G80: Borrow Wood Primary School | H80: Primary | I80: Recoupment Academy | J80: 1 | K80: 0 | L80: 0 | M80: 7 | N80: 0 | O80: 0 | P80: 0 | Q80: 317 | R80: 317 | S80: 32 | T80: 285 | U80: 0 | V80: 0 | W80: 0 | X80: 0 | Y80: 0 | Z80: 0 | AA80: 0 | AB80: 0 | AC80: 0 | AD80: 317 | AE80: 45.28571429 | AF80: 61 | AG80: 66 | AH80: 0 | AI80: 0 | AJ80: 224 | AK80: 25 | AL80: 24 | AM80: 2 | AN80: 42 | AO80: 0 | AP80: 0 | AQ80: 0 | AR80: 0 | AS80: 0 | AT80: 0 | AU80: 0 | AV80: 0 | AW80: 0 | AX80: 1.112280702 | AY80: 2.224561404 | AZ80: 6.673684211 | BA80: 0 | BB80: 0 | BC80: 0 | BD80: 4.832317073 | BE80: 62.46575342 | BF80: 69.47945205 | BG80: 0 | BH80: 0 | BI80: 0 | BJ80: 0 | BK80: 0 | BL80: 0 | BM80: 1.98 | BN80: 0 | BO80: 0.899 | BP80: 0 | BQ80: 0 | BR80: 0 | BS80: 0 | BT80: 1 | BU80: 0 | BW80: 146847 | BX80: 8315201 | BY80: Borrow Wood Primary School | BZ80: Primary | CA80: Recoupment Academy | CB80: 1 | CC80: 0 | CD80: 0 | CE80: 7 | CF80: 0 | CG80: 0 | CH80: 0 | CI80: 317 | CJ80: 317 | CK80: 32 | CL80: 285 | CM80: 0 | CN80: 0 | CO80: 0 | CP80: 0 | CQ80: 0 | CR80: 0 | CS80: 0 | CT80: 0 | CU80: 0 | CV80: 317 | CW80: 45.28571429 | CX80: 61 | CY80: 66 | CZ80: 0 | DA80: 0 | DB80: 224 | DC80: 25 | DD80: 24 | DE80: 2 | DF80: 42 | DG80: 0 | DH80: 0 | DI80: 0 | DJ80: 0 | DK80: 0 | DL80: 0 | DM80: 0 | DN80: 0 | DO80: 0 | DP80: 1.112280702 | DQ80: 2.224561404 | DR80: 6.673684211 | DS80: 0 | DT80: 0 | DU80: 0 | DV80: 4.832317073 | DW80: 62.46575342 | DX80: 69.47945205 | DY80: 0 | DZ80: 0 | EA80: 0 | EB80: 0 | EC80: 0 | ED80: 0 | EE80: 1.98 | EF80: 0 | EG80: 0.899 | EH80: 0 | EI80: 0 | EJ80: 0 | EK80: 0 | EL80: 1 | EM80: 0
A81: 80 | C81: 0.2775590551 | D81: 0 | E81: 5203 | F81: 8315203 | G81: Chellaston Junior School | H81: Primary | I81: Recoupment Academy | J81: 1 | K81: 0 | L81: 0 | M81: 4 | N81: 0 | O81: 0 | P81: 0 | Q81: 508 | R81: 508 | S81: 0 | T81: 508 | U81: 0 | V81: 0 | W81: 0 | X81: 0 | Y81: 0 | Z81: 0 | AA81: 0 | AB81: 0 | AC81: 0 | AD81: 508 | AE81: 127 | AF81: 122 | AG81: 141 | AH81: 0 | AI81: 0 | AJ81: 398 | AK81: 91 | AL81: 2 | AM81: 0 | AN81: 2 | AO81: 10 | AP81: 5 | AQ81: 0 | AR81: 0 | AS81: 0 | AT81: 0 | AU81: 0 | AV81: 0 | AW81: 0 | AX81: 2 | AY81: 5 | AZ81: 13 | BA81: 0 | BB81: 0 | BC81: 0 | BD81: 0.9980353635 | BE81: 117.6054795 | BF81: 117.6054795 | BG81: 0 | BH81: 0 | BI81: 0 | BJ81: 0 | BK81: 0 | BL81: 0 | BM81: 0 | BN81: 0 | BO81: 0.915 | BP81: 0 | BQ81: 0 | BR81: 0 | BS81: 0 | BT81: 1 | BU81: 0 | BW81: 146500 | BX81: 8315203 | BY81: Chellaston Junior School | BZ81: Primary | CA81: Recoupment Academy | CB81: 1 | CC81: 0 | CD81: 0 | CE81: 4 | CF81: 0 | CG81: 0 | CH81: 0 | CI81: 508 | CJ81: 508 | CK81: 0 | CL81: 508 | CM81: 0 | CN81: 0 | CO81: 0 | CP81: 0 | CQ81: 0 | CR81: 0 | CS81: 0 | CT81: 0 | CU81: 0 | CV81: 508 | CW81: 127 | CX81: 122 | CY81: 141 | CZ81: 0 | DA81: 0 | DB81: 398 | DC81: 91 | DD81: 2 | DE81: 0 | DF81: 2 | DG81: 10 | DH81: 5 | DI81: 0 | DJ81: 0 | DK81: 0 | DL81: 0 | DM81: 0 | DN81: 0 | DO81: 0 | DP81: 2 | DQ81: 5 | DR81: 13 | DS81: 0 | DT81: 0 | DU81: 0 | DV81: 0.9980353635 | DW81: 117.6054795 | DX81: 117.6054795 | DY81: 0 | DZ81: 0 | EA81: 0 | EB81: 0 | EC81: 0 | ED81: 0 | EE81: 0 | EF81: 0 | EG81: 0.915 | EH81: 0 | EI81: 0 | EJ81: 0 | EK81: 0 | EL81: 1 | EM81: 0
A82: 81 | B82: 8 | C82: 0 | D82: 0.40472879 | E82: 4004 | F82: 8314004 | G82: Derby Cathedral School | H82: Secondary | I82: Recoupment Academy | J82: 1 | K82: 0 | L82: 0 | M82: 0 | N82: 5 | O82: 3 | P82: 2 | Q82: 824 | R82: 0 | S82: 0 | T82: 0 | U82: 824 | V82: 547.3333333 | W82: 276.6666667 | X82: 181.6666667 | Y82: 184.4166667 | Z82: 181.25 | AA82: 175.1666667 | AB82: 101.5 | AC82: 0 | AD82: 824 | AE82: 164.8 | AF82: 0 | AG82: 0 | AH82: 270.4645341 | AI82: 333.4965229 | AJ82: 0 | AK82: 0 | AL82: 0 | AM82: 0 | AN82: 0 | AO82: 0 | AP82: 0 | AQ82: 196.2451253 | AR82: 76.8913649 | AS82: 173.2924791 | AT82: 66.56267409 | AU82: 109.0250696 | AV82: 110.1727019 | AW82: 91.81058496 | AX82: 0 | AY82: 0 | AZ82: 0 | BA82: 9.181058496 | BB82: 10.32869081 | BC82: 13.77158774 | BD82: 3.163147793 | BE82: 0 | BF82: 0 | BG82: 58.39285714 | BH82: 59.27678571 | BI82: 58.25892857 | BJ82: 63.98303393 | BK82: 0 | BL82: 154.2056118 | BM82: 0 | BN82: 0 | BO82: 0 | BP82: 1.563 | BQ82: 0 | BR82: 0 | BS82: 0 | BT82: 0 | BU82: 1 | BW82: 143734 | BX82: 8314004 | BY82: Derby Cathedral School | BZ82: Secondary | CA82: Recoupment Academy | CB82: 1 | CC82: 0 | CD82: 0 | CE82: 0 | CF82: 5 | CG82: 3 | CH82: 2 | CI82: 824 | CJ82: 0 | CK82: 0 | CL82: 0 | CM82: 824 | CN82: 547.3333333 | CO82: 276.6666667 | CP82: 181.6666667 | CQ82: 184.4166667 | CR82: 181.25 | CS82: 175.1666667 | CT82: 101.5 | CU82: 0 | CV82: 824 | CW82: 164.8 | CX82: 0 | CY82: 0 | CZ82: 270.4645341 | DA82: 333.4965229 | DB82: 0 | DC82: 0 | DD82: 0 | DE82: 0 | DF82: 0 | DG82: 0 | DH82: 0 | DI82: 196.2451253 | DJ82: 76.8913649 | DK82: 173.2924791 | DL82: 66.56267409 | DM82: 109.0250696 | DN82: 110.1727019 | DO82: 91.81058496 | DP82: 0 | DQ82: 0 | DR82: 0 | DS82: 9.181058496 | DT82: 10.32869081 | DU82: 13.77158774 | DV82: 3.163147793 | DW82: 0 | DX82: 0 | DY82: 58.39285714 | DZ82: 59.27678571 | EA82: 58.25892857 | EB82: 63.98303393 | EC82: 0 | ED82: 154.2056118 | EE82: 0 | EF82: 0 | EG82: 0 | EH82: 1.563 | EI82: 0 | EJ82: 0 | EK82: 0 | EL82: 0 | EM82: 1
A83: 82 | C83: 0 | D83: 0.4411214953 | E83: 4005 | F83: 8314005 | G83: Noel-Baker Academy | H83: Secondary | I83: Recoupment Academy | J83: 1 | K83: 0 | L83: 0 | M83: 0 | N83: 5 | O83: 3 | P83: 2 | Q83: 1070 | R83: 0 | S83: 0 | T83: 0 | U83: 1070 | V83: 659 | W83: 411 | X83: 271 | Y83: 245 | Z83: 143 | AA83: 200 | AB83: 211 | AC83: 0 | AD83: 1070 | AE83: 214 | AF83: 0 | AG83: 0 | AH83: 358 | AI83: 472 | AJ83: 0 | AK83: 0 | AL83: 0 | AM83: 0 | AN83: 0 | AO83: 0 | AP83: 0 | AQ83: 314.2937325 | AR83: 128.1197381 | AS83: 151.1412535 | AT83: 4.003741815 | AU83: 144.1347053 | AV83: 188.1758653 | AW83: 140.1309635 | AX83: 0 | AY83: 0 | AZ83: 0 | BA83: 8.014981273 | BB83: 11.02059925 | BC83: 15.02808989 | BD83: 2.08984375 | BE83: 0 | BF83: 0 | BG83: 116.7080292 | BH83: 105.5109489 | BI83: 61.58394161 | BJ83: 88.7755102 | BK83: 88.25480769 | BL83: 290.8061233 | BM83: 0 | BN83: 0 | BO83: 0 | BP83: 1.157 | BQ83: 0 | BR83: 0 | BS83: 0 | BT83: 0 | BU83: 1 | BW83: 143853 | BX83: 8314005 | BY83: Noel-Baker Academy | BZ83: Secondary | CA83: Recoupment Academy | CB83: 1 | CC83: 0 | CD83: 0 | CE83: 0 | CF83: 5 | CG83: 3 | CH83: 2 | CI83: 1070 | CJ83: 0 | CK83: 0 | CL83: 0 | CM83: 1070 | CN83: 659 | CO83: 411 | CP83: 271 | CQ83: 245 | CR83: 143 | CS83: 200 | CT83: 211 | CU83: 0 | CV83: 1070 | CW83: 214 | CX83: 0 | CY83: 0 | CZ83: 358 | DA83: 472 | DB83: 0 | DC83: 0 | DD83: 0 | DE83: 0 | DF83: 0 | DG83: 0 | DH83: 0 | DI83: 314.2937325 | DJ83: 128.1197381 | DK83: 151.1412535 | DL83: 4.003741815 | DM83: 144.1347053 | DN83: 188.1758653 | DO83: 140.1309635 | DP83: 0 | DQ83: 0 | DR83: 0 | DS83: 8.014981273 | DT83: 11.02059925 | DU83: 15.02808989 | DV83: 2.08984375 | DW83: 0 | DX83: 0 | DY83: 116.7080292 | DZ83: 105.5109489 | EA83: 61.58394161 | EB83: 88.7755102 | EC83: 88.25480769 | ED83: 290.8061233 | EE83: 0 | EF83: 0 | EG83: 0 | EH83: 1.157 | EI83: 0 | EJ83: 0 | EK83: 0 | EL83: 0 | EM83: 1
A84: 83 | C84: 0 | D84: 0.2985645933 | E84: 4006 | F84: 8314006 | G84: Lees Brook Community School | H84: Secondary | I84: Recoupment Academy | J84: 1 | K84: 0 | L84: 0 | M84: 0 | N84: 5 | O84: 3 | P84: 2 | Q84: 1045 | R84: 0 | S84: 0 | T84: 0 | U84: 1045 | V84: 629 | W84: 416 | X84: 187 | Y84: 222 | Z84: 220 | AA84: 209 | AB84: 207 | AC84: 0 | AD84: 1045 | AE84: 209 | AF84: 0 | AG84: 0 | AH84: 236 | AI84: 312 | AJ84: 0 | AK84: 0 | AL84: 0 | AM84: 0 | AN84: 0 | AO84: 0 | AP84: 0 | AQ84: 582 | AR84: 156 | AS84: 103 | AT84: 73 | AU84: 13 | AV84: 46 | AW84: 72 | AX84: 0 | AY84: 0 | AZ84: 0 | BA84: 4.011516315 | BB84: 6.017274472 | BC84: 6.017274472 | BD84: 1.975425331 | BE84: 0 | BF84: 0 | BG84: 66.05045872 | BH84: 78.41284404 | BI84: 77.70642202 | BJ84: 90.73658537 | BK84: 96.45549738 | BL84: 257.0430725 | BM84: 0 | BN84: 0 | BO84: 0 | BP84: 1.587 | BQ84: 0 | BR84: 0 | BS84: 0 | BT84: 0 | BU84: 1 | BW84: 143934 | BX84: 8314006 | BY84: Lees Brook Community School | BZ84: Secondary | CA84: Recoupment Academy | CB84: 1 | CC84: 0 | CD84: 0 | CE84: 0 | CF84: 5 | CG84: 3 | CH84: 2 | CI84: 1045 | CJ84: 0 | CK84: 0 | CL84: 0 | CM84: 1045 | CN84: 629 | CO84: 416 | CP84: 187 | CQ84: 222 | CR84: 220 | CS84: 209 | CT84: 207 | CU84: 0 | CV84: 1045 | CW84: 209 | CX84: 0 | CY84: 0 | CZ84: 236 | DA84: 312 | DB84: 0 | DC84: 0 | DD84: 0 | DE84: 0 | DF84: 0 | DG84: 0 | DH84: 0 | DI84: 582 | DJ84: 156 | DK84: 103 | DL84: 73 | DM84: 13 | DN84: 46 | DO84: 72 | DP84: 0 | DQ84: 0 | DR84: 0 | DS84: 4.011516315 | DT84: 6.017274472 | DU84: 6.017274472 | DV84: 1.975425331 | DW84: 0 | DX84: 0 | DY84: 66.05045872 | DZ84: 78.41284404 | EA84: 77.70642202 | EB84: 90.73658537 | EC84: 96.45549738 | ED84: 257.0430725 | EE84: 0 | EF84: 0 | EG84: 0 | EH84: 1.587 | EI84: 0 | EJ84: 0 | EK84: 0 | EL84: 0 | EM84: 1
A85: 84 | C85: 0 | D85: 0.5688073394 | E85: 4007 | F85: 8314007 | G85: Da Vinci Academy | H85: Secondary | I85: Recoupment Academy | J85: 1 | K85: 0 | L85: 0 | M85: 0 | N85: 5 | O85: 3 | P85: 2 | Q85: 654 | R85: 0 | S85: 0 | T85: 0 | U85: 654 | V85: 418 | W85: 236 | X85: 133 | Y85: 142 | Z85: 143 | AA85: 135 | AB85: 101 | AC85: 0 | AD85: 654 | AE85: 130.8 | AF85: 0 | AG85: 0 | AH85: 299 | AI85: 372 | AJ85: 0 | AK85: 0 | AL85: 0 | AM85: 0 | AN85: 0 | AO85: 0 | AP85: 0 | AQ85: 69 | AR85: 163 | AS85: 81 | AT85: 50 | AU85: 7 | AV85: 94 | AW85: 190 | AX85: 0 | AY85: 0 | AZ85: 0 | BA85: 4 | BB85: 7 | BC85: 12 | BD85: 1.958083832 | BE85: 0 | BF85: 0 | BG85: 67.91489362 | BH85: 72.5106383 | BI85: 73.0212766 | BJ85: 73.25581395 | BK85: 53.72340426 | BL85: 215.4951682 | BM85: 0 | BN85: 0.76 | BO85: 0 | BP85: 1.465 | BQ85: 0 | BR85: 0 | BS85: 0 | BT85: 0 | BU85: 1 | BW85: 144066 | BX85: 8314007 | BY85: Da Vinci Academy | BZ85: Secondary | CA85: Recoupment Academy | CB85: 1 | CC85: 0 | CD85: 0 | CE85: 0 | CF85: 5 | CG85: 3 | CH85: 2 | CI85: 654 | CJ85: 0 | CK85: 0 | CL85: 0 | CM85: 654 | CN85: 418 | CO85: 236 | CP85: 133 | CQ85: 142 | CR85: 143 | CS85: 135 | CT85: 101 | CU85: 0 | CV85: 654 | CW85: 130.8 | CX85: 0 | CY85: 0 | CZ85: 299 | DA85: 372 | DB85: 0 | DC85: 0 | DD85: 0 | DE85: 0 | DF85: 0 | DG85: 0 | DH85: 0 | DI85: 69 | DJ85: 163 | DK85: 81 | DL85: 50 | DM85: 7 | DN85: 94 | DO85: 190 | DP85: 0 | DQ85: 0 | DR85: 0 | DS85: 4 | DT85: 7 | DU85: 12 | DV85: 1.958083832 | DW85: 0 | DX85: 0 | DY85: 67.91489362 | DZ85: 72.5106383 | EA85: 73.0212766 | EB85: 73.25581395 | EC85: 53.72340426 | ED85: 215.4951682 | EE85: 0 | EF85: 0.76 | EG85: 0 | EH85: 1.465 | EI85: 0 | EJ85: 0 | EK85: 0 | EL85: 0 | EM85: 1
A86: 85 | C86: 0 | D86: 0.4854771784 | E86: 4008 | F86: 8314008 | G86: City of Derby Academy | H86: Secondary | I86: Recoupment Academy | J86: 1 | K86: 0 | L86: 0 | M86: 0 | N86: 5 | O86: 3 | P86: 2 | Q86: 964 | R86: 0 | S86: 0 | T86: 0 | U86: 964 | V86: 595 | W86: 369 | X86: 206 | Y86: 201 | Z86: 188 | AA86: 172 | AB86: 197 | AC86: 0 | AD86: 964 | AE86: 192.8 | AF86: 0 | AG86: 0 | AH86: 369 | AI86: 468 | AJ86: 0 | AK86: 0 | AL86: 0 | AM86: 0 | AN86: 0 | AO86: 0 | AP86: 0 | AQ86: 228.7117586 | AR86: 53.16545265 | AS86: 137.4276795 | AT86: 159.496358 | AU86: 195.6087409 | AV86: 169.5275754 | AW86: 20.06243496 | AX86: 0 | AY86: 0 | AZ86: 0 | BA86: 43.54201681 | BB86: 62.78151261 | BC86: 107.3361345 | BD86: 3 | BE86: 0 | BF86: 0 | BG86: 109.4375 | BH86: 106.78125 | BI86: 99.875 | BJ86: 103.4324324 | BK86: 120.3888889 | BL86: 339.6145089 | BM86: 0 | BN86: 23.24411215 | BO86: 0 | BP86: 2.248 | BQ86: 0 | BR86: 0 | BS86: 0 | BT86: 0 | BU86: 1 | BW86: 145132 | BX86: 8314008 | BY86: City of Derby Academy | BZ86: Secondary | CA86: Recoupment Academy | CB86: 1 | CC86: 0 | CD86: 0 | CE86: 0 | CF86: 5 | CG86: 3 | CH86: 2 | CI86: 964 | CJ86: 0 | CK86: 0 | CL86: 0 | CM86: 964 | CN86: 595 | CO86: 369 | CP86: 206 | CQ86: 201 | CR86: 188 | CS86: 172 | CT86: 197 | CU86: 0 | CV86: 964 | CW86: 192.8 | CX86: 0 | CY86: 0 | CZ86: 369 | DA86: 468 | DB86: 0 | DC86: 0 | DD86: 0 | DE86: 0 | DF86: 0 | DG86: 0 | DH86: 0 | DI86: 228.7117586 | DJ86: 53.16545265 | DK86: 137.4276795 | DL86: 159.496358 | DM86: 195.6087409 | DN86: 169.5275754 | DO86: 20.06243496 | DP86: 0 | DQ86: 0 | DR86: 0 | DS86: 43.54201681 | DT86: 62.78151261 | DU86: 107.3361345 | DV86: 3 | DW86: 0 | DX86: 0 | DY86: 109.4375 | DZ86: 106.78125 | EA86: 99.875 | EB86: 103.4324324 | EC86: 120.3888889 | ED86: 339.6145089 | EE86: 0 | EF86: 23.24411215 | EG86: 0 | EH86: 2.248 | EI86: 0 | EJ86: 0 | EK86: 0 | EL86: 0 | EM86: 1
A87: 86 | C87: 0 | D87: 0.4812030075 | E87: 4010 | F87: 8314010 | G87: UTC Derby Pride Park | H87: Secondary | I87: Recoupment Academy | J87: 1 | K87: 0 | L87: 0 | M87: 0 | N87: 3 | O87: 1 | P87: 2 | Q87: 133 | R87: 0 | S87: 0 | T87: 0 | U87: 133 | V87: 74 | W87: 59 | X87: 0 | Y87: 0 | Z87: 74 | AA87: 43 | AB87: 16 | AC87: 0 | AD87: 133 | AE87: 44.33333333 | AF87: 0 | AG87: 0 | AH87: 46 | AI87: 64 | AJ87: 0 | AK87: 0 | AL87: 0 | AM87: 0 | AN87: 0 | AO87: 0 | AP87: 0 | AQ87: 47 | AR87: 14 | AS87: 20 | AT87: 9 | AU87: 15 | AV87: 16 | AW87: 12 | AX87: 0 | AY87: 0 | AZ87: 0 | BA87: 0 | BB87: 0 | BC87: 1.773333333 | BD87: 0 | BE87: 0 | BF87: 0 | BG87: 0 | BH87: 0 | BI87: 38.60869565 | BJ87: 19.35 | BK87: 8 | BL87: 41.86051588 | BM87: 0 | BN87: 9.02 | BO87: 0 | BP87: 1.636 | BQ87: 1 | BR87: 0 | BS87: 0 | BT87: 0 | BU87: 1 | BW87: 147685 | BX87: 8314010 | BY87: UTC Derby Pride Park | BZ87: Secondary | CA87: Recoupment Academy | CB87: 1 | CC87: 0 | CD87: 0 | CE87: 0 | CF87: 3 | CG87: 1 | CH87: 2 | CI87: 133 | CJ87: 0 | CK87: 0 | CL87: 0 | CM87: 133 | CN87: 74 | CO87: 59 | CP87: 0 | CQ87: 0 | CR87: 74 | CS87: 43 | CT87: 16 | CU87: 0 | CV87: 133 | CW87: 44.33333333 | CX87: 0 | CY87: 0 | CZ87: 46 | DA87: 64 | DB87: 0 | DC87: 0 | DD87: 0 | DE87: 0 | DF87: 0 | DG87: 0 | DH87: 0 | DI87: 47 | DJ87: 14 | DK87: 20 | DL87: 9 | DM87: 15 | DN87: 16 | DO87: 12 | DP87: 0 | DQ87: 0 | DR87: 0 | DS87: 0 | DT87: 0 | DU87: 1.773333333 | DV87: 0 | DW87: 0 | DX87: 0 | DY87: 0 | DZ87: 0 | EA87: 38.60869565 | EB87: 19.35 | EC87: 8 | ED87: 41.86051588 | EE87: 0 | EF87: 9.02 | EG87: 0 | EH87: 1.636 | EI87: 1 | EJ87: 0 | EK87: 0 | EL87: 0 | EM87: 1
A88: 87 | C88: 0 | D88: 0.6580188679 | E88: 4011 | F88: 8314011 | G88: Alvaston Moor Academy | H88: Secondary | I88: Recoupment Academy | J88: 1 | K88: 0 | L88: 0 | M88: 0 | N88: 5 | O88: 3 | P88: 2 | Q88: 848 | R88: 0 | S88: 0 | T88: 0 | U88: 848 | V88: 515 | W88: 333 | X88: 173 | Y88: 158 | Z88: 184 | AA88: 156 | AB88: 177 | AC88: 0 | AD88: 848 | AE88: 169.6 | AF88: 0 | AG88: 0 | AH88: 457 | AI88: 558 | AJ88: 0 | AK88: 0 | AL88: 0 | AM88: 0 | AN88: 0 | AO88: 0 | AP88: 0 | AQ88: 72.34123223 | AR88: 55.26066351 | AS88: 59.27962085 | AT88: 50.23696682 | AU88: 146.6919431 | AV88: 276.3033175 | AW88: 187.8862559 | AX88: 0 | AY88: 0 | AZ88: 0 | BA88: 28.03305785 | BB88: 47.05548996 | BC88: 66.07792208 | BD88: 6.130120482 | BE88: 0 | BF88: 0 | BG88: 104 | BH88: 94.98265896 | BI88: 110.6127168 | BJ88: 84.08510638 | BK88: 107.3419355 | BL88: 315.5460388 | BM88: 0 | BN88: 9.547553444 | BO88: 0 | BP88: 1.462 | BQ88: 0 | BR88: 0 | BS88: 0 | BT88: 0 | BU88: 1 | BW88: 148538 | BX88: 8314011 | BY88: Alvaston Moor Academy | BZ88: Secondary | CA88: Recoupment Academy | CB88: 1 | CC88: 0 | CD88: 0 | CE88: 0 | CF88: 5 | CG88: 3 | CH88: 2 | CI88: 848 | CJ88: 0 | CK88: 0 | CL88: 0 | CM88: 848 | CN88: 515 | CO88: 333 | CP88: 173 | CQ88: 158 | CR88: 184 | CS88: 156 | CT88: 177 | CU88: 0 | CV88: 848 | CW88: 169.6 | CX88: 0 | CY88: 0 | CZ88: 457 | DA88: 558 | DB88: 0 | DC88: 0 | DD88: 0 | DE88: 0 | DF88: 0 | DG88: 0 | DH88: 0 | DI88: 72.34123223 | DJ88: 55.26066351 | DK88: 59.27962085 | DL88: 50.23696682 | DM88: 146.6919431 | DN88: 276.3033175 | DO88: 187.8862559 | DP88: 0 | DQ88: 0 | DR88: 0 | DS88: 28.03305785 | DT88: 47.05548996 | DU88: 66.07792208 | DV88: 6.130120482 | DW88: 0 | DX88: 0 | DY88: 104 | DZ88: 94.98265896 | EA88: 110.6127168 | EB88: 84.08510638 | EC88: 107.3419355 | ED88: 315.5460388 | EE88: 0 | EF88: 9.547553444 | EG88: 0 | EH88: 1.462 | EI88: 0 | EJ88: 0 | EK88: 0 | EL88: 0 | EM88: 1
A89: 88 | C89: 0 | D89: 0.1591530055 | E89: 4012 | F89: 8314012 | G89: Chellaston Academy | H89: Secondary | I89: Recoupment Academy | J89: 1 | K89: 0 | L89: 0 | M89: 0 | N89: 5 | O89: 3 | P89: 2 | Q89: 1464 | R89: 0 | S89: 0 | T89: 0 | U89: 1464 | V89: 908 | W89: 556 | X89: 301 | Y89: 308 | Z89: 299 | AA89: 287 | AB89: 269 | AC89: 0 | AD89: 1464 | AE89: 292.8 | AF89: 0 | AG89: 0 | AH89: 175 | AI89: 233 | AJ89: 0 | AK89: 0 | AL89: 0 | AM89: 0 | AN89: 0 | AO89: 0 | AP89: 0 | AQ89: 1294.76881 | AR89: 130.1778386 | AS89: 9.012311902 | AT89: 3.004103967 | AU89: 11.01504788 | AV89: 13.01778386 | AW89: 3.004103967 | AX89: 0 | AY89: 0 | AZ89: 0 | BA89: 0 | BB89: 5.01369863 | BC89: 7.019178082 | BD89: 8.184486373 | BE89: 0 | BF89: 0 | BG89: 79.52842809 | BH89: 81.37792642 | BI89: 79 | BJ89: 60.25978648 | BK89: 77.7338403 | BL89: 238.2421177 | BM89: 0 | BN89: 0 | BO89: 0 | BP89: 2.886 | BQ89: 0 | BR89: 0.81 | BS89: 0 | BT89: 0 | BU89: 1 | BW89: 148639 | BX89: 8314012 | BY89: Chellaston Academy | BZ89: Secondary | CA89: Recoupment Academy | CB89: 1 | CC89: 0 | CD89: 0 | CE89: 0 | CF89: 5 | CG89: 3 | CH89: 2 | CI89: 1464 | CJ89: 0 | CK89: 0 | CL89: 0 | CM89: 1464 | CN89: 908 | CO89: 556 | CP89: 301 | CQ89: 308 | CR89: 299 | CS89: 287 | CT89: 269 | CU89: 0 | CV89: 1464 | CW89: 292.8 | CX89: 0 | CY89: 0 | CZ89: 175 | DA89: 233 | DB89: 0 | DC89: 0 | DD89: 0 | DE89: 0 | DF89: 0 | DG89: 0 | DH89: 0 | DI89: 1294.76881 | DJ89: 130.1778386 | DK89: 9.012311902 | DL89: 3.004103967 | DM89: 11.01504788 | DN89: 13.01778386 | DO89: 3.004103967 | DP89: 0 | DQ89: 0 | DR89: 0 | DS89: 0 | DT89: 5.01369863 | DU89: 7.019178082 | DV89: 8.184486373 | DW89: 0 | DX89: 0 | DY89: 79.52842809 | DZ89: 81.37792642 | EA89: 79 | EB89: 60.25978648 | EC89: 77.7338403 | ED89: 238.2421177 | EE89: 0 | EF89: 0 | EG89: 0 | EH89: 2.886 | EI89: 0 | EJ89: 0.81 | EK89: 0 | EL89: 0 | EM89: 1
A90: 89 | B90: 9 | C90: 0 | D90: 0.313655761 | E90: 4178 | F90: 8314178 | G90: Derby Moor Spencer Academy | H90: Secondary | I90: Recoupment Academy | J90: 1 | K90: 0 | L90: 0 | M90: 0 | N90: 5 | O90: 3 | P90: 2 | Q90: 1427 | R90: 0 | S90: 0 | T90: 0 | U90: 1427 | V90: 885.75 | W90: 541.25 | X90: 296.25 | Y90: 293.0833333 | Z90: 296.4166667 | AA90: 280.75 | AB90: 260.5 | AC90: 0 | AD90: 1427 | AE90: 285.4 | AF90: 0 | AG90: 0 | AH90: 330.8691323 | AI90: 447.586771 | AJ90: 0 | AK90: 0 | AL90: 0 | AM90: 0 | AN90: 0 | AO90: 0 | AP90: 0 | AQ90: 557.9935897 | AR90: 7.114672365 | AS90: 249.0135328 | AT90: 250.0299145 | AU90: 213.4401709 | AV90: 143.3098291 | AW90: 6.098290598 | AX90: 0 | AY90: 0 | AZ90: 0 | BA90: 8.136849608 | BB90: 15.25659301 | BC90: 33.56450463 | BD90: 8.314639476 | BE90: 0 | BF90: 0 | BG90: 106.0263158 | BH90: 104.8929825 | BI90: 106.0859649 | BJ90: 109.3084016 | BK90: 127.0731707 | BL90: 347.8188664 | BM90: 0 | BN90: 0 | BO90: 0 | BP90: 1.793 | BQ90: 0 | BR90: 0 | BS90: 0 | BT90: 0 | BU90: 1 | BW90: 145327 | BX90: 8314178 | BY90: Derby Moor Spencer Academy | BZ90: Secondary | CA90: Recoupment Academy | CB90: 1 | CC90: 0 | CD90: 0 | CE90: 0 | CF90: 5 | CG90: 3 | CH90: 2 | CI90: 1427 | CJ90: 0 | CK90: 0 | CL90: 0 | CM90: 1427 | CN90: 885.75 | CO90: 541.25 | CP90: 296.25 | CQ90: 293.0833333 | CR90: 296.4166667 | CS90: 280.75 | CT90: 260.5 | CU90: 0 | CV90: 1427 | CW90: 285.4 | CX90: 0 | CY90: 0 | CZ90: 330.8691323 | DA90: 447.586771 | DB90: 0 | DC90: 0 | DD90: 0 | DE90: 0 | DF90: 0 | DG90: 0 | DH90: 0 | DI90: 557.9935897 | DJ90: 7.114672365 | DK90: 249.0135328 | DL90: 250.0299145 | DM90: 213.4401709 | DN90: 143.3098291 | DO90: 6.098290598 | DP90: 0 | DQ90: 0 | DR90: 0 | DS90: 8.136849608 | DT90: 15.25659301 | DU90: 33.56450463 | DV90: 8.314639476 | DW90: 0 | DX90: 0 | DY90: 106.0263158 | DZ90: 104.8929825 | EA90: 106.0859649 | EB90: 109.3084016 | EC90: 127.0731707 | ED90: 347.8188664 | EE90: 0 | EF90: 0 | EG90: 0 | EH90: 1.793 | EI90: 0 | EJ90: 0 | EK90: 0 | EL90: 0 | EM90: 1
A91: 90 | C91: 0 | D91: 0.2911813644 | E91: 4607 | F91: 8314607 | G91: Saint Benedict, A Catholic Voluntary Academy | H91: Secondary | I91: Recoupment Academy | J91: 1 | K91: 0 | L91: 0 | M91: 0 | N91: 5 | O91: 3 | P91: 2 | Q91: 1202 | R91: 0 | S91: 0 | T91: 0 | U91: 1202 | V91: 722 | W91: 480 | X91: 245 | Y91: 246 | Z91: 231 | AA91: 238 | AB91: 242 | AC91: 0 | AD91: 1202 | AE91: 240.4 | AF91: 0 | AG91: 0 | AH91: 266 | AI91: 350 | AJ91: 0 | AK91: 0 | AL91: 0 | AM91: 0 | AN91: 0 | AO91: 0 | AP91: 0 | AQ91: 364 | AR91: 133 | AS91: 191 | AT91: 89 | AU91: 122 | AV91: 196 | AW91: 107 | AX91: 0 | AY91: 0 | AZ91: 0 | BA91: 7.011666667 | BB91: 10.01666667 | BC91: 25.04166667 | BD91: 3.996674979 | BE91: 0 | BF91: 0 | BG91: 79.81900452 | BH91: 80.14479638 | BI91: 75.25791855 | BJ91: 93.5 | BK91: 104.4757709 | BL91: 271.8776825 | BM91: 0 | BN91: 0 | BO91: 0 | BP91: 1.291 | BQ91: 0 | BR91: 0 | BS91: 0 | BT91: 0 | BU91: 1 | BW91: 138622 | BX91: 8314607 | BY91: Saint Benedict, A Catholic Voluntary Academy | BZ91: Secondary | CA91: Recoupment Academy | CB91: 1 | CC91: 0 | CD91: 0 | CE91: 0 | CF91: 5 | CG91: 3 | CH91: 2 | CI91: 1202 | CJ91: 0 | CK91: 0 | CL91: 0 | CM91: 1202 | CN91: 722 | CO91: 480 | CP91: 245 | CQ91: 246 | CR91: 231 | CS91: 238 | CT91: 242 | CU91: 0 | CV91: 1202 | CW91: 240.4 | CX91: 0 | CY91: 0 | CZ91: 266 | DA91: 350 | DB91: 0 | DC91: 0 | DD91: 0 | DE91: 0 | DF91: 0 | DG91: 0 | DH91: 0 | DI91: 364 | DJ91: 133 | DK91: 191 | DL91: 89 | DM91: 122 | DN91: 196 | DO91: 107 | DP91: 0 | DQ91: 0 | DR91: 0 | DS91: 7.011666667 | DT91: 10.01666667 | DU91: 25.04166667 | DV91: 3.996674979 | DW91: 0 | DX91: 0 | DY91: 79.81900452 | DZ91: 80.14479638 | EA91: 75.25791855 | EB91: 93.5 | EC91: 104.4757709 | ED91: 271.8776825 | EE91: 0 | EF91: 0 | EG91: 0 | EH91: 1.291 | EI91: 0 | EJ91: 0 | EK91: 0 | EL91: 0 | EM91: 1
A92: 91 | C92: 0 | D92: 0.203601108 | E92: 5412 | F92: 8315412 | G92: West Park School | H92: Secondary | I92: Recoupment Academy | J92: 1 | K92: 0 | L92: 0 | M92: 0 | N92: 5 | O92: 3 | P92: 2 | Q92: 1444 | R92: 0 | S92: 0 | T92: 0 | U92: 1444 | V92: 899 | W92: 545 | X92: 295 | Y92: 304 | Z92: 300 | AA92: 291 | AB92: 254 | AC92: 0 | AD92: 1444 | AE92: 288.8 | AF92: 0 | AG92: 0 | AH92: 212 | AI92: 294 | AJ92: 0 | AK92: 0 | AL92: 0 | AM92: 0 | AN92: 0 | AO92: 0 | AP92: 0 | AQ92: 816 | AR92: 153 | AS92: 259 | AT92: 43 | AU92: 155 | AV92: 5 | AW92: 13 | AX92: 0 | AY92: 0 | AZ92: 0 | BA92: 0 | BB92: 2.004163775 | BC92: 2.004163775 | BD92: 10.24840312 | BE92: 0 | BF92: 0 | BG92: 102.652027 | BH92: 105.7837838 | BI92: 104.3918919 | BJ92: 92.6366782 | BK92: 78.54618474 | BL92: 306.3547183 | BM92: 0 | BN92: 0 | BO92: 0 | BP92: 3.02 | BQ92: 0 | BR92: 1 | BS92: 0 | BT92: 0 | BU92: 1 | BW92: 136634 | BX92: 8315412 | BY92: West Park School | BZ92: Secondary | CA92: Recoupment Academy | CB92: 1 | CC92: 0 | CD92: 0 | CE92: 0 | CF92: 5 | CG92: 3 | CH92: 2 | CI92: 1444 | CJ92: 0 | CK92: 0 | CL92: 0 | CM92: 1444 | CN92: 899 | CO92: 545 | CP92: 295 | CQ92: 304 | CR92: 300 | CS92: 291 | CT92: 254 | CU92: 0 | CV92: 1444 | CW92: 288.8 | CX92: 0 | CY92: 0 | CZ92: 212 | DA92: 294 | DB92: 0 | DC92: 0 | DD92: 0 | DE92: 0 | DF92: 0 | DG92: 0 | DH92: 0 | DI92: 816 | DJ92: 153 | DK92: 259 | DL92: 43 | DM92: 155 | DN92: 5 | DO92: 13 | DP92: 0 | DQ92: 0 | DR92: 0 | DS92: 0 | DT92: 2.004163775 | DU92: 2.004163775 | DV92: 10.24840312 | DW92: 0 | DX92: 0 | DY92: 102.652027 | DZ92: 105.7837838 | EA92: 104.3918919 | EB92: 92.6366782 | EC92: 78.54618474 | ED92: 306.3547183 | EE92: 0 | EF92: 0 | EG92: 0 | EH92: 3.02 | EI92: 0 | EJ92: 1 | EK92: 0 | EL92: 0 | EM92: 1
A93: 92 | C93: 0 | D93: 0.2126736111 | E93: 5414 | F93: 8315414 | G93: Allestree Woodlands School | H93: Secondary | I93: Recoupment Academy | J93: 1 | K93: 0 | L93: 0 | M93: 0 | N93: 5 | O93: 3 | P93: 2 | Q93: 1152 | R93: 0 | S93: 0 | T93: 0 | U93: 1152 | V93: 710 | W93: 442 | X93: 239 | Y93: 236 | Z93: 235 | AA93: 221 | AB93: 221 | AC93: 0 | AD93: 1152 | AE93: 230.4 | AF93: 0 | AG93: 0 | AH93: 187 | AI93: 245 | AJ93: 0 | AK93: 0 | AL93: 0 | AM93: 0 | AN93: 0 | AO93: 0 | AP93: 0 | AQ93: 789 | AR93: 163 | AS93: 71 | AT93: 10 | AU93: 53 | AV93: 23 | AW93: 43 | AX93: 0 | AY93: 0 | AZ93: 0 | BA93: 0 | BB93: 3.002606429 | BC93: 4.003475239 | BD93: 2.028169014 | BE93: 0 | BF93: 0 | BG93: 57.44206009 | BH93: 56.72103004 | BI93: 56.4806867 | BJ93: 54.22685185 | BK93: 68.80188679 | BL93: 184.5282997 | BM93: 0 | BN93: 0 | BO93: 0 | BP93: 1.599 | BQ93: 0 | BR93: 0 | BS93: 0 | BT93: 0 | BU93: 1 | BW93: 137911 | BX93: 8315414 | BY93: Allestree Woodlands School | BZ93: Secondary | CA93: Recoupment Academy | CB93: 1 | CC93: 0 | CD93: 0 | CE93: 0 | CF93: 5 | CG93: 3 | CH93: 2 | CI93: 1152 | CJ93: 0 | CK93: 0 | CL93: 0 | CM93: 1152 | CN93: 710 | CO93: 442 | CP93: 239 | CQ93: 236 | CR93: 235 | CS93: 221 | CT93: 221 | CU93: 0 | CV93: 1152 | CW93: 230.4 | CX93: 0 | CY93: 0 | CZ93: 187 | DA93: 245 | DB93: 0 | DC93: 0 | DD93: 0 | DE93: 0 | DF93: 0 | DG93: 0 | DH93: 0 | DI93: 789 | DJ93: 163 | DK93: 71 | DL93: 10 | DM93: 53 | DN93: 23 | DO93: 43 | DP93: 0 | DQ93: 0 | DR93: 0 | DS93: 0 | DT93: 3.002606429 | DU93: 4.003475239 | DV93: 2.028169014 | DW93: 0 | DX93: 0 | DY93: 57.44206009 | DZ93: 56.72103004 | EA93: 56.4806867 | EB93: 54.22685185 | EC93: 68.80188679 | ED93: 184.5282997 | EE93: 0 | EF93: 0 | EG93: 0 | EH93: 1.599 | EI93: 0 | EJ93: 0 | EK93: 0 | EL93: 0 | EM93: 1
A94: 93 | C94: 0 | D94: 0.2980561555 | E94: 6905 | F94: 8316905 | G94: Landau Forte College | H94: Secondary | I94: Recoupment Academy | J94: 1 | K94: 0 | L94: 0 | M94: 0 | N94: 5 | O94: 3 | P94: 2 | Q94: 926 | R94: 0 | S94: 0 | T94: 0 | U94: 926 | V94: 594 | W94: 332 | X94: 200 | Y94: 199 | Z94: 195 | AA94: 167 | AB94: 165 | AC94: 0 | AD94: 926 | AE94: 185.2 | AF94: 0 | AG94: 0 | AH94: 177 | AI94: 276 | AJ94: 0 | AK94: 0 | AL94: 0 | AM94: 0 | AN94: 0 | AO94: 0 | AP94: 0 | AQ94: 325 | AR94: 107 | AS94: 124 | AT94: 120 | AU94: 114 | AV94: 81 | AW94: 55 | AX94: 0 | AY94: 0 | AZ94: 0 | BA94: 0 | BB94: 1.002164502 | BC94: 4.008658009 | BD94: 8.203765227 | BE94: 0 | BF94: 0 | BG94: 50.52631579 | BH94: 50.27368421 | BI94: 49.26315789 | BJ94: 39 | BK94: 55.34161491 | BL94: 153.7530735 | BM94: 0 | BN94: 0 | BO94: 0 | BP94: 1.39 | BQ94: 0 | BR94: 0 | BS94: 0 | BT94: 0 | BU94: 1 | BW94: 135120 | BX94: 8316905 | BY94: Landau Forte College | BZ94: Secondary | CA94: Recoupment Academy | CB94: 1 | CC94: 0 | CD94: 0 | CE94: 0 | CF94: 5 | CG94: 3 | CH94: 2 | CI94: 926 | CJ94: 0 | CK94: 0 | CL94: 0 | CM94: 926 | CN94: 594 | CO94: 332 | CP94: 200 | CQ94: 199 | CR94: 195 | CS94: 167 | CT94: 165 | CU94: 0 | CV94: 926 | CW94: 185.2 | CX94: 0 | CY94: 0 | CZ94: 177 | DA94: 276 | DB94: 0 | DC94: 0 | DD94: 0 | DE94: 0 | DF94: 0 | DG94: 0 | DH94: 0 | DI94: 325 | DJ94: 107 | DK94: 124 | DL94: 120 | DM94: 114 | DN94: 81 | DO94: 55 | DP94: 0 | DQ94: 0 | DR94: 0 | DS94: 0 | DT94: 1.002164502 | DU94: 4.008658009 | DV94: 8.203765227 | DW94: 0 | DX94: 0 | DY94: 50.52631579 | DZ94: 50.27368421 | EA94: 49.26315789 | EB94: 39 | EC94: 55.34161491 | ED94: 153.7530735 | EE94: 0 | EF94: 0 | EG94: 0 | EH94: 1.39 | EI94: 0 | EJ94: 0 | EK94: 0 | EL94: 0 | EM94: 1

Sheet APT Proforma (hidden)
C3: Local Authority Funding Reform Proforma
C5: LA Name: | D5: Derby
C6: LA Number: | D6: 831
D8: Primary minimum per pupil funding level | E8: Secondary (KS3 only) minimum per pupil funding level | G8: Secondary (KS4 only) minimum per pupil funding level | I8: Secondary minimum per pupil funding level | L8: Disapplication number where alternative MPPF values are used
D9: 4265 | E9: 5321 | G9: 5831 | I9: 5525
C11: Pupil Led Factors
C12: 1) Basic Entitlement Age Weighted Pupil Unit (AWPU) | D12: Reception uplift | E12: No | F12: Pupil Units | H12: 0 | O12: TRUE
D13: Description | E13: Amount per pupil | G13: Pupil Units | I13: Sub Total | J13: Total | K13: Proportion of total pre MFG funding (%) | L13: Notional SEN (%)
D14: Primary (Years R-6) | E14: 3217 | G14: 23318.5 | I14: 75015614.5 | J14: =SUM(I14:I16) -> 154076522.5 | K14: 0.3521438937 | L14: 0.12
D15: Key Stage 3 (Years 7-9) | E15: 4536 | G15: 10289.83333 | I15: 46674684 | K15: 0.2191037835 | L15: 0.097
D16: Key Stage 4 (Years 10-11) | E16: 5112 | G16: 6335.333333 | I16: 32386224 | K16: 0.1520298287 | L16: 0.0863
D17: Description | E17: Primary amount per pupil | F17: Secondary amount per pupil | G17: Eligible proportion of primary NOR | H17: Eligible proportion of secondary NOR | I17: Sub Total | J17: Total | K17: Proportion of total pre MFG funding (%) | L17: Primary Notional SEN (%) | M17: Secondary Notional SEN (%) | O17: TRUE
C18: 2) Deprivation | D18: FSM | E18: 470 | F18: 470 | G18: 7347.084247 | H18: 4226.238941 | I18: 5439461.899 | J18: =SUM(I18:I25) -> 25336214.26 | K18: 0.1189351471 | L18: 0.3525 | M18: 0.3525
D19: FSM6 | E19: 590 | F19: 865 | G19: 7788.169664 | H19: 5537.493874 | I19: 9384952.303 | L19: 0.3525 | M19: 0.3525
D20: IDACI Band F | E20: 220 | F20: 320 | G20: 2795.599965 | H20: 1870.897503 | I20: 1213719.193 | L20: 0.3525 | M20: 0.3525
D21: IDACI Band E | E21: 270 | F21: 425 | G21: 2903.072096 | H21: 1944.796012 | I21: 1610367.771 | L21: 0.3525 | M21: 0.3525
D22: IDACI Band D | E22: 420 | F22: 595 | G22: 2035.00188 | H22: 1333.424534 | I22: 1648088.387 | L22: 0.3525 | M22: 0.3525
D23: IDACI Band C | E23: 460 | F23: 650 | G23: 2403.142902 | H23: 1618.570606 | I23: 2157516.629 | L23: 0.3525 | M23: 0.3525
D24: IDACI Band B | E24: 490 | F24: 700 | G24: 2052.453526 | H24: 1445.022907 | I24: 2017218.263 | L24: 0.3525 | M24: 0.3525
D25: IDACI Band A | E25: 640 | F25: 890 | G25: 1496.093291 | H25: 1019.539454 | I25: 1864889.82 | L25: 0.3525 | M25: 0.3525
D26: Description | E26: Primary amount per pupil | F26: Secondary amount per pupil | G26: Eligible proportion of primary NOR | H26: Eligible proportion of secondary NOR | I26: Sub Total | J26: Total | K26: Proportion of total pre MFG funding (%) | L26: Primary Notional SEN (%) | M26: Secondary Notional SEN (%)
C27: 3) Looked After Children (LAC) | D27: LAC March 19 | G27: 158.4599188 | I27: 0 | J27: =SUM(I27:I30) -> 3469419.353 | K27: 0 | L27: 0
C28: 4) English as an Additional Language (EAL) | D28: EAL 3 Primary | E28: 565 | G28: 4025.588947 | I28: 2274457.755 | K28: 0.01424850076 | L28: 0.4005
D29: EAL 3 Secondary | F29: 1530 | H29: 497.2782069 | I29: 760835.6566 | M29: 0.4005
C30: 5) Mobility | D30: Pupils starting school outside of normal entry dates | E30: 925 | F30: 1330 | G30: 297.8012863 | H30: 119.2930457 | I30: 434125.9407 | K30: 0.002037906376 | L30: 1 | M30: 1
D31: Description | E31: Weighting | F31: Amount per pupil (primary or secondary respectively) | G31: Percentage of eligible pupils | H31: Eligible proportion of primary and secondary NOR respectively | I31: Sub Total | J31: Total | K31: Proportion of total pre MFG funding (%) | L31: Primary Notional SEN (%) | M31: Secondary Notional SEN (%) | O31: FALSE
C32: 6) Low prior attainment | D32: Primary low prior attainment | F32: 1130 | G32: 0.2973895397 | H32: 6934.677981 | I32: 7836186.118 | J32: =SUM(I32:I37) -> 14884984.25 | K32: 0.06987420349 | L32: 0.3525
D33: Secondary low prior attainment (year 7) | E33: 0.64527134 | F33: 1710 | G33: 0.2503065785 | H33: 4122.104173 | I33: 7048798.136 | M33: 0.3525
D34: Secondary low prior attainment (year 8) | E34: 0.64527134 | G34: 0.2476714547
D35: Secondary low prior attainment (year 9) | E35: 0.64527134 | G35: 0.2489112467
D36: Secondary low prior attainment (year 10) | E36: 0.63585523 | G36: 0.2480247721
D37: Secondary low prior attainment (year 11) | E37: 0.58045405 | G37: 0.2444396132
C40: Other Factors
O41: TRUE
C42: Factor | F42: Lump Sum per Primary School (£) | G42: Lump Sum per Secondary School (£) | H42: Lump Sum per Middle School (£) | I42: Lump Sum per All-through School (£) | J42: Total (£) | K42: Proportion of total pre MFG funding (%) | L42: Notional SEN (%)
C43: 7) Lump Sum | F43: 121300 | G43: 121300 | J43: 10795700 | K43: 0.05067798029
C44: 8) Sparsity factor | J44: 0 | K44: 0
C45: Rows 46 to 49 are populated with the NFF methodology, please leave this as is if you wish to follow the NFF. As per the Operational Guidance, the distance thresholds can be increased or the year group size thresholds decreased and the distance threshold taper is optional. An alternative method of allocation to the NFF’s average year group size taper can be chosen: the continuous taper (Tapered) or fixed sum (Fixed). Examples of each are provided in the Operational Guidance.
C46: Primary distance threshold (miles) | D46: 2 | E46: Primary pupil number average year group threshold | G46: 21.4 | H46: Apply primary distance taper | J46: Yes | K46: NFF, tapered or fixed sparsity primary lump sum? | L46: NFF
C47: Secondary distance threshold (miles) | D47: 3 | E47: Secondary pupil number average year group threshold | G47: 120 | H47: Apply secondary distance taper | J47: Yes | K47: NFF, tapered or fixed sparsity secondary lump sum? | L47: NFF
C48: Middle schools distance threshold (miles) | D48: 2 | E48: Middle school pupil number average year group threshold | G48: 69.2 | H48: Apply middle school distance taper | J48: Yes | K48: NFF, tapered or fixed sparsity middle school lump sum? | L48: NFF
C49: All-through schools distance threshold (miles) | D49: 2 | E49: All-through pupil number average year group threshold | G49: 62.5 | H49: Apply all-through distance taper | J49: Yes | K49: NFF, tapered or fixed sparsity all-through lump sum? | L49: NFF
C50: 9) Fringe Payments | J50: 0 | K50: 0 | N50: TRUE
C51: 10) Split Sites | J51: 0 | K51: 0
C52: 11) Rates | J52: 1394991.235 | K52: 0.006548471918
C53: 12) PFI funding | J53: 1187343 | K53: 0.005573714085
C54: 13 ) Exceptional circumstances (can only be used with prior agreement of ESFA)
C55: Circumstance | J55: Total (£) | K55: Proportion of total pre MFG funding (%) | L55: Notional SEN (%)
C56: Additional lump sum for schools amalgamated during FY21-22 | J56: 0 | K56: 0 | L56: 0 | M56: 0
C57: Additional sparsity lump sum for small schools | J57: 0 | K57: 0
C58: Exceptional Circumstance3 | J58: 0 | K58: 0
C59: Exceptional Circumstance4 | J59: 0 | K59: 0
C60: Exceptional Circumstance5 | J60: 0 | K60: 0
C61: Exceptional Circumstance6 | J61: 0 | K61: 0
C62: Exceptional Circumstance7 | J62: 0 | K62: 0
C64: Total Funding for Schools Block Formula (excluding minimum per pupil funding level and MFG Funding Total) | J64: 211145174.6 | K64: 0.9911734298
C66: 14) Additional funding to meet minimum per pupil funding level | J66: 1880284.158 | K66: 0.008826570162
C67: Total Funding for Schools Block Formula (excluding MFG Funding Total) | J67: =SUM(J64:J66) -> 213025458.8 | K67: =SUM(K64:K66) -> 1
C69: 15) Minimum Funding Guarantee | H69: 0.02 | J69: 39303.91777
C70: Where a value less than 0.5% or greater than 2% has been entered please provide the disapplication reference number authorising the value
C71: Apply capping and scaling factors? (gains may be capped above a specific ceiling and/or scaled) | J71: Yes
C72: Capping Factor (%) | D72: 0.0473 | E72: Scaling Factor (%) | G72: 1
C74: Total deduction if capping and scaling factors are applied | J74: -305300.7692
J75: Total (£) | K75: Proportion of Total funding(%) | L75: Notional SEN (%)
C76: MFG Net Total Funding (MFG + deduction from capping and scaling) | E76: (Please note that the total deducation for capping and scaling is greater than the total MFG) | J76: -265996.8514 | K76: -0.001248793737
C77: Total Funding for Schools Block Formula | J77: 212759461.9 | L77: 32151982.65
C79: High Needs threshold (only fill in if, exceptionally, a high needs threshold different from £6,000 has been approved)
C80: Additional funding from the high needs budget | J80: 0
C81: Growth fund (if applicable) | J81: 243569.32
C82: Falling rolls fund (if applicable) | J82: 0
C84: Other Adjustment to 21-22 Budget Shares | J84: 0
C85: Total Funding For Schools Block Formula (including growth and falling rolls funding) | J85: 213003031.2
C86: % Distributed through Basic Entitlement | J86: 0.7232775059
C87: % Pupil Led Funding | J87: 0.9283732635
C88: Primary: Secondary Ratio | J88: 1 : | K88: 1.306048411 | O88: FALSE
C90: 22-23 NFF NNDR allocation | J90: 1394991.235
C91: Total Funding For Schools Block Formula (including growth and falling rolls funding) after deduction of 22-23 NFF NNDR allocation | J91: 211608040

Sheet School Formula Budget 2022-23
C1: Early Years, Schools and High Needs Block Formula Budgets 2022/23
L3: =VLOOKUP(B5,'School & Nursery Setting Lookup'!A:G,5,FALSE) -> 0
B4: Please select your School or Nursery Setting Name in the cell below | F4: DfE No or Ofsted ID | H4: Setting Type
B5: CLICK ON THE ARROW BUTTON TO SELECT YOUR SCHOOL FROM THE LIST | F5: =VLOOKUP(B5,'School & Nursery Setting Lookup'!A:E,3,FALSE) -> 12345 | H5: =VLOOKUP(B5,'School & Nursery Setting Lookup'!A:G,4,FALSE) -> 0
C7: Early Years Nursery Funding 2022/23
B10: 1. Base Rate(s) per hour, per provider type. Setting Type | D10: Amount (£) | E10: May 2022 Term Hours | F10: Oct 2022 Term Hours | G10: Jan 2023 Term Hours | H10: Anticipated Total Budget (£) | L10: May 2022 Term Hours | M10: Oct 2022 Term Hours | N10: Jan 2023 Term Hours | P10: Anticipated Total Budget (£) | T10: May 2022 Term Hours | U10: Oct 2022 Term Hours | V10: Jan 2023 Term Hours
B11: M = Maintained Nursery at a School / Academy | C11: 4.54 | D11: per hour | E11: =IF($L$3=1,L11,0)+IF(L3=6,T11) -> 0 | F11: =IF($L$3=1,M11,0)+IF(L3=6,U11) -> 0 | G11: =IF($L$3=1,N11,0)+IF(L3=6,V11) -> 0 | H11: =IF($H$5=6,Q11,R11) -> 0 | L11: =VLOOKUP($F$5,'2022-23 Nursery Budget'!C:G,3,FALSE) ->  | M11: =VLOOKUP($F$5,'2022-23 Nursery Budget'!C:G,4,FALSE) ->  | N11: =VLOOKUP($F$5,'2022-23 Nursery Budget'!C:G,5,FALSE) ->  | P11: ='2022-23 Nursery Budget'!C218+'2022-23 Nursery Budget'!C219 -> 4689724.66 | Q11: =IF(F$5=12345,0,P11) -> 0 | R11: =SUM($E11+$F11+$G11)*$C11 -> 0 | T11: ='2022-23 Nursery Budget'!E218+'2022-23 Nursery Budget'!E219 -> 375964 | U11: ='2022-23 Nursery Budget'!F218+'2022-23 Nursery Budget'!F219 -> 319641 | V11: ='2022-23 Nursery Budget'!G218+'2022-23 Nursery Budget'!G219 -> 337374 | W11: M & A
B12: S = Stand Alone Maintained Nursery School | C12: =C11 -> 4.54 | E12: =IF($L$3=2,L12,0)+IF(L3=6,T12) -> 0 | F12: =IF($L$3=2,M12,0)+IF(L3=6,U12) -> 0 | G12: =IF($L$3=2,N12,0)+IF(L3=6,V12) -> 0 | H12: =IF($H$5=6,Q12,R12) -> 0 | L12: =VLOOKUP($F$5,'2022-23 Nursery Budget'!C:G,3,FALSE) ->  | M12: =VLOOKUP($F$5,'2022-23 Nursery Budget'!C:G,4,FALSE) ->  | N12: =VLOOKUP($F$5,'2022-23 Nursery Budget'!C:G,5,FALSE) ->  | P12: ='2022-23 Nursery Budget'!C217 -> 1299116.46 | Q12: =IF(F$5=12345,0,P12) -> 0 | R12: =SUM($E12+$F12+$G12)*$C12 -> 0 | T12: ='2022-23 Nursery Budget'!E217 -> 107513 | U12: ='2022-23 Nursery Budget'!F217 -> 86834 | V12: ='2022-23 Nursery Budget'!G217 -> 91802 | W12: S
B13: P = Pre School | C13: =C11 -> 4.54 | E13: =IF($L$3=3,L13,0)+IF(L3=6,T13) -> 0 | F13: =IF($L$3=3,M13,0)+IF(L3=6,U13) -> 0 | G13: =IF($L$3=3,N13,0)+IF(L3=6,V13) -> 0 | H13: =IF($H$5=6,Q13,R13) -> 0 | L13: =VLOOKUP($F$5,'2022-23 Nursery Budget'!C:G,3,FALSE) ->  | M13: =VLOOKUP($F$5,'2022-23 Nursery Budget'!C:G,4,FALSE) ->  | N13: =VLOOKUP($F$5,'2022-23 Nursery Budget'!C:G,5,FALSE) ->  | P13: ='2022-23 Nursery Budget'!C220 -> 4179751 | Q13: =IF(F$5=12345,0,P13) -> 0 | R13: 0 | T13: ='2022-23 Nursery Budget'!E220 -> 367337 | U13: ='2022-23 Nursery Budget'!F220 -> 249316 | V13: ='2022-23 Nursery Budget'!G220 -> 303997 | W13: P
B14: D = Day Nursery | C14: =C11 -> 4.54 | E14: =IF($L$3=4,L14,0)+IF(L3=6,T14) -> 0 | F14: =IF($L$3=4,M14,0)+IF(L3=6,U14) -> 0 | G14: =IF($L$3=4,N14,0)+IF(L3=6,V14) -> 0 | H14: =IF($H$5=6,Q14,R14) -> 0 | L14: =VLOOKUP($F$5,'2022-23 Nursery Budget'!C:G,3,FALSE) ->  | M14: =VLOOKUP($F$5,'2022-23 Nursery Budget'!C:G,4,FALSE) ->  | N14: =VLOOKUP($F$5,'2022-23 Nursery Budget'!C:G,5,FALSE) ->  | P14: ='2022-23 Nursery Budget'!C221 -> 3751002.48 | Q14: =IF(F$5=12345,0,P14) -> 0 | R14: =SUM($E14+$F14+$G14)*$C14 -> 0 | T14: ='2022-23 Nursery Budget'!E221 -> 338029 | U14: ='2022-23 Nursery Budget'!F221 -> 228469 | V14: ='2022-23 Nursery Budget'!G221 -> 259714 | W14: D
B15: Deprivation (Mandatory) Supplement | C15: Amount (£) | D15: Unit | E15: May 2022 Term Hours | F15: Oct 2022 Term Hours | G15: Jan 2023 Term Hours | H15: Anticipated Total Budget (£)
B16: IMD - top 20% most deprived | C16: 0.6 | D16: per hour | E16: =IF($L$3=0,0,L16) -> 0 | F16: =IF($L$3=0,0,M16) -> 0 | G16: =IF($L$3=0,0,N16) -> 0 | H16: =SUM(E16+F16+G16)*C16 -> 0 | L16: =VLOOKUP($F$5,'2022-23 Nursery Budget'!C:N,10,FALSE) ->  | M16: =VLOOKUP($F$5,'2022-23 Nursery Budget'!C:N,11,FALSE) ->  | N16: =VLOOKUP($F$5,'2022-23 Nursery Budget'!C:N,12,FALSE) ->  | P16: =SUM(L16:N16)*C16 -> 
B17: IMD - 20% to 40% most deprived | C17: 0.2 | D17: per hour | E17: =IF($L$3=0,0,L17) -> 0 | F17: =IF($L$3=0,0,M17) -> 0 | G17: =IF($L$3=0,0,N17) -> 0 | H17: =SUM(E17+F17+G17)*C17 -> 0 | L17: =VLOOKUP($F$5,'2022-23 Nursery Budget'!C:S,15,FALSE) ->  | M17: =VLOOKUP($F$5,'2022-23 Nursery Budget'!C:S,16,FALSE) ->  | N17: =VLOOKUP($F$5,'2022-23 Nursery Budget'!C:S,17,FALSE) ->  | P17: =SUM(L17:N17)*C17 -> 
B18: EAL | C18: 0.2 | D18: per hour | E18: =IF($L$3=0,0,L18) -> 0 | F18: 0 | G18: =IF($L$3=0,0,N18) -> 0 | H18: =SUM(E18+F18+G18)*C18 -> 0 | L18: =VLOOKUP($F$5,'2022-23 Nursery Budget'!C:Z,22,FALSE) ->  | M18: =VLOOKUP($F$5,'2022-23 Nursery Budget'!C:Z,23,FALSE) ->  | N18: =VLOOKUP($F$5,'2022-23 Nursery Budget'!C:Z,24,FALSE) ->  | P18: =SUM(L18:N18)*C18 -> 
B19: Other Supplements | C19: Amount (£) | D19: Unit | E19: Number of units | H19: Anticipated Total Budget (£)
B20: Disability Access Fund (see guidance notes) | C20: =IF(L3=6,102400,0) -> 0 | D20: lump sum | E20: =+IF(L3=6,1,0) -> 0 | H20: =IF(H5=6,C20,0) -> 0 | P20: =IF(H5<>6,0,H20) -> 0
B21: SEN Locality Funding (see guidance notes) | C21: =IF(L3=6,300000,0) -> 0 | D21: lump sum | E21: =+IF(L3=6,1,0) -> 0 | H21: =IF(H5=6,300000,0) -> 0 | P21: =IF(H5<>6,0,H21) -> 0
B22: 3. Other formula factors and lump sums (if applicable) | C22: Amount (£) | D22: Unit | E22: Number of units | H22: Anticipated Total Budget (£)
B23: Base for Stand Alone Maintained Nurseries | C23: 100000 | D23: lump sum | E23: =IF($L$3=2,1,0) -> 0 | H23: =IF(L3=6,700000,$E23*$C23) -> 0 | L23: =IF(H5="S",VLOOKUP($F$5,'2022-23 Nursery Budget'!C:G,3,FALSE)*VLOOKUP($F$5,'2022-23 Nursery Budget'!C:AQ,41,FALSE),0) -> 0 | M23: =IF(H5="S",VLOOKUP($F$5,'2022-23 Nursery Budget'!C:G,4,FALSE)*VLOOKUP($F$5,'2022-23 Nursery Budget'!C:AQ,41,FALSE),0) -> 0 | N23: =IF(H5="S",VLOOKUP($F$5,'2022-23 Nursery Budget'!C:G,5,FALSE)*VLOOKUP($F$5,'2022-23 Nursery Budget'!C:AQ,41,FALSE),0) -> 0 | P23: =H23 -> 0
B24: Stand Alone Maintained Nursery Supplement Funding (Universal Hours only) | C24: 1.508312849 | D24: per hour | E24: =IF($L$3=2,L23,"-") -> - | F24: =IF($L$3=2,M23,"-") -> - | G24: =IF($L$3=2,N23,"-") -> - | H24: =IF(L3=6,'2022-23 Nursery Budget'!AD26,(SUM(E24:G24)*C24)) -> 0 | L24: Check with Nursery Budget | P24: =VLOOKUP(F5,'2022-23 Nursery Budget'!C:AD,28,FALSE) ->  | Q24: =H24-P24 -> 
B25: TOTAL FUNDING FOR EARLY YEARS SINGLE FUNDING FORMULA excluding Rates* | H25: =SUM(H11:H24) -> 0 | L25: =IFERROR(VLOOKUP(F5,'2022-23 Nursery Budget'!C:AJ,34,FALSE),0)-IFERROR(VLOOKUP(F5,'2022-23 Nursery Budget'!C:AJ,29,FALSE),0) -> 0 | M25: =L25-H25 -> 0 | N25: =P20+P21 -> 0 | P25: =IF(H5<>6,0,SUM(P11:P24)) -> 0 | Q25: =H25-P25 -> 0
B26: Please note: * Early Years budgets are adjusted for actual hour take up in year | N26: =N25+M25 -> 0
C29: High Needs Formula Budget 2022/23
L32: Check with Summary for Prints
D33: Element 1 & 2 Place Rate | G33: Number | H33: Total (£)
B34: Element 2 (Place led funding) - ERS Pre 16 | C34: See Separate breakdown | E34: 6000 | G34: =SUMIF('ERS 2022-23'!B:B,'School Formula Budget 2022-23'!F$5,'ERS 2022-23'!N:N) -> 0 | H34: =$G34*$E34 -> 0 | L34: =VLOOKUP(F5,'Summary for Prints'!A:CF,82,FALSE) ->  | M34: =L34-H34 -> 
D35: Element 1 & 2 Place Rate | G35: Places | H35: Total (£)
B36: Element 2 (Place led funding) - ERS Post 16 | C36: See Separate breakdown | E36: 6000 | G36: =SUMIF('ERS 2022-23'!B:B,'School Formula Budget 2022-23'!F$5,'ERS 2022-23'!O:O) -> 0 | H36: =$G36*$E36 -> 0 | L36: 0 | M36: 0
D37: Indicative Element 3 Pupils (banding) funding | G37: Number | H37: Total (£)
B38: Element 3 - Derby City Pupils (banding) funding Pre & Post 16* | C38: See Separate breakdown | E38: =SUMIF('ERS 2022-23'!B:B,F5,'ERS 2022-23'!R:R) -> 0 | G38: 1 | H38: =$G38*$E38 -> 0 | L38: =VLOOKUP(F5,'Summary for Prints'!A:CF,83,FALSE) ->  | M38: =L38-H38 -> 
D39: Other Funding | G39: Number | H39: Total (£)
B40: ERS - Other | C40: See Separate breakdown | E40: =SUMIF('ERS 2022-23'!B:B,F5,'ERS 2022-23'!S:S)+SUMIF('ERS 2022-23'!B:B,F5,'ERS 2022-23'!T:T) -> 0 | G40: 1 | H40: =$G40*$E40 -> 0 | L40: =VLOOKUP(F5,'Summary for Prints'!A:CF,84,FALSE) ->  | M40: =L40-H40 -> 
G41: Number | H41: Total (£)
B42: High Needs Funding from Derby City / ESFA* | C42: Including both Pre 16 & Post 16 Funding | H42: =H38+H40+H34+H36 -> 0 | L42: =VLOOKUP(F5,'Summary for Prints'!A:CF,82,FALSE)+VLOOKUP(F5,'Summary for Prints'!A:CF,83,FALSE)+VLOOKUP(F5,'Summary for Prints'!A:CF,84,FALSE) ->  | M42: =L42-H42 -> 
D44: ERS Pupil Top up funding | G44: Number | H44: Total (£)
B45: Other LA Top up funding (Income not Budget. Academies to reclaim Element 3 from other LA's directly)* | C45: See Separate breakdown | E45: =SUMIF('ERS 2022-23'!B:B,F5,'ERS 2022-23'!V:V) -> 0 | G45: 1 | H45: =$G45*$E45 -> 0
B48: *Please note that High Needs top up funding follows the pupil, therefore funding will be adjusted in year where there are pupil movements
B51: =B5 -> CLICK ON THE ARROW BUTTON TO SELECT YOUR SCHOOL FROM THE LIST | F51: =F5 -> 12345 | H51: =H5 -> 0
C53: Schools Block Funding 2022/23
B57: Factor | C57: Description | D57: Primary amount per pupil | E57: Secondary KS3 amount per pupil | F57: Secondary KS4 amount per pupil | G57: Number of Pupils (Including High Needs Places) | H57: Sub total (£) | I57: Notional SEN % | J57: Notional SEN within School Budget £
B58: 1) Basic Entitlement - Age Weighted Pupil Funding (AWPU) | C58: Primary (including reception) | D58: ='APT Proforma'!E14:F14 -> 3217 | E58: 0 | G58: =IFERROR(VLOOKUP($F$51,'Summary for Prints'!A:H,5,FALSE),0) -> 0 | H58: =G58*D58 -> 0 | I58: 0.12 | J58: =D58*G58*I58 -> 0
C59: Key Stage 3 | E59: ='APT Proforma'!E15:F15 -> 4536 | F59: 0 | G59: =IFERROR(VLOOKUP($F$51,'Summary for Prints'!A:H,7,FALSE),0) -> 0 | H59: =G59*E59 -> 0 | I59: 0.097 | J59: =E59*G59*I59 -> 0 | P59: Checks with 'Summary for Prints' tab
C60: Key Stage 4 | F60: ='APT Proforma'!E16 -> 5112 | G60: =IFERROR(VLOOKUP($F$51,'Summary for Prints'!A:H,8,FALSE),0) -> 0 | H60: =G60*F60 -> 0 | I60: 0.0863 | J60: =F60*G60*I60 -> 0 | P60: Summary for Prints | Q60: Variance
F61: Total | G61: =SUM(G58:G60) -> 0 | H61: =SUM(H58:H60) -> 0 | J61: =SUM(J58:J60) -> 0 | P61: =VLOOKUP(F51,'Summary for Prints'!A:K,9,FALSE)+VLOOKUP(F51,'Summary for Prints'!A:K,10,FALSE)+VLOOKUP(F51,'Summary for Prints'!A:K,11,FALSE) ->  | Q61: =P61-H61 -> 
B63: De-delegation - see separate breakdown | C63: Primary (including reception) | D63: =-'De-del'!Q3 -> -69.398 | G63: =F108 -> 0 | H63: =G63*D63 -> 0
C64: Secondary | E64: =-'De-del'!R4 -> -58.218 | F64: =E64 -> -58.218 | G64: =G108 -> 0 | H64: =G64*F64 -> 0
F65: Total | G65: =SUM(G63:G64) -> 0 | H65: =SUM(H63:H64) -> 0 | P65: =VLOOKUP(F5,'Summary for Prints'!A:BV,74,FALSE) ->  | Q65: =P65-H65 -> 
D66: Primary amount per pupil | E66: Secondary amount per pupil | F66: Number of eligible primary pupils | G66: Number of eligible secondary pupils | H66: Sub total (£) | I66: Notional SEN % | J66: Notional SEN within School Budget £
B67: 2) Deprivation
C68: FSM Current | D68: ='APT Proforma'!E18 -> 470 | E68: ='APT Proforma'!F18 -> 470 | F68: =IFERROR(VLOOKUP($F$5,'APT Adjusted Factors'!E:BN,28,FALSE),0) -> 0 | G68: =IFERROR(VLOOKUP($F$5,'APT Adjusted Factors'!E:BN,30,FALSE),0) -> 0 | H68: =$D68*$F68+($E68*$G68) -> 0 | I68: 0.3525 | J68: =I68*H68 -> 0 | P68: =VLOOKUP(F5,'Summary for Prints'!A:M,12,FALSE)+VLOOKUP(F5,'Summary for Prints'!A:M,13,FALSE) ->  | Q68: =P68-H68 -> 
C69: FSM Ever 6 | D69: ='APT Proforma'!E19 -> 590 | E69: ='APT Proforma'!F19 -> 865 | F69: =IFERROR(VLOOKUP($F$5,'APT Adjusted Factors'!E:BN,29,FALSE),0) -> 0 | G69: =IFERROR(VLOOKUP($F$5,'APT Adjusted Factors'!E:BN,31,FALSE),0) -> 0 | H69: =$D69*$F69+($E69*$G69) -> 0 | I69: 0.3525 | J69: =I69*H69 -> 0 | P69: =VLOOKUP(F5,'Summary for Prints'!A:O,14,FALSE)+VLOOKUP(F5,'Summary for Prints'!A:O,15,FALSE) ->  | Q69: =P69-H69 -> 
C70: IDACI Band F | D70: ='APT Proforma'!E20 -> 220 | E70: ='APT Proforma'!F20 -> 320 | F70: =IFERROR(VLOOKUP($F$5,'APT Adjusted Factors'!E:BN,33,FALSE),0) -> 0 | G70: =IFERROR(VLOOKUP($F$5,'APT Adjusted Factors'!E:BN,40,FALSE),0) -> 0 | H70: =$D70*$F70+($E70*$G70) -> 0 | I70: 0.3525 | J70: 0 | P70: =VLOOKUP(F5,'Summary for Prints'!A:AA,16,FALSE)+VLOOKUP(F5,'Summary for Prints'!A:AA,22,FALSE) ->  | Q70: =P70-H70 -> 
C71: IDACI Band E | D71: ='APT Proforma'!E21 -> 270 | E71: ='APT Proforma'!F21 -> 425 | F71: =IFERROR(VLOOKUP($F$5,'APT Adjusted Factors'!E:BN,34,FALSE),0) -> 0 | G71: =IFERROR(VLOOKUP($F$5,'APT Adjusted Factors'!E:BN,41,FALSE),0) -> 0 | H71: 0 | I71: 0.3525 | J71: 0 | P71: =VLOOKUP(F5,'Summary for Prints'!A:AA,17,FALSE)+VLOOKUP(F5,'Summary for Prints'!A:AA,23,FALSE) -> 
C72: IDACI Band D | D72: ='APT Proforma'!E22 -> 420 | E72: ='APT Proforma'!F22 -> 595 | F72: =IFERROR(VLOOKUP($F$5,'APT Adjusted Factors'!E:BN,35,FALSE),0) -> 0 | G72: =IFERROR(VLOOKUP($F$5,'APT Adjusted Factors'!E:BN,42,FALSE),0) -> 0 | H72: 0 | I72: 0.3525 | J72: 0 | P72: =VLOOKUP(F5,'Summary for Prints'!A:AA,18,FALSE)+VLOOKUP(F5,'Summary for Prints'!A:AA,24,FALSE) -> 
C73: IDACI Band C | D73: ='APT Proforma'!E23 -> 460 | E73: ='APT Proforma'!F23 -> 650 | F73: =IFERROR(VLOOKUP($F$5,'APT Adjusted Factors'!E:BN,36,FALSE),0) -> 0 | G73: =IFERROR(VLOOKUP($F$5,'APT Adjusted Factors'!E:BN,43,FALSE),0) -> 0 | H73: 0 | I73: 0.3525 | J73: 0 | P73: =VLOOKUP(F5,'Summary for Prints'!A:AA,19,FALSE)+VLOOKUP(F5,'Summary for Prints'!A:AA,25,FALSE) -> 
C74: IDACI Band B | D74: ='APT Proforma'!E24 -> 490 | E74: ='APT Proforma'!F24 -> 700 | F74: =IFERROR(VLOOKUP($F$5,'APT Adjusted Factors'!E:BN,37,FALSE),0) -> 0 | G74: =IFERROR(VLOOKUP($F$5,'APT Adjusted Factors'!E:BN,44,FALSE),0) -> 0 | H74: 0 | I74: 0.3525 | J74: 0 | P74: =VLOOKUP(F5,'Summary for Prints'!A:AA,20,FALSE)+VLOOKUP(F5,'Summary for Prints'!A:AA,26,FALSE) -> 
C75: IDACI Band A | D75: ='APT Proforma'!E25 -> 640 | E75: ='APT Proforma'!F25 -> 890 | F75: =IFERROR(VLOOKUP($F$5,'APT Adjusted Factors'!E:BN,38,FALSE),0) -> 0 | G75: =IFERROR(VLOOKUP($F$5,'APT Adjusted Factors'!E:BN,45,FALSE),0) -> 0 | H75: 0 | I75: 0.3525 | J75: =I75*H75 -> 0 | P75: =VLOOKUP(F5,'Summary for Prints'!A:AA,21,FALSE)+VLOOKUP(F5,'Summary for Prints'!A:AA,27,FALSE) -> 
E76: Total | F76: =SUM(F67:F75) -> 0 | G76: =SUM(G67:G75) -> 0 | H76: =SUM(H67:H75) -> 0 | J76: =SUM(J68:J75) -> 0 | P76: =SUM(P68:P75) ->  | Q76: =SUM(Q68:Q75) -> 
D77: Amount per pupil | G77: Number of Pupils | H77: Total (£) | J77: Total (£)
B78: 3) Prior Attainment | C78: Primary Low prior attainment | E78: ='APT Proforma'!F32 -> 1130 | G78: =IFERROR(VLOOKUP($F$5,'APT Adjusted Factors'!E:BL,54,FALSE),0) -> 0 | H78: =$G78*$E78 -> 0 | I78: 0.3525 | J78: =I78*H78 -> 0 | P78: =VLOOKUP(F5,'Summary for Prints'!A:AF,31,FALSE) ->  | Q78: =P78-H78 -> 
C79: Secondary pupils not achieving KS2 in Reading or Writing or Maths | E79: ='APT Proforma'!F33 -> 1710 | G79: =IFERROR(VLOOKUP($F$5,'APT Adjusted Factors'!E:BL,60,FALSE),0) -> 0 | H79: =$G79*$E79 -> 0 | I79: 0.3525 | J79: =I79*H79 -> 0 | P79: =VLOOKUP(F5,'Summary for Prints'!A:AF,32,FALSE) ->  | Q79: =P79-H79 -> 
D80: Amount per pupil | G80: Number of Pupils | H80: Total (£) | J80: Total (£)
B81: 4) English as an Additional Language | C81: Primary pupils EAL funded for first 3 years in Statutory Education | E81: ='APT Proforma'!E28 -> 565 | G81: =IFERROR(VLOOKUP($F$5,'APT Adjusted Factors'!E:BC,48,FALSE),0) -> 0 | H81: =$G81*$E81 -> 0 | I81: 0.4005 | J81: =I81*H81 -> 0 | P81: =VLOOKUP(F5,'Summary for Prints'!A:AC,28,FALSE) ->  | Q81: =P81-H81 -> 
C82: Secondary pupils EAL funded for first 3 years in Statutory Education | E82: ='APT Proforma'!F29 -> 1530 | G82: =IFERROR(VLOOKUP($F$5,'APT Adjusted Factors'!E:BC,51,FALSE),0) -> 0 | H82: =$G82*$E82 -> 0 | I82: 0.4005 | J82: =I82*H82 -> 0 | P82: =VLOOKUP(F5,'Summary for Prints'!A:AC,29,FALSE) ->  | Q82: =P82-H82 -> 
D83: % of NOR | E83: Amount per pupil | G83: Number of Pupils | H83: Total (£) | J83: Total (£)
B84: 5) Mobility | C84: Primary pupils included in the October School Census who did not start in September (Last 3 academic years) | D84: =IFERROR(G84/G58,0) -> 0 | E84: ='APT Proforma'!E30 -> 925 | G84: =IFERROR(VLOOKUP($F$5,'APT Adjusted Factors'!E:BN,61,FALSE),0) -> 0 | H84: =$G84*$E84 -> 0 | I84: 1 | J84: =I84*H84 -> 0 | P84: =VLOOKUP(F5,'Summary for Prints'!A:AH,33,FALSE) ->  | Q84: =P84-H84 -> 
B85: Mobility is calculated after deducting 6% threshold level | C85: Secondary pupils included in the October School Census who did not start in September (Last 3 academic years) | D85: =IFERROR(G85/(G59+G60),0) -> 0 | E85: ='APT Proforma'!F30 -> 1330 | G85: =IFERROR(VLOOKUP($F$5,'APT Adjusted Factors'!E:BN,62,FALSE),0) -> 0 | H85: =$G85*$E85 -> 0 | I85: 1 | J85: =I85*H85 -> 0 | P85: =VLOOKUP(F5,'Summary for Prints'!A:AH,34,FALSE) ->  | Q85: =P85-H85 -> 
D86: Amount of lump sum | G86: Number | H86: Total (£)
B87: 6) Lump Sum | E87: =IFERROR(VLOOKUP($F$5,'Summary for Prints'!A:AI,35,FALSE),0) -> 0 | G87: 1 | H87: =$G87*$E87 -> 0 | P87: =VLOOKUP(F5,'Summary for Prints'!A:AI,35,FALSE) ->  | Q87: =P87-E87 -> 
D88: Amount of split site funding | G88: Number | H88: Total (£)
B89: 7) Split Site | E89: 0 | G89: 1 | H89: =$G89*$E89 -> 0 | P89: =VLOOKUP(F5,'Summary for Prints'!A:AL,38,FALSE) ->  | Q89: =P89-E89 -> 
D90: Amount of PFI funding | G90: Number | H90: Total (£)
B91: PFI to be paid back to the LA | E91: =IFERROR(VLOOKUP($F$5,'Summary for Prints'!A:AN,40,FALSE),0) -> 0 | G91: 1 | H91: =$G91*$E91 -> 0 | P91: =IFERROR(VLOOKUP($F$5,'Summary for Prints'!A:AN,40,FALSE),0) -> 0 | Q91: =P91-E91 -> 0
D92: MFG Adjustments | G92: Number | H92: Total (£)
B93: Minimum Funding level per pupil / MFG (2%) / Capping (4.73%) & Scaling (100%) | E93: =IFERROR(VLOOKUP($F$5,'Summary for Prints'!A:BP,56,FALSE),0)+IFERROR(VLOOKUP($F$5,'Summary for Prints'!A:BP,57,FALSE),0)+IFERROR(VLOOKUP($F$5,'Summary for Prints'!A:BP,68,FALSE),0) -> 0 | G93: 1 | H93: =$G93*$E93 -> 0 | J93: Total Notional SEN within the School Budget | P93: =IFERROR(VLOOKUP($F$5,'Summary for Prints'!A:BP,56,FALSE),0)+IFERROR(VLOOKUP($F$5,'Summary for Prints'!A:BP,57,FALSE),0)+IFERROR(VLOOKUP($F$5,'Summary for Prints'!A:BP,68,FALSE),0) -> 0 | Q93: =P93-E93 -> 0
H94: Total (£)
B95: Schools Block Total | H95: =H61+H76+H78+H79+H81+H82+H84+H85+H87+H89+H91+H93+H65 -> 0 | J95: =J61+J76+J78+J79+J81+J82+J84+J85+J87+J89+J91+J65 -> 0 | P95: =IFERROR(VLOOKUP($F$5,'Summary for Prints'!A:CA,79,FALSE),0) -> 0 | Q95: =P95-H95 -> 0
B99: Total School Budget INCLUDING Early Years, Schools Block and High Needs (excl other LA Top up) | I99: =$H25+$H42+$H95 -> 0 | P99: =VLOOKUP(F5,'Summary for Prints'!A:CJ,87,FALSE) ->  | Q99: =P99-I99 -> 
B101: NNDR RATES (to be paid by Schools)
B102: RATES 2022-23 (NFF NNDR indicative allocation) | E102: =IFERROR(VLOOKUP($F$5,'Summary for Prints'!A:BZ,78,FALSE),0) -> 0 | G102: 1 | I102: =$G102*$E102 -> 0 | P102: =IFERROR(VLOOKUP($F$5,'Summary for Prints'!A:CA,78,FALSE),0) -> 0 | Q102: =P102-I102 -> 0
B104: Total School Budget INCLUDING Rates 2022-23 (NFF indicative allocation) | I104: =I99+I102 -> 0 | P104: =IFERROR(VLOOKUP($F$5,'Summary for Prints'!A:CJ,88,FALSE),0) -> 0 | Q104: =P104-I104 -> 0
C106: De-delegation from Maintained Schools 2022-23
D107: Primary Rate | E107: Secondary Rate | F107: Primary net NOR | G107: Secondary Net NOR | H107: Total (£)
B108: CFR code E23 | C108: Contingencies (SIFD & Contingencies) | D108: ='De-del'!G3 -> 6.44 | E108: ='De-del'!H4 -> 6.44 | F108: =IFERROR(VLOOKUP($F$5,'De-del'!A:F,5,FALSE),0) -> 0 | G108: =IFERROR(VLOOKUP($F$5,'De-del'!A:F,6,FALSE),0) -> 0 | H108: =D108*F108+E108*G108 -> 0
D109: Rate | E109: Rate | F109: Prim Net NOR | G109: Sec Net NOR | H109: Total (£)
B110: CFR code E23 | C110: Insurance | D110: ='De-del'!I3 -> 13.948 | E110: ='De-del'!J4 -> 13.948 | F110: =F108 -> 0 | G110: =G108 -> 0 | H110: =D110*F110+E110*G110 -> 0
D111: Rate | E111: Rate | F111: Prim Net NOR | G111: Sec Net NOR | H111: Total (£)
B112: CFR code E19 | C112: Staff Costs Supply | D112: ='De-del'!K3 -> 23.66 | E112: ='De-del'!L4 -> 23.66 | F112: =F108 -> 0 | G112: =G108 -> 0 | H112: =D112*F112+E112*G112 -> 0
D113: Rate | E113: Rate | F113: Prim Net NOR | G113: Sec Net NOR | H113: Total (£)
B114: CFR code E27 | C114: Support UAG and Bilingual | D114: ='De-del'!M3 -> 14.17 | E114: ='De-del'!N4 -> 14.17 | F114: =F108 -> 0 | G114: =G108 -> 0 | H114: =D114*F114+E114*G114 -> 0
D115: Rate | E115: Rate | F115: Prim Net NOR | G115: Sec Net NOR | H115: Total (£)
B116: CFR code E27 | C116: Behaviour Support | D116: ='De-del'!O3 -> 11.18 | E116: ='De-del'!P4 -> 0 | F116: =F108 -> 0 | G116: 0 | H116: =D116*F116+E116*G116 -> 0
H117: Total (£)
B118: CFR Code I01 | C118: LA Services De-delegated from maintained schools | H118: =H108+H110+H112+H114+H116 -> 0 | P118: =_xlfn.IFS(H5="M",VLOOKUP(F5,'De-del'!A:U,21,FALSE),F5="All",VLOOKUP(F5,'De-del'!A:U,21,FALSE),F5<>"All",0) -> 0 | Q118: =P118-H118 -> 0
C123: Academies & other non maintained Schools - to be confirmed
D124: Primary Rate | E124: Secondary Rate | F124: Primary net NOR | G124: Secondary Net NOR | H124: Total (£)
C125: Staff Costs Supply | D125: -21.14 | E125: -21.14 | F125: =IF($H$118>0,,L$61) -> 0 | G125: =IF($H$118>0,,M$61) -> 0 | H125: =D125*F125+E125*G125 -> 0
D126: Rate | E126: Rate | F126: Prim Net NOR | G126: Sec Net NOR | H126: Total (£)
C127: Support UAG and Bilingual | D127: -9.7 | E127: -11.93 | F127: =IF($H$118>0,,L$61) -> 0 | G127: =IF($H$118>0,,M$61) -> 0 | H127: =D127*F127+E127*G127 -> 0
D128: Rate | E128: Rate | F128: Prim Net NOR | G128: Sec Net NOR | H128: Total (£)
C129: Behaviour Support - Secondary Hard to Place & Support to Inclusion | D129: -21.89 | E129: -16.8 | F129: =IF($H$118>0,,L$61) -> 0 | G129: =IF($H$118>0,,M$61) -> 0 | H129: =D129*F129+E129*G129 -> 0
H130: Total (£)
C131: LA Services to be Invoiced to non maintained schools | H131: =H129+H127+H125 -> 0

Sheet Special Schools & PRU
A1: Special School Budgets 2022/23
A2: Please select your school in the cell below
A3: All Specials
C4: DFE
C5: =VLOOKUP($A$3,'Special Schools List'!A:C,3,FALSE) -> All
A7: High Needs Formula Indicative 2022/23
B8: Places | C8: Rate | D8: Total (£)
A9: Element 1 & 2 (Place led funding) - Special Schools Pre 16 | B9: =SUMIF('Special Schools 2022-23'!C:C,C5,'Special Schools 2022-23'!I:I) -> 690.0833333 | C9: 10000 | D9: =C9*B9 -> 6900833.333
B10: Places | C10: Rate | D10: Total (£)
A11: Element 1 & 2 (Place led funding) - Special Schools Post 16 | B11: =SUMIF('Special Schools 2022-23'!C:C,C5,'Special Schools 2022-23'!J:J) -> 116 | C11: 10000 | D11: =C11*B11 -> 1160000
B12: Places | D12: Total (£)
A13: Element 1 & 2 (Place led funding) - Alternative Provision | B13: =SUMIF('Special Schools 2022-23'!C:C,C5,'Special Schools 2022-23'!K:K) -> 100 | C13: 10000 | D13: =B13*C13 -> 1000000
D14: Total (£)
A15: Teacher Pay and Pension Grant | B15: =B9+B11+B13 -> 906.0833333 | C15: 660 | D15: =C15*B15 -> 598015
A17: Element 3 - Derby City Pupils (banding) funding Pre 16* | B17: See separate breakdown sheet | D17: =SUMIF('Special Schools 2022-23'!C:C,$C$5,'Special Schools 2022-23'!V:V) -> 8498688
D18: Total (£)
A19: Element 3 - Derby City Pupils (banding) funding Post 16* | B19: See separate breakdown sheet | D19: =SUMIF('Special Schools 2022-23'!C:C,$C$5,'Special Schools 2022-23'!W:W) -> 999129
D20: Total (£)
A21: Residential Places | B21: See separate breakdown sheet | D21: =SUMIF('Special Schools 2022-23'!C:C,$C$5,'Special Schools 2022-23'!X:X) -> 234360
D22: Total (£)
A23: Other - Exceptional Payments | B23: See separate breakdown sheet | D23: =SUMIF('Special Schools 2022-23'!C:C,$C$5,'Special Schools 2022-23'!Y:Y) -> 622441
D24: Total (£)
A25: MFG | D25: =SUMIF('Special Schools 2022-23'!C:C,$C$5,'Special Schools 2022-23'!Z:Z) -> 20959
D26: Total (£)
A27: PFI | D27: =SUMIF('Special Schools 2022-23'!C:C,$C$5,'Special Schools 2022-23'!AA:AA) -> 94219.29285
D28: Total (£)
A29: High Needs Funding from Derby City LA / EFA* | D29: =D9+D11+D13+D17+D19+D23+D27+D21+D25+D15 -> 20128644.63 | J29: =SUMIF('Special Schools 2022-23'!C:C,'Special Schools & PRU'!C5,'Special Schools 2022-23'!AB:AB) -> 20128644.63 | K29: =D29-J29 -> 0
B30: No.of Pupils | D30: Total (£)
A31: Element 3 - Other LA (banding) funding (Academies to reclaim Element 3 from other LA's directly)* | B31: =SUMIF('Special Schools 2022-23'!C:C,C5,'Special Schools 2022-23'!N:N)+SUMIF('Special Schools 2022-23'!C:C,C5,'Special Schools 2022-23'!O:O) -> 67 | C31: See separate breakdown sheet | D31: =SUMIF('Special Schools 2022-23'!$C:$C,$C$5,'Special Schools 2022-23'!$AC:$AC) -> 596545 | J31: =VLOOKUP(C5,'Special Schools 2022-23'!C:AC,27,FALSE) -> 596545 | K31: =D31-J31 -> 0
A33: *Please note that High Needs top up funding follows the pupil, therefore funding will be adjusted in year where there are pupil movements

Sheet Summary for Prints (hidden)
D1: 4 | E1: 5 | F1: 6 | G1: 7 | H1: 8 | I1: 9 | J1: 10 | K1: 11 | L1: 12 | M1: 13 | N1: 14 | O1: 15 | P1: 16 | Q1: 17 | R1: 18 | S1: 19 | T1: 20 | U1: 21 | V1: 22 | W1: 23 | X1: 24 | Y1: 25 | Z1: 26 | AA1: 27 | AB1: 28 | AC1: 29 | AD1: 30 | AE1: 31 | AF1: 32 | AG1: 33 | AH1: 34 | AI1: 35 | AJ1: 36 | AK1: 37 | AL1: 38 | AM1: 39 | AN1: 40 | AO1: 41 | AP1: 42 | AQ1: 43 | AR1: 44 | AS1: 45 | AT1: 46 | AU1: 47 | AV1: 48 | AW1: 49 | AX1: 50 | AY1: 51 | AZ1: 52 | BA1: 53 | BB1: 54 | BC1: 55 | BD1: 56 | BE1: 57 | BF1: 58 | BG1: 59 | BH1: 60 | BI1: 61 | BJ1: 62 | BK1: 63 | BL1: 64 | BM1: 65 | BN1: 66 | BO1: 67 | BP1: 68 | BQ1: 69 | BR1: 70 | BS1: 71 | BT1: 72 | BU1: 73 | BV1: 74 | BW1: 75 | BX1: 76 | BY1: 77 | BZ1: 78 | CA1: 79 | CB1: 80 | CC1: 81 | CD1: 82 | CE1: 83 | CF1: 84 | CG1: 85 | CH1: 86 | CI1: 87 | CJ1: 88 | CK1: 89
A2: URN | B2: LAESTAB | C2: School Name | D2: NOR (from Adjusted Factors column O) | E2: NOR Primary (from Adjusted Factors column P) | F2: NOR Secondary (from Adjusted Factors column S) | G2: NOR KS3 | H2: NOR KS4 | I2: Basic Entitlement (Primary) | J2: Basic Entitlement (KS3) | K2: Basic Entitlement (KS4) | L2: Free School Meals (Primary) | M2: Free School Meals (Secondary) | N2: Free School Meals Ever 6 (Primary) | O2: Free School Meals Ever 6 (Secondary) | P2: IDACI (P F) | Q2: IDACI (P E) | R2: IDACI (P D) | S2: IDACI (P C) | T2: IDACI (P B) | U2: IDACI (P A) | V2: IDACI (S F) | W2: IDACI (S E) | X2: IDACI (S D) | Y2: IDACI (S C) | Z2: IDACI (S B) | AA2: IDACI (S A) | AB2: EAL (P) | AC2: EAL (S) | AD2: LAC | AE2: Low Attainment (P) | AF2: Low Attainment (S) | AG2: Mobility (P) | AH2: Mobility (S) | AI2: Lump Sum | AJ2: Sparsity Funding | AK2: London Fringe | AL2: Split Sites | AM2: Rates | AN2: PFI | AO2: 22-23 Approved Exceptional Circumstance 1: Reserved for Additional lump sum for schools amalgamated during FY21-22 | AP2: 22-23 Approved Exceptional Circumstance 2: Reserved for additional sparsity lump sum | AQ2: 22-23 Approved Exceptional Circumstance 3 | AR2: 22-23 Approved Exceptional Circumstance 4 | AS2: 22-23 Approved Exceptional Circumstance 5 | AT2: 22-23 Approved Exceptional Circumstance 6 | AU2: 22-23 Approved Exceptional Circumstance 7 | AV2: Basic Entitlement Total | AW2: AEN Total | AX2: School Factors total | AY2: Notional SEN Budget | AZ2: Total Allocation | BA2: Minimum per pupil funding: adjusted total allocation (excluding premises costs) | BB2: Minimum per pupil funding: minimum per pupil rate | BC2: Minimum per pupil funding: minimum funding level | BD2: Minimum per pupil funding: additional funding to meet the primary minimum funding level | BE2: Minimum per pupil funding: additional funding to meet the secondary minimum funding level | BF2: Total allocation including minimum funding level adjustment | BG2: Primary Funding | BH2: Secondary Funding | BI2: 21-22 MFG budget using minimum funding level | BJ2: Minimum allocation after capping/scaling | BK2: 22-23 MFG Budget | BL2: 22-23 MFG Unit Value | BM2: 21-22 MFG Unit Value | BN2: MFG % change | BO2: MFG Value adjustment | BP2: 22-23 MFG Adjustment | BQ2: 22-23 Post MFG Budget | BR2: Minimum per pupil funding: post MFG minimum funding per pupil rate | BS2: Minimum per pupil funding: per pupil rate is greater than or equal to the minimum entered on the Proforma sheet? | BT2: 22-23 Post MFG per pupil Budget | BU2: Year on year % Change | BV2: De-delegation | BW2: Post De-delegation budget | BX2: Education functions for maintained schools | BY2: Post De-delegation and Education functions budget | BZ2: 22-23 NFF NNDR allocation | CA2: Post De-delegation and Education functions budget after deduction of 22-23 NFF NNDR allocation | CC2: ERS E1 Empty Places | CD2: ERS Element 2 Pre & Post 16 | CE2: ERS Element 3 Pre & Post 16 | CF2: ERS Other | CG2: Schools with Nurseries, TA, ERS | CH2: Contingency | CI2: Total (excl. Rates) | CJ2: Total Incl. Rates
A3: All | D3: =SUM(D4:D95) -> 39943.66667 | E3: 23318.5 | F3: 16625.16667 | G3: 10289.83333 | H3: 6335.333333 | I3: 75015614.5 | J3: 46674684 | K3: 32386224 | L3: 3453129.596 | M3: 1986332.302 | N3: 4595020.102 | O3: 4789932.201 | P3: 615031.9924 | Q3: 783829.466 | R3: 854700.7897 | S3: 1105445.735 | T3: 1005702.228 | U3: 957499.7061 | V3: 598687.2011 | W3: 826538.3051 | X3: 793387.5976 | Y3: 1052070.894 | Z3: 1011516.035 | AA3: 907390.1138 | AB3: 2274457.755 | AC3: 760835.6566 | AD3: 0 | AE3: 7836186.118 | AF3: 7048798.136 | AG3: 275466.1899 | AH3: 158659.7508 | AI3: 10795700 | AJ3: =SUM(AJ4:AJ95) -> 0 | AK3: 0 | AL3: 0 | AM3: 1394991.235 | AN3: 1187343 | AO3: 0 | AP3: 0 | AQ3: 0 | AR3: 0 | AS3: 0 | AT3: 0 | AU3: 0 | AV3: 154076522.5 | AW3: 43690617.87 | AX3: 13378034.23 | AY3: 32151982.65 | AZ3: 211145174.6 | BA3: 208562840.4 | BD3: =SUM(BD4:BD95) -> 1502229.379 | BE3: 378054.779 | BF3: 213025458.8 | BG3: 110309541.1 | BH3: 102715917.7 | BI3: 193403765.6 | BK3: =SUM(BK4:BK95) -> 200834767.5 | BL3: =SUM(BL4:BL95) -> 411855.8334 | BM3: =SUM(BM4:BM95) -> 396227.8634 | BP3: =SUM(BP4:BP95) -> -265996.8514 | BQ3: =SUM(BQ4:BQ95) -> 212759461.9 | BV3: =SUM(BV4:BV95) -> -694105.021 | BW3: 212065356.9 | BX3: 0 | BY3: 212065356.9 | BZ3: =SUM(BZ4:BZ103) -> 1468718.235 | CA3: 210670365.7 | CC3: =SUM(CC4:CC325) -> 0 | CD3: 1088500 | CE3: 1334394.861 | CF3: 186064.1667 | CG3: =SUM(CG4:CG325) -> 16148055 | CH3: =SUM(CH4:CH325) -> 0 | CI3: =SUM(CI4:CI325) -> 229427379.7 | CJ3: =SUM(CJ4:CJ325) -> 230896097.9
A4: 2027 | B4: 8312027 | C4: Castleward Primary School | D4: 37.5 | E4: 37.5 | F4: 0 | G4: =VLOOKUP(B4,'APT Adjusted Factors'!F:W,17,FALSE) -> 0 | H4: =VLOOKUP(B4,'APT Adjusted Factors'!F:W,18,FALSE) -> 0 | I4: 120637.5 | J4: 0 | K4: 0 | L4: 11750 | M4: 0 | N4: 14750 | O4: 0 | P4: 1375 | Q4: 6750 | R4: 0 | S4: 2875 | T4: 0 | U4: 0 | V4: 0 | W4: 0 | X4: 0 | Y4: 0 | Z4: 0 | AA4: 0 | AB4: 0 | AC4: 0 | AD4: 0 | AE4: 0 | AF4: 0 | AG4: 0 | AH4: 0 | AI4: 121300 | AJ4: 0 | AK4: 0 | AL4: 0 | AM4: 2333.3333 | AN4: 0 | AO4: 0 | AP4: 0 | AQ4: 0 | AR4: 0 | AS4: 0 | AT4: 0 | AU4: 0 | AV4: 120637.5 | AW4: 37500 | AX4: 123633.3333 | AY4: 27695.25 | AZ4: 281770.8333 | BA4: 279437.5 | BB4: 4265 | BC4: 159937.5 | BD4: 0 | BE4: 0 | BF4: 281770.8333 | BG4: 281770.8333 | BH4: 0 | BI4: 162270.8333 | BJ4: 38637.5 | BK4: 158137.5 | BL4: 4217 | BM4: 3803.771654 | BN4: 0.1086364756 | BO4: 0 | BP4: 0 | BQ4: 281770.8333 | BR4: 7451.666667 | BS4: Y | BT4: 7513.888888 | BU4: -0.04457174476 | BV4: 0 | BW4: 281770.8333 | BX4: 0 | BY4: 281770.8333 | BZ4: 2333.3333 | CA4: 279437.5 | CD4: =IFERROR(VLOOKUP(A4,'ERS 2022-23'!B:P,15,FALSE),0) -> 0 | CE4: =IFERROR(VLOOKUP(A4,'ERS 2022-23'!B:R,17,FALSE),0) -> 0 | CF4: =IFERROR(VLOOKUP(A4,'ERS 2022-23'!B:S,18,FALSE),0)+IFERROR(VLOOKUP(A4,'ERS 2022-23'!B:T,19,FALSE),0) -> 0 | CG4: =IFERROR(ROUND((VLOOKUP(A4,'2022-23 Nursery Budget'!C:AJ,34,FALSE)),0),0) -> 49020 | CI4: =SUM(CA4:CH4) -> 328457.5 | CJ4: =CI4+BZ4 -> 330790.8333
A5: 2001 | B5: 8312001 | C5: Roe Farm Primary School | D5: 371 | E5: 371 | F5: 0 | G5: =VLOOKUP(B5,'APT Adjusted Factors'!F:W,17,FALSE) -> 0 | H5: =VLOOKUP(B5,'APT Adjusted Factors'!F:W,18,FALSE) -> 0 | I5: 1193507 | J5: 0 | K5: 0 | L5: 71910 | M5: 0 | N5: 99120 | O5: 0 | P5: 14740 | Q5: 9990 | R5: 11760 | S5: 460 | T5: 44590 | U5: 61440 | V5: 0 | W5: 0 | X5: 0 | Y5: 0 | Z5: 0 | AA5: 0 | AB5: 6257.164179 | AC5: 0 | AD5: 0 | AE5: 135521.4804 | AF5: 0 | AG5: 7159.5 | AH5: 0 | AI5: 121300 | AJ5: 0 | AK5: 0 | AL5: 0 | AM5: 30250 | AN5: 0 | AO5: 0 | AP5: 0 | AQ5: 0 | AR5: 0 | AS5: 0 | AT5: 0 | AU5: 0 | AV5: 1193507 | AW5: 462948.1445 | AX5: 151550 | AY5: 311346.1811 | AZ5: 1808005.145 | BA5: 1777755.145 | BB5: 4265 | BC5: 1582315 | BD5: 0 | BE5: 0 | BF5: 1808005.145 | BG5: 1808005.145 | BH5: 0 | BI5: 1612565 | BJ5: 1461015 | BK5: 1656455.145 | BL5: 4464.838665 | BM5: 4252.776374 | BN5: 0.04986443475 | BO5: -0.002564434754 | BP5: -4046.113956 | BQ5: 1803959.031 | BR5: 4780.886875 | BS5: Y | BT5: 4862.423263 | BU5: 0.04717568162 | BV5: -25746.658 | BW5: 1778212.373 | BX5: 0 | BY5: 1778212.373 | BZ5: 30250 | CA5: 1747962.373 | CD5: =IFERROR(VLOOKUP(A5,'ERS 2022-23'!B:P,15,FALSE),0) -> 0 | CE5: =IFERROR(VLOOKUP(A5,'ERS 2022-23'!B:R,17,FALSE),0) -> 0 | CF5: =IFERROR(VLOOKUP(A5,'ERS 2022-23'!B:S,18,FALSE),0)+IFERROR(VLOOKUP(A5,'ERS 2022-23'!B:T,19,FALSE),0) -> 0 | CG5: =IFERROR(ROUND((VLOOKUP(A5,'2022-23 Nursery Budget'!C:AJ,34,FALSE)),0),0) -> 136210 | CI5: 1884172.373 | CJ5: 1914422.373
A6: 2003 | B6: 8312003 | C6: Parkview Primary School | D6: 212 | E6: 212 | F6: 0 | G6: =VLOOKUP(B6,'APT Adjusted Factors'!F:W,17,FALSE) -> 0 | H6: =VLOOKUP(B6,'APT Adjusted Factors'!F:W,18,FALSE) -> 0 | I6: 682004 | J6: 0 | K6: 0 | L6: 5640 | M6: 0 | N6: 7670 | O6: 0 | P6: 1540 | Q6: 270 | R6: 840 | S6: 460 | T6: 0 | U6: 640 | V6: 0 | W6: 0 | X6: 0 | Y6: 0 | Z6: 0 | AA6: 0 | AB6: 1974.395604 | AC6: 0 | AD6: 0 | AE6: 40149.72067 | AF6: 0 | AG6: 0 | AH6: 0 | AI6: 121300 | AJ6: 0 | AK6: 0 | AL6: 0 | AM6: 31750 | AN6: 0 | AO6: 0 | AP6: 0 | AQ6: 0 | AR6: 0 | AS6: 0 | AT6: 0 | AU6: 0 | AV6: 682004 | AW6: 59184.11627 | AX6: 153050 | AY6: 102797.652 | AZ6: 894238.1163 | BA6: 862488.1163 | BB6: 4265 | BC6: 904180 | BD6: 41691.88373 | BE6: 0 | BF6: 935930 | BG6: 935930 | BH6: 0 | BI6: 935930 | BJ6: 782880 | BK6: 782880 | BL6: 3692.830189 | BM6: 3607.830189 | BN6: 0.02355986717 | BO6: 0 | BP6: 0 | BQ6: 935930 | BR6: 4265 | BS6: Y | BT6: 4414.764151 | BU6: 0.01963155429 | BV6: -14712.376 | BW6: 921217.624 | BX6: 0 | BY6: 921217.624 | BZ6: 31750 | CA6: 889467.624 | CD6: =IFERROR(VLOOKUP(A6,'ERS 2022-23'!B:P,15,FALSE),0) -> 0 | CE6: =IFERROR(VLOOKUP(A6,'ERS 2022-23'!B:R,17,FALSE),0) -> 0 | CF6: =IFERROR(VLOOKUP(A6,'ERS 2022-23'!B:S,18,FALSE),0)+IFERROR(VLOOKUP(A6,'ERS 2022-23'!B:T,19,FALSE),0) -> 0 | CG6: =IFERROR(ROUND((VLOOKUP(A6,'2022-23 Nursery Budget'!C:AJ,34,FALSE)),0),0) -> 108898 | CI6: 998365.624 | CJ6: 1030115.624
A7: 2005 | B7: 8312005 | C7: Ashgate Primary School | D7: 300 | E7: 300 | F7: 0 | G7: =VLOOKUP(B7,'APT Adjusted Factors'!F:W,17,FALSE) -> 0 | H7: =VLOOKUP(B7,'APT Adjusted Factors'!F:W,18,FALSE) -> 0 | I7: 965100 | J7: 0 | K7: 0 | L7: 52640 | M7: 0 | N7: 69030 | O7: 0 | P7: 13860 | Q7: 26190 | R7: 1260 | S7: 14260 | T7: 23520 | U7: 24320 | V7: 0 | W7: 0 | X7: 0 | Y7: 0 | Z7: 0 | AA7: 0 | AB7: 23448.6166 | AC7: 0 | AD7: 0 | AE7: 92056.03448 | AF7: 0 | AG7: 12025 | AH7: 0 | AI7: 121300 | AJ7: 0 | AK7: 0 | AL7: 0 | AM7: 23750 | AN7: 0 | AO7: 0 | AP7: 0 | AQ7: 0 | AR7: 0 | AS7: 0 | AT7: 0 | AU7: 0 | AV7: 965100 | AW7: 352609.6511 | AX7: 145050 | AY7: 249018.6231 | AZ7: 1462759.651 | BA7: 1439009.651 | BB7: 4265 | BC7: 1279500 | BD7: 0 | BE7: 0 | BF7: 1462759.651 | BG7: 1462759.651 | BH7: 0 | BI7: 1303250 | BJ7: 1158200 | BK7: 1317709.651 | BL7: 4392.365504 | BM7: 4235.866065 | BN7: 0.03694626698 | BO7: 0 | BP7: 0 | BQ7: 1462759.651 | BR7: 4796.698837 | BS7: Y | BT7: 4875.865504 | BU7: 0.03026929818 | BV7: -20819.4 | BW7: 1441940.251 | BX7: 0 | BY7: 1441940.251 | BZ7: 23750 | CA7: 1418190.251 | CD7: =IFERROR(VLOOKUP(A7,'ERS 2022-23'!B:P,15,FALSE),0) -> 0 | CE7: =IFERROR(VLOOKUP(A7,'ERS 2022-23'!B:R,17,FALSE),0) -> 0 | CF7: =IFERROR(VLOOKUP(A7,'ERS 2022-23'!B:S,18,FALSE),0)+IFERROR(VLOOKUP(A7,'ERS 2022-23'!B:T,19,FALSE),0) -> 0 | CG7: =IFERROR(ROUND((VLOOKUP(A7,'2022-23 Nursery Budget'!C:AJ,34,FALSE)),0),0) -> 0 | CI7: 1418190.251 | CJ7: 1441940.251
A8: 2405 | B8: 8312405 | C8: Becket Primary School | D8: 204 | E8: 204 | F8: 0 | G8: =VLOOKUP(B8,'APT Adjusted Factors'!F:W,17,FALSE) -> 0 | H8: =VLOOKUP(B8,'APT Adjusted Factors'!F:W,18,FALSE) -> 0 | I8: 656268 | J8: 0 | K8: 0 | L8: 46060 | M8: 0 | N8: 64900 | O8: 0 | P8: 1100 | Q8: 22680 | R8: 7560 | S8: 14720 | T8: 28910 | U8: 640 | V8: 0 | W8: 0 | X8: 0 | Y8: 0 | Z8: 0 | AA8: 0 | AB8: 36432.75862 | AC8: 0 | AD8: 0 | AE8: 78317.69231 | AF8: 0 | AG8: 2553 | AH8: 0 | AI8: 121300 | AJ8: 0 | AK8: 0 | AL8: 0 | AM8: 18750 | AN8: 0 | AO8: 0 | AP8: 0 | AQ8: 0 | AR8: 0 | AS8: 0 | AT8: 0 | AU8: 0 | AV8: 656268 | AW8: 303873.4509 | AX8: 140050 | AY8: 189269.3914 | AZ8: 1100191.451 | BA8: 1081441.451 | BB8: 4265 | BC8: 870060 | BD8: 0 | BE8: 0 | BF8: 1100191.451 | BG8: 1100191.451 | BH8: 0 | BI8: 888810 | BJ8: 748760 | BK8: 960141.4509 | BL8: 4706.57574 | BM8: 4475.993868 | BN8: 0.05151523401 | BO8: -0.00421523401 | BP8: -3848.941763 | BQ8: 1096342.509 | BR8: 5282.316221 | BS8: Y | BT8: 5374.227986 | BU8: 0.04168569968 | BV8: -14157.192 | BW8: 1082185.317 | BX8: 0 | BY8: 1082185.317 | BZ8: 18750 | CA8: 1063435.317 | CD8: =IFERROR(VLOOKUP(A8,'ERS 2022-23'!B:P,15,FALSE),0) -> 0 | CE8: =IFERROR(VLOOKUP(A8,'ERS 2022-23'!B:R,17,FALSE),0) -> 0 | CF8: =IFERROR(VLOOKUP(A8,'ERS 2022-23'!B:S,18,FALSE),0)+IFERROR(VLOOKUP(A8,'ERS 2022-23'!B:T,19,FALSE),0) -> 0 | CG8: =IFERROR(ROUND((VLOOKUP(A8,'2022-23 Nursery Budget'!C:AJ,34,FALSE)),0),0) -> 95935 | CI8: 1159370.317 | CJ8: 1178120.317
A9: 2409 | B9: 8312409 | C9: Dale Community Primary School | D9: 553 | E9: 553 | F9: 0 | G9: =VLOOKUP(B9,'APT Adjusted Factors'!F:W,17,FALSE) -> 0 | H9: =VLOOKUP(B9,'APT Adjusted Factors'!F:W,18,FALSE) -> 0 | I9: 1779001 | J9: 0 | K9: 0 | L9: 99170 | M9: 0 | N9: 136290 | O9: 0 | P9: 1540 | Q9: 49410 | R9: 52080 | S9: 35420 | T9: 3920 | U9: 640 | V9: 0 | W9: 0 | X9: 0 | Y9: 0 | Z9: 0 | AA9: 0 | AB9: 122886.318 | AC9: 0 | AD9: 0 | AE9: 249082.028 | AF9: 0 | AG9: 0 | AH9: 0 | AI9: 121300 | AJ9: 0 | AK9: 0 | AL9: 0 | AM9: 37400 | AN9: 0 | AO9: 0 | AP9: 0 | AQ9: 0 | AR9: 0 | AS9: 0 | AT9: 0 | AU9: 0 | AV9: 1779001 | AW9: 750438.346 | AX9: 158700 | AY9: 483908.1802 | AZ9: 2688139.346 | BA9: 2650739.346 | BB9: 4265 | BC9: 2358545 | BD9: 0 | BE9: 0 | BF9: 2688139.346 | BG9: 2688139.346 | BH9: 0 | BI9: 2395945 | BJ9: 2237245 | BK9: 2529439.346 | BL9: 4574.031367 | BM9: 4437.378613 | BN9: 0.03079582933 | BO9: 0 | BP9: 0 | BQ9: 2688139.346 | BR9: 4793.380372 | BS9: Y | BT9: 4861.011476 | BU9: 0.02835518735 | BV9: -38377.094 | BW9: 2649762.252 | BX9: 0 | BY9: 2649762.252 | BZ9: 37400 | CA9: 2612362.252 | CD9: =IFERROR(VLOOKUP(A9,'ERS 2022-23'!B:P,15,FALSE),0) -> 0 | CE9: =IFERROR(VLOOKUP(A9,'ERS 2022-23'!B:R,17,FALSE),0) -> 0 | CF9: =IFERROR(VLOOKUP(A9,'ERS 2022-23'!B:S,18,FALSE),0)+IFERROR(VLOOKUP(A9,'ERS 2022-23'!B:T,19,FALSE),0) -> 0 | CG9: =IFERROR(ROUND((VLOOKUP(A9,'2022-23 Nursery Budget'!C:AJ,34,FALSE)),0),0) -> 0 | CI9: 2612362.252 | CJ9: 2649762.252
A10: 2424 | B10: 8312424 | C10: Pear Tree Infant School | D10: 271 | E10: 271 | F10: 0 | G10: =VLOOKUP(B10,'APT Adjusted Factors'!F:W,17,FALSE) -> 0 | H10: =VLOOKUP(B10,'APT Adjusted Factors'!F:W,18,FALSE) -> 0 | I10: 871807 | J10: 0 | K10: 0 | L10: 75670 | M10: 0 | N10: 95580 | O10: 0 | P10: 6160 | Q10: 5670 | R10: 42840 | S10: 50140 | T10: 1470 | U10: 4480 | V10: 0 | W10: 0 | X10: 0 | Y10: 0 | Z10: 0 | AA10: 0 | AB10: 118238.8056 | AC10: 0 | AD10: 0 | AE10: 85576.05366 | AF10: 0 | AG10: 1609.5 | AH10: 0 | AI10: 121300 | AJ10: 0 | AK10: 0 | AL10: 0 | AM10: 14929 | AN10: 0 | AO10: 0 | AP10: 0 | AQ10: 0 | AR10: 0 | AS10: 0 | AT10: 0 | AU10: 0 | AV10: 871807 | AW10: 487434.3592 | AX10: 136229 | AY10: 283155.0655 | AZ10: 1495470.359 | BA10: 1480541.359 | BB10: 4265 | BC10: 1155815 | BD10: 0 | BE10: 0 | BF10: 1495470.359 | BG10: 1495470.359 | BH10: 0 | BI10: 1170744 | BJ10: 1034515 | BK10: 1359241.359 | BL10: 5015.650772 | BM10: 4805.138284 | BN10: 0.04380987095 | BO10: 0 | BP10: 0 | BQ10: 1495470.359 | BR10: 5463.252248 | BS10: Y | BT10: 5518.340809 | BU10: 0.03590185039 | BV10: -18806.858 | BW10: 1476663.501 | BX10: 0 | BY10: 1476663.501 | BZ10: 14929 | CA10: 1461734.501 | CD10: =IFERROR(VLOOKUP(A10,'ERS 2022-23'!B:P,15,FALSE),0) -> 0 | CE10: =IFERROR(VLOOKUP(A10,'ERS 2022-23'!B:R,17,FALSE),0) -> 0 | CF10: =IFERROR(VLOOKUP(A10,'ERS 2022-23'!B:S,18,FALSE),0)+IFERROR(VLOOKUP(A10,'ERS 2022-23'!B:T,19,FALSE),0) -> 0 | CG10: =IFERROR(ROUND((VLOOKUP(A10,'2022-23 Nursery Budget'!C:AJ,34,FALSE)),0),0) -> 0 | CI10: 1461734.501 | CJ10: 1476663.501
A11: 2429 | B11: 8312429 | C11: Rosehill Infant and Nursery School | D11: 138 | E11: 138 | F11: 0 | G11: =VLOOKUP(B11,'APT Adjusted Factors'!F:W,17,FALSE) -> 0 | H11: =VLOOKUP(B11,'APT Adjusted Factors'!F:W,18,FALSE) -> 0 | I11: 443946 | J11: 0 | K11: 0 | L11: 23500 | M11: 0 | N11: 29500 | O11: 0 | P11: 7700 | Q11: 2700 | R11: 23100 | S11: 9200 | T11: 2450 | U11: 8320 | V11: 0 | W11: 0 | X11: 0 | Y11: 0 | Z11: 0 | AA11: 0 | AB11: 59913.78947 | AC11: 0 | AD11: 0 | AE11: 43577.47382 | AF11: 0 | AG11: 0 | AH11: 0 | AI11: 121300 | AJ11: 0 | AK11: 0 | AL11: 0 | AM11: 14100 | AN11: 0 | AO11: 0 | AP11: 0 | AQ11: 0 | AR11: 0 | AS11: 0 | AT11: 0 | AU11: 0 | AV11: 443946 | AW11: 209961.2633 | AX11: 135400 | AY11: 130160.7272 | AZ11: 789307.2633 | BA11: 775207.2633 | BB11: 4265 | BC11: 588570 | BD11: 0 | BE11: 0 | BF11: 789307.2633 | BG11: 789307.2633 | BH11: 0 | BI11: 602670 | BJ11: 467270 | BK11: 653907.2633 | BL11: 4738.45843 | BM11: 4557.027301 | BN11: 0.03981348285 | BO11: 0 | BP11: 0 | BQ11: 789307.2633 | BR11: 5617.443937 | BS11: Y | BT11: 5719.61785 | BU11: 0.04044031896 | BV11: -9576.924 | BW11: 779730.3393 | BX11: 0 | BY11: 779730.3393 | BZ11: 14100 | CA11: 765630.3393 | CD11: =IFERROR(VLOOKUP(A11,'ERS 2022-23'!B:P,15,FALSE),0) -> 0 | CE11: =IFERROR(VLOOKUP(A11,'ERS 2022-23'!B:R,17,FALSE),0) -> 0 | CF11: =IFERROR(VLOOKUP(A11,'ERS 2022-23'!B:S,18,FALSE),0)+IFERROR(VLOOKUP(A11,'ERS 2022-23'!B:T,19,FALSE),0) -> 0 | CG11: =IFERROR(ROUND((VLOOKUP(A11,'2022-23 Nursery Budget'!C:AJ,34,FALSE)),0),0) -> 100873 | CI11: 866503.3393 | CJ11: 880603.3393
A12: 2026 | B12: 8312026 | C12: Brackensdale Primary School | D12: 428.5833333 | E12: 428.5833333 | F12: 0 | G12: =VLOOKUP(B12,'APT Adjusted Factors'!F:W,17,FALSE) -> 0 | H12: =VLOOKUP(B12,'APT Adjusted Factors'!F:W,18,FALSE) -> 0 | I12: 1378752.583 | J12: 0 | K12: 0 | L12: 79903.81433 | M12: 0 | N12: 102106.6706 | O12: 0 | P12: 56214.65954 | Q12: 7146.448931 | R12: 855.1306413 | S12: 26224.00633 | T12: 997.6524149 | U12: 32576.40538 | V12: 0 | W12: 0 | X12: 0 | Y12: 0 | Z12: 0 | AA12: 0 | AB12: 15300.66049 | AC12: 0 | AD12: 0 | AE12: 224189.6398 | AF12: 0 | AG12: 0 | AH12: 0 | AI12: 121300 | AJ12: 0 | AK12: 0 | AL12: 0 | AM12: 30150 | AN12: 0 | AO12: 0 | AP12: 0 | AQ12: 0 | AR12: 0 | AS12: 0 | AT12: 0 | AU12: 0 | AV12: 1378752.583 | AW12: 545515.0885 | AX12: 151450 | AY12: 358478.8104 | AZ12: 2075717.672 | BA12: 2045567.672 | BB12: 4265 | BC12: 1827907.917 | BD12: 0 | BE12: 0 | BF12: 2075717.672 | BG12: 2075717.672 | BH12: 0 | BI12: 1858057.917 | BJ12: 1706607.917 | BK12: 1924267.672 | BL12: 4489.833183 | BM12: 4281.880939 | BN12: 0.04856562973 | BO12: -0.001265629732 | BP12: -2322.611298 | BQ12: 2073395.061 | BR12: 4767.439379 | BS12: Y | BT12: 4837.787425 | BU12: 0.04339907984 | BV12: 0 | BW12: 2073395.061 | BX12: 0 | BY12: 2073395.061 | BZ12: 30150 | CA12: 2043245.061 | CD12: =IFERROR(VLOOKUP(A12,'ERS 2022-23'!B:P,15,FALSE),0) -> 290000 | CE12: =IFERROR(VLOOKUP(A12,'ERS 2022-23'!B:R,17,FALSE),0) -> 312000 | CF12: =IFERROR(VLOOKUP(A12,'ERS 2022-23'!B:S,18,FALSE),0)+IFERROR(VLOOKUP(A12,'ERS 2022-23'!B:T,19,FALSE),0) -> 0 | CG12: =IFERROR(ROUND((VLOOKUP(A12,'2022-23 Nursery Budget'!C:AJ,34,FALSE)),0),0) -> 106050 | CI12: 2751295.061 | CJ12: 2781445.061
A13: 2436 | B13: 8312436 | C13: Markeaton Primary School | D13: 417 | E13: 417 | F13: 0 | G13: =VLOOKUP(B13,'APT Adjusted Factors'!F:W,17,FALSE) -> 0 | H13: =VLOOKUP(B13,'APT Adjusted Factors'!F:W,18,FALSE) -> 0 | I13: 1341489 | J13: 0 | K13: 0 | L13: 36660 | M13: 0 | N13: 51920 | O13: 0 | P13: 13420 | Q13: 17820 | R13: 420 | S13: 3220 | T13: 1960 | U13: 12160 | V13: 0 | W13: 0 | X13: 0 | Y13: 0 | Z13: 0 | AA13: 0 | AB13: 13859.11765 | AC13: 0 | AD13: 0 | AE13: 108324.1379 | AF13: 0 | AG13: 0 | AH13: 0 | AI13: 121300 | AJ13: 0 | AK13: 0 | AL13: 0 | AM13: 26650 | AN13: 0 | AO13: 0 | AP13: 0 | AQ13: 0 | AR13: 0 | AS13: 0 | AT13: 0 | AU13: 0 | AV13: 1341489 | AW13: 259763.2556 | AX13: 147950 | AY13: 253210.4652 | AZ13: 1749202.256 | BA13: 1722552.256 | BB13: 4265 | BC13: 1778505 | BD13: 55952.74442 | BE13: 0 | BF13: 1805155 | BG13: 1805155 | BH13: 0 | BI13: 1805155 | BJ13: 1657205 | BK13: 1657205 | BL13: 3974.11271 | BM13: 3889.11271 | BN13: 0.02185588496 | BO13: 0 | BP13: 0 | BQ13: 1805155 | BR13: 4265 | BS13: Y | BT13: 4328.908873 | BU13: 0.02002870527 | BV13: -28938.966 | BW13: 1776216.034 | BX13: 0 | BY13: 1776216.034 | BZ13: 26650 | CA13: 1749566.034 | CD13: =IFERROR(VLOOKUP(A13,'ERS 2022-23'!B:P,15,FALSE),0) -> 24000 | CE13: =IFERROR(VLOOKUP(A13,'ERS 2022-23'!B:R,17,FALSE),0) -> 68940 | CF13: =IFERROR(VLOOKUP(A13,'ERS 2022-23'!B:S,18,FALSE),0)+IFERROR(VLOOKUP(A13,'ERS 2022-23'!B:T,19,FALSE),0) -> 0 | CG13: =IFERROR(ROUND((VLOOKUP(A13,'2022-23 Nursery Budget'!C:AJ,34,FALSE)),0),0) -> 0 | CI13: 1842506.034 | CJ13: 1869156.034
A14: 2439 | B14: 8312439 | C14: Portway Infant School | D14: 212 | E14: 212 | F14: 0 | G14: =VLOOKUP(B14,'APT Adjusted Factors'!F:W,17,FALSE) -> 0 | H14: =VLOOKUP(B14,'APT Adjusted Factors'!F:W,18,FALSE) -> 0 | I14: 682004 | J14: 0 | K14: 0 | L14: 12690 | M14: 0 | N14: 16520 | O14: 0 | P14: 5060 | Q14: 1350 | R14: 1680 | S14: 1380 | T14: 490 | U14: 1280 | V14: 0 | W14: 0 | X14: 0 | Y14: 0 | Z14: 0 | AA14: 0 | AB14: 4548.607595 | AC14: 0 | AD14: 0 | AE14: 66945.10471 | AF14: 0 | AG14: 0 | AH14: 0 | AI14: 121300 | AJ14: 0 | AK14: 0 | AL14: 0 | AM14: 11900 | AN14: 0 | AO14: 0 | AP14: 0 | AQ14: 0 | AR14: 0 | AS14: 0 | AT14: 0 | AU14: 0 | AV14: 682004 | AW14: 111943.7123 | AX14: 133200 | AY14: 121518.9718 | AZ14: 927147.7123 | BA14: 915247.7123 | BB14: 4265 | BC14: 904180 | BD14: 0 | BE14: 0 | BF14: 927147.7123 | BG14: 927147.7123 | BH14: 0 | BI14: 916080 | BJ14: 782880 | BK14: 793947.7123 | BL14: 3745.036379 | BM14: 3633.603604 | BN14: 0.03066728993 | BO14: 0 | BP14: 0 | BQ14: 927147.7123 | BR14: 4317.20619 | BS14: Y | BT14: 4373.338266 | BU14: 0.03300608065 | BV14: -14712.376 | BW14: 912435.3363 | BX14: 0 | BY14: 912435.3363 | BZ14: 11900 | CA14: 900535.3363 | CD14: =IFERROR(VLOOKUP(A14,'ERS 2022-23'!B:P,15,FALSE),0) -> 0 | CE14: =IFERROR(VLOOKUP(A14,'ERS 2022-23'!B:R,17,FALSE),0) -> 0 | CF14: =IFERROR(VLOOKUP(A14,'ERS 2022-23'!B:S,18,FALSE),0)+IFERROR(VLOOKUP(A14,'ERS 2022-23'!B:T,19,FALSE),0) -> 0 | CG14: =IFERROR(ROUND((VLOOKUP(A14,'2022-23 Nursery Budget'!C:AJ,34,FALSE)),0),0) -> 0 | CI14: 900535.3363 | CJ14: 912435.3363
A15: 2443 | B15: 8312443 | C15: Alvaston Infant and Nursery School | D15: 240 | E15: 240 | F15: 0 | G15: =VLOOKUP(B15,'APT Adjusted Factors'!F:W,17,FALSE) -> 0 | H15: =VLOOKUP(B15,'APT Adjusted Factors'!F:W,18,FALSE) -> 0 | I15: 772080 | J15: 0 | K15: 0 | L15: 32430 | M15: 0 | N15: 41890 | O15: 0 | P15: 7260 | Q15: 10800 | R15: 840 | S15: 17020 | T15: 7840 | U15: 16640 | V15: 0 | W15: 0 | X15: 0 | Y15: 0 | Z15: 0 | AA15: 0 | AB15: 15066.66667 | AC15: 0 | AD15: 0 | AE15: 75786.91099 | AF15: 0 | AG15: 0 | AH15: 0 | AI15: 121300 | AJ15: 0 | AK15: 0 | AL15: 0 | AM15: 18250 | AN15: 0 | AO15: 0 | AP15: 0 | AQ15: 0 | AR15: 0 | AS15: 0 | AT15: 0 | AU15: 0 | AV15: 772080 | AW15: 225573.5777 | AX15: 139550 | AY15: 172887.4861 | AZ15: 1137203.578 | BA15: 1118953.578 | BB15: 4265 | BC15: 1023600 | BD15: 0 | BE15: 0 | BF15: 1137203.578 | BG15: 1137203.578 | BH15: 0 | BI15: 1041850 | BJ15: 902300 | BK15: 997653.5777 | BL15: 4156.889907 | BM15: 3904.874746 | BN15: 0.06453860288 | BO15: -0.01723860288 | BP15: -16155.50041 | BQ15: 1121048.077 | BR15: 4594.991989 | BS15: Y | BT15: 4671.033655 | BU15: 0.04554086591 | BV15: -16655.52 | BW15: 1104392.557 | BX15: 0 | BY15: 1104392.557 | BZ15: 18250 | CA15: 1086142.557 | CD15: =IFERROR(VLOOKUP(A15,'ERS 2022-23'!B:P,15,FALSE),0) -> 0 | CE15: =IFERROR(VLOOKUP(A15,'ERS 2022-23'!B:R,17,FALSE),0) -> 0 | CF15: =IFERROR(VLOOKUP(A15,'ERS 2022-23'!B:S,18,FALSE),0)+IFERROR(VLOOKUP(A15,'ERS 2022-23'!B:T,19,FALSE),0) -> 0 | CG15: =IFERROR(ROUND((VLOOKUP(A15,'2022-23 Nursery Budget'!C:AJ,34,FALSE)),0),0) -> 242673 | CI15: 1328815.557 | CJ15: 1347065.557
A16: 2444 | B16: 8312444 | C16: Shelton Infant School | D16: 192 | E16: 192 | F16: 0 | G16: =VLOOKUP(B16,'APT Adjusted Factors'!F:W,17,FALSE) -> 0 | H16: =VLOOKUP(B16,'APT Adjusted Factors'!F:W,18,FALSE) -> 0 | I16: 617664 | J16: 0 | K16: 0 | L16: 30080 | M16: 0 | N16: 37760 | O16: 0 | P16: 13420 | Q16: 2970 | R16: 0 | S16: 12880 | T16: 17150 | U16: 8960 | V16: 0 | W16: 0 | X16: 0 | Y16: 0 | Z16: 0 | AA16: 0 | AB16: 17128.42105 | AC16: 0 | AD16: 0 | AE16: 60629.5288 | AF16: 0 | AG16: 0 | AH16: 0 | AI16: 121300 | AJ16: 0 | AK16: 0 | AL16: 0 | AM16: 12500 | AN16: 0 | AO16: 0 | AP16: 0 | AQ16: 0 | AR16: 0 | AS16: 0 | AT16: 0 | AU16: 0 | AV16: 617664 | AW16: 200977.9498 | AX16: 133800 | AY16: 145786.5715 | AZ16: 952441.9498 | BA16: 939941.9498 | BB16: 4265 | BC16: 818880 | BD16: 0 | BE16: 0 | BF16: 952441.9498 | BG16: 952441.9498 | BH16: 0 | BI16: 831380 | BJ16: 697580 | BK16: 818641.9498 | BL16: 4263.760155 | BM16: 3984.391676 | BN16: 0.07011571717 | BO16: -0.02281571717 | BP16: -17454.09669 | BQ16: 934987.8532 | BR16: 4804.624235 | BS16: Y | BT16: 4869.728402 | BU16: 0.04723915987 | BV16: -13324.416 | BW16: 921663.4372 | BX16: 0 | BY16: 921663.4372 | BZ16: 12500 | CA16: 909163.4372 | CD16: =IFERROR(VLOOKUP(A16,'ERS 2022-23'!B:P,15,FALSE),0) -> 0 | CE16: =IFERROR(VLOOKUP(A16,'ERS 2022-23'!B:R,17,FALSE),0) -> 0 | CF16: =IFERROR(VLOOKUP(A16,'ERS 2022-23'!B:S,18,FALSE),0)+IFERROR(VLOOKUP(A16,'ERS 2022-23'!B:T,19,FALSE),0) -> 0 | CG16: =IFERROR(ROUND((VLOOKUP(A16,'2022-23 Nursery Budget'!C:AJ,34,FALSE)),0),0) -> 136946 | CI16: 1046109.437 | CJ16: 1058609.437
A17: 2449 | B17: 8312449 | C17: Cavendish Close Infant School | D17: 220 | E17: 220 | F17: 0 | G17: =VLOOKUP(B17,'APT Adjusted Factors'!F:W,17,FALSE) -> 0 | H17: =VLOOKUP(B17,'APT Adjusted Factors'!F:W,18,FALSE) -> 0 | I17: 707740 | J17: 0 | K17: 0 | L17: 31020 | M17: 0 | N17: 39530 | O17: 0 | P17: 11660 | Q17: 8370 | R17: 2100 | S17: 920 | T17: 4410 | U17: 1920 | V17: 0 | W17: 0 | X17: 0 | Y17: 0 | Z17: 0 | AA17: 0 | AB17: 5506.962025 | AC17: 0 | AD17: 0 | AE17: 69471.33508 | AF17: 0 | AG17: 0 | AH17: 0 | AI17: 121300 | AJ17: 0 | AK17: 0 | AL17: 0 | AM17: 18000 | AN17: 0 | AO17: 0 | AP17: 0 | AQ17: 0 | AR17: 0 | AS17: 0 | AT17: 0 | AU17: 0 | AV17: 707740 | AW17: 174908.2971 | AX17: 139300 | AY17: 146848.3089 | AZ17: 1021948.297 | BA17: 1003948.297 | BB17: 4265 | BC17: 938300 | BD17: 0 | BE17: 0 | BF17: 1021948.297 | BG17: 1021948.297 | BH17: 0 | BI17: 956300 | BJ17: 817000 | BK17: 882648.2971 | BL17: 4012.037714 | BM17: 3921.556927 | BN17: 0.02307266956 | BO17: 0 | BP17: 0 | BQ17: 1021948.297 | BR17: 4563.40135 | BS17: Y | BT17: 4645.219532 | BU17: 0.03237075123 | BV17: -15267.56 | BW17: 1006680.737 | BX17: 0 | BY17: 1006680.737 | BZ17: 18000 | CA17: 988680.7371 | CD17: =IFERROR(VLOOKUP(A17,'ERS 2022-23'!B:P,15,FALSE),0) -> 0 | CE17: =IFERROR(VLOOKUP(A17,'ERS 2022-23'!B:R,17,FALSE),0) -> 0 | CF17: =IFERROR(VLOOKUP(A17,'ERS 2022-23'!B:S,18,FALSE),0)+IFERROR(VLOOKUP(A17,'ERS 2022-23'!B:T,19,FALSE),0) -> 0 | CG17: =IFERROR(ROUND((VLOOKUP(A17,'2022-23 Nursery Budget'!C:AJ,34,FALSE)),0),0) -> 197836 | CI17: 1186516.737 | CJ17: 1204516.737
A18: 2452 | B18: 8312452 | C18: Meadow Farm Community Primary School | D18: 149 | E18: 149 | F18: 0 | G18: =VLOOKUP(B18,'APT Adjusted Factors'!F:W,17,FALSE) -> 0 | H18: =VLOOKUP(B18,'APT Adjusted Factors'!F:W,18,FALSE) -> 0 | I18: 479333 | J18: 0 | K18: 0 | L18: 30080 | M18: 0 | N18: 38350 | O18: 0 | P18: 1320 | Q18: 1620 | R18: 420 | S18: 22540 | T18: 1470 | U18: 4480 | V18: 0 | W18: 0 | X18: 0 | Y18: 0 | Z18: 0 | AA18: 0 | AB18: 6110.201613 | AC18: 0 | AD18: 0 | AE18: 59744.19355 | AF18: 0 | AG18: 9305.5 | AH18: 0 | AI18: 121300 | AJ18: 0 | AK18: 0 | AL18: 0 | AM18: 20350 | AN18: 0 | AO18: 0 | AP18: 0 | AQ18: 0 | AR18: 0 | AS18: 0 | AT18: 0 | AU18: 0 | AV18: 479333 | AW18: 175439.8952 | AX18: 141650 | AY18: 125681.124 | AZ18: 796422.8952 | BA18: 776072.8952 | BB18: 4265 | BC18: 635485 | BD18: 0 | BE18: 0 | BF18: 796422.8952 | BG18: 796422.8952 | BH18: 0 | BI18: 655835 | BJ18: 514185 | BK18: 654772.8952 | BL18: 4394.448961 | BM18: 4028.774586 | BN18: 0.09076565775 | BO18: -0.04346565775 | BP18: -26091.88726 | BQ18: 770331.0079 | BR18: 5033.429583 | BS18: Y | BT18: 5170.006764 | BU18: 0.01335313837 | BV18: -10340.302 | BW18: 759990.7059 | BX18: 0 | BY18: 759990.7059 | BZ18: 20350 | CA18: 739640.7059 | CD18: =IFERROR(VLOOKUP(A18,'ERS 2022-23'!B:P,15,FALSE),0) -> 0 | CE18: =IFERROR(VLOOKUP(A18,'ERS 2022-23'!B:R,17,FALSE),0) -> 0 | CF18: =IFERROR(VLOOKUP(A18,'ERS 2022-23'!B:S,18,FALSE),0)+IFERROR(VLOOKUP(A18,'ERS 2022-23'!B:T,19,FALSE),0) -> 0 | CG18: =IFERROR(ROUND((VLOOKUP(A18,'2022-23 Nursery Budget'!C:AJ,34,FALSE)),0),0) -> 88782 | CI18: 828422.7059 | CJ18: 848772.7059
A19: 2457 | B19: 8312457 | C19: Gayton Junior School | D19: 360 | E19: 360 | F19: 0 | G19: =VLOOKUP(B19,'APT Adjusted Factors'!F:W,17,FALSE) -> 0 | H19: =VLOOKUP(B19,'APT Adjusted Factors'!F:W,18,FALSE) -> 0 | I19: 1158120 | J19: 0 | K19: 0 | L19: 40890 | M19: 0 | N19: 58410 | O19: 0 | P19: 220 | Q19: 17010 | R19: 3780 | S19: 460 | T19: 10290 | U19: 0 | V19: 0 | W19: 0 | X19: 0 | Y19: 0 | Z19: 0 | AA19: 0 | AB19: 20905 | AC19: 0 | AD19: 0 | AE19: 115015.5598 | AF19: 0 | AG19: 0 | AH19: 0 | AI19: 121300 | AJ19: 0 | AK19: 0 | AL19: 0 | AM19: 21241 | AN19: 0 | AO19: 0 | AP19: 0 | AQ19: 0 | AR19: 0 | AS19: 0 | AT19: 0 | AU19: 0 | AV19: 1158120 | AW19: 266980.5598 | AX19: 142541 | AY19: 234088.4873 | AZ19: 1567641.56 | BA19: 1546400.56 | BB19: 4265 | BC19: 1535400 | BD19: 0 | BE19: 0 | BF19: 1567641.56 | BG19: 1567641.56 | BH19: 0 | BI19: 1556641 | BJ19: 1414100 | BK19: 1425100.56 | BL19: 3958.612666 | BM19: 3841.173184 | BN19: 0.03057385753 | BO19: 0 | BP19: 0 | BQ19: 1567641.56 | BR19: 4295.55711 | BS19: Y | BT19: 4354.559888 | BU19: 0.02718057352 | BV19: -24983.28 | BW19: 1542658.28 | BX19: 0 | BY19: 1542658.28 | BZ19: 21241 | CA19: 1521417.28 | CD19: =IFERROR(VLOOKUP(A19,'ERS 2022-23'!B:P,15,FALSE),0) -> 0 | CE19: =IFERROR(VLOOKUP(A19,'ERS 2022-23'!B:R,17,FALSE),0) -> 0 | CF19: =IFERROR(VLOOKUP(A19,'ERS 2022-23'!B:S,18,FALSE),0)+IFERROR(VLOOKUP(A19,'ERS 2022-23'!B:T,19,FALSE),0) -> 0 | CG19: =IFERROR(ROUND((VLOOKUP(A19,'2022-23 Nursery Budget'!C:AJ,34,FALSE)),0),0) -> 0 | CI19: 1521417.28 | CJ19: 1542658.28
A20: 2458 | B20: 8312458 | C20: Ridgeway Infant School | D20: 270 | E20: 270 | F20: 0 | G20: =VLOOKUP(B20,'APT Adjusted Factors'!F:W,17,FALSE) -> 0 | H20: =VLOOKUP(B20,'APT Adjusted Factors'!F:W,18,FALSE) -> 0 | I20: 868590 | J20: 0 | K20: 0 | L20: 22090 | M20: 0 | N20: 31860 | O20: 0 | P20: 220 | Q20: 12420 | R20: 4200 | S20: 460 | T20: 7840 | U20: 0 | V20: 0 | W20: 0 | X20: 0 | Y20: 0 | Z20: 0 | AA20: 0 | AB20: 39832.5 | AC20: 0 | AD20: 0 | AE20: 85260.27487 | AF20: 0 | AG20: 0 | AH20: 0 | AI20: 121300 | AJ20: 0 | AK20: 0 | AL20: 0 | AM20: 13528 | AN20: 0 | AO20: 0 | AP20: 0 | AQ20: 0 | AR20: 0 | AS20: 0 | AT20: 0 | AU20: 0 | AV20: 868590 | AW20: 204182.7749 | AX20: 134828 | AY20: 178117.1881 | AZ20: 1207600.775 | BA20: 1194072.775 | BB20: 4265 | BC20: 1151550 | BD20: 0 | BE20: 0 | BF20: 1207600.775 | BG20: 1207600.775 | BH20: 0 | BI20: 1165078 | BJ20: 1030250 | BK20: 1072772.775 | BL20: 3973.2325 | BM20: 3938.045374 | BN20: 0.008935175177 | BO20: 0.01106482482 | BP20: 11764.9212 | BQ20: 1219365.696 | BR20: 4466.065541 | BS20: Y | BT20: 4516.169245 | BU20: 0.01515293861 | BV20: -18737.46 | BW20: 1200628.236 | BX20: 0 | BY20: 1200628.236 | BZ20: 13528 | CA20: 1187100.236 | CD20: =IFERROR(VLOOKUP(A20,'ERS 2022-23'!B:P,15,FALSE),0) -> 0 | CE20: =IFERROR(VLOOKUP(A20,'ERS 2022-23'!B:R,17,FALSE),0) -> 0 | CF20: =IFERROR(VLOOKUP(A20,'ERS 2022-23'!B:S,18,FALSE),0)+IFERROR(VLOOKUP(A20,'ERS 2022-23'!B:T,19,FALSE),0) -> 0 | CG20: =IFERROR(ROUND((VLOOKUP(A20,'2022-23 Nursery Budget'!C:AJ,34,FALSE)),0),0) -> 0 | CI20: 1187100.236 | CJ20: 1200628.236
A21: 2459 | B21: 8312459 | C21: Wren Park Primary School | D21: 381 | E21: 381 | F21: 0 | G21: =VLOOKUP(B21,'APT Adjusted Factors'!F:W,17,FALSE) -> 0 | H21: =VLOOKUP(B21,'APT Adjusted Factors'!F:W,18,FALSE) -> 0 | I21: 1225677 | J21: 0 | K21: 0 | L21: 13160 | M21: 0 | N21: 17700 | O21: 0 | P21: 668.7765957 | Q21: 2188.723404 | R21: 1276.755319 | S21: 0 | T21: 496.5159574 | U21: 0 | V21: 0 | W21: 0 | X21: 0 | Y21: 0 | Z21: 0 | AA21: 0 | AB21: 38839.86239 | AC21: 0 | AD21: 0 | AE21: 82069.78125 | AF21: 0 | AG21: 0 | AH21: 0 | AI21: 121300 | AJ21: 0 | AK21: 0 | AL21: 0 | AM21: 19500 | AN21: 0 | AO21: 0 | AP21: 0 | AQ21: 0 | AR21: 0 | AS21: 0 | AT21: 0 | AU21: 0 | AV21: 1225677 | AW21: 156400.4149 | AX21: 140800 | AY21: 204076.6997 | AZ21: 1522877.415 | BA21: 1503377.415 | BB21: 4265 | BC21: 1624965 | BD21: 121587.5851 | BE21: 0 | BF21: 1644465 | BG21: 1644465 | BH21: 0 | BI21: 1644465 | BJ21: 1503665 | BK21: 1503665 | BL21: 3946.627297 | BM21: 3864.935065 | BN21: 0.02113676693 | BO21: 0 | BP21: 0 | BQ21: 1644465 | BR21: 4265 | BS21: Y | BT21: 4316.181102 | BU21: 0.02021716872 | BV21: -26440.638 | BW21: 1618024.362 | BX21: 0 | BY21: 1618024.362 | BZ21: 19500 | CA21: 1598524.362 | CD21: =IFERROR(VLOOKUP(A21,'ERS 2022-23'!B:P,15,FALSE),0) -> 0 | CE21: =IFERROR(VLOOKUP(A21,'ERS 2022-23'!B:R,17,FALSE),0) -> 0 | CF21: =IFERROR(VLOOKUP(A21,'ERS 2022-23'!B:S,18,FALSE),0)+IFERROR(VLOOKUP(A21,'ERS 2022-23'!B:T,19,FALSE),0) -> 0 | CG21: =IFERROR(ROUND((VLOOKUP(A21,'2022-23 Nursery Budget'!C:AJ,34,FALSE)),0),0) -> 0 | CI21: 1598524.362 | CJ21: 1618024.362
A22: 2462 | B22: 8312462 | C22: Ravensdale Infant and Nursery School | D22: 222 | E22: 222 | F22: 0 | G22: =VLOOKUP(B22,'APT Adjusted Factors'!F:W,17,FALSE) -> 0 | H22: =VLOOKUP(B22,'APT Adjusted Factors'!F:W,18,FALSE) -> 0 | I22: 714174 | J22: 0 | K22: 0 | L22: 26790 | M22: 0 | N22: 33630 | O22: 0 | P22: 6820 | Q22: 3510 | R22: 3780 | S22: 1840 | T22: 980 | U22: 1280 | V22: 0 | W22: 0 | X22: 0 | Y22: 0 | Z22: 0 | AA22: 0 | AB22: 16884.80769 | AC22: 0 | AD22: 0 | AE22: 70102.89267 | AF22: 0 | AG22: 0 | AH22: 0 | AI22: 121300 | AJ22: 0 | AK22: 0 | AL22: 0 | AM22: 18429 | AN22: 0 | AO22: 0 | AP22: 0 | AQ22: 0 | AR22: 0 | AS22: 0 | AT22: 0 | AU22: 0 | AV22: 714174 | AW22: 165617.7004 | AX22: 139729 | AY22: 144891.5901 | AZ22: 1019520.7 | BA22: 1001091.7 | BB22: 4265 | BC22: 946830 | BD22: 0 | BE22: 0 | BF22: 1019520.7 | BG22: 1019520.7 | BH22: 0 | BI22: 965259 | BJ22: 825530 | BK22: 879791.7004 | BL22: 3963.025677 | BM22: 3794.177757 | BN22: 0.04450184756 | BO22: 0 | BP22: 0 | BQ22: 1019520.7 | BR22: 4509.422074 | BS22: Y | BT22: 4592.435587 | BU22: 0.05222485287 | BV22: -15406.356 | BW22: 1004114.344 | BX22: 0 | BY22: 1004114.344 | BZ22: 18429 | CA22: 985685.3444 | CD22: =IFERROR(VLOOKUP(A22,'ERS 2022-23'!B:P,15,FALSE),0) -> 0 | CE22: =IFERROR(VLOOKUP(A22,'ERS 2022-23'!B:R,17,FALSE),0) -> 0 | CF22: =IFERROR(VLOOKUP(A22,'ERS 2022-23'!B:S,18,FALSE),0)+IFERROR(VLOOKUP(A22,'ERS 2022-23'!B:T,19,FALSE),0) -> 0 | CG22: =IFERROR(ROUND((VLOOKUP(A22,'2022-23 Nursery Budget'!C:AJ,34,FALSE)),0),0) -> 109220 | CI22: 1094905.344 | CJ22: 1113334.344
A23: 2463 | B23: 8312463 | C23: Ravensdale Junior School | D23: 352 | E23: 352 | F23: 0 | G23: =VLOOKUP(B23,'APT Adjusted Factors'!F:W,17,FALSE) -> 0 | H23: =VLOOKUP(B23,'APT Adjusted Factors'!F:W,18,FALSE) -> 0 | I23: 1132384 | J23: 0 | K23: 0 | L23: 41830 | M23: 0 | N23: 58410 | O23: 0 | P23: 8850.285714 | Q23: 7603.2 | R23: 5913.6 | S23: 4626.285714 | T23: 985.6 | U23: 4505.6 | V23: 0 | W23: 0 | X23: 0 | Y23: 0 | Z23: 0 | AA23: 0 | AB23: 10735 | AC23: 0 | AD23: 0 | AE23: 108986.24 | AF23: 0 | AG23: 0 | AH23: 0 | AI23: 121300 | AJ23: 0 | AK23: 0 | AL23: 0 | AM23: 3686 | AN23: 0 | AO23: 0 | AP23: 0 | AQ23: 0 | AR23: 0 | AS23: 0 | AT23: 0 | AU23: 0 | AV23: 1132384 | AW23: 252445.8114 | AX23: 124986 | AY23: 225388.5085 | AZ23: 1509815.811 | BA23: 1506129.811 | BB23: 4265 | BC23: 1501280 | BD23: 0 | BE23: 0 | BF23: 1509815.811 | BG23: 1509815.811 | BH23: 0 | BI23: 1504966 | BJ23: 1379980 | BK23: 1384829.811 | BL23: 3934.175601 | BM23: 3839.269663 | BN23: 0.02471978945 | BO23: 0 | BP23: 0 | BQ23: 1509815.811 | BR23: 4278.777873 | BS23: Y | BT23: 4289.249464 | BU23: 0.02360075862 | BV23: 0 | BW23: 1509815.811 | BX23: 0 | BY23: 1509815.811 | BZ23: 3686 | CA23: 1506129.811 | CD23: =IFERROR(VLOOKUP(A23,'ERS 2022-23'!B:P,15,FALSE),0) -> 0 | CE23: =IFERROR(VLOOKUP(A23,'ERS 2022-23'!B:R,17,FALSE),0) -> 0 | CF23: =IFERROR(VLOOKUP(A23,'ERS 2022-23'!B:S,18,FALSE),0)+IFERROR(VLOOKUP(A23,'ERS 2022-23'!B:T,19,FALSE),0) -> 0 | CG23: =IFERROR(ROUND((VLOOKUP(A23,'2022-23 Nursery Budget'!C:AJ,34,FALSE)),0),0) -> 0 | CI23: 1506129.811 | CJ23: 1509815.811
A24: 2469 | B24: 8312469 | C24: Silverhill Primary School | D24: 417 | E24: 417 | F24: 0 | G24: =VLOOKUP(B24,'APT Adjusted Factors'!F:W,17,FALSE) -> 0 | H24: =VLOOKUP(B24,'APT Adjusted Factors'!F:W,18,FALSE) -> 0 | I24: 1341489 | J24: 0 | K24: 0 | L24: 8930 | M24: 0 | N24: 12980 | O24: 0 | P24: 3740 | Q24: 1620 | R24: 420 | S24: 2300 | T24: 0 | U24: 0 | V24: 0 | W24: 0 | X24: 0 | Y24: 0 | Z24: 0 | AA24: 0 | AB24: 7941.741573 | AC24: 0 | AD24: 0 | AE24: 85794.53782 | AF24: 0 | AG24: 0 | AH24: 0 | AI24: 121300 | AJ24: 0 | AK24: 0 | AL24: 0 | AM24: 19850 | AN24: 0 | AO24: 0 | AP24: 0 | AQ24: 0 | AR24: 0 | AS24: 0 | AT24: 0 | AU24: 0 | AV24: 1341489 | AW24: 123726.2794 | AX24: 141150 | AY24: 204973.3971 | AZ24: 1606365.279 | BA24: 1586515.279 | BB24: 4265 | BC24: 1778505 | BD24: 191989.7206 | BE24: 0 | BF24: 1798355 | BG24: 1798355 | BH24: 0 | BI24: 1798355 | BJ24: 1657205 | BK24: 1657205 | BL24: 3974.11271 | BM24: 3889.808612 | BN24: 0.02167307078 | BO24: 0 | BP24: 0 | BQ24: 1798355 | BR24: 4265 | BS24: Y | BT24: 4312.601918 | BU24: 0.02013344081 | BV24: -28938.966 | BW24: 1769416.034 | BX24: 0 | BY24: 1769416.034 | BZ24: 19850 | CA24: 1749566.034 | CD24: =IFERROR(VLOOKUP(A24,'ERS 2022-23'!B:P,15,FALSE),0) -> 0 | CE24: =IFERROR(VLOOKUP(A24,'ERS 2022-23'!B:R,17,FALSE),0) -> 0 | CF24: =IFERROR(VLOOKUP(A24,'ERS 2022-23'!B:S,18,FALSE),0)+IFERROR(VLOOKUP(A24,'ERS 2022-23'!B:T,19,FALSE),0) -> 0 | CG24: =IFERROR(ROUND((VLOOKUP(A24,'2022-23 Nursery Budget'!C:AJ,34,FALSE)),0),0) -> 0 | CI24: 1749566.034 | CJ24: 1769416.034
A25: 2473 | B25: 8312473 | C25: Oakwood Infant and Nursery School | D25: 260 | E25: 260 | F25: 0 | G25: =VLOOKUP(B25,'APT Adjusted Factors'!F:W,17,FALSE) -> 0 | H25: =VLOOKUP(B25,'APT Adjusted Factors'!F:W,18,FALSE) -> 0 | I25: 836420 | J25: 0 | K25: 0 | L25: 44650 | M25: 0 | N25: 57230 | O25: 0 | P25: 1320 | Q25: 16470 | R25: 0 | S25: 6440 | T25: 6860 | U25: 28160 | V25: 0 | W25: 0 | X25: 0 | Y25: 0 | Z25: 0 | AA25: 0 | AB25: 14772.06704 | AC25: 0 | AD25: 0 | AE25: 82102.48691 | AF25: 0 | AG25: 0 | AH25: 0 | AI25: 121300 | AJ25: 0 | AK25: 0 | AL25: 0 | AM25: 23450 | AN25: 0 | AO25: 0 | AP25: 0 | AQ25: 0 | AR25: 0 | AS25: 0 | AT25: 0 | AU25: 0 | AV25: 836420 | AW25: 258004.554 | AX25: 144750 | AY25: 192026.0645 | AZ25: 1239174.554 | BA25: 1215724.554 | BB25: 4265 | BC25: 1108900 | BD25: 0 | BE25: 0 | BF25: 1239174.554 | BG25: 1239174.554 | BH25: 0 | BI25: 1132350 | BJ25: 987600 | BK25: 1094424.554 | BL25: 4209.325208 | BM25: 4051.305419 | BN25: 0.03900465952 | BO25: 0 | BP25: 0 | BQ25: 1239174.554 | BR25: 4675.863669 | BS25: Y | BT25: 4766.055977 | BU25: 0.03803588385 | BV25: -18043.48 | BW25: 1221131.074 | BX25: 0 | BY25: 1221131.074 | BZ25: 23450 | CA25: 1197681.074 | CD25: =IFERROR(VLOOKUP(A25,'ERS 2022-23'!B:P,15,FALSE),0) -> 0 | CE25: =IFERROR(VLOOKUP(A25,'ERS 2022-23'!B:R,17,FALSE),0) -> 0 | CF25: =IFERROR(VLOOKUP(A25,'ERS 2022-23'!B:S,18,FALSE),0)+IFERROR(VLOOKUP(A25,'ERS 2022-23'!B:T,19,FALSE),0) -> 0 | CG25: =IFERROR(ROUND((VLOOKUP(A25,'2022-23 Nursery Budget'!C:AJ,34,FALSE)),0),0) -> 187102 | CI25: 1384783.074 | CJ25: 1408233.074
A26: 2505 | B26: 8312505 | C26: Redwood Primary School | D26: 596 | E26: 596 | F26: 0 | G26: =VLOOKUP(B26,'APT Adjusted Factors'!F:W,17,FALSE) -> 0 | H26: =VLOOKUP(B26,'APT Adjusted Factors'!F:W,18,FALSE) -> 0 | I26: 1917332 | J26: 0 | K26: 0 | L26: 101050 | M26: 0 | N26: 128620 | O26: 0 | P26: 880 | Q26: 22950 | R26: 4620 | S26: 39100 | T26: 93590 | U26: 3840 | V26: 0 | W26: 0 | X26: 0 | Y26: 0 | Z26: 0 | AA26: 0 | AB26: 77709.23077 | AC26: 0 | AD26: 0 | AE26: 267807.3412 | AF26: 0 | AG26: 5772 | AH26: 0 | AI26: 121300 | AJ26: 0 | AK26: 0 | AL26: 0 | AM26: 40200 | AN26: 0 | AO26: 0 | AP26: 0 | AQ26: 0 | AR26: 0 | AS26: 0 | AT26: 0 | AU26: 0 | AV26: 1917332 | AW26: 745938.5719 | AX26: 161500 | AY26: 500490.5997 | AZ26: 2824770.572 | BA26: 2784570.572 | BB26: 4265 | BC26: 2541940 | BD26: 0 | BE26: 0 | BF26: 2824770.572 | BG26: 2824770.572 | BH26: 0 | BI26: 2582140 | BJ26: 2420640 | BK26: 2663270.572 | BL26: 4468.574785 | BM26: 4325.454022 | BN26: 0.03308803258 | BO26: 0 | BP26: 0 | BQ26: 2824770.572 | BR26: 4672.098275 | BS26: Y | BT26: 4739.54794 | BU26: 0.03184354961 | BV26: -41361.208 | BW26: 2783409.364 | BX26: 0 | BY26: 2783409.364 | BZ26: 40200 | CA26: 2743209.364 | CD26: =IFERROR(VLOOKUP(A26,'ERS 2022-23'!B:P,15,FALSE),0) -> 0 | CE26: =IFERROR(VLOOKUP(A26,'ERS 2022-23'!B:R,17,FALSE),0) -> 0 | CF26: =IFERROR(VLOOKUP(A26,'ERS 2022-23'!B:S,18,FALSE),0)+IFERROR(VLOOKUP(A26,'ERS 2022-23'!B:T,19,FALSE),0) -> 0 | CG26: =IFERROR(ROUND((VLOOKUP(A26,'2022-23 Nursery Budget'!C:AJ,34,FALSE)),0),0) -> 221351 | CI26: 2964560.364 | CJ26: 3004760.364
A27: 2627 | B27: 8312627 | C27: Mickleover Primary School | D27: 414 | E27: 414 | F27: 0 | G27: =VLOOKUP(B27,'APT Adjusted Factors'!F:W,17,FALSE) -> 0 | H27: =VLOOKUP(B27,'APT Adjusted Factors'!F:W,18,FALSE) -> 0 | I27: 1331838 | J27: 0 | K27: 0 | L27: 23500 | M27: 0 | N27: 31860 | O27: 0 | P27: 3520 | Q27: 2430 | R27: 1260 | S27: 1380 | T27: 980 | U27: 0 | V27: 0 | W27: 0 | X27: 0 | Y27: 0 | Z27: 0 | AA27: 0 | AB27: 22030.30471 | AC27: 0 | AD27: 0 | AE27: 108764.8739 | AF27: 0 | AG27: 0 | AH27: 0 | AI27: 121300 | AJ27: 0 | AK27: 0 | AL27: 0 | AM27: 18000 | AN27: 0 | AO27: 0 | AP27: 0 | AQ27: 0 | AR27: 0 | AS27: 0 | AT27: 0 | AU27: 0 | AV27: 1331838 | AW27: 195725.1787 | AX27: 139300 | AY27: 229871.1401 | AZ27: 1666863.179 | BA27: 1648863.179 | BB27: 4265 | BC27: 1765710 | BD27: 116846.8213 | BE27: 0 | BF27: 1783710 | BG27: 1783710 | BH27: 0 | BI27: 1783710 | BJ27: 1644410 | BK27: 1644410 | BL27: 3972.004831 | BM27: 3891.190476 | BN27: 0.02076854249 | BO27: 0 | BP27: 0 | BQ27: 1783710 | BR27: 4265 | BS27: Y | BT27: 4308.478261 | BU27: 0.02027563688 | BV27: -28730.772 | BW27: 1754979.228 | BX27: 0 | BY27: 1754979.228 | BZ27: 18000 | CA27: 1736979.228 | CD27: =IFERROR(VLOOKUP(A27,'ERS 2022-23'!B:P,15,FALSE),0) -> 0 | CE27: =IFERROR(VLOOKUP(A27,'ERS 2022-23'!B:R,17,FALSE),0) -> 0 | CF27: =IFERROR(VLOOKUP(A27,'ERS 2022-23'!B:S,18,FALSE),0)+IFERROR(VLOOKUP(A27,'ERS 2022-23'!B:T,19,FALSE),0) -> 0 | CG27: =IFERROR(ROUND((VLOOKUP(A27,'2022-23 Nursery Budget'!C:AJ,34,FALSE)),0),0) -> 0 | CI27: 1736979.228 | CJ27: 1754979.228
A28: 3526 | B28: 8313526 | C28: St James' Church of England Aided Infant School | D28: 79 | E28: 79 | F28: 0 | G28: =VLOOKUP(B28,'APT Adjusted Factors'!F:W,17,FALSE) -> 0 | H28: =VLOOKUP(B28,'APT Adjusted Factors'!F:W,18,FALSE) -> 0 | I28: 254143 | J28: 0 | K28: 0 | L28: 14570 | M28: 0 | N28: 18290 | O28: 0 | P28: 1540 | Q28: 5130 | R28: 4620 | S28: 11960 | T28: 980 | U28: 7680 | V28: 0 | W28: 0 | X28: 0 | Y28: 0 | Z28: 0 | AA28: 0 | AB28: 33889.53704 | AC28: 0 | AD28: 0 | AE28: 24946.52487 | AF28: 0 | AG28: 7640.5 | AH28: 0 | AI28: 121300 | AJ28: 0 | AK28: 0 | AL28: 0 | AM28: 1400 | AN28: 0 | AO28: 0 | AP28: 0 | AQ28: 0 | AR28: 0 | AS28: 0 | AT28: 0 | AU28: 0 | AV28: 254143 | AW28: 131246.5619 | AX28: 122700 | AY28: 83335.4946 | AZ28: 508089.5619 | BA28: 506689.5619 | BB28: 4265 | BC28: 336935 | BD28: 0 | BE28: 0 | BF28: 508089.5619 | BG28: 508089.5619 | BH28: 0 | BI28: 338335 | BJ28: 215635 | BK28: 385389.5619 | BL28: 4878.348885 | BM28: 4533.980956 | BN28: 0.07595266339 | BO28: -0.02865266339 | BP28: -10262.93978 | BQ28: 497826.6221 | BR28: 6283.881293 | BS28: Y | BT28: 6301.602812 | BU28: 0.01017212053 | BV28: -5482.442 | BW28: 492344.1801 | BX28: 0 | BY28: 492344.1801 | BZ28: 1400 | CA28: 490944.1801 | CD28: =IFERROR(VLOOKUP(A28,'ERS 2022-23'!B:P,15,FALSE),0) -> 0 | CE28: =IFERROR(VLOOKUP(A28,'ERS 2022-23'!B:R,17,FALSE),0) -> 0 | CF28: =IFERROR(VLOOKUP(A28,'ERS 2022-23'!B:S,18,FALSE),0)+IFERROR(VLOOKUP(A28,'ERS 2022-23'!B:T,19,FALSE),0) -> 0 | CG28: =IFERROR(ROUND((VLOOKUP(A28,'2022-23 Nursery Budget'!C:AJ,34,FALSE)),0),0) -> 58195 | CI28: 549139.1801 | CJ28: 550539.1801
A29: 3535 | B29: 8313535 | C29: St James' Church of England Aided Junior School | D29: 281 | E29: 281 | F29: 0 | G29: =VLOOKUP(B29,'APT Adjusted Factors'!F:W,17,FALSE) -> 0 | H29: =VLOOKUP(B29,'APT Adjusted Factors'!F:W,18,FALSE) -> 0 | I29: 903977 | J29: 0 | K29: 0 | L29: 62980 | M29: 0 | N29: 83780 | O29: 0 | P29: 10120 | Q29: 8100 | R29: 44100 | S29: 23000 | T29: 3430 | U29: 21120 | V29: 0 | W29: 0 | X29: 0 | Y29: 0 | Z29: 0 | AA29: 0 | AB29: 50076.41577 | AC29: 0 | AD29: 0 | AE29: 123179.7414 | AF29: 0 | AG29: 0 | AH29: 0 | AI29: 121300 | AJ29: 0 | AK29: 0 | AL29: 0 | AM29: 3300 | AN29: 0 | AO29: 0 | AP29: 0 | AQ29: 0 | AR29: 0 | AS29: 0 | AT29: 0 | AU29: 0 | AV29: 903977 | AW29: 429886.1571 | AX29: 124600 | AY29: 262415.7784 | AZ29: 1458463.157 | BA29: 1455163.157 | BB29: 4265 | BC29: 1198465 | BD29: 0 | BE29: 0 | BF29: 1458463.157 | BG29: 1458463.157 | BH29: 0 | BI29: 1201765 | BJ29: 1077165 | BK29: 1333863.157 | BL29: 4746.843976 | BM29: 4555.270981 | BN29: 0.04205523562 | BO29: 0 | BP29: 0 | BQ29: 1458463.157 | BR29: 5178.516573 | BS29: Y | BT29: 5190.260346 | BU29: 0.04025380322 | BV29: 0 | BW29: 1458463.157 | BX29: 0 | BY29: 1458463.157 | BZ29: 3300 | CA29: 1455163.157 | CD29: =IFERROR(VLOOKUP(A29,'ERS 2022-23'!B:P,15,FALSE),0) -> 0 | CE29: =IFERROR(VLOOKUP(A29,'ERS 2022-23'!B:R,17,FALSE),0) -> 0 | CF29: =IFERROR(VLOOKUP(A29,'ERS 2022-23'!B:S,18,FALSE),0)+IFERROR(VLOOKUP(A29,'ERS 2022-23'!B:T,19,FALSE),0) -> 0 | CG29: =IFERROR(ROUND((VLOOKUP(A29,'2022-23 Nursery Budget'!C:AJ,34,FALSE)),0),0) -> 0 | CI29: 1455163.157 | CJ29: 1458463.157
A30: 5209 | B30: 8315209 | C30: Shelton Junior School | D30: 279 | E30: 279 | F30: 0 | G30: =VLOOKUP(B30,'APT Adjusted Factors'!F:W,17,FALSE) -> 0 | H30: =VLOOKUP(B30,'APT Adjusted Factors'!F:W,18,FALSE) -> 0 | I30: 897543 | J30: 0 | K30: 0 | L30: 44650 | M30: 0 | N30: 63720 | O30: 0 | P30: 20460 | Q30: 4320 | R30: 0 | S30: 11960 | T30: 21560 | U30: 14080 | V30: 0 | W30: 0 | X30: 0 | Y30: 0 | Z30: 0 | AA30: 0 | AB30: 12995 | AC30: 0 | AD30: 0 | AE30: 88568.11856 | AF30: 0 | AG30: 0 | AH30: 0 | AI30: 121300 | AJ30: 0 | AK30: 0 | AL30: 0 | AM30: 4250 | AN30: 0 | AO30: 0 | AP30: 0 | AQ30: 0 | AR30: 0 | AS30: 0 | AT30: 0 | AU30: 0 | AV30: 897543 | AW30: 282313.1186 | AX30: 125550 | AY30: 207844.2943 | AZ30: 1305406.119 | BA30: 1301156.119 | BB30: 4265 | BC30: 1189935 | BD30: 0 | BE30: 0 | BF30: 1305406.119 | BG30: 1305406.119 | BH30: 0 | BI30: 1194185 | BJ30: 1068635 | BK30: 1179856.119 | BL30: 4228.874977 | BM30: 4092.238535 | BN30: 0.03338916857 | BO30: 0 | BP30: 0 | BQ30: 1305406.119 | BR30: 4663.642002 | BS30: Y | BT30: 4678.874977 | BU30: 0.03044589468 | BV30: -19362.042 | BW30: 1286044.077 | BX30: 0 | BY30: 1286044.077 | BZ30: 4250 | CA30: 1281794.077 | CD30: =IFERROR(VLOOKUP(A30,'ERS 2022-23'!B:P,15,FALSE),0) -> 0 | CE30: =IFERROR(VLOOKUP(A30,'ERS 2022-23'!B:R,17,FALSE),0) -> 0 | CF30: =IFERROR(VLOOKUP(A30,'ERS 2022-23'!B:S,18,FALSE),0)+IFERROR(VLOOKUP(A30,'ERS 2022-23'!B:T,19,FALSE),0) -> 0 | CG30: =IFERROR(ROUND((VLOOKUP(A30,'2022-23 Nursery Budget'!C:AJ,34,FALSE)),0),0) -> 0 | CI30: 1281794.077 | CJ30: 1286044.077
A31: 4182 | B31: 8314182 | C31: Littleover Community School | D31: 1466 | E31: 0 | F31: 1466 | G31: =VLOOKUP(B31,'APT Adjusted Factors'!F:W,17,FALSE) -> 880 | H31: =VLOOKUP(B31,'APT Adjusted Factors'!F:W,18,FALSE) -> 586 | I31: 0 | J31: 3991680 | K31: 2995632 | L31: 0 | M31: 72850 | N31: 0 | O31: 192895 | P31: 0 | Q31: 0 | R31: 0 | S31: 0 | T31: 0 | U31: 0 | V31: 50274.29352 | W31: 23816.24573 | X31: 13098.93515 | Y31: 3252.21843 | Z31: 700.4778157 | AA31: 1781.215017 | AB31: 0 | AC31: 21463.92344 | AD31: 0 | AE31: 0 | AF31: 471042.0831 | AG31: 0 | AH31: 0 | AI31: 121300 | AJ31: 0 | AK31: 0 | AL31: 0 | AM31: 144650 | AN31: 0 | AO31: 0 | AP31: 0 | AQ31: 0 | AR31: 0 | AS31: 0 | AT31: 0 | AU31: 0 | AV31: 6987312 | AW31: 851174.3922 | AX31: 265950 | AY31: 946785.2432 | AZ31: 8104436.392 | BA31: 7959786.392 | BB31: 5525 | BC31: 8099650 | BD31: 0 | BE31: 139863.6078 | BF31: 8244300 | BG31: 0 | BH31: 8244300 | BI31: 8244300 | BJ31: 7978350 | BK31: 7978350 | BL31: 5442.257844 | BM31: 5332.314247 | BN31: 0.0206183643 | BO31: 0 | BP31: 0 | BQ31: 8244300 | BR31: 5525 | BS31: Y | BT31: 5623.66985 | BU31: 0.01996285692 | BV31: -85347.588 | BW31: 8158952.412 | BX31: 0 | BY31: 8158952.412 | BZ31: 144650 | CA31: 8014302.412 | CD31: =IFERROR(VLOOKUP(A31,'ERS 2022-23'!B:P,15,FALSE),0) -> 0 | CE31: =IFERROR(VLOOKUP(A31,'ERS 2022-23'!B:R,17,FALSE),0) -> 0 | CF31: =IFERROR(VLOOKUP(A31,'ERS 2022-23'!B:S,18,FALSE),0)+IFERROR(VLOOKUP(A31,'ERS 2022-23'!B:T,19,FALSE),0) -> 0 | CG31: =IFERROR(ROUND((VLOOKUP(A31,'2022-23 Nursery Budget'!C:AJ,34,FALSE)),0),0) -> 0 | CI31: 8014302.412 | CJ31: 8158952.412
A32: 5406 | B32: 8315406 | C32: Murray Park Community School | D32: 1083.166667 | E32: 0 | F32: 1083.166667 | G32: =VLOOKUP(B32,'APT Adjusted Factors'!F:W,17,FALSE) -> 659.75 | H32: =VLOOKUP(B32,'APT Adjusted Factors'!F:W,18,FALSE) -> 423.4166667 | I32: 0 | J32: 2992626 | K32: 2164506 | L32: 0 | M32: 131085.4791 | N32: 0 | O32: 334245.1522 | P32: 0 | Q32: 0 | R32: 0 | S32: 0 | T32: 0 | U32: 0 | V32: 87059.39394 | W32: 45301.13636 | X32: 42885.07576 | Y32: 71923.48485 | Z32: 24160.60606 | AA32: 32525.45455 | AB32: 0 | AC32: 45511.46307 | AD32: 0 | AE32: 0 | AF32: 558123.9541 | AG32: 0 | AH32: 3938.750999 | AI32: 121300 | AJ32: 0 | AK32: 0 | AL32: 0 | AM32: 25748 | AN32: 0 | AO32: 0 | AP32: 0 | AQ32: 0 | AR32: 0 | AS32: 0 | AT32: 0 | AU32: 0 | AV32: 5157132 | AW32: 1376759.951 | AX32: 147048 | AY32: 967124.364 | AZ32: 6680939.951 | BA32: 6655191.951 | BB32: 5525 | BC32: 5984495.833 | BD32: 0 | BE32: 0 | BF32: 6680939.951 | BG32: 0 | BH32: 6680939.951 | BI32: 6010243.833 | BJ32: 5863195.833 | BK32: 6533891.951 | BL32: 6032.212911 | BM32: 5840.798886 | BN32: 0.03277189109 | BO32: 0 | BP32: 0 | BQ32: 6680939.951 | BR32: 6144.19937 | BS32: Y | BT32: 6167.970412 | BU32: 0.0311021563 | BV32: -63059.797 | BW32: 6617880.154 | BX32: 0 | BY32: 6617880.154 | BZ32: 25748 | CA32: 6592132.154 | CD32: =IFERROR(VLOOKUP(A32,'ERS 2022-23'!B:P,15,FALSE),0) -> 0 | CE32: =IFERROR(VLOOKUP(A32,'ERS 2022-23'!B:R,17,FALSE),0) -> 0 | CF32: =IFERROR(VLOOKUP(A32,'ERS 2022-23'!B:S,18,FALSE),0)+IFERROR(VLOOKUP(A32,'ERS 2022-23'!B:T,19,FALSE),0) -> 0 | CG32: =IFERROR(ROUND((VLOOKUP(A32,'2022-23 Nursery Budget'!C:AJ,34,FALSE)),0),0) -> 0 | CI32: 6592132.154 | CJ32: 6617880.154
A33: 4177 | B33: 8314177 | C33: The Bemrose School | D33: 1255 | E33: 332 | F33: 923 | G33: =VLOOKUP(B33,'APT Adjusted Factors'!F:W,17,FALSE) -> 594 | H33: =VLOOKUP(B33,'APT Adjusted Factors'!F:W,18,FALSE) -> 329 | I33: 1068044 | J33: 2694384 | K33: 1681848 | L33: 43710 | M33: 192230 | N33: 63720 | O33: 435095 | P33: 3960 | Q33: 28620 | R33: 26880 | S33: 17940 | T33: 15680 | U33: 7680 | V33: 32640 | W33: 65450 | X33: 185640 | Y33: 132600 | Z33: 33600 | AA33: 35600 | AB33: 41540.20761 | AC33: 238461.9079 | AD33: 0 | AE33: 124564.8438 | AF33: 689312.785 | AG33: 13024 | AH33: 98100.6846 | AI33: 121300 | AJ33: 0 | AK33: 0 | AL33: 0 | AM33: 22550 | AN33: 0 | AO33: 0 | AP33: 0 | AQ33: 0 | AR33: 0 | AS33: 0 | AT33: 0 | AU33: 0 | AV33: 5444276 | AW33: 2526049.429 | AX33: 143850 | AY33: 1510489.769 | AZ33: 8114175.429 | BA33: 8091625.429 | BB33: 4790 | BC33: 6011450 | BD33: 0 | BE33: 0 | BF33: 8114175.429 | BG33: 1493417.394 | BH33: 6620758.035 | BI33: 6034000 | BJ33: 5890150 | BK33: 7970325.429 | BL33: 6350.856915 | BM33: 6054.016475 | BN33: 0.04903198421 | BO33: -0.001731984213 | BP33: -13159.25351 | BQ33: 8101016.175 | BR33: 6437.024841 | BS33: Y | BT33: 6454.992968 | BU33: 0.04534290698 | BV33: -76775.35 | BW33: 8024240.825 | BX33: 0 | BY33: 8024240.825 | BZ33: 22550 | CA33: 8001690.825 | CD33: =IFERROR(VLOOKUP(A33,'ERS 2022-23'!B:P,15,FALSE),0) -> 240000 | CE33: =IFERROR(VLOOKUP(A33,'ERS 2022-23'!B:R,17,FALSE),0) -> 333000 | CF33: =IFERROR(VLOOKUP(A33,'ERS 2022-23'!B:S,18,FALSE),0)+IFERROR(VLOOKUP(A33,'ERS 2022-23'!B:T,19,FALSE),0) -> 0 | CG33: =IFERROR(ROUND((VLOOKUP(A33,'2022-23 Nursery Budget'!C:AJ,34,FALSE)),0),0) -> 35868 | CI33: 8610558.825 | CJ33: 8633108.825
A34: 2007 | B34: 8312007 | C34: Wyndham Primary Academy | D34: 441 | E34: 441 | F34: 0 | G34: =VLOOKUP(B34,'APT Adjusted Factors'!F:W,17,FALSE) -> 0 | H34: =VLOOKUP(B34,'APT Adjusted Factors'!F:W,18,FALSE) -> 0 | I34: 1418697 | J34: 0 | K34: 0 | L34: 79430 | M34: 0 | N34: 100890 | O34: 0 | P34: 6600 | Q34: 14310 | R34: 840 | S34: 34960 | T34: 86240 | U34: 17280 | V34: 0 | W34: 0 | X34: 0 | Y34: 0 | Z34: 0 | AA34: 0 | AB34: 34660.74803 | AC34: 0 | AD34: 0 | AE34: 122562.2432 | AF34: 0 | AG34: 499.5 | AH34: 0 | AI34: 121300 | AJ34: 0 | AK34: 0 | AL34: 0 | AM34: 4736.65 | AN34: 0 | AO34: 0 | AP34: 0 | AQ34: 0 | AR34: 0 | AS34: 0 | AT34: 0 | AU34: 0 | AV34: 1418697 | AW34: 498272.4913 | AX34: 126036.65 | AY34: 347871.8353 | AZ34: 2043006.141 | BA34: 2038269.491 | BB34: 4265 | BC34: 1880865 | BD34: 0 | BE34: 0 | BF34: 2043006.141 | BG34: 2043006.141 | BH34: 0 | BI34: 1885601.65 | BJ34: 1759565 | BK34: 1916969.491 | BL34: 4346.869595 | BM34: 4209.120915 | BN34: 0.03272623487 | BO34: 0 | BP34: 0 | BQ34: 2043006.141 | BR34: 4621.926284 | BS34: Y | BT34: 4632.666987 | BU34: 0.0292820047 | BV34: 0 | BW34: 2043006.141 | BX34: 0 | BY34: 2043006.141 | BZ34: 4736.65 | CA34: 2038269.491 | CD34: =IFERROR(VLOOKUP(A34,'ERS 2022-23'!B:P,15,FALSE),0) -> 0 | CE34: =IFERROR(VLOOKUP(A34,'ERS 2022-23'!B:R,17,FALSE),0) -> 0 | CF34: =IFERROR(VLOOKUP(A34,'ERS 2022-23'!B:S,18,FALSE),0)+IFERROR(VLOOKUP(A34,'ERS 2022-23'!B:T,19,FALSE),0) -> 0 | CG34: =IFERROR(ROUND((VLOOKUP(A34,'2022-23 Nursery Budget'!C:AJ,34,FALSE)),0),0) -> 115634 | CI34: 2153903.491 | CJ34: 2158640.141
A35: 2008 | B35: 8312008 | C35: St John Fisher Catholic Voluntary Academy | D35: 203 | E35: 203 | F35: 0 | G35: =VLOOKUP(B35,'APT Adjusted Factors'!F:W,17,FALSE) -> 0 | H35: =VLOOKUP(B35,'APT Adjusted Factors'!F:W,18,FALSE) -> 0 | I35: 653051 | J35: 0 | K35: 0 | L35: 17860 | M35: 0 | N35: 25960 | O35: 0 | P35: 7920 | Q35: 8910 | R35: 0 | S35: 18860 | T35: 13230 | U35: 6400 | V35: 0 | W35: 0 | X35: 0 | Y35: 0 | Z35: 0 | AA35: 0 | AB35: 10027.97814 | AC35: 0 | AD35: 0 | AE35: 59371.52941 | AF35: 0 | AG35: 0 | AH35: 0 | AI35: 121300 | AJ35: 0 | AK35: 0 | AL35: 0 | AM35: 3616 | AN35: 0 | AO35: 0 | AP35: 0 | AQ35: 0 | AR35: 0 | AS35: 0 | AT35: 0 | AU35: 0 | AV35: 653051 | AW35: 168539.5076 | AX35: 124916 | AY35: 138257.6394 | AZ35: 946506.5076 | BA35: 942890.5076 | BB35: 4265 | BC35: 865795 | BD35: 0 | BE35: 0 | BF35: 946506.5076 | BG35: 946506.5076 | BH35: 0 | BI35: 869411 | BJ35: 744495 | BK35: 821590.5076 | BL35: 4047.24388 | BM35: 4008.151693 | BN35: 0.009753170467 | BO35: 0.01024682953 | BP35: 8337.381969 | BQ35: 954843.8895 | BR35: 4685.851673 | BS35: Y | BT35: 4703.66448 | BU35: 0.03019223327 | BV35: 0 | BW35: 954843.8895 | BX35: 0 | BY35: 954843.8895 | BZ35: 3616 | CA35: 951227.8895 | CD35: =IFERROR(VLOOKUP(A35,'ERS 2022-23'!B:P,15,FALSE),0) -> 0 | CE35: =IFERROR(VLOOKUP(A35,'ERS 2022-23'!B:R,17,FALSE),0) -> 0 | CF35: =IFERROR(VLOOKUP(A35,'ERS 2022-23'!B:S,18,FALSE),0)+IFERROR(VLOOKUP(A35,'ERS 2022-23'!B:T,19,FALSE),0) -> 0 | CG35: =IFERROR(ROUND((VLOOKUP(A35,'2022-23 Nursery Budget'!C:AJ,34,FALSE)),0),0) -> 0 | CI35: 951227.8895 | CJ35: 954843.8895
A36: 2009 | B36: 8312009 | C36: Landau Forte Academy Moorhead | D36: 214 | E36: 214 | F36: 0 | G36: =VLOOKUP(B36,'APT Adjusted Factors'!F:W,17,FALSE) -> 0 | H36: =VLOOKUP(B36,'APT Adjusted Factors'!F:W,18,FALSE) -> 0 | I36: 688438 | J36: 0 | K36: 0 | L36: 41830 | M36: 0 | N36: 60180 | O36: 0 | P36: 222.0754717 | Q36: 3543.113208 | R36: 0 | S36: 31110.75472 | T36: 34128.96226 | U36: 20027.16981 | V36: 0 | W36: 0 | X36: 0 | Y36: 0 | Z36: 0 | AA36: 0 | AB36: 25454.73684 | AC36: 0 | AD36: 0 | AE36: 106400.8 | AF36: 0 | AG36: 2923 | AH36: 0 | AI36: 121300 | AJ36: 0 | AK36: 0 | AL36: 0 | AM36: 3816 | AN36: 0 | AO36: 0 | AP36: 0 | AQ36: 0 | AR36: 0 | AS36: 0 | AT36: 0 | AU36: 0 | AV36: 688438 | AW36: 325820.6123 | AX36: 125116 | AY36: 200578.7957 | AZ36: 1139374.612 | BA36: 1135558.612 | BB36: 4265 | BC36: 912710 | BD36: 0 | BE36: 0 | BF36: 1139374.612 | BG36: 1139374.612 | BH36: 0 | BI36: 916526 | BJ36: 791410 | BK36: 1014258.612 | BL36: 4739.526226 | BM36: 4384.010037 | BN36: 0.08109383555 | BO36: -0.03379383555 | BP36: -31704.63804 | BQ36: 1107669.974 | BR36: 5158.196141 | BS36: Y | BT36: 5176.027917 | BU36: 0.05083406207 | BV36: 0 | BW36: 1107669.974 | BX36: 0 | BY36: 1107669.974 | BZ36: 3816 | CA36: 1103853.974 | CD36: =IFERROR(VLOOKUP(A36,'ERS 2022-23'!B:P,15,FALSE),0) -> 0 | CE36: =IFERROR(VLOOKUP(A36,'ERS 2022-23'!B:R,17,FALSE),0) -> 0 | CF36: =IFERROR(VLOOKUP(A36,'ERS 2022-23'!B:S,18,FALSE),0)+IFERROR(VLOOKUP(A36,'ERS 2022-23'!B:T,19,FALSE),0) -> 0 | CG36: =IFERROR(ROUND((VLOOKUP(A36,'2022-23 Nursery Budget'!C:AJ,34,FALSE)),0),0) -> 0 | CI36: =SUM(CA36:CH36) -> 1103853.974 | CJ36: =CI36+BZ36 -> 1107669.974
A37: 2010 | B37: 8312010 | C37: Grampian Primary Academy | D37: 207 | E37: 207 | F37: 0 | G37: =VLOOKUP(B37,'APT Adjusted Factors'!F:W,17,FALSE) -> 0 | H37: =VLOOKUP(B37,'APT Adjusted Factors'!F:W,18,FALSE) -> 0 | I37: 665919 | J37: 0 | K37: 0 | L37: 50290 | M37: 0 | N37: 68440 | O37: 0 | P37: 440 | Q37: 4320 | R37: 1680 | S37: 39100 | T37: 27440 | U37: 1920 | V37: 0 | W37: 0 | X37: 0 | Y37: 0 | Z37: 0 | AA37: 0 | AB37: 13876.01695 | AC37: 0 | AD37: 0 | AE37: 54397.67442 | AF37: 0 | AG37: 2386.5 | AH37: 0 | AI37: 121300 | AJ37: 0 | AK37: 0 | AL37: 0 | AM37: 4153 | AN37: 0 | AO37: 0 | AP37: 0 | AQ37: 0 | AR37: 0 | AS37: 0 | AT37: 0 | AU37: 0 | AV37: 665919 | AW37: 264290.1914 | AX37: 125453 | AY37: 175283.88 | AZ37: 1055662.191 | BA37: 1051509.191 | BB37: 4265 | BC37: 882855 | BD37: 0 | BE37: 0 | BF37: 1055662.191 | BG37: 1055662.191 | BH37: 0 | BI37: 887008 | BJ37: 761555 | BK37: 930209.1914 | BL37: 4493.76421 | BM37: 4313.594105 | BN37: 0.0417679781 | BO37: 0 | BP37: 0 | BQ37: 1055662.191 | BR37: 5079.754548 | BS37: Y | BT37: 5099.81735 | BU37: 0.03474799235 | BV37: 0 | BW37: 1055662.191 | BX37: 0 | BY37: 1055662.191 | BZ37: 4153 | CA37: 1051509.191 | CD37: =IFERROR(VLOOKUP(A37,'ERS 2022-23'!B:P,15,FALSE),0) -> 0 | CE37: =IFERROR(VLOOKUP(A37,'ERS 2022-23'!B:R,17,FALSE),0) -> 0 | CF37: =IFERROR(VLOOKUP(A37,'ERS 2022-23'!B:S,18,FALSE),0)+IFERROR(VLOOKUP(A37,'ERS 2022-23'!B:T,19,FALSE),0) -> 0 | CG37: =IFERROR(ROUND((VLOOKUP(A37,'2022-23 Nursery Budget'!C:AJ,34,FALSE)),0),0) -> 76582 | CI37: 1128091.191 | CJ37: 1132244.191
A38: 2011 | B38: 8312011 | C38: Bishop Lonsdale Church of England Primary School and Nursery | D38: 213 | E38: 213 | F38: 0 | G38: =VLOOKUP(B38,'APT Adjusted Factors'!F:W,17,FALSE) -> 0 | H38: =VLOOKUP(B38,'APT Adjusted Factors'!F:W,18,FALSE) -> 0 | I38: 685221 | J38: 0 | K38: 0 | L38: 31020 | M38: 0 | N38: 40710 | O38: 0 | P38: 880 | Q38: 30510 | R38: 13860 | S38: 6900 | T38: 7350 | U38: 640 | V38: 0 | W38: 0 | X38: 0 | Y38: 0 | Z38: 0 | AA38: 0 | AB38: 16913.35135 | AC38: 0 | AD38: 0 | AE38: 56458.14815 | AF38: 0 | AG38: 203.5 | AH38: 0 | AI38: 121300 | AJ38: 0 | AK38: 0 | AL38: 0 | AM38: 6489 | AN38: 0 | AO38: 0 | AP38: 0 | AQ38: 0 | AR38: 0 | AS38: 0 | AT38: 0 | AU38: 0 | AV38: 685221 | AW38: 205444.9995 | AX38: 127789 | AY38: 155589.4894 | AZ38: 1018454.999 | BA38: 1011965.999 | BB38: 4265 | BC38: 908445 | BD38: 0 | BE38: 0 | BF38: 1018454.999 | BG38: 1018454.999 | BH38: 0 | BI38: 914934 | BJ38: 787145 | BK38: 890665.9995 | BL38: 4181.530514 | BM38: 4062.386179 | BN38: 0.02932865809 | BO38: 0 | BP38: 0 | BQ38: 1018454.999 | BR38: 4751.014082 | BS38: Y | BT38: 4781.478871 | BU38: 0.0190947049 | BV38: 0 | BW38: 1018454.999 | BX38: 0 | BY38: 1018454.999 | BZ38: 6489 | CA38: 1011965.999 | CD38: =IFERROR(VLOOKUP(A38,'ERS 2022-23'!B:P,15,FALSE),0) -> 0 | CE38: =IFERROR(VLOOKUP(A38,'ERS 2022-23'!B:R,17,FALSE),0) -> 0 | CF38: =IFERROR(VLOOKUP(A38,'ERS 2022-23'!B:S,18,FALSE),0)+IFERROR(VLOOKUP(A38,'ERS 2022-23'!B:T,19,FALSE),0) -> 0 | CG38: =IFERROR(ROUND((VLOOKUP(A38,'2022-23 Nursery Budget'!C:AJ,34,FALSE)),0),0) -> 57255 | CI38: 1069220.999 | CJ38: 1075709.999
A39: 2012 | B39: 8312012 | C39: Allenton Primary School | D39: 336 | E39: 336 | F39: 0 | G39: =VLOOKUP(B39,'APT Adjusted Factors'!F:W,17,FALSE) -> 0 | H39: =VLOOKUP(B39,'APT Adjusted Factors'!F:W,18,FALSE) -> 0 | I39: 1080912 | J39: 0 | K39: 0 | L39: 82720 | M39: 0 | N39: 110330 | O39: 0 | P39: 2427.223881 | Q39: 812.4179104 | R39: 2106.268657 | S39: 25836.89552 | T39: 99275.46269 | U39: 32095.52239 | V39: 0 | W39: 0 | X39: 0 | Y39: 0 | Z39: 0 | AA39: 0 | AB39: 38092.89474 | AC39: 0 | AD39: 0 | AE39: 129169.4845 | AF39: 0 | AG39: 0 | AH39: 0 | AI39: 121300 | AJ39: 0 | AK39: 0 | AL39: 0 | AM39: 7579 | AN39: 0 | AO39: 0 | AP39: 0 | AQ39: 0 | AR39: 0 | AS39: 0 | AT39: 0 | AU39: 0 | AV39: 1080912 | AW39: 522866.1703 | AX39: 128879 | AY39: 315848.224 | AZ39: 1732657.17 | BA39: 1725078.17 | BB39: 4265 | BC39: 1433040 | BD39: 0 | BE39: 0 | BF39: 1732657.17 | BG39: 1732657.17 | BH39: 0 | BI39: 1440619 | BJ39: 1311740 | BK39: 1603778.17 | BL39: 4773.149316 | BM39: 4645.201818 | BN39: 0.02754401283 | BO39: 0 | BP39: 0 | BQ39: 1732657.17 | BR39: 5134.161221 | BS39: Y | BT39: 5156.717769 | BU39: 0.0310917292 | BV39: 0 | BW39: 1732657.17 | BX39: 0 | BY39: 1732657.17 | BZ39: 7579 | CA39: 1725078.17 | CD39: =IFERROR(VLOOKUP(A39,'ERS 2022-23'!B:P,15,FALSE),0) -> 0 | CE39: =IFERROR(VLOOKUP(A39,'ERS 2022-23'!B:R,17,FALSE),0) -> 0 | CF39: =IFERROR(VLOOKUP(A39,'ERS 2022-23'!B:S,18,FALSE),0)+IFERROR(VLOOKUP(A39,'ERS 2022-23'!B:T,19,FALSE),0) -> 0 | CG39: =IFERROR(ROUND((VLOOKUP(A39,'2022-23 Nursery Budget'!C:AJ,34,FALSE)),0),0) -> 0 | CI39: 1725078.17 | CJ39: 1732657.17
A40: 2013 | B40: 8312013 | C40: Firs Primary School | D40: 364 | E40: 364 | F40: 0 | G40: =VLOOKUP(B40,'APT Adjusted Factors'!F:W,17,FALSE) -> 0 | H40: =VLOOKUP(B40,'APT Adjusted Factors'!F:W,18,FALSE) -> 0 | I40: 1170988 | J40: 0 | K40: 0 | L40: 99170 | M40: 0 | N40: 126850 | O40: 0 | P40: 3300 | Q40: 29430 | R40: 37800 | S40: 38180 | T40: 16170 | U40: 10880 | V40: 0 | W40: 0 | X40: 0 | Y40: 0 | Z40: 0 | AA40: 0 | AB40: 105369.0123 | AC40: 0 | AD40: 0 | AE40: 230588.4848 | AF40: 0 | AG40: 63507.94475 | AH40: 0 | AI40: 121300 | AJ40: 0 | AK40: 0 | AL40: 0 | AM40: 2969 | AN40: 0 | AO40: 0 | AP40: 0 | AQ40: 0 | AR40: 0 | AS40: 0 | AT40: 0 | AU40: 0 | AV40: 1170988 | AW40: 761245.4419 | AX40: 124269 | AY40: 455036.6851 | AZ40: 2056502.442 | BA40: 2053533.442 | BB40: 4265 | BC40: 1552460 | BD40: 0 | BE40: 0 | BF40: 2056502.442 | BG40: 2056502.442 | BH40: 0 | BI40: 1555429 | BJ40: 1431160 | BK40: 1932233.442 | BL40: 5308.333632 | BM40: 5041.184453 | BN40: 0.0529933355 | BO40: -0.005693335502 | BP40: -10447.22021 | BQ40: 2046055.222 | BR40: 5612.874236 | BS40: Y | BT40: 5621.030829 | BU40: 0.04223997816 | BV40: 0 | BW40: 2046055.222 | BX40: 0 | BY40: 2046055.222 | BZ40: 2969 | CA40: 2043086.222 | CD40: =IFERROR(VLOOKUP(A40,'ERS 2022-23'!B:P,15,FALSE),0) -> 0 | CE40: =IFERROR(VLOOKUP(A40,'ERS 2022-23'!B:R,17,FALSE),0) -> 0 | CF40: =IFERROR(VLOOKUP(A40,'ERS 2022-23'!B:S,18,FALSE),0)+IFERROR(VLOOKUP(A40,'ERS 2022-23'!B:T,19,FALSE),0) -> 0 | CG40: =IFERROR(ROUND((VLOOKUP(A40,'2022-23 Nursery Budget'!C:AJ,34,FALSE)),0),0) -> 83171 | CI40: 2126257.222 | CJ40: 2129226.222
A41: 2014 | B41: 8312014 | C41: Akaal Primary School | D41: 187 | E41: 187 | F41: 0 | G41: =VLOOKUP(B41,'APT Adjusted Factors'!F:W,17,FALSE) -> 0 | H41: =VLOOKUP(B41,'APT Adjusted Factors'!F:W,18,FALSE) -> 0 | I41: 601579 | J41: 0 | K41: 0 | L41: 18800 | M41: 0 | N41: 24780 | O41: 0 | P41: 1320 | Q41: 7290 | R41: 13860 | S41: 6900 | T41: 15680 | U41: 0 | V41: 0 | W41: 0 | X41: 0 | Y41: 0 | Z41: 0 | AA41: 0 | AB41: 46184.52096 | AC41: 0 | AD41: 0 | AE41: 69509.86842 | AF41: 0 | AG41: 9971.5 | AH41: 0 | AI41: 121300 | AJ41: 0 | AK41: 0 | AL41: 0 | AM41: 4887 | AN41: 0 | AO41: 0 | AP41: 0 | AQ41: 0 | AR41: 0 | AS41: 0 | AT41: 0 | AU41: 0 | AV41: 601579 | AW41: 214295.8894 | AX41: 126187 | AY41: 156402.1843 | AZ41: 942061.8894 | BA41: 937174.8894 | BB41: 4265 | BC41: 797555 | BD41: 0 | BE41: 0 | BF41: 942061.8894 | BG41: 942061.8894 | BH41: 0 | BI41: 802442 | BJ41: 676255 | BK41: 815874.8894 | BL41: 4362.967323 | BM41: 4065.607299 | BN41: 0.07314037032 | BO41: -0.02584037032 | BP41: -19645.62126 | BQ41: 922416.2681 | BR41: 4906.573626 | BS41: Y | BT41: 4932.707316 | BU41: 0.02871638165 | BV41: 0 | BW41: 922416.2681 | BX41: 0 | BY41: 922416.2681 | BZ41: 4887 | CA41: 917529.2681 | CD41: =IFERROR(VLOOKUP(A41,'ERS 2022-23'!B:P,15,FALSE),0) -> 0 | CE41: =IFERROR(VLOOKUP(A41,'ERS 2022-23'!B:R,17,FALSE),0) -> 0 | CF41: =IFERROR(VLOOKUP(A41,'ERS 2022-23'!B:S,18,FALSE),0)+IFERROR(VLOOKUP(A41,'ERS 2022-23'!B:T,19,FALSE),0) -> 0 | CG41: =IFERROR(ROUND((VLOOKUP(A41,'2022-23 Nursery Budget'!C:AJ,34,FALSE)),0),0) -> 0 | CI41: 917529.2681 | CJ41: 922416.2681
A42: 2016 | B42: 8312016 | C42: Derwent Primary School | D42: 212 | E42: 212 | F42: 0 | G42: =VLOOKUP(B42,'APT Adjusted Factors'!F:W,17,FALSE) -> 0 | H42: =VLOOKUP(B42,'APT Adjusted Factors'!F:W,18,FALSE) -> 0 | I42: 682004 | J42: 0 | K42: 0 | L42: 64860 | M42: 0 | N42: 81420 | O42: 0 | P42: 2454.736842 | Q42: 11776.65072 | R42: 852.0574163 | S42: 466.6028708 | T42: 2982.200957 | U42: 90886.1244 | V42: 0 | W42: 0 | X42: 0 | Y42: 0 | Z42: 0 | AA42: 0 | AB42: 14321.52174 | AC42: 0 | AD42: 0 | AE42: 65082.77457 | AF42: 0 | AG42: 11359 | AH42: 0 | AI42: 121300 | AJ42: 0 | AK42: 0 | AL42: 0 | AM42: 5814 | AN42: 0 | AO42: 0 | AP42: 0 | AQ42: 0 | AR42: 0 | AS42: 0 | AT42: 0 | AU42: 0 | AV42: 682004 | AW42: 346461.6695 | AX42: 127114 | AY42: 212010.604 | AZ42: 1155579.67 | BA42: 1149765.67 | BB42: 4265 | BC42: 904180 | BD42: 0 | BE42: 0 | BF42: 1155579.67 | BG42: 1155579.67 | BH42: 0 | BI42: 909994 | BJ42: 782880 | BK42: 1028465.67 | BL42: 4851.253158 | BM42: 4548.818496 | BN42: 0.06648642105 | BO42: -0.01918642105 | BP42: -18502.41595 | BQ42: 1137077.254 | BR42: 5336.147422 | BS42: Y | BT42: 5363.571951 | BU42: 0.04236128018 | BV42: 0 | BW42: 1137077.254 | BX42: 0 | BY42: 1137077.254 | BZ42: 5814 | CA42: 1131263.254 | CD42: =IFERROR(VLOOKUP(A42,'ERS 2022-23'!B:P,15,FALSE),0) -> 0 | CE42: =IFERROR(VLOOKUP(A42,'ERS 2022-23'!B:R,17,FALSE),0) -> 0 | CF42: =IFERROR(VLOOKUP(A42,'ERS 2022-23'!B:S,18,FALSE),0)+IFERROR(VLOOKUP(A42,'ERS 2022-23'!B:T,19,FALSE),0) -> 0 | CG42: =IFERROR(ROUND((VLOOKUP(A42,'2022-23 Nursery Budget'!C:AJ,34,FALSE)),0),0) -> 94870 | CI42: 1226133.254 | CJ42: 1231947.254
A43: 2017 | B43: 8312017 | C43: Pear Tree Community Junior School | D43: 351 | E43: 351 | F43: 0 | G43: =VLOOKUP(B43,'APT Adjusted Factors'!F:W,17,FALSE) -> 0 | H43: =VLOOKUP(B43,'APT Adjusted Factors'!F:W,18,FALSE) -> 0 | I43: 1129167 | J43: 0 | K43: 0 | L43: 106690 | M43: 0 | N43: 141600 | O43: 0 | P43: 9680 | Q43: 5400 | R43: 52500 | S43: 65320 | T43: 2450 | U43: 5760 | V43: 0 | W43: 0 | X43: 0 | Y43: 0 | Z43: 0 | AA43: 0 | AB43: 64410 | AC43: 0 | AD43: 0 | AE43: 166699.5652 | AF43: 0 | AG43: 12149.72923 | AH43: 0 | AI43: 121300 | AJ43: 0 | AK43: 0 | AL43: 0 | AM43: 3831 | AN43: 0 | AO43: 0 | AP43: 0 | AQ43: 0 | AR43: 0 | AS43: 0 | AT43: 0 | AU43: 0 | AV43: 1129167 | AW43: 632659.2944 | AX43: 125131 | AY43: 369471.071 | AZ43: 1886957.294 | BA43: 1883126.294 | BB43: 4265 | BC43: 1497015 | BD43: 0 | BE43: 0 | BF43: 1886957.294 | BG43: 1886957.294 | BH43: 0 | BI43: 1500846 | BJ43: 1375715 | BK43: 1761826.294 | BL43: 5019.448132 | BM43: 4950.493722 | BN43: 0.01392879455 | BO43: 0.006071205453 | BP43: 10549.46803 | BQ43: 1897506.762 | BR43: 5395.087642 | BS43: Y | BT43: 5406.002172 | BU43: 0.0164474322 | BV43: 0 | BW43: 1897506.762 | BX43: 0 | BY43: 1897506.762 | BZ43: 3831 | CA43: 1893675.762 | CD43: =IFERROR(VLOOKUP(A43,'ERS 2022-23'!B:P,15,FALSE),0) -> 0 | CE43: =IFERROR(VLOOKUP(A43,'ERS 2022-23'!B:R,17,FALSE),0) -> 0 | CF43: =IFERROR(VLOOKUP(A43,'ERS 2022-23'!B:S,18,FALSE),0)+IFERROR(VLOOKUP(A43,'ERS 2022-23'!B:T,19,FALSE),0) -> 0 | CG43: =IFERROR(ROUND((VLOOKUP(A43,'2022-23 Nursery Budget'!C:AJ,34,FALSE)),0),0) -> 0 | CI43: 1893675.762 | CJ43: 1897506.762
A44: 2018 | B44: 8312018 | C44: Breadsall Hill Top Primary School | D44: 358 | E44: 358 | F44: 0 | G44: =VLOOKUP(B44,'APT Adjusted Factors'!F:W,17,FALSE) -> 0 | H44: =VLOOKUP(B44,'APT Adjusted Factors'!F:W,18,FALSE) -> 0 | I44: 1151686 | J44: 0 | K44: 0 | L44: 78960 | M44: 0 | N44: 101480 | O44: 0 | P44: 29562.57703 | Q44: 16786.89076 | R44: 15162.35294 | S44: 3229.019608 | T44: 6879.215686 | U44: 20537.36695 | V44: 0 | W44: 0 | X44: 0 | Y44: 0 | Z44: 0 | AA44: 0 | AB44: 9254.183007 | AC44: 0 | AD44: 0 | AE44: 146202.1754 | AF44: 0 | AG44: 2331 | AH44: 0 | AI44: 121300 | AJ44: 0 | AK44: 0 | AL44: 0 | AM44: 5777 | AN44: 0 | AO44: 0 | AP44: 0 | AQ44: 0 | AR44: 0 | AS44: 0 | AT44: 0 | AU44: 0 | AV44: 1151686 | AW44: 430384.7814 | AX44: 127077 | AY44: 291866.4787 | AZ44: 1709147.781 | BA44: 1703370.781 | BB44: 4265 | BC44: 1526870 | BD44: 0 | BE44: 0 | BF44: 1709147.781 | BG44: 1709147.781 | BH44: 0 | BI44: 1532647 | BJ44: 1405570 | BK44: 1582070.781 | BL44: 4419.192127 | BM44: 4149.924535 | BN44: 0.06488493697 | BO44: -0.01758493697 | BP44: -26125.46577 | BQ44: 1683022.316 | BR44: 4685.042781 | BS44: Y | BT44: 4701.179653 | BU44: 0.04537343249 | BV44: 0 | BW44: 1683022.316 | BX44: 0 | BY44: 1683022.316 | BZ44: 5777 | CA44: 1677245.316 | CD44: =IFERROR(VLOOKUP(A44,'ERS 2022-23'!B:P,15,FALSE),0) -> 0 | CE44: =IFERROR(VLOOKUP(A44,'ERS 2022-23'!B:R,17,FALSE),0) -> 0 | CF44: =IFERROR(VLOOKUP(A44,'ERS 2022-23'!B:S,18,FALSE),0)+IFERROR(VLOOKUP(A44,'ERS 2022-23'!B:T,19,FALSE),0) -> 0 | CG44: =IFERROR(ROUND((VLOOKUP(A44,'2022-23 Nursery Budget'!C:AJ,34,FALSE)),0),0) -> 124934 | CI44: 1802179.316 | CJ44: 1807956.316
A45: 2019 | B45: 8312019 | C45: Cavendish Close Junior Academy | D45: 310 | E45: 310 | F45: 0 | G45: =VLOOKUP(B45,'APT Adjusted Factors'!F:W,17,FALSE) -> 0 | H45: =VLOOKUP(B45,'APT Adjusted Factors'!F:W,18,FALSE) -> 0 | I45: 997270 | J45: 0 | K45: 0 | L45: 52170 | M45: 0 | N45: 74340 | O45: 0 | P45: 14520 | Q45: 9720 | R45: 4200 | S45: 2300 | T45: 4410 | U45: 4480 | V45: 0 | W45: 0 | X45: 0 | Y45: 0 | Z45: 0 | AA45: 0 | AB45: 3390 | AC45: 0 | AD45: 0 | AE45: 119614.6341 | AF45: 0 | AG45: 0 | AH45: 0 | AI45: 121300 | AJ45: 0 | AK45: 0 | AL45: 0 | AM45: 5139 | AN45: 0 | AO45: 0 | AP45: 0 | AQ45: 0 | AR45: 0 | AS45: 0 | AT45: 0 | AU45: 0 | AV45: 997270 | AW45: 289144.6341 | AX45: 126439 | AY45: 221758.6035 | AZ45: 1412853.634 | BA45: 1407714.634 | BB45: 4265 | BC45: 1322150 | BD45: 0 | BE45: 0 | BF45: 1412853.634 | BG45: 1412853.634 | BH45: 0 | BI45: 1327289 | BJ45: 1200850 | BK45: 1286414.634 | BL45: 4149.724626 | BM45: 3975.29753 | BN45: 0.04387774636 | BO45: 0 | BP45: 0 | BQ45: 1412853.634 | BR45: 4541.014949 | BS45: Y | BT45: 4557.592368 | BU45: 0.04010598632 | BV45: 0 | BW45: 1412853.634 | BX45: 0 | BY45: 1412853.634 | BZ45: 5139 | CA45: 1407714.634 | CD45: =IFERROR(VLOOKUP(A45,'ERS 2022-23'!B:P,15,FALSE),0) -> 0 | CE45: =IFERROR(VLOOKUP(A45,'ERS 2022-23'!B:R,17,FALSE),0) -> 0 | CF45: =IFERROR(VLOOKUP(A45,'ERS 2022-23'!B:S,18,FALSE),0)+IFERROR(VLOOKUP(A45,'ERS 2022-23'!B:T,19,FALSE),0) -> 0 | CG45: =IFERROR(ROUND((VLOOKUP(A45,'2022-23 Nursery Budget'!C:AJ,34,FALSE)),0),0) -> 0 | CI45: 1407714.634 | CJ45: 1412853.634
A46: 2020 | B46: 8312020 | C46: Reigate Park Primary Academy | D46: 357 | E46: 357 | F46: 0 | G46: =VLOOKUP(B46,'APT Adjusted Factors'!F:W,17,FALSE) -> 0 | H46: =VLOOKUP(B46,'APT Adjusted Factors'!F:W,18,FALSE) -> 0 | I46: 1148469 | J46: 0 | K46: 0 | L46: 72850 | M46: 0 | N46: 97940 | O46: 0 | P46: 51472.54237 | Q46: 1361.440678 | R46: 847.1186441 | S46: 26906.10169 | T46: 1976.610169 | U46: 10972.20339 | V46: 0 | W46: 0 | X46: 0 | Y46: 0 | Z46: 0 | AA46: 0 | AB46: 13532.92332 | AC46: 0 | AD46: 0 | AE46: 161922.3529 | AF46: 0 | AG46: 2386.5 | AH46: 0 | AI46: 121300 | AJ46: 0 | AK46: 0 | AL46: 0 | AM46: 4984 | AN46: 0 | AO46: 0 | AP46: 0 | AQ46: 0 | AR46: 0 | AS46: 0 | AT46: 0 | AU46: 0 | AV46: 1148469 | AW46: 442167.7932 | AX46: 126284 | AY46: 295875.2662 | AZ46: 1716920.793 | BA46: 1711936.793 | BB46: 4265 | BC46: 1522605 | BD46: 0 | BE46: 0 | BF46: 1716920.793 | BG46: 1716920.793 | BH46: 0 | BI46: 1527589 | BJ46: 1401305 | BK46: 1590636.793 | BL46: 4455.565247 | BM46: 4295.882465 | BN46: 0.03717112464 | BO46: 0 | BP46: 0 | BQ46: 1716920.793 | BR46: 4795.341157 | BS46: Y | BT46: 4809.301942 | BU46: 0.03585870994 | BV46: 0 | BW46: 1716920.793 | BX46: 0 | BY46: 1716920.793 | BZ46: 4984 | CA46: 1711936.793 | CD46: =IFERROR(VLOOKUP(A46,'ERS 2022-23'!B:P,15,FALSE),0) -> 87000 | CE46: =IFERROR(VLOOKUP(A46,'ERS 2022-23'!B:R,17,FALSE),0) -> 42000 | CF46: =IFERROR(VLOOKUP(A46,'ERS 2022-23'!B:S,18,FALSE),0)+IFERROR(VLOOKUP(A46,'ERS 2022-23'!B:T,19,FALSE),0) -> 0 | CG46: =IFERROR(ROUND((VLOOKUP(A46,'2022-23 Nursery Budget'!C:AJ,34,FALSE)),0),0) -> 95723 | CI46: 1936659.793 | CJ46: 1941643.793
A47: 2023 | B47: 8312023 | C47: Cottons Farm Primary Academy | D47: 95 | E47: 95 | F47: 0 | G47: =VLOOKUP(B47,'APT Adjusted Factors'!F:W,17,FALSE) -> 0 | H47: =VLOOKUP(B47,'APT Adjusted Factors'!F:W,18,FALSE) -> 0 | I47: 305615 | J47: 0 | K47: 0 | L47: 27730 | M47: 0 | N47: 35990 | O47: 0 | P47: 440 | Q47: 810 | R47: 840 | S47: 460 | T47: 35280 | U47: 0 | V47: 0 | W47: 0 | X47: 0 | Y47: 0 | Z47: 0 | AA47: 0 | AB47: 16773.4375 | AC47: 0 | AD47: 0 | AE47: 44729.16667 | AF47: 0 | AG47: 9527.5 | AH47: 0 | AI47: 121300 | AJ47: 0 | AK47: 0 | AL47: 0 | AM47: 4802 | AN47: 27399 | AO47: 0 | AP47: 0 | AQ47: 0 | AR47: 0 | AS47: 0 | AT47: 0 | AU47: 0 | AV47: 305615 | AW47: 172580.1042 | AX47: 153501 | AY47: 104482.468 | AZ47: 631696.1042 | BA47: 599495.1042 | BB47: 4265 | BC47: 405175 | BD47: 0 | BE47: 0 | BF47: 631696.1042 | BG47: 631696.1042 | BH47: 0 | BI47: 437376 | BJ47: 311274 | BK47: 505594.1042 | BL47: 5322.043202 | BM47: 5099.786505 | BN47: 0.04358156888 | BO47: 0 | BP47: 0 | BQ47: 631696.1042 | BR47: 6310.474781 | BS47: Y | BT47: 6649.432675 | BU47: 0.04945518713 | BV47: 0 | BW47: 631696.1042 | BX47: 0 | BY47: 631696.1042 | BZ47: 4802 | CA47: 626894.1042 | CD47: =IFERROR(VLOOKUP(A47,'ERS 2022-23'!B:P,15,FALSE),0) -> 0 | CE47: =IFERROR(VLOOKUP(A47,'ERS 2022-23'!B:R,17,FALSE),0) -> 0 | CF47: =IFERROR(VLOOKUP(A47,'ERS 2022-23'!B:S,18,FALSE),0)+IFERROR(VLOOKUP(A47,'ERS 2022-23'!B:T,19,FALSE),0) -> 0 | CG47: =IFERROR(ROUND((VLOOKUP(A47,'2022-23 Nursery Budget'!C:AJ,34,FALSE)),0),0) -> 24188 | CI47: 651082.1042 | CJ47: 655884.1042
A48: 2442 | B48: 8312442 | C48: Alvaston Junior Academy | D48: 334 | E48: 334 | F48: 0 | G48: =VLOOKUP(B48,'APT Adjusted Factors'!F:W,17,FALSE) -> 0 | H48: =VLOOKUP(B48,'APT Adjusted Factors'!F:W,18,FALSE) -> 0 | I48: 1074478 | J48: 0 | K48: 0 | L48: 50290 | M48: 0 | N48: 77290 | O48: 0 | P48: 12172.89157 | Q48: 19285.48193 | R48: 845.060241 | S48: 18510.84337 | T48: 11830.84337 | U48: 16096.38554 | V48: 0 | W48: 0 | X48: 0 | Y48: 0 | Z48: 0 | AA48: 0 | AB48: 8475 | AC48: 0 | AD48: 0 | AE48: 84054.23581 | AF48: 0 | AG48: 0 | AH48: 0 | AI48: 121300 | AJ48: 0 | AK48: 0 | AL48: 0 | AM48: 4906 | AN48: 0 | AO48: 0 | AP48: 0 | AQ48: 0 | AR48: 0 | AS48: 0 | AT48: 0 | AU48: 0 | AV48: 1074478 | AW48: 298850.7418 | AX48: 126206 | AY48: 234689.0465 | AZ48: 1499534.742 | BA48: 1494628.742 | BB48: 4265 | BC48: 1424510 | BD48: 0 | BE48: 0 | BF48: 1499534.742 | BG48: 1499534.742 | BH48: 0 | BI48: 1429416 | BJ48: 1303210 | BK48: 1373328.742 | BL48: 4111.7627 | BM48: 3985.663774 | BN48: 0.03163812428 | BO48: 0 | BP48: 0 | BQ48: 1499534.742 | BR48: 4474.936353 | BS48: Y | BT48: 4489.624976 | BU48: 0.03298764509 | BV48: 0 | BW48: 1499534.742 | BX48: 0 | BY48: 1499534.742 | BZ48: 4906 | CA48: 1494628.742 | CD48: =IFERROR(VLOOKUP(A48,'ERS 2022-23'!B:P,15,FALSE),0) -> 5000 | CE48: =IFERROR(VLOOKUP(A48,'ERS 2022-23'!B:R,17,FALSE),0) -> 954.8611111 | CF48: =IFERROR(VLOOKUP(A48,'ERS 2022-23'!B:S,18,FALSE),0)+IFERROR(VLOOKUP(A48,'ERS 2022-23'!B:T,19,FALSE),0) -> 0 | CG48: =IFERROR(ROUND((VLOOKUP(A48,'2022-23 Nursery Budget'!C:AJ,34,FALSE)),0),0) -> 0 | CI48: 1500583.603 | CJ48: 1505489.603
A49: 2467 | B49: 8312467 | C49: Chaddesden Park Primary School | D49: 287 | E49: 287 | F49: 0 | G49: =VLOOKUP(B49,'APT Adjusted Factors'!F:W,17,FALSE) -> 0 | H49: =VLOOKUP(B49,'APT Adjusted Factors'!F:W,18,FALSE) -> 0 | I49: 923279 | J49: 0 | K49: 0 | L49: 47940 | M49: 0 | N49: 63130 | O49: 0 | P49: 5060 | Q49: 14040 | R49: 34860 | S49: 2760 | T49: 3920 | U49: 3200 | V49: 0 | W49: 0 | X49: 0 | Y49: 0 | Z49: 0 | AA49: 0 | AB49: 3860.833333 | AC49: 0 | AD49: 0 | AE49: 84878.00781 | AF49: 0 | AG49: 0 | AH49: 0 | AI49: 121300 | AJ49: 0 | AK49: 0 | AL49: 0 | AM49: 3063 | AN49: 0 | AO49: 0 | AP49: 0 | AQ49: 0 | AR49: 0 | AS49: 0 | AT49: 0 | AU49: 0 | AV49: 923279 | AW49: 263648.8411 | AX49: 124363 | AY49: 203915.0165 | AZ49: 1311290.841 | BA49: 1308227.841 | BB49: 4265 | BC49: 1224055 | BD49: 0 | BE49: 0 | BF49: 1311290.841 | BG49: 1311290.841 | BH49: 0 | BI49: 1227118 | BJ49: 1102755 | BK49: 1186927.841 | BL49: 4135.637077 | BM49: 3953.904192 | BN49: 0.04596289555 | BO49: 0 | BP49: 0 | BQ49: 1311290.841 | BR49: 4558.285161 | BS49: Y | BT49: 4568.957635 | BU49: 0.04720718707 | BV49: 0 | BW49: 1311290.841 | BX49: 0 | BY49: 1311290.841 | BZ49: 3063 | CA49: 1308227.841 | CD49: =IFERROR(VLOOKUP(A49,'ERS 2022-23'!B:P,15,FALSE),0) -> 0 | CE49: =IFERROR(VLOOKUP(A49,'ERS 2022-23'!B:R,17,FALSE),0) -> 0 | CF49: =IFERROR(VLOOKUP(A49,'ERS 2022-23'!B:S,18,FALSE),0)+IFERROR(VLOOKUP(A49,'ERS 2022-23'!B:T,19,FALSE),0) -> 0 | CG49: =IFERROR(ROUND((VLOOKUP(A49,'2022-23 Nursery Budget'!C:AJ,34,FALSE)),0),0) -> 118219 | CI49: 1426446.841 | CJ49: 1429509.841
A50: 2509 | B50: 8312509 | C50: Ash Croft Primary Academy | D50: 163 | E50: 163 | F50: 0 | G50: =VLOOKUP(B50,'APT Adjusted Factors'!F:W,17,FALSE) -> 0 | H50: =VLOOKUP(B50,'APT Adjusted Factors'!F:W,18,FALSE) -> 0 | I50: 524371 | J50: 0 | K50: 0 | L50: 33840 | M50: 0 | N50: 43070 | O50: 0 | P50: 0 | Q50: 6750 | R50: 1680 | S50: 11960 | T50: 11270 | U50: 0 | V50: 0 | W50: 0 | X50: 0 | Y50: 0 | Z50: 0 | AA50: 0 | AB50: 21779.22297 | AC50: 0 | AD50: 0 | AE50: 60889.2562 | AF50: 0 | AG50: 16853.5 | AH50: 0 | AI50: 121300 | AJ50: 0 | AK50: 0 | AL50: 0 | AM50: 4015 | AN50: 0 | AO50: 0 | AP50: 0 | AQ50: 0 | AR50: 0 | AS50: 0 | AT50: 0 | AU50: 0 | AV50: 524371 | AW50: 208091.9792 | AX50: 125315 | AY50: 148234.9866 | AZ50: 857777.9792 | BA50: 853762.9792 | BB50: 4265 | BC50: 695195 | BD50: 0 | BE50: 0 | BF50: 857777.9792 | BG50: 857777.9792 | BH50: 0 | BI50: 699210 | BJ50: 573895 | BK50: 732462.9792 | BL50: 4493.637909 | BM50: 4246.602477 | BN50: 0.0581724881 | BO50: -0.0108724881 | BP50: -7525.894988 | BQ50: 850252.0842 | BR50: 5191.638553 | BS50: Y | BT50: 5216.270455 | BU50: 0.04198551004 | BV50: 0 | BW50: 850252.0842 | BX50: 0 | BY50: 850252.0842 | BZ50: 4015 | CA50: 846237.0842 | CD50: =IFERROR(VLOOKUP(A50,'ERS 2022-23'!B:P,15,FALSE),0) -> 0 | CE50: =IFERROR(VLOOKUP(A50,'ERS 2022-23'!B:R,17,FALSE),0) -> 0 | CF50: =IFERROR(VLOOKUP(A50,'ERS 2022-23'!B:S,18,FALSE),0)+IFERROR(VLOOKUP(A50,'ERS 2022-23'!B:T,19,FALSE),0) -> 0 | CG50: =IFERROR(ROUND((VLOOKUP(A50,'2022-23 Nursery Budget'!C:AJ,34,FALSE)),0),0) -> 75941 | CI50: 922178.0842 | CJ50: 926193.0842
A51: 3528 | B51: 8313528 | C51: St Mary's Catholic Voluntary Academy | D51: 318 | E51: 318 | F51: 0 | G51: =VLOOKUP(B51,'APT Adjusted Factors'!F:W,17,FALSE) -> 0 | H51: =VLOOKUP(B51,'APT Adjusted Factors'!F:W,18,FALSE) -> 0 | I51: 1023006 | J51: 0 | K51: 0 | L51: 39480 | M51: 0 | N51: 53690 | O51: 0 | P51: 17820 | Q51: 10800 | R51: 7560 | S51: 9660 | T51: 6370 | U51: 16000 | V51: 0 | W51: 0 | X51: 0 | Y51: 0 | Z51: 0 | AA51: 0 | AB51: 31986.70455 | AC51: 0 | AD51: 0 | AE51: 124020 | AF51: 0 | AG51: 5476 | AH51: 0 | AI51: 121300 | AJ51: 0 | AK51: 0 | AL51: 0 | AM51: 9188 | AN51: 0 | AO51: 0 | AP51: 0 | AQ51: 0 | AR51: 0 | AS51: 0 | AT51: 0 | AU51: 0 | AV51: 1023006 | AW51: 322862.7045 | AX51: 130488 | AY51: 241650.8952 | AZ51: 1476356.705 | BA51: 1467168.705 | BB51: 4265 | BC51: 1356270 | BD51: 0 | BE51: 0 | BF51: 1476356.705 | BG51: 1476356.705 | BH51: 0 | BI51: 1365458 | BJ51: 1234970 | BK51: 1345868.705 | BL51: 4232.291524 | BM51: 4099.434306 | BN51: 0.03240867095 | BO51: 0 | BP51: 0 | BQ51: 1476356.705 | BR51: 4613.738065 | BS51: Y | BT51: 4642.631146 | BU51: 0.03033600053 | BV51: 0 | BW51: 1476356.705 | BX51: 0 | BY51: 1476356.705 | BZ51: 9188 | CA51: 1467168.705 | CD51: =IFERROR(VLOOKUP(A51,'ERS 2022-23'!B:P,15,FALSE),0) -> 0 | CE51: =IFERROR(VLOOKUP(A51,'ERS 2022-23'!B:R,17,FALSE),0) -> 0 | CF51: =IFERROR(VLOOKUP(A51,'ERS 2022-23'!B:S,18,FALSE),0)+IFERROR(VLOOKUP(A51,'ERS 2022-23'!B:T,19,FALSE),0) -> 0 | CG51: =IFERROR(ROUND((VLOOKUP(A51,'2022-23 Nursery Budget'!C:AJ,34,FALSE)),0),0) -> 111669 | CI51: 1578837.705 | CJ51: 1588025.705
A52: 3530 | B52: 8313530 | C52: Walter Evans Church of England Aided Primary School | D52: 417 | E52: 417 | F52: 0 | G52: =VLOOKUP(B52,'APT Adjusted Factors'!F:W,17,FALSE) -> 0 | H52: =VLOOKUP(B52,'APT Adjusted Factors'!F:W,18,FALSE) -> 0 | I52: 1341489 | J52: 0 | K52: 0 | L52: 8460 | M52: 0 | N52: 12390 | O52: 0 | P52: 1984.759615 | Q52: 1623.894231 | R52: 842.0192308 | S52: 2305.528846 | T52: 491.1778846 | U52: 1283.076923 | V52: 0 | W52: 0 | X52: 0 | Y52: 0 | Z52: 0 | AA52: 0 | AB52: 2639.831933 | AC52: 0 | AD52: 0 | AE52: 63296.86567 | AF52: 0 | AG52: 0 | AH52: 0 | AI52: 121300 | AJ52: 0 | AK52: 0 | AL52: 0 | AM52: 5191 | AN52: 0 | AO52: 0 | AP52: 0 | AQ52: 0 | AR52: 0 | AS52: 0 | AT52: 0 | AU52: 0 | AV52: 1341489 | AW52: 95317.15434 | AX52: 126491 | AY52: 194704.6888 | AZ52: 1563297.154 | BA52: 1558106.154 | BB52: 4265 | BC52: 1778505 | BD52: 220398.8457 | BE52: 0 | BF52: 1783696 | BG52: 1783696 | BH52: 0 | BI52: 1783696 | BJ52: 1657205 | BK52: 1657205 | BL52: 3974.11271 | BM52: 3886.2954 | BN52: 0.02259666373 | BO52: 0 | BP52: 0 | BQ52: 1783696 | BR52: 4265 | BS52: Y | BT52: 4277.448441 | BU52: 0.02024520857 | BV52: 0 | BW52: 1783696 | BX52: 0 | BY52: 1783696 | BZ52: 5191 | CA52: 1778505 | CD52: =IFERROR(VLOOKUP(A52,'ERS 2022-23'!B:P,15,FALSE),0) -> 0 | CE52: =IFERROR(VLOOKUP(A52,'ERS 2022-23'!B:R,17,FALSE),0) -> 0 | CF52: =IFERROR(VLOOKUP(A52,'ERS 2022-23'!B:S,18,FALSE),0)+IFERROR(VLOOKUP(A52,'ERS 2022-23'!B:T,19,FALSE),0) -> 0 | CG52: =IFERROR(ROUND((VLOOKUP(A52,'2022-23 Nursery Budget'!C:AJ,34,FALSE)),0),0) -> 127331 | CI52: 1905836 | CJ52: 1911027
A53: 3531 | B53: 8313531 | C53: St George's Catholic Voluntary Academy | D53: 338 | E53: 338 | F53: 0 | G53: =VLOOKUP(B53,'APT Adjusted Factors'!F:W,17,FALSE) -> 0 | H53: =VLOOKUP(B53,'APT Adjusted Factors'!F:W,18,FALSE) -> 0 | I53: 1087346 | J53: 0 | K53: 0 | L53: 36190 | M53: 0 | N53: 46020 | O53: 0 | P53: 220.652819 | Q53: 14352.46291 | R53: 5476.20178 | S53: 10150.02967 | T53: 26047.06231 | U53: 4493.293769 | V53: 0 | W53: 0 | X53: 0 | Y53: 0 | Z53: 0 | AA53: 0 | AB53: 49704.52055 | AC53: 0 | AD53: 0 | AE53: 92469.68421 | AF53: 0 | AG53: 0 | AH53: 0 | AI53: 121300 | AJ53: 0 | AK53: 0 | AL53: 0 | AM53: 4802 | AN53: 0 | AO53: 0 | AP53: 0 | AQ53: 0 | AR53: 0 | AS53: 0 | AT53: 0 | AU53: 0 | AV53: 1087346 | AW53: 285123.908 | AX53: 126102 | AY53: 233373.5146 | AZ53: 1498571.908 | BA53: 1493769.908 | BB53: 4265 | BC53: 1441570 | BD53: 0 | BE53: 0 | BF53: 1498571.908 | BG53: 1498571.908 | BH53: 0 | BI53: 1446372 | BJ53: 1320270 | BK53: 1372469.908 | BL53: 4060.561858 | BM53: 3831.923651 | BN53: 0.05966669161 | BO53: -0.01236669161 | BP53: -16017.2177 | BQ53: 1482554.69 | BR53: 4372.04938 | BS53: Y | BT53: 4386.25648 | BU53: 0.04550928992 | BV53: 0 | BW53: 1482554.69 | BX53: 0 | BY53: 1482554.69 | BZ53: 4802 | CA53: 1477752.69 | CD53: =IFERROR(VLOOKUP(A53,'ERS 2022-23'!B:P,15,FALSE),0) -> 0 | CE53: =IFERROR(VLOOKUP(A53,'ERS 2022-23'!B:R,17,FALSE),0) -> 0 | CF53: =IFERROR(VLOOKUP(A53,'ERS 2022-23'!B:S,18,FALSE),0)+IFERROR(VLOOKUP(A53,'ERS 2022-23'!B:T,19,FALSE),0) -> 0 | CG53: =IFERROR(ROUND((VLOOKUP(A53,'2022-23 Nursery Budget'!C:AJ,34,FALSE)),0),0) -> 0 | CI53: 1477752.69 | CJ53: 1482554.69
A54: 3542 | B54: 8313542 | C54: St Joseph's Catholic Voluntary Academy | D54: 374 | E54: 374 | F54: 0 | G54: =VLOOKUP(B54,'APT Adjusted Factors'!F:W,17,FALSE) -> 0 | H54: =VLOOKUP(B54,'APT Adjusted Factors'!F:W,18,FALSE) -> 0 | I54: 1203158 | J54: 0 | K54: 0 | L54: 36660 | M54: 0 | N54: 49560 | O54: 0 | P54: 6617.69437 | Q54: 26801.6622 | R54: 21477.42627 | S54: 21677.96247 | T54: 17687.29223 | U54: 15401.17962 | V54: 0 | W54: 0 | X54: 0 | Y54: 0 | Z54: 0 | AA54: 0 | AB54: 79079.20245 | AC54: 0 | AD54: 0 | AE54: 92448.125 | AF54: 0 | AG54: 0 | AH54: 0 | AI54: 121300 | AJ54: 0 | AK54: 0 | AL54: 0 | AM54: 6333 | AN54: 0 | AO54: 0 | AP54: 0 | AQ54: 0 | AR54: 0 | AS54: 0 | AT54: 0 | AU54: 0 | AV54: 1203158 | AW54: 367410.5446 | AX54: 127633 | AY54: 277686.9787 | AZ54: 1698201.545 | BA54: 1691868.545 | BB54: 4265 | BC54: 1595110 | BD54: 0 | BE54: 0 | BF54: 1698201.545 | BG54: 1698201.545 | BH54: 0 | BI54: 1601443 | BJ54: 1473810 | BK54: 1570568.545 | BL54: 4199.381135 | BM54: 4093.447686 | BN54: 0.02587878417 | BO54: 0 | BP54: 0 | BQ54: 1698201.545 | BR54: 4523.712686 | BS54: Y | BT54: 4540.645841 | BU54: 0.02409748561 | BV54: 0 | BW54: 1698201.545 | BX54: 0 | BY54: 1698201.545 | BZ54: 6333 | CA54: 1691868.545 | CD54: =IFERROR(VLOOKUP(A54,'ERS 2022-23'!B:P,15,FALSE),0) -> 0 | CE54: =IFERROR(VLOOKUP(A54,'ERS 2022-23'!B:R,17,FALSE),0) -> 0 | CF54: =IFERROR(VLOOKUP(A54,'ERS 2022-23'!B:S,18,FALSE),0)+IFERROR(VLOOKUP(A54,'ERS 2022-23'!B:T,19,FALSE),0) -> 0 | CG54: =IFERROR(ROUND((VLOOKUP(A54,'2022-23 Nursery Budget'!C:AJ,34,FALSE)),0),0) -> 0 | CI54: 1691868.545 | CJ54: 1698201.545
A55: 3543 | B55: 8313543 | C55: St Alban's Catholic Voluntary Academy | D55: 303 | E55: 303 | F55: 0 | G55: =VLOOKUP(B55,'APT Adjusted Factors'!F:W,17,FALSE) -> 0 | H55: =VLOOKUP(B55,'APT Adjusted Factors'!F:W,18,FALSE) -> 0 | I55: 974751 | J55: 0 | K55: 0 | L55: 19740 | M55: 0 | N55: 26550 | O55: 0 | P55: 12980 | Q55: 5940 | R55: 7140 | S55: 3680 | T55: 11760 | U55: 15360 | V55: 0 | W55: 0 | X55: 0 | Y55: 0 | Z55: 0 | AA55: 0 | AB55: 19527.94677 | AC55: 0 | AD55: 0 | AE55: 81962.08494 | AF55: 0 | AG55: 0 | AH55: 0 | AI55: 121300 | AJ55: 0 | AK55: 0 | AL55: 0 | AM55: 4779 | AN55: 0 | AO55: 0 | AP55: 0 | AQ55: 0 | AR55: 0 | AS55: 0 | AT55: 0 | AU55: 0 | AV55: 974751 | AW55: 204640.0317 | AX55: 126079 | AY55: 190043.0726 | AZ55: 1305470.032 | BA55: 1300691.032 | BB55: 4265 | BC55: 1292295 | BD55: 0 | BE55: 0 | BF55: 1305470.032 | BG55: 1305470.032 | BH55: 0 | BI55: 1297074 | BJ55: 1170995 | BK55: 1179391.032 | BL55: 3892.379643 | BM55: 3783.594771 | BN55: 0.02875172368 | BO55: 0 | BP55: 0 | BQ55: 1305470.032 | BR55: 4292.709676 | BS55: Y | BT55: 4308.481953 | BU55: 0.02690052223 | BV55: 0 | BW55: 1305470.032 | BX55: 0 | BY55: 1305470.032 | BZ55: 4779 | CA55: 1300691.032 | CD55: =IFERROR(VLOOKUP(A55,'ERS 2022-23'!B:P,15,FALSE),0) -> 0 | CE55: =IFERROR(VLOOKUP(A55,'ERS 2022-23'!B:R,17,FALSE),0) -> 0 | CF55: =IFERROR(VLOOKUP(A55,'ERS 2022-23'!B:S,18,FALSE),0)+IFERROR(VLOOKUP(A55,'ERS 2022-23'!B:T,19,FALSE),0) -> 0 | CG55: =IFERROR(ROUND((VLOOKUP(A55,'2022-23 Nursery Budget'!C:AJ,34,FALSE)),0),0) -> 150944 | CI55: 1451635.032 | CJ55: 1456414.032
A56: 3544 | B56: 8313544 | C56: Hardwick Primary School | D56: 540 | E56: 540 | F56: 0 | G56: =VLOOKUP(B56,'APT Adjusted Factors'!F:W,17,FALSE) -> 0 | H56: =VLOOKUP(B56,'APT Adjusted Factors'!F:W,18,FALSE) -> 0 | I56: 1737180 | J56: 0 | K56: 0 | L56: 114680 | M56: 0 | N56: 149860 | O56: 0 | P56: 3300 | Q56: 12690 | R56: 105840 | S56: 94300 | T56: 490 | U56: 0 | V56: 0 | W56: 0 | X56: 0 | Y56: 0 | Z56: 0 | AA56: 0 | AB56: 146193.75 | AC56: 0 | AD56: 0 | AE56: 267559.7315 | AF56: 0 | AG56: 2405 | AH56: 0 | AI56: 121300 | AJ56: 0 | AK56: 0 | AL56: 0 | AM56: 13601 | AN56: 155861 | AO56: 0 | AP56: 0 | AQ56: 0 | AR56: 0 | AS56: 0 | AT56: 0 | AU56: 0 | AV56: 1737180 | AW56: 897318.4815 | AX56: 290762 | AY56: 533340.9022 | AZ56: 2925260.482 | BA56: 2755798.482 | BB56: 4265 | BC56: 2303100 | BD56: 0 | BE56: 0 | BF56: 2925260.482 | BG56: 2925260.482 | BH56: 0 | BI56: 2472562 | BJ56: 2337661 | BK56: 2790359.482 | BL56: 5167.332373 | BM56: 5010.518108 | BN56: 0.03129701601 | BO56: 0 | BP56: 0 | BQ56: 2925260.482 | BR56: 5103.330521 | BS56: Y | BT56: 5417.14904 | BU56: 0.02971997329 | BV56: 0 | BW56: 2925260.482 | BX56: 0 | BY56: 2925260.482 | BZ56: 13601 | CA56: 2911659.482 | CD56: =IFERROR(VLOOKUP(A56,'ERS 2022-23'!B:P,15,FALSE),0) -> 0 | CE56: =IFERROR(VLOOKUP(A56,'ERS 2022-23'!B:R,17,FALSE),0) -> 0 | CF56: =IFERROR(VLOOKUP(A56,'ERS 2022-23'!B:S,18,FALSE),0)+IFERROR(VLOOKUP(A56,'ERS 2022-23'!B:T,19,FALSE),0) -> 0 | CG56: =IFERROR(ROUND((VLOOKUP(A56,'2022-23 Nursery Budget'!C:AJ,34,FALSE)),0),0) -> 133406 | CI56: 3045065.482 | CJ56: 3058666.482
A57: 3546 | B57: 8313546 | C57: Village Primary Academy | D57: 614 | E57: 614 | F57: 0 | G57: =VLOOKUP(B57,'APT Adjusted Factors'!F:W,17,FALSE) -> 0 | H57: =VLOOKUP(B57,'APT Adjusted Factors'!F:W,18,FALSE) -> 0 | I57: 1975238 | J57: 0 | K57: 0 | L57: 129720 | M57: 0 | N57: 169330 | O57: 0 | P57: 1100 | Q57: 40500 | R57: 65100 | S57: 7360 | T57: 76440 | U57: 7680 | V57: 0 | W57: 0 | X57: 0 | Y57: 0 | Z57: 0 | AA57: 0 | AB57: 120693.0228 | AC57: 0 | AD57: 0 | AE57: 242332.1414 | AF57: 0 | AG57: 0 | AH57: 0 | AI57: 121300 | AJ57: 0 | AK57: 0 | AL57: 0 | AM57: 15689 | AN57: 0 | AO57: 0 | AP57: 0 | AQ57: 0 | AR57: 0 | AS57: 0 | AT57: 0 | AU57: 0 | AV57: 1975238 | AW57: 860255.1642 | AX57: 136989 | AY57: 546061.7705 | AZ57: 2972482.164 | BA57: 2956793.164 | BB57: 4265 | BC57: 2618710 | BD57: 0 | BE57: 0 | BF57: 2972482.164 | BG57: 2972482.164 | BH57: 0 | BI57: 2634399 | BJ57: 2497410 | BK57: 2835493.164 | BL57: 4618.067043 | BM57: 4444.262019 | BN57: 0.03910773562 | BO57: 0 | BP57: 0 | BQ57: 2972482.164 | BR57: 4815.624046 | BS57: Y | BT57: 4841.176163 | BU57: 0.0379550793 | BV57: 0 | BW57: 2972482.164 | BX57: 0 | BY57: 2972482.164 | BZ57: 15689 | CA57: 2956793.164 | CD57: =IFERROR(VLOOKUP(A57,'ERS 2022-23'!B:P,15,FALSE),0) -> 0 | CE57: =IFERROR(VLOOKUP(A57,'ERS 2022-23'!B:R,17,FALSE),0) -> 0 | CF57: =IFERROR(VLOOKUP(A57,'ERS 2022-23'!B:S,18,FALSE),0)+IFERROR(VLOOKUP(A57,'ERS 2022-23'!B:T,19,FALSE),0) -> 0 | CG57: =IFERROR(ROUND((VLOOKUP(A57,'2022-23 Nursery Budget'!C:AJ,34,FALSE)),0),0) -> 174382 | CI57: 3131175.164 | CJ57: 3146864.164
A58: 4000 | B58: 8314000 | C58: Zaytouna Primary School | D58: 389 | E58: 389 | F58: 0 | G58: =VLOOKUP(B58,'APT Adjusted Factors'!F:W,17,FALSE) -> 0 | H58: =VLOOKUP(B58,'APT Adjusted Factors'!F:W,18,FALSE) -> 0 | I58: 1251413 | J58: 0 | K58: 0 | L58: 56870 | M58: 0 | N58: 73160 | O58: 0 | P58: 8403.204134 | Q58: 16283.72093 | R58: 29551.93798 | S58: 33753.54005 | T58: 18716.22739 | U58: 14796.07235 | V58: 0 | W58: 0 | X58: 0 | Y58: 0 | Z58: 0 | AA58: 0 | AB58: 94474.74627 | AC58: 0 | AD58: 0 | AE58: 130806.2976 | AF58: 0 | AG58: 11710.5 | AH58: 0 | AI58: 121300 | AJ58: 0 | AK58: 0 | AL58: 0 | AM58: 13887 | AN58: 0 | AO58: 0 | AP58: 0 | AQ58: 0 | AR58: 0 | AS58: 0 | AT58: 0 | AU58: 0 | AV58: 1251413 | AW58: 488526.2467 | AX58: 135187 | AY58: 334492.3985 | AZ58: 1875126.247 | BA58: 1861239.247 | BB58: 4265 | BC58: 1659085 | BD58: 0 | BE58: 0 | BF58: 1875126.247 | BG58: 1875126.247 | BH58: 0 | BI58: 1672972 | BJ58: 1537785 | BK58: 1739939.247 | BL58: 4472.851534 | BM58: 4241.258092 | BN58: 0.05460489248 | BO58: -0.007304892476 | BP58: -12051.97245 | BQ58: 1863074.274 | BR58: 4753.694792 | BS58: Y | BT58: 4789.394021 | BU58: 0.03322368942 | BV58: 0 | BW58: 1863074.274 | BX58: 0 | BY58: 1863074.274 | BZ58: 13887 | CA58: 1849187.274 | CD58: =IFERROR(VLOOKUP(A58,'ERS 2022-23'!B:P,15,FALSE),0) -> 0 | CE58: =IFERROR(VLOOKUP(A58,'ERS 2022-23'!B:R,17,FALSE),0) -> 0 | CF58: =IFERROR(VLOOKUP(A58,'ERS 2022-23'!B:S,18,FALSE),0)+IFERROR(VLOOKUP(A58,'ERS 2022-23'!B:T,19,FALSE),0) -> 0 | CG58: =IFERROR(ROUND((VLOOKUP(A58,'2022-23 Nursery Budget'!C:AJ,34,FALSE)),0),0) -> 0 | CI58: 1849187.274 | CJ58: 1863074.274
A59: 4011 | B59: 8314011 | C59: Alvaston Moor Academy | D59: 848 | E59: 0 | F59: 848 | G59: =VLOOKUP(B59,'APT Adjusted Factors'!F:W,17,FALSE) -> 515 | H59: =VLOOKUP(B59,'APT Adjusted Factors'!F:W,18,FALSE) -> 333 | I59: 0 | J59: 2336040 | K59: 1702296 | L59: 0 | M59: 214790 | N59: 0 | O59: 482670 | P59: 0 | Q59: 0 | R59: 0 | S59: 0 | T59: 0 | U59: 0 | V59: 17683.41232 | W59: 25193.83886 | X59: 29890.99526 | Y59: 95349.76303 | Z59: 193412.3223 | AA59: 167218.7678 | AB59: 0 | AC59: 101099.2208 | AD59: 0 | AE59: 0 | AF59: 539583.7263 | AG59: 0 | AH59: 12698.24608 | AI59: 121300 | AJ59: 0 | AK59: 0 | AL59: 0 | AM59: 41338 | AN59: 390812 | AO59: 0 | AP59: 0 | AQ59: 0 | AR59: 0 | AS59: 0 | AT59: 0 | AU59: 0 | AV59: 4038336 | AW59: 1879590.293 | AX59: 553450 | AY59: 1049134.48 | AZ59: 6471376.293 | BA59: 6039226.293 | BB59: 5525 | BC59: 4685200 | BD59: 0 | BE59: 0 | BF59: 6471376.293 | BG59: 0 | BH59: 6471376.293 | BI59: 5117350 | BJ59: 4954712 | BK59: 6308738.293 | BL59: 7439.549873 | BM59: 7116.900093 | BN59: 0.04533571868 | BO59: 0 | BP59: 0 | BQ59: 6471376.293 | BR59: 7121.729119 | BS59: Y | BT59: 7631.339968 | BU59: 0.04345074679 | BV59: 0 | BW59: 6471376.293 | BX59: 0 | BY59: 6471376.293 | BZ59: 41338 | CA59: 6430038.293 | CD59: =IFERROR(VLOOKUP(A59,'ERS 2022-23'!B:P,15,FALSE),0) -> 0 | CE59: =IFERROR(VLOOKUP(A59,'ERS 2022-23'!B:R,17,FALSE),0) -> 0 | CF59: =IFERROR(VLOOKUP(A59,'ERS 2022-23'!B:S,18,FALSE),0)+IFERROR(VLOOKUP(A59,'ERS 2022-23'!B:T,19,FALSE),0) -> 0 | CG59: =IFERROR(ROUND((VLOOKUP(A59,'2022-23 Nursery Budget'!C:AJ,34,FALSE)),0),0) -> 0 | CI59: 6430038.293 | CJ59: 6471376.293
A60: 4010 | B60: 8314010 | C60: UTC Derby Pride Park | D60: 133 | E60: 0 | F60: 133 | G60: =VLOOKUP(B60,'APT Adjusted Factors'!F:W,17,FALSE) -> 74 | H60: =VLOOKUP(B60,'APT Adjusted Factors'!F:W,18,FALSE) -> 59 | I60: 0 | J60: 335664 | K60: 301608 | L60: 0 | M60: 21620 | N60: 0 | O60: 55360 | P60: 0 | Q60: 0 | R60: 0 | S60: 0 | T60: 0 | U60: 0 | V60: 4480 | W60: 8500 | X60: 5355 | Y60: 9750 | Z60: 11200 | AA60: 10680 | AB60: 0 | AC60: 2713.2 | AD60: 0 | AE60: 0 | AF60: 71581.48215 | AG60: 0 | AH60: 11996.6 | AI60: 121300 | AJ60: 0 | AK60: 0 | AL60: 0 | AM60: 27254 | AN60: 0 | AO60: 0 | AP60: 0 | AQ60: 0 | AR60: 0 | AS60: 0 | AT60: 0 | AU60: 0 | AV60: 637272 | AW60: 213236.2822 | AX60: 148554 | AY60: 141652 | AZ60: 999062.2822 | BA60: 971808.2822 | BB60: 5661 | BC60: 752913 | BD60: 0 | BE60: 0 | BF60: 999062.2822 | BG60: 0 | BH60: 999062.2822 | BI60: 780167 | BJ60: 631613 | BK60: 850508.2822 | BL60: 6394.799114 | BM60: 5905.971079 | BN60: 0.08276844364 | BO60: -0.03546844364 | BP60: -27860.25512 | BQ60: 971202.027 | BR60: 7097.353587 | BS60: Y | BT60: 7302.27088 | BU60: -0.248354627 | BV60: 0 | BW60: 971202.027 | BX60: 0 | BY60: 971202.027 | BZ60: 27254 | CA60: 943948.027 | CD60: =IFERROR(VLOOKUP(A60,'ERS 2022-23'!B:P,15,FALSE),0) -> 0 | CE60: =IFERROR(VLOOKUP(A60,'ERS 2022-23'!B:R,17,FALSE),0) -> 0 | CF60: =IFERROR(VLOOKUP(A60,'ERS 2022-23'!B:S,18,FALSE),0)+IFERROR(VLOOKUP(A60,'ERS 2022-23'!B:T,19,FALSE),0) -> 0 | CG60: =IFERROR(ROUND((VLOOKUP(A60,'2022-23 Nursery Budget'!C:AJ,34,FALSE)),0),0) -> 0 | CI60: 943948.027 | CJ60: 971202.027
A61: 4004 | B61: 8314004 | C61: Derby Cathedral School | D61: 824 | E61: 0 | F61: 824 | G61: =VLOOKUP(B61,'APT Adjusted Factors'!F:W,17,FALSE) -> 547.3333333 | H61: =VLOOKUP(B61,'APT Adjusted Factors'!F:W,18,FALSE) -> 276.6666667 | I61: 0 | J61: 2482704 | K61: 1414320 | L61: 0 | M61: 127118.331 | N61: 0 | O61: 288474.4924 | P61: 0 | Q61: 0 | R61: 0 | S61: 0 | T61: 0 | U61: 0 | V61: 24605.23677 | W61: 73649.30362 | X61: 39604.79109 | Y61: 70866.29526 | Z61: 77120.89136 | AA61: 81711.42061 | AB61: 0 | AC61: 21070.52925 | AD61: 0 | AE61: 0 | AF61: 263691.5962 | AG61: 0 | AH61: 0 | AI61: 121300 | AJ61: 0 | AK61: 0 | AL61: 0 | AM61: 14329.03 | AN61: 0 | AO61: 0 | AP61: 0 | AQ61: 0 | AR61: 0 | AS61: 0 | AT61: 0 | AU61: 0 | AV61: 3897024 | AW61: 1067912.887 | AX61: 135629.03 | AY61: 740328.7822 | AZ61: 5100565.917 | BA61: 5086236.887 | BB61: 5525 | BC61: 4552600 | BD61: 0 | BE61: 0 | BF61: 5100565.917 | BG61: 0 | BH61: 5100565.917 | BI61: 4566929.03 | BJ61: 4431300 | BK61: 4964936.887 | BL61: 6025.408844 | BM61: 5714.642181 | BN61: 0.05438077359 | BO61: 0 | BP61: 0 | BQ61: 5100565.917 | BR61: 6172.617582 | BS61: Y | BT61: 6190.007181 | BU61: 0.04445150774 | BV61: 0 | BW61: 5100565.917 | BX61: 0 | BY61: 5100565.917 | BZ61: 14329.03 | CA61: 5086236.887 | CD61: =IFERROR(VLOOKUP(A61,'ERS 2022-23'!B:P,15,FALSE),0) -> 0 | CE61: =IFERROR(VLOOKUP(A61,'ERS 2022-23'!B:R,17,FALSE),0) -> 0 | CF61: =IFERROR(VLOOKUP(A61,'ERS 2022-23'!B:S,18,FALSE),0)+IFERROR(VLOOKUP(A61,'ERS 2022-23'!B:T,19,FALSE),0) -> 0 | CG61: =IFERROR(ROUND((VLOOKUP(A61,'2022-23 Nursery Budget'!C:AJ,34,FALSE)),0),0) -> 0 | CI61: 5086236.887 | CJ61: 5100565.917
A62: 4005 | B62: 8314005 | C62: Noel-Baker Academy | D62: 1070 | E62: 0 | F62: 1070 | G62: =VLOOKUP(B62,'APT Adjusted Factors'!F:W,17,FALSE) -> 659 | H62: =VLOOKUP(B62,'APT Adjusted Factors'!F:W,18,FALSE) -> 411 | I62: 0 | J62: 2989224 | K62: 2101032 | L62: 0 | M62: 168260 | N62: 0 | O62: 408280 | P62: 0 | Q62: 0 | R62: 0 | S62: 0 | T62: 0 | U62: 0 | V62: 40998.31618 | W62: 64235.03274 | X62: 2382.22638 | Y62: 93687.55847 | Z62: 131723.1057 | AA62: 124716.5575 | AB62: 0 | AC62: 22992.97753 | AD62: 0 | AE62: 0 | AF62: 497278.4709 | AG62: 0 | AH62: 0 | AI62: 121300 | AJ62: 0 | AK62: 0 | AL62: 0 | AM62: 28292 | AN62: 419920 | AO62: 0 | AP62: 0 | AQ62: 0 | AR62: 0 | AS62: 0 | AT62: 0 | AU62: 0 | AV62: 5090256 | AW62: 1554554.245 | AX62: 569512 | AY62: 1020357.824 | AZ62: 7214322.245 | BA62: 6766110.245 | BB62: 5525 | BC62: 5911750 | BD62: 0 | BE62: 0 | BF62: 7214322.245 | BG62: 0 | BH62: 7214322.245 | BI62: 6359962 | BJ62: 6210370 | BK62: 7064730.245 | BL62: 6602.551631 | BM62: 6374.129054 | BN62: 0.03583588843 | BO62: 0 | BP62: 0 | BQ62: 7214322.245 | BR62: 6323.467519 | BS62: Y | BT62: 6742.357239 | BU62: 0.03386438003 | BV62: 0 | BW62: 7214322.245 | BX62: 0 | BY62: 7214322.245 | BZ62: 28292 | CA62: 7186030.245 | CD62: =IFERROR(VLOOKUP(A62,'ERS 2022-23'!B:P,15,FALSE),0) -> 0 | CE62: =IFERROR(VLOOKUP(A62,'ERS 2022-23'!B:R,17,FALSE),0) -> 0 | CF62: =IFERROR(VLOOKUP(A62,'ERS 2022-23'!B:S,18,FALSE),0)+IFERROR(VLOOKUP(A62,'ERS 2022-23'!B:T,19,FALSE),0) -> 0 | CG62: =IFERROR(ROUND((VLOOKUP(A62,'2022-23 Nursery Budget'!C:AJ,34,FALSE)),0),0) -> 0 | CI62: 7186030.245 | CJ62: 7214322.245
A63: 4006 | B63: 8314006 | C63: Lees Brook Community School | D63: 1045 | E63: 0 | F63: 1045 | G63: =VLOOKUP(B63,'APT Adjusted Factors'!F:W,17,FALSE) -> 629 | H63: =VLOOKUP(B63,'APT Adjusted Factors'!F:W,18,FALSE) -> 416 | I63: 0 | J63: 2853144 | K63: 2126592 | L63: 0 | M63: 110920 | N63: 0 | O63: 269880 | P63: 0 | Q63: 0 | R63: 0 | S63: 0 | T63: 0 | U63: 0 | V63: 49920 | W63: 43775 | X63: 43435 | Y63: 8450 | Z63: 32200 | AA63: 64080 | AB63: 0 | AC63: 9206.429942 | AD63: 0 | AE63: 0 | AF63: 439543.6539 | AG63: 0 | AH63: 0 | AI63: 121300 | AJ63: 0 | AK63: 0 | AL63: 0 | AM63: 27513 | AN63: 0 | AO63: 0 | AP63: 0 | AQ63: 0 | AR63: 0 | AS63: 0 | AT63: 0 | AU63: 0 | AV63: 4979736 | AW63: 1071410.084 | AX63: 148813 | AY63: 838393.8208 | AZ63: 6199959.084 | BA63: 6172446.084 | BB63: 5525 | BC63: 5773625 | BD63: 0 | BE63: 0 | BF63: 6199959.084 | BG63: 0 | BH63: 6199959.084 | BI63: 5801138 | BJ63: 5652325 | BK63: 6051146.084 | BL63: 5790.570415 | BM63: 5576.780415 | BN63: 0.03833573923 | BO63: 0 | BP63: 0 | BQ63: 6199959.084 | BR63: 5906.64697 | BS63: Y | BT63: 5932.9752 | BU63: 0.03752868096 | BV63: 0 | BW63: 6199959.084 | BX63: 0 | BY63: 6199959.084 | BZ63: 27513 | CA63: 6172446.084 | CD63: =IFERROR(VLOOKUP(A63,'ERS 2022-23'!B:P,15,FALSE),0) -> 4500 | CE63: =IFERROR(VLOOKUP(A63,'ERS 2022-23'!B:R,17,FALSE),0) -> 5500 | CF63: =IFERROR(VLOOKUP(A63,'ERS 2022-23'!B:S,18,FALSE),0)+IFERROR(VLOOKUP(A63,'ERS 2022-23'!B:T,19,FALSE),0) -> 0 | CG63: =IFERROR(ROUND((VLOOKUP(A63,'2022-23 Nursery Budget'!C:AJ,34,FALSE)),0),0) -> 0 | CI63: 6182446.084 | CJ63: 6209959.084
A64: 4007 | B64: 8314007 | C64: Da Vinci Academy | D64: 654 | E64: 0 | F64: 654 | G64: =VLOOKUP(B64,'APT Adjusted Factors'!F:W,17,FALSE) -> 418 | H64: =VLOOKUP(B64,'APT Adjusted Factors'!F:W,18,FALSE) -> 236 | I64: 0 | J64: 1896048 | K64: 1206432 | L64: 0 | M64: 140530 | N64: 0 | O64: 321780 | P64: 0 | Q64: 0 | R64: 0 | S64: 0 | T64: 0 | U64: 0 | V64: 52160 | W64: 34425 | X64: 29750 | Y64: 4550 | Z64: 65800 | AA64: 169100 | AB64: 0 | AC64: 18360 | AD64: 0 | AE64: 0 | AF64: 368496.7375 | AG64: 0 | AH64: 1010.8 | AI64: 121300 | AJ64: 0 | AK64: 0 | AL64: 0 | AM64: 24583 | AN64: 25495 | AO64: 0 | AP64: 0 | AQ64: 0 | AR64: 0 | AS64: 0 | AT64: 0 | AU64: 0 | AV64: 3102480 | AW64: 1205962.538 | AX64: 171378 | AY64: 714669.3051 | AZ64: 4479820.538 | BA64: 4429742.538 | BB64: 5525 | BC64: 3613350 | BD64: 0 | BE64: 0 | BF64: 4479820.538 | BG64: 0 | BH64: 4479820.538 | BI64: 3663428 | BJ64: 3517545 | BK64: 4333937.538 | BL64: 6626.815807 | BM64: 6313.878719 | BN64: 0.04956336699 | BO64: -0.002263366988 | BP64: -9346.068525 | BQ64: 4470474.469 | BR64: 6759.016008 | BS64: Y | BT64: 6835.587873 | BU64: 0.04664261502 | BV64: 0 | BW64: 4470474.469 | BX64: 0 | BY64: 4470474.469 | BZ64: 24583 | CA64: 4445891.469 | CD64: =IFERROR(VLOOKUP(A64,'ERS 2022-23'!B:P,15,FALSE),0) -> 0 | CE64: =IFERROR(VLOOKUP(A64,'ERS 2022-23'!B:R,17,FALSE),0) -> 0 | CF64: =IFERROR(VLOOKUP(A64,'ERS 2022-23'!B:S,18,FALSE),0)+IFERROR(VLOOKUP(A64,'ERS 2022-23'!B:T,19,FALSE),0) -> 0 | CG64: =IFERROR(ROUND((VLOOKUP(A64,'2022-23 Nursery Budget'!C:AJ,34,FALSE)),0),0) -> 0 | CI64: 4445891.469 | CJ64: 4470474.469
A65: 4008 | B65: 8314008 | C65: City of Derby Academy | D65: 964 | E65: 0 | F65: 964 | G65: =VLOOKUP(B65,'APT Adjusted Factors'!F:W,17,FALSE) -> 595 | H65: =VLOOKUP(B65,'APT Adjusted Factors'!F:W,18,FALSE) -> 369 | I65: 0 | J65: 2698920 | K65: 1886328 | L65: 0 | M65: 173430 | N65: 0 | O65: 404820 | P65: 0 | Q65: 0 | R65: 0 | S65: 0 | T65: 0 | U65: 0 | V65: 17012.94485 | W65: 58406.76379 | X65: 94900.33299 | Y65: 127145.6816 | Z65: 118669.3028 | AA65: 17855.56712 | AB65: 0 | AC65: 164224.2857 | AD65: 0 | AE65: 0 | AF65: 580740.8102 | AG65: 0 | AH65: 30914.66916 | AI65: 121300 | AJ65: 0 | AK65: 0 | AL65: 0 | AM65: 34997 | AN65: 0 | AO65: 0 | AP65: 0 | AQ65: 0 | AR65: 0 | AS65: 0 | AT65: 0 | AU65: 0 | AV65: 4585248 | AW65: 1788120.358 | AX65: 156297 | AY65: 1082797.787 | AZ65: 6529665.358 | BA65: 6494668.358 | BB65: 5525 | BC65: 5326100 | BD65: 0 | BE65: 0 | BF65: 6529665.358 | BG65: 0 | BH65: 6529665.358 | BI65: 5361097 | BJ65: 5204800 | BK65: 6373368.358 | BL65: 6611.377965 | BM65: 6345.602812 | BN65: 0.04188335773 | BO65: 0 | BP65: 0 | BQ65: 6529665.358 | BR65: 6737.20784 | BS65: Y | BT65: 6773.511782 | BU65: 0.04043016055 | BV65: 0 | BW65: 6529665.358 | BX65: 0 | BY65: 6529665.358 | BZ65: 34997 | CA65: 6494668.358 | CD65: =IFERROR(VLOOKUP(A65,'ERS 2022-23'!B:P,15,FALSE),0) -> 0 | CE65: =IFERROR(VLOOKUP(A65,'ERS 2022-23'!B:R,17,FALSE),0) -> 0 | CF65: =IFERROR(VLOOKUP(A65,'ERS 2022-23'!B:S,18,FALSE),0)+IFERROR(VLOOKUP(A65,'ERS 2022-23'!B:T,19,FALSE),0) -> 0 | CG65: =IFERROR(ROUND((VLOOKUP(A65,'2022-23 Nursery Budget'!C:AJ,34,FALSE)),0),0) -> 0 | CI65: 6494668.358 | CJ65: 6529665.358
A66: 4178 | B66: 8314178 | C66: Derby Moor Academy | D66: 1427 | E66: 0 | F66: 1427 | G66: =VLOOKUP(B66,'APT Adjusted Factors'!F:W,17,FALSE) -> 885.75 | H66: =VLOOKUP(B66,'APT Adjusted Factors'!F:W,18,FALSE) -> 541.25 | I66: 0 | J66: 4017762 | K66: 2766870 | L66: 0 | M66: 155508.4922 | N66: 0 | O66: 387162.5569 | P66: 0 | Q66: 0 | R66: 0 | S66: 0 | T66: 0 | U66: 0 | V66: 2276.695157 | W66: 105830.7514 | X66: 148767.7991 | Y66: 138736.1111 | Z66: 100316.8803 | AA66: 5427.478632 | AB66: 0 | AC66: 51353.69209 | AD66: 0 | AE66: 0 | AF66: 594770.2616 | AG66: 0 | AH66: 0 | AI66: 121300 | AJ66: 0 | AK66: 0 | AL66: 0 | AM66: 31926 | AN66: 0 | AO66: 0 | AP66: 0 | AQ66: 0 | AR66: 0 | AS66: 0 | AT66: 0 | AU66: 0 | AV66: 6784632 | AW66: 1690150.719 | AX66: 153226 | AY66: 1226746.901 | AZ66: 8628008.719 | BA66: 8596082.719 | BB66: 5525 | BC66: 7884175 | BD66: 0 | BE66: 0 | BF66: 8628008.719 | BG66: 0 | BH66: 8628008.719 | BI66: 7916101 | BJ66: 7762875 | BK66: 8474782.719 | BL66: 5938.880672 | BM66: 5769.259989 | BN66: 0.02940076945 | BO66: 0 | BP66: 0 | BQ66: 8628008.719 | BR66: 6023.884176 | BS66: Y | BT66: 6046.256986 | BU66: 0.0284187296 | BV66: 0 | BW66: 8628008.719 | BX66: 0 | BY66: 8628008.719 | BZ66: 31926 | CA66: 8596082.719 | CD66: =IFERROR(VLOOKUP(A66,'ERS 2022-23'!B:P,15,FALSE),0) -> 0 | CE66: =IFERROR(VLOOKUP(A66,'ERS 2022-23'!B:R,17,FALSE),0) -> 0 | CF66: =IFERROR(VLOOKUP(A66,'ERS 2022-23'!B:S,18,FALSE),0)+IFERROR(VLOOKUP(A66,'ERS 2022-23'!B:T,19,FALSE),0) -> 0 | CG66: =IFERROR(ROUND((VLOOKUP(A66,'2022-23 Nursery Budget'!C:AJ,34,FALSE)),0),0) -> 0 | CI66: 8596082.719 | CJ66: 8628008.719
